Workbook

Sheet START
A1: j

Sheet Instructions
D2: 2020
X4: Yes
X5: No
W7: Type of Entities Range:
X8: Parent Municipality
X9: Consolidated Information
F14: START
F15: Instructions
F16: Template names
F17: Lookup and lists | W17: MTREF Range: | X17: 2013
F18: Org structure | X18: 2014
F19: Contacts | X19: 2015
F20: A1-Sum | X20: 2016
F21: A2-FinPerf SC | X21: 2017
F22: A2A | X22: 2018
F23: A3-FinPerf V | X23: 2019
F24: A3A | X24: 2020
F25: A4-FinPerf RE | X25: 2021
F26: A5-Capex | X26: 2022
F27: A5A | X27: 2023
F28: A6-FinPos | X28: 2024
F29: A7-CFlow | X29: 2025
F30: A8-ResRecon | X30: 2026
F31: A9-Asset | X31: 2027
F32: A10-SerDel | X32: 2028
F33: SA1 | W33: MTREF Linked: | X33: 13
F34: SA2 | W34: MTREF: | X34: =INDEX(X17:X31,X33,1) -> 2025
F35: SA3
F36: SA4 | W36: Fin Year: | X36: =MTREF&"/"&RIGHT(MTREF,2)+1 -> 2025/26
F37: SA5
F38: SA6
F39: SA7
F40: SA8
F41: SA9
F42: SA10
F43: SA11
F44: SA12a
F45: SA12b
F46: SA13a
F47: SA13b
F48: SA14
F49: SA15
F50: SA16
F51: SA17
F52: SA18
F53: SA19
F54: SA20
F55: SA21
F56: SA22
F57: SA23
F58: SA24
F59: SA25
F60: SA26
F61: SA27
F62: SA28
F63: SA29
F64: SA30
F65: SA31
F66: SA32
F67: SA33
F68: SA34a
F69: SA34b
F70: SA34c
F71: SA34d
F72: SA34e
F73: SA35
F74: SA36
F75: SA37
F76: SA38
F77: LGDB_EXPORT

Sheet Template names (hidden)
A1: Common sheet headings
A2: Head1 | B2: =HLOOKUP(MTREF,Headings,2) -> 2023/24 | C2: Prior year -1
A3: Head1A | B3: =HLOOKUP(MTREF,Headings,3) -> 2022/23 | C3: Prior year -2
A4: Head1B | B4: =HLOOKUP(MTREF,Headings,4) -> 2021/22 | C4: Prior year -3
A5: Head2 | B5: =HLOOKUP(MTREF,Headings,5) -> Current Year 2024/25 | C5: Year in which budget is being prepared
A6: Head2A | B6: =HLOOKUP(MTREF,Headings,6) -> 2024/25 | C6: Year in which budget is being prepared
A7: Head3 | B7: =HLOOKUP(MTREF,Headings,7) -> 2025/26 Medium Term Revenue & Expenditure Framework | C7: MTREF name
A8: Head4 | B8: LTFS | C8: Long term financial strategy
A9: Head5 | B9: Audited Outcome
A10: Head5A | B10: Outcome
A11: Head5B | B11: Pre-audit outcome
A12: Head6 | B12: Original Budget
A13: Head7 | B13: Adjusted Budget
A14: Head8 | B14: Full Year Forecast
A15: Head9 | B15: =HLOOKUP(MTREF,Headings,8) -> Budget Year 2025/26 | C15: 1st year of MTREF | D15: Year1
A16: Head10 | B16: =HLOOKUP(MTREF,Headings,9) -> Budget Year +1 2026/27 | C16: 2nd year of MTREF | D16: Year2
A17: Head11 | B17: =HLOOKUP(MTREF,Headings,10) -> Budget Year +2 2027/28 | C17: 3rd year of MTREF | D17: Year3
A18: Head12 | B18: =HLOOKUP(MTREF,Headings,11) -> Forecast 2028/29 | C18: 1st yr of long term forecast | D18: Year4
A19: Head13 | B19: =HLOOKUP(MTREF,Headings,12) -> Forecast 2029/30 | C19: Next yr of long term forecast | D19: Year5
A20: Head14 | B20: =HLOOKUP(MTREF,Headings,13) -> Forecast 2030/31 | C20: Next yr of long term forecast | D20: Year6
A21: Head15 | B21: =HLOOKUP(MTREF,Headings,14) -> Forecast 2031/32 | C21: Next yr of long term forecast | D21: Year7
A22: Head16 | B22: =HLOOKUP(MTREF,Headings,15) -> Forecast 2032/33 | C22: Next yr of long term forecast | D22: Year8
A23: Head17 | B23: =HLOOKUP(MTREF,Headings,16) -> Forecast 2033/34 | C23: Next yr of long term forecast | D23: Year9
A24: Head18 | B24: =HLOOKUP(MTREF,Headings,17) -> Forecast 2034/35 | C24: Next yr of long term forecast | D24: Year10
A25: Head19 | B25: =HLOOKUP(MTREF,Headings,18) -> Forecast 2035/36 | C25: Next yr of long term forecast | D25: Year11
A26: Head20 | B26: =HLOOKUP(MTREF,Headings,19) -> Forecast 2036/37 | C26: Next yr of long term forecast | D26: Year12
A27: Head21 | B27: =HLOOKUP(MTREF,Headings,20) -> Forecast 2037/38 | C27: Next yr of long term forecast | D27: Year13
A28: Head22 | B28: =HLOOKUP(MTREF,Headings,21) -> Forecast 2038/39 | C28: Next yr of long term forecast | D28: Year14
A29: Head23 | B29: =HLOOKUP(MTREF,Headings,22) -> Forecast 2039/40 | C29: Next yr of long term forecast | D29: Year15
A30: Head24 | B30: Description
A31: Head25
A32: Head26 | B32: Vote Description
A33: Head27 | B33: Ref
A34: Head27a | B34: References
A35: Head28 | B35: Surplus/(Deficit) for the year | D35: Result
A36: Head29 | B36: =HLOOKUP(MTREF,Headings,23) -> Annual target 2025/26
A37: Head30 | B37: =HLOOKUP(MTREF,Headings,24) -> Revised target 2025/26
A38: Head31 | B38: Quarter ended 30 September
A39: Head32 | B39: Quarter ended 31 December
A40: Head33 | B40: Quarter ended 31 March
A41: Head34 | B41: Quarter ended 30 June
A42: Head35 | B42: Variance explanation
A43: Head36 | B43: YTD Actual 31 Dec
A44: Head37 | B44: YTD Budget 31 Dec
A45: Head38 | B45: Monthly actual
A46: Head39 | B46: YTD actual
A47: Head40 | B47: YTD budget
A48: Head41 | B48: YTD variance
A49: Head42 | B49: Surplus/ (Deficit) for the yr/period
A50: Head43 | B50: =Head3&" Summary" -> 2025/26 Medium Term Revenue & Expenditure Framework Summary
A51: Head44 | B51: 2001 Census
A52: Head45 | B52: 2011 Census
A53: Head46 | B53: - Adjustments Budget - January 2007
A54: Head47 | B54: Previous target year to complete
A55: Head48 | B55: Present value
A56: Head49
A57: Head50 | B57: Other Adjusts.
A58: Head51 | B58: Accum. Funds
A59: Head52 | B59: Multi-year capital
A60: Head53 | B60: Unfore. Unavoid.
A61: Head54 | B61: Prior Adjusted
A62: Head55 | B62: Nat. or Prov. Govt
A63: Head56 | B63: Total Adjusts.
A64: SFPerf1 | B64: Budgeted Financial Performance
A65: SFPerf2 | B65: Forecast Financial Performance
A66: SFPos1 | B66: Budgeted Financial Position
A67: SFPos2 | B67: Forecast Financial Position
A68: Cash1 | B68: Budget Cash Flow
A69: Cash2 | B69: Forecast Cash Flow
A70: RandM | B70: Expenditure includes repairs & maintenance of R'000
A71: Depart1 | B71: Department 1 - | D71: DEP1
A72: Depart2 | B72: Department 2 - | D72: DEP2
A73: Depart3 | B73: Department 3 - | D73: DEP3
A74: Depart4 | B74: Department 4 - | D74: DEP4
A75: Depart5 | B75: Department 5 - | D75: DEP5
A76: Depart6 | B76: Department 6 - | D76: DEP6
A77: Depart7 | B77: Department 7 - | D77: DEP7
A78: Depart8 | B78: Department 8 - | D78: DEP8
A79: Depart9 | B79: Department 9 - | D79: DEP9
A80: Depart10 | B80: Department 10 - | D80: DEP10
A81: Depart11 | B81: Department 11 - | D81: DEP11
A82: Depart12 | B82: Department 12 - | D82: DEP12
A83: Depart13 | B83: Department 13 - | D83: DEP13
A84: Depart14 | B84: Department 14 - | D84: DEP14
A87: Base year of forecast column selection names
A88: Choose | B88: ACT
B89: APP
B90: ADJ
A92: Standard nomenclature
A93: Muni | B93: ='Lookup and lists'!B28 -> LIM351 Blouberg
A94: Municipal Entities | B94: 2 | C94: Type of report: | D94: 1
A95: =IF((MuniEntities=1)*(MuniType=2),"YES","NO") -> NO | B95: Does this municipality have entities (consolidated budget and entity budgets required)? YES/NO
A96: Entity 1 | B96: (Pty) Ltd Example 1 - Municipal entity - | D96: Ent1
A97: Entity 2 | B97: (Pty) Ltd Example 2 - Municipal entity - | D97: Ent2
A98: Entity 3 | B98: Municipal Entity Example 3 | D98: Ent3
A99: Budget approval tables | C99: Chart x-ref | D99: Sch/Tab/Ch | E99: Alternative for municipalities without entities | F99: Alternative for municipalities without entities
B100: =IF(Consolques="YES",E100,F100) -> Table A1 Budget Summary | D100: Table A1 | E100: =D100&"Consolidated Budget Summary" -> Table A1 Consolidated Budget Summary | F100: =D100&"Budget Summary" -> Table A1 Budget Summary
B101: Table A2 Budgeted Financial Performance (revenue and expenditure by functional classification) | C101: Charts 5, 6 | D101: Table A2 | E101: =D101&"Consolidated Budgeted Financial Performance (revenue and expenditure by functional classification)" -> Table A2 Consolidated Budgeted Financial Performance (revenue and expenditure by functional classification) | F101: =D101&"Budgeted Financial Performance (revenue and expenditure by functional classification)" -> Table A2 Budgeted Financial Performance (revenue and expenditure by functional classification)
B102: Table A3 Budgeted Financial Performance (revenue and expenditure by municipal vote) | D102: Table A3 | E102: =D102&"Consolidated Budgeted Financial Performance (revenue and expenditure by municipal vote)" -> Table A3 Consolidated Budgeted Financial Performance (revenue and expenditure by municipal vote) | F102: =D102&"Budgeted Financial Performance (revenue and expenditure by municipal vote)" -> Table A3 Budgeted Financial Performance (revenue and expenditure by municipal vote)
B103: Table A4 Budgeted Financial Performance (revenue and expenditure) | C103: Charts 1, 2, 3, 4 | D103: Table A4 | E103: =D103&"Consolidated Budgeted Financial Performance (revenue and expenditure)" -> Table A4 Consolidated Budgeted Financial Performance (revenue and expenditure) | F103: =D103&"Budgeted Financial Performance (revenue and expenditure)" -> Table A4 Budgeted Financial Performance (revenue and expenditure)
B104: Table A5 Budgeted Capital Expenditure by vote, functional classification and funding | C104: Charts 7, 8, 9, 10, 20 | D104: Table A5 | E104: =D104&"Consolidated Budgeted Capital Expenditure by vote, functional classification and funding" -> Table A5 Consolidated Budgeted Capital Expenditure by vote, functional classification and funding | F104: =D104&"Budgeted Capital Expenditure by vote, functional classification and funding" -> Table A5 Budgeted Capital Expenditure by vote, functional classification and funding
B105: Table A6 Budgeted Financial Position | D105: Table A6 | E105: =D105&"Consolidated Budgeted Financial Position" -> Table A6 Consolidated Budgeted Financial Position | F105: =D105&"Budgeted Financial Position" -> Table A6 Budgeted Financial Position
B106: Table A7 Budgeted Cash Flows | D106: Table A7 | E106: =D106&"Consolidated Budgeted Cash Flows" -> Table A7 Consolidated Budgeted Cash Flows | F106: =D106&"Budgeted Cash Flows" -> Table A7 Budgeted Cash Flows
B107: Table A8 Cash backed reserves/accumulated surplus reconciliation | D107: Table A8 | E107: =D107&"Consolidated Cash backed reserves/accumulated surplus reconciliation" -> Table A8 Consolidated Cash backed reserves/accumulated surplus reconciliation | F107: =D107&"Cash backed reserves/accumulated surplus reconciliation" -> Table A8 Cash backed reserves/accumulated surplus reconciliation
B108: Table A9 Asset Management | D108: Table A9 | E108: =D108&"Consolidated Asset Management" -> Table A9 Consolidated Asset Management | F108: =D108&"Asset Management" -> Table A9 Asset Management
B109: Table A10 Basic service delivery measurement | D109: Table A10 | E109: =D109&"Consolidated basic service delivery measurement" -> Table A10 Consolidated basic service delivery measurement | F109: =D109&"Basic service delivery measurement" -> Table A10 Basic service delivery measurement
A110: Supportinging Tables to the Budget Approval Tables | C110: =$C$99 -> Chart x-ref | D110: =$D$99 -> Sch/Tab/Ch
A111: Supporting Table SA1 | B111: =A111&" Supportinging detail to 'Budgeted Financial Performance'" -> Supporting Table SA1 Supportinging detail to 'Budgeted Financial Performance'
A112: Supporting Table SA2 | B112: =IF(Consolques="YES",E112,F112) -> Supporting Table SA2 Matrix Financial Performance Budget (revenue source/expenditure type and dept.) | E112: =A112&"Consolidated Matrix Financial Performance Budget (revenue source/expenditure type & dept.)" -> Supporting Table SA2 Consolidated Matrix Financial Performance Budget (revenue source/expenditure type & dept.) | F112: =A112&"Matrix Financial Performance Budget (revenue source/expenditure type and dept.)" -> Supporting Table SA2 Matrix Financial Performance Budget (revenue source/expenditure type and dept.)
A113: Supporting Table SA3 | B113: =A113&"Supportinging detail to 'Budgeted Financial Position'" -> Supporting Table SA3 Supportinging detail to 'Budgeted Financial Position'
A114: Supporting Table SA4 | B114: =A114&"Reconciliation of IDP strategic objectives and budget (revenue)" -> Supporting Table SA4 Reconciliation of IDP strategic objectives and budget (revenue) | C114: Chart 11
A115: Supporting Table SA5 | B115: =A115&"Reconciliation of IDP strategic objectives and budget (operating expenditure)" -> Supporting Table SA5 Reconciliation of IDP strategic objectives and budget (operating expenditure) | C115: Chart 12
A116: Supporting Table SA6 | B116: =A116&"Reconciliation of IDP strategic objectives and budget (capital expenditure)" -> Supporting Table SA6 Reconciliation of IDP strategic objectives and budget (capital expenditure) | C116: Chart 13
A117: Supporting Table SA7 | B117: =A117&" Measureable performance objectives" -> Supporting Table SA7 Measureable performance objectives
A118: Supporting Table SA8 | B118: =A118&" Performance indicators and benchmarks" -> Supporting Table SA8 Performance indicators and benchmarks | C118: Chts 15-19
A119: Supporting Table SA9 | B119: =A119&" Social, economic and demographic statistics and assumptions" -> Supporting Table SA9 Social, economic and demographic statistics and assumptions
A120: Supporting Table SA10 | B120: =A120&" Funding measurement" -> Supporting Table SA10 Funding measurement | C120: Chart 14
A121: Supporting Table SA11 | B121: =A121&" Property rates summary" -> Supporting Table SA11 Property rates summary
A122: Supporting Table SA12a | B122: =A122&" Property rates by category (current year)" -> Supporting Table SA12a Property rates by category (current year)
A123: Supporting Table SA12b | B123: =A123&" Property rates by category (budget year)" -> Supporting Table SA12b Property rates by category (budget year)
A124: Supporting Table SA13a | B124: =A124&" Service Tariffs by category" -> Supporting Table SA13a Service Tariffs by category
A125: Supporting Table SA13b | B125: =A125&" Service Tariffs by category - explanatory" -> Supporting Table SA13b Service Tariffs by category - explanatory
A126: Supporting Table SA14 | B126: =A126&" Household bills" -> Supporting Table SA14 Household bills
A127: Supporting Table SA15 | B127: =A127&" Investment particulars by type" -> Supporting Table SA15 Investment particulars by type
A128: Supporting Table SA16 | B128: =A128&" Investment particulars by maturity" -> Supporting Table SA16 Investment particulars by maturity
A129: Supporting Table SA17 | B129: =A129&" Borrowing" -> Supporting Table SA17 Borrowing
A130: Supporting Table SA18 | B130: =A130&" Transfers and grant receipts" -> Supporting Table SA18 Transfers and grant receipts
A131: Supporting Table SA19 | B131: =A131&" Expenditure on transfers and grant programme" -> Supporting Table SA19 Expenditure on transfers and grant programme
A132: Supporting Table SA20 | B132: =A132&" Reconciliation of transfers, grant receipts and unspent funds" -> Supporting Table SA20 Reconciliation of transfers, grant receipts and unspent funds
A133: Supporting Table SA21 | B133: =A133&" Transfers and grants made by the municipality" -> Supporting Table SA21 Transfers and grants made by the municipality
A134: Supporting Table SA22 | B134: =A134&" Summary councillor and staff benefits" -> Supporting Table SA22 Summary councillor and staff benefits
A135: Supporting Table SA23 | B135: =A135&" Salaries, allowances & benefits (political office bearers/councillors/senior managers)" -> Supporting Table SA23 Salaries, allowances & benefits (political office bearers/councillors/senior managers)
A136: Supporting Table SA24 | B136: =A136&" Summary of personnel numbers" -> Supporting Table SA24 Summary of personnel numbers
A137: Supporting Table SA25 | B137: =IF(Consolques="YES",E137,F137) -> Supporting Table SA25 Budgeted monthly revenue and expenditure | E137: =A137&" Consolidated budgeted monthly revenue and expenditure" -> Supporting Table SA25 Consolidated budgeted monthly revenue and expenditure | F137: =A137&" Budgeted monthly revenue and expenditure" -> Supporting Table SA25 Budgeted monthly revenue and expenditure
A138: Supporting Table SA26 | B138: Supporting Table SA26 Budgeted monthly revenue and expenditure (municipal vote) | E138: =A138&" Consolidated budgeted monthly revenue and expenditure (municipal vote)" -> Supporting Table SA26 Consolidated budgeted monthly revenue and expenditure (municipal vote) | F138: =A138&" Budgeted monthly revenue and expenditure (municipal vote)" -> Supporting Table SA26 Budgeted monthly revenue and expenditure (municipal vote)
A139: Supporting Table SA27 | B139: Supporting Table SA27 Budgeted monthly revenue and expenditure (functional classification) | E139: =A139&" Consolidated budgeted monthly revenue and expenditure (functional classification)" -> Supporting Table SA27 Consolidated budgeted monthly revenue and expenditure (functional classification) | F139: =A139&" Budgeted monthly revenue and expenditure (functional classification)" -> Supporting Table SA27 Budgeted monthly revenue and expenditure (functional classification)
A140: Supporting Table SA28 | B140: Supporting Table SA28 Budgeted monthly capital expenditure (municipal vote) | E140: =A140&" Consolidated budgeted monthly capital expenditure (municipal vote)" -> Supporting Table SA28 Consolidated budgeted monthly capital expenditure (municipal vote) | F140: =A140&" Budgeted monthly capital expenditure (municipal vote)" -> Supporting Table SA28 Budgeted monthly capital expenditure (municipal vote)
A141: Supporting Table SA29 | B141: Supporting Table SA29 Budgeted monthly capital expenditure (functional classification) | E141: =A141&" Consolidated budgeted monthly capital expenditure (functional classification)" -> Supporting Table SA29 Consolidated budgeted monthly capital expenditure (functional classification) | F141: =A141&" Budgeted monthly capital expenditure (functional classification)" -> Supporting Table SA29 Budgeted monthly capital expenditure (functional classification)
A142: Supporting Table SA30 | B142: Supporting Table SA30 Budgeted monthly cash flow | E142: =A142&" Consolidated budgeted monthly cash flow" -> Supporting Table SA30 Consolidated budgeted monthly cash flow | F142: =A142&" Budgeted monthly cash flow" -> Supporting Table SA30 Budgeted monthly cash flow
A143: Supporting Table SA31 | B143: NOT REQUIRED - municipality does not have entities | E143: =A143&" Aggregated entity budget" -> Supporting Table SA31 Aggregated entity budget | F143: NOT REQUIRED - municipality does not have entities
A144: Supporting Table SA32 | B144: =A144&" List of external mechanisms" -> Supporting Table SA32 List of external mechanisms
A145: Supporting Table SA33 | B145: =A145&" Contracts having future budgetary implications" -> Supporting Table SA33 Contracts having future budgetary implications
A146: Supporting Table SA34a | B146: =IF(Consolques="YES",E146,F146) -> Supporting Table SA34a Capital expenditure on new assets by asset class | E146: =A146&" Consolidated capital expenditure on new assets by asset class" -> Supporting Table SA34a Consolidated capital expenditure on new assets by asset class | F146: =A146&" Capital expenditure on new assets by asset class" -> Supporting Table SA34a Capital expenditure on new assets by asset class
A147: Supporting Table SA34b | B147: Supporting Table SA34b Capital expenditure on the renewal of existing assets by asset class | E147: =A147&" Consolidated capital expenditure on the renewal of existing assets by asset class" -> Supporting Table SA34b Consolidated capital expenditure on the renewal of existing assets by asset class | F147: =A147&" Capital expenditure on the renewal of existing assets by asset class" -> Supporting Table SA34b Capital expenditure on the renewal of existing assets by asset class
A148: Supporting Table SA34c | B148: Supporting Table SA34c Repairs and maintenance expenditure by asset class | E148: =A148&" Consolidated repairs and maintenance by asset class" -> Supporting Table SA34c Consolidated repairs and maintenance by asset class | F148: =A148&" Repairs and maintenance expenditure by asset class" -> Supporting Table SA34c Repairs and maintenance expenditure by asset class
A149: Supporting Table SA34d | B149: =IF(Consolques="YES",E149,F149) -> Supporting Table SA34d Depreciation by asset class | E149: =A149&" Consolidated Depreciation by asset class" -> Supporting Table SA34d Consolidated Depreciation by asset class | F149: =A149&" Depreciation by asset class" -> Supporting Table SA34d Depreciation by asset class
A150: Supporting Table SA34e | B150: =IF(Consolques="YES",E150,F150) -> Supporting Table SA34e Capital expenditure on the upgrading of existing assets by asset class | E150: =A150&" Consolidated capital expenditure on the upgrading of existing assets by asset class" -> Supporting Table SA34e Consolidated capital expenditure on the upgrading of existing assets by asset class | F150: =A150&" Capital expenditure on the upgrading of existing assets by asset class" -> Supporting Table SA34e Capital expenditure on the upgrading of existing assets by asset class
A151: Supporting Table SA35 | B151: Supporting Table SA35 Future financial implications of the capital budget | E151: =A151&" Consolidated future financial implications of the capital budget" -> Supporting Table SA35 Consolidated future financial implications of the capital budget | F151: =A151& " Future financial implications of the capital budget" -> Supporting Table SA35 Future financial implications of the capital budget
A152: Supporting Table SA36 | B152: Supporting Table SA36 Detailed capital budget | E152: =A152&" Consolidated detailed capital budget" -> Supporting Table SA36 Consolidated detailed capital budget | F152: =A152& " Detailed capital budget" -> Supporting Table SA36 Detailed capital budget
A153: Supporting Table SA37 | B153: Supporting Table SA37 Projects delayed from previous financial year/s | E153: =A153&" Consolidated projects delayed from previous financial year/s" -> Supporting Table SA37 Consolidated projects delayed from previous financial year/s | F153: =A153& " Projects delayed from previous financial year/s" -> Supporting Table SA37 Projects delayed from previous financial year/s
A154: Supporting Table SA38 | B154: =IF(Consolques="YES",E154,F154) -> Supporting Table SA38 Detailed operational projects | E154: =A154&" Consolidated detailed operational projects" -> Supporting Table SA38 Consolidated detailed operational projects | F154: =A154& " Detailed operational projects" -> Supporting Table SA38 Detailed operational projects
A156: Budget Charts | B156: Charts | C156: Cross reference
A157: Chart A1 | B157: =A157&"Revenue by Municipal Vote" -> Chart A1 Revenue by Municipal Vote
A158: Chart A2 | B158: =A158&"Expenditure by Municipal Vote" -> Chart A2 Expenditure by Municipal Vote
A159: Chart A3 | B159: =A159&"Revenue by Standard Classification" -> Chart A3 Revenue by Standard Classification | C159: A2
A160: Chart A4 | B160: =A160&"Expenditure by Standard Classification" -> Chart A4 Expenditure by Standard Classification | C160: A2
A161: Chart A5 | B161: =A161&"Revenue by Major Source (refer 'Minor' source for 'Other Revenue' allocation" -> Chart A5 Revenue by Major Source (refer 'Minor' source for 'Other Revenue' allocation | C161: A3
A162: Chart A6 | B162: =A162&"Revenue by Minor Source (Other)" -> Chart A6 Revenue by Minor Source (Other) | C162: A3
A163: Chart A7 | B163: =A163&"Expenditure by Major Type" -> Chart A7 Expenditure by Major Type | C163: A3
A164: Chart A8 | B164: =A164&"Expenditure by Minor Type (Other)" -> Chart A8 Expenditure by Minor Type (Other) | C164: A3
A165: Chart A9 | B165: =A165&"Capital Expenditure by Municipal Vote/Appropriation (Major)" -> Chart A9 Capital Expenditure by Municipal Vote/Appropriation (Major) | C165: A5
A166: Chart A10 | B166: =A166&"Capital Expenditure by Municipal Vote/Appropriation (Minor)" -> Chart A10 Capital Expenditure by Municipal Vote/Appropriation (Minor) | C166: A5
A167: Chart A11 | B167: =A166&"Capital Expenditure by Standard Classification" -> Chart A10 Capital Expenditure by Standard Classification | C167: A5
A168: Chart A12 | B168: =A168&"Capital expenditure performance trend" -> Chart A12 Capital expenditure performance trend | C168: A5
A169: Chart A13 | B169: =A169&"Capital funding by Source" -> Chart A13 Capital funding by Source | C169: A5
A170: Chart A14 | B170: =A170&"Cash flow trend" -> Chart A14 Cash flow trend | C170: A7
A171: Chart A15 | B171: =A171&"IDP Strategic Objective - Revenue" -> Chart A15 IDP Strategic Objective - Revenue | C171: Table A4
A172: Chart A16 | B172: =A172&"IDP Strategic Objective - Expenditure" -> Chart A16 IDP Strategic Objective - Expenditure | C172: Table A5
A173: Chart A17 | B173: =A173&"IDP Strategic Objective - Capital Expenditure" -> Chart A17 IDP Strategic Objective - Capital Expenditure | C173: Table A6
A174: Chart A18 | B174: =A174&"Debt (borrowing to Total Revenue)" -> Chart A18 Debt (borrowing to Total Revenue) | C174: Table A8
A175: Chart A19 | B175: =A175&"Debtors' trend analysis" -> Chart A19 Debtors' trend analysis | C175: Table A8
A176: Chart A20 | B176: =A176&"Distribution losses" -> Chart A20 Distribution losses | C176: Table A8
A177: Chart A21 | B177: =A177&"Borrowed funding of capital expenditure" -> Chart A21 Borrowed funding of capital expenditure | C177: Table A8
A178: Chart A22 | B178: =A178&"Expenditure analysis (% of Revenue)" -> Chart A22 Expenditure analysis (% of Revenue) | C178: Table A8
A179: Chart A23 | B179: =A179&"Increases in service charges" -> Chart A23 Increases in service charges | C179: Table A10

Sheet Lookup and lists (hidden)
A1: Description | B1: 2013 | C1: 2014 | D1: 2015 | E1: 2016 | F1: 2017 | G1: 2018 | H1: 2019 | I1: 2020 | J1: 2021 | K1: 2022 | L1: 2023 | M1: 2024 | N1: 2025 | O1: 2026 | Q1: Lists | Y1: Grants: | Z1: National - opex | AA1: Provincial - opex | AB1: National - capex | AC1: Provincial - capex
A2: ='Template names'!C2 -> Prior year -1 | B2: =B1-2&"/"&RIGHT(B1,2)-1 -> 2011/12 | C2: 2012/13 | D2: 2013/14 | E2: 2014/15 | F2: 2015/16 | G2: 2016/17 | H2: 2017/18 | I2: 2018/19 | J2: =J1-2&"/"&RIGHT(J1,2)-1 -> 2019/20 | K2: 2020/21 | L2: 2021/22 | M2: 2022/23 | N2: 2023/24 | O2: 2024/25 | Q2: Yes | R2: <1 | S2: <4 | T2: Market | U2: Land & impr. | V2: Yes | W2: Uniform | X2: Yrs | Z2: Local Government Equitable Share | AA2: Health subsidy | AB2: Municipal Infrastructure Grant (MIG) | AC2: Agriculture
A3: ='Template names'!C3 -> Prior year -2 | B3: =B1-3&"/"&RIGHT(B1,2)-2 -> 2010/11 | C3: 2011/12 | D3: 2012/13 | E3: 2013/14 | F3: 2014/15 | G3: 2015/16 | H3: 2016/17 | I3: 2017/18 | J3: =J1-3&"/"&RIGHT(J1,2)-2 -> 2018/19 | K3: 2019/20 | L3: 2020/21 | M3: 2021/22 | N3: 2022/23 | O3: 2023/24 | Q3: No | R3: 1 | S3: 4 | T3: Dep.Replace | U3: Land only | V3: No | W3: Variable | X3: Mths | Z3: RSC Levy Replacement | AA3: Ambulance subsidy | AB3: Public Transport and Systems | AC3: Education
A4: ='Template names'!C4 -> Prior year -3 | B4: =B1-4&"/"&RIGHT(B1,2)-3 -> 2009/10 | C4: 2010/11 | D4: 2011/12 | E4: 2012/13 | F4: 2013/14 | G4: 2014/15 | H4: 2015/16 | I4: 2016/17 | J4: =J1-4&"/"&RIGHT(J1,2)-3 -> 2017/18 | K4: 2018/19 | L4: 2019/20 | M4: 2020/21 | N4: 2021/22 | O4: 2022/23 | R4: 2 | S4: 5 | T4: Other | U4: Other | Z4: Finance Management | AA4: Housing | AB4: Rural Transport Services and Infrastructure | AC4: Health
A5: ='Template names'!C5 -> Year in which budget is being prepared | B5: ="Current Year "& B1-1&"/"&RIGHT(B1,2) -> Current Year 2012/13 | C5: Current Year 2013/14 | D5: Current Year 2014/15 | E5: Current Year 2015/16 | F5: Current Year 2016/17 | G5: Current Year 2017/18 | H5: Current Year 2018/19 | I5: Current Year 2019/20 | J5: ="Current Year "& J1-1&"/"&RIGHT(J1,2) -> Current Year 2020/21 | K5: Current Year 2021/22 | L5: Current Year 2022/23 | M5: Current Year 2023/24 | N5: Current Year 2024/25 | O5: Current Year 2025/26 | R5: 3 | S5: 6 | Z5: Municipal Systems Improvement | AA5: Sport and Recreation | AB5: Regional Bulk Infrastructure | AC5: Housing and Local Government
A6: ='Template names'!C6 -> Year in which budget is being prepared | B6: =B1-1&"/"&RIGHT(B1,2) -> 2012/13 | C6: 2013/14 | D6: 2014/15 | E6: 2015/16 | F6: 2016/17 | G6: 2017/18 | H6: 2018/19 | I6: 2019/20 | J6: =J1-1&"/"&RIGHT(J1,2) -> 2020/21 | K6: 2021/22 | L6: 2022/23 | M6: 2023/24 | N6: 2024/25 | O6: 2025/26 | R6: 4 | S6: 6-10 | Z6: Water Services Operating Subsidy | AB6: Rural Households Infrastructure | AC6: Other Departments
A7: ='Template names'!C7 -> MTREF name | B7: =B1&"/"&RIGHT(B1,2)+1&" Medium Term Revenue & Expenditure Framework" -> 2013/14 Medium Term Revenue & Expenditure Framework | C7: 2014/15 Medium Term Revenue & Expenditure Framework | D7: 2015/16 Medium Term Revenue & Expenditure Framework | E7: 2016/17 Medium Term Revenue & Expenditure Framework | F7: 2017/18 Medium Term Revenue & Expenditure Framework | G7: 2018/19 Medium Term Revenue & Expenditure Framework | H7: 2019/20 Medium Term Revenue & Expenditure Framework | I7: 2020/21 Medium Term Revenue & Expenditure Framework | J7: =J1&"/"&RIGHT(J1,2)+1&" Medium Term Revenue & Expenditure Framework" -> 2021/22 Medium Term Revenue & Expenditure Framework | K7: 2022/23 Medium Term Revenue & Expenditure Framework | L7: 2023/24 Medium Term Revenue & Expenditure Framework | M7: 2024/25 Medium Term Revenue & Expenditure Framework | N7: 2025/26 Medium Term Revenue & Expenditure Framework | O7: 2026/27 Medium Term Revenue & Expenditure Framework | R7: 5 | S7: >10 | Z7: Energy Efficiency and Demand Management | AB7: Neighbourhood Development Partnership | AC7: Public Works, Roads, Transport
A8: ='Template names'!C15 -> 1st year of MTREF | B8: ="Budget Year "&B1&"/"&RIGHT(B1,2)+1 -> Budget Year 2013/14 | C8: Budget Year 2014/15 | D8: Budget Year 2015/16 | E8: Budget Year 2016/17 | F8: Budget Year 2017/18 | G8: Budget Year 2018/19 | H8: Budget Year 2019/20 | I8: Budget Year 2020/21 | J8: ="Budget Year "&J1&"/"&RIGHT(J1,2)+1 -> Budget Year 2021/22 | K8: Budget Year 2022/23 | L8: Budget Year 2023/24 | M8: Budget Year 2024/25 | N8: Budget Year 2025/26 | O8: Budget Year 2026/27 | R8: >5 | Z8: Integrated National Electrification Programme | AB8: 2010 FIFA World Cup Stadiums Development | AC8: Sport and Recreation
A9: ='Template names'!C16 -> 2nd year of MTREF | B9: ="Budget Year +1 "&B1+1&"/"&RIGHT(B1,2)+2 -> Budget Year +1 2014/15 | C9: Budget Year +1 2015/16 | D9: Budget Year +1 2016/17 | E9: Budget Year +1 2017/18 | F9: Budget Year +1 2018/19 | G9: Budget Year +1 2019/20 | H9: Budget Year +1 2020/21 | I9: Budget Year +1 2021/22 | J9: ="Budget Year +1 "&J1+1&"/"&RIGHT(J1,2)+2 -> Budget Year +1 2022/23 | K9: Budget Year +1 2023/24 | L9: Budget Year +1 2024/25 | M9: Budget Year +1 2025/26 | N9: Budget Year +1 2026/27 | O9: Budget Year +1 2027/28 | Z9: Municipal Drought Relief
A10: ='Template names'!C17 -> 3rd year of MTREF | B10: ="Budget Year +2 "&B1+2&"/"&RIGHT(B1,2)+3 -> Budget Year +2 2015/16 | C10: Budget Year +2 2016/17 | D10: Budget Year +2 2017/18 | E10: Budget Year +2 2018/19 | F10: Budget Year +2 2019/20 | G10: Budget Year +2 2020/21 | H10: Budget Year +2 2021/22 | I10: Budget Year +2 2022/23 | J10: ="Budget Year +2 "&J1+2&"/"&RIGHT(J1,2)+3 -> Budget Year +2 2023/24 | K10: Budget Year +2 2024/25 | L10: Budget Year +2 2025/26 | M10: Budget Year +2 2026/27 | N10: Budget Year +2 2027/28 | O10: Budget Year +2 2028/29 | Z10: 2010 FIFA World Cup Operating
A11: ='Template names'!C18 -> 1st yr of long term forecast | B11: ="Forecast "&B1+3&"/"&RIGHT(B1,2)+4 -> Forecast 2016/17 | C11: Forecast 2017/18 | D11: Forecast 2018/19 | E11: Forecast 2019/20 | F11: Forecast 2020/21 | G11: Forecast 2021/22 | H11: Forecast 2022/23 | I11: Forecast 2023/24 | J11: ="Forecast "&J1+3&"/"&RIGHT(J1,2)+4 -> Forecast 2024/25 | K11: Forecast 2025/26 | L11: Forecast 2026/27 | M11: Forecast 2027/28 | N11: Forecast 2028/29 | O11: Forecast 2029/30 | Z11: Electricity Demand Side Management
A12: ='Template names'!C19 -> Next yr of long term forecast | B12: ="Forecast "&B1+4&"/"&RIGHT(B1,2)+5 -> Forecast 2017/18 | C12: Forecast 2018/19 | D12: Forecast 2019/20 | E12: Forecast 2020/21 | F12: Forecast 2021/22 | G12: Forecast 2022/23 | H12: Forecast 2023/24 | I12: Forecast 2024/25 | J12: ="Forecast "&J1+4&"/"&RIGHT(J1,2)+5 -> Forecast 2025/26 | K12: Forecast 2026/27 | L12: Forecast 2027/28 | M12: Forecast 2028/29 | N12: Forecast 2029/30 | O12: Forecast 2030/31 | Z12: EPWP Incentive
A13: ='Template names'!C20 -> Next yr of long term forecast | B13: ="Forecast "&B1+5&"/"&RIGHT(B1,2)+6 -> Forecast 2018/19 | C13: Forecast 2019/20 | D13: Forecast 2020/21 | E13: Forecast 2021/22 | F13: Forecast 2022/23 | G13: Forecast 2023/24 | H13: Forecast 2024/25 | I13: Forecast 2025/26 | J13: ="Forecast "&J1+5&"/"&RIGHT(J1,2)+6 -> Forecast 2026/27 | K13: Forecast 2027/28 | L13: Forecast 2028/29 | M13: Forecast 2029/30 | N13: Forecast 2030/31 | O13: Forecast 2031/32
A14: ='Template names'!C21 -> Next yr of long term forecast | B14: ="Forecast "&B1+6&"/"&RIGHT(B1,2)+7 -> Forecast 2019/20 | C14: Forecast 2020/21 | D14: Forecast 2021/22 | E14: Forecast 2022/23 | F14: Forecast 2023/24 | G14: Forecast 2024/25 | H14: Forecast 2025/26 | I14: Forecast 2026/27 | J14: ="Forecast "&J1+6&"/"&RIGHT(J1,2)+7 -> Forecast 2027/28 | K14: Forecast 2028/29 | L14: Forecast 2029/30 | M14: Forecast 2030/31 | N14: Forecast 2031/32 | O14: Forecast 2032/33 | Z14: Asset Class | AA14: Asset sub-class old | AB14: Asset sub-class | AC14: IUDF | AD14: MTSF
A15: ='Template names'!C22 -> Next yr of long term forecast | B15: ="Forecast "&B1+7&"/"&RIGHT(B1,2)+8 -> Forecast 2020/21 | C15: Forecast 2021/22 | D15: Forecast 2022/23 | E15: Forecast 2023/24 | F15: Forecast 2024/25 | G15: Forecast 2025/26 | H15: Forecast 2026/27 | I15: Forecast 2027/28 | J15: ="Forecast "&J1+7&"/"&RIGHT(J1,2)+8 -> Forecast 2028/29 | K15: Forecast 2029/30 | L15: Forecast 2030/31 | M15: Forecast 2031/32 | N15: Forecast 2032/33 | O15: Forecast 2033/34
A16: ='Template names'!C23 -> Next yr of long term forecast | B16: ="Forecast "&B1+8&"/"&RIGHT(B1,2)+9 -> Forecast 2021/22 | C16: Forecast 2022/23 | D16: Forecast 2023/24 | E16: Forecast 2024/25 | F16: Forecast 2025/26 | G16: Forecast 2026/27 | H16: Forecast 2027/28 | I16: Forecast 2028/29 | J16: ="Forecast "&J1+8&"/"&RIGHT(J1,2)+9 -> Forecast 2029/30 | K16: Forecast 2030/31 | L16: Forecast 2031/32 | M16: Forecast 2032/33 | N16: Forecast 2033/34 | O16: Forecast 2034/35 | Z16: Roads Infrastructure | AA16: Roads, Pavements & Bridges | AB16: Roads | AC16: Spatial integration | AD16: Quality basic education
A17: ='Template names'!C24 -> Next yr of long term forecast | B17: ="Forecast "&B1+9&"/"&RIGHT(B1,2)+10 -> Forecast 2022/23 | C17: Forecast 2023/24 | D17: Forecast 2024/25 | E17: Forecast 2025/26 | F17: Forecast 2026/27 | G17: Forecast 2027/28 | H17: Forecast 2028/29 | I17: Forecast 2029/30 | J17: ="Forecast "&J1+9&"/"&RIGHT(J1,2)+10 -> Forecast 2030/31 | K17: Forecast 2031/32 | L17: Forecast 2032/33 | M17: Forecast 2033/34 | N17: Forecast 2034/35 | O17: Forecast 2035/36 | Z17: Storm water Infrastructure | AA17: Storm water | AB17: Road Structures | AC17: Inclusion and access | AD17: A long and healthy life for all South Africans
A18: ='Template names'!C25 -> Next yr of long term forecast | B18: ="Forecast "&B1+10&"/"&RIGHT(B1,2)+11 -> Forecast 2023/24 | C18: Forecast 2024/25 | D18: Forecast 2025/26 | E18: Forecast 2026/27 | F18: Forecast 2027/28 | G18: Forecast 2028/29 | H18: Forecast 2029/30 | I18: Forecast 2030/31 | J18: ="Forecast "&J1+10&"/"&RIGHT(J1,2)+11 -> Forecast 2031/32 | K18: Forecast 2032/33 | L18: Forecast 2033/34 | M18: Forecast 2034/35 | N18: Forecast 2035/36 | O18: Forecast 2036/37 | Z18: Electrical Infrastructure | AA18: Generation | AB18: Road Furniture | AC18: Growth | AD18: All people in South Africa are and feel safe
A19: ='Template names'!C26 -> Next yr of long term forecast | B19: ="Forecast "&B1+11&"/"&RIGHT(B1,2)+12 -> Forecast 2024/25 | C19: Forecast 2025/26 | D19: Forecast 2026/27 | E19: Forecast 2027/28 | F19: Forecast 2028/29 | G19: Forecast 2029/30 | H19: Forecast 2030/31 | I19: Forecast 2031/32 | J19: ="Forecast "&J1+11&"/"&RIGHT(J1,2)+12 -> Forecast 2032/33 | K19: Forecast 2033/34 | L19: Forecast 2034/35 | M19: Forecast 2035/36 | N19: Forecast 2036/37 | O19: Forecast 2037/38 | Z19: Water Supply Infrastructure | AA19: Transmission & Reticulation | AB19: Capital Spares | AC19: Governance | AD19: Decent employment through inclusive growth
A20: ='Template names'!C27 -> Next yr of long term forecast | B20: ="Forecast "&B1+12&"/"&RIGHT(B1,2)+13 -> Forecast 2025/26 | C20: Forecast 2026/27 | D20: Forecast 2027/28 | E20: Forecast 2028/29 | F20: Forecast 2029/30 | G20: Forecast 2030/31 | H20: Forecast 2031/32 | I20: Forecast 2032/33 | J20: ="Forecast "&J1+12&"/"&RIGHT(J1,2)+13 -> Forecast 2033/34 | K20: Forecast 2034/35 | L20: Forecast 2035/36 | M20: Forecast 2036/37 | N20: Forecast 2037/38 | O20: Forecast 2038/39 | Z20: Sanitation Infrastructure | AA20: Street Lighting | AB20: Drainage Collection | AD20: A skilled and capable workforce to support an inclusive growth path
A21: ='Template names'!C28 -> Next yr of long term forecast | B21: ="Forecast "&B1+13&"/"&RIGHT(B1,2)+14 -> Forecast 2026/27 | C21: Forecast 2027/28 | D21: Forecast 2028/29 | E21: Forecast 2029/30 | F21: Forecast 2030/31 | G21: Forecast 2031/32 | H21: Forecast 2032/33 | I21: Forecast 2033/34 | J21: ="Forecast "&J1+13&"/"&RIGHT(J1,2)+14 -> Forecast 2034/35 | K21: Forecast 2035/36 | L21: Forecast 2036/37 | M21: Forecast 2037/38 | N21: Forecast 2038/39 | O21: Forecast 2039/40 | Z21: Solid Waste Infrastructure | AA21: Dams & Reservoirs | AB21: Storm water Conveyance | AD21: An efficient, competitive and responsive economic infrastructure network
A22: ='Template names'!C29 -> Next yr of long term forecast | B22: ="Forecast "&B1+14&"/"&RIGHT(B1,2)+15 -> Forecast 2027/28 | C22: Forecast 2028/29 | D22: Forecast 2029/30 | E22: Forecast 2030/31 | F22: Forecast 2031/32 | G22: Forecast 2032/33 | H22: Forecast 2033/34 | I22: Forecast 2034/35 | J22: ="Forecast "&J1+14&"/"&RIGHT(J1,2)+15 -> Forecast 2035/36 | K22: Forecast 2036/37 | L22: Forecast 2037/38 | M22: Forecast 2038/39 | N22: Forecast 2039/40 | O22: Forecast 2040/41 | Z22: Rail Infrastructure | AA22: Water purification | AB22: Attenuation | AD22: Vibrant, equitable, sustainable rural communities contributing towards food security for all
A23: Adjustments Budget | B23: ="Annual target " & B1&"/"&RIGHT(B1,2)+1 -> Annual target 2013/14 | C23: Annual target 2014/15 | D23: Annual target 2015/16 | E23: Annual target 2016/17 | F23: Annual target 2017/18 | G23: Annual target 2018/19 | H23: Annual target 2019/20 | I23: Annual target 2020/21 | J23: ="Annual target " & J1&"/"&RIGHT(J1,2)+1 -> Annual target 2021/22 | K23: Annual target 2022/23 | L23: Annual target 2023/24 | M23: Annual target 2024/25 | N23: Annual target 2025/26 | O23: Annual target 2026/27 | Z23: Coastal Infrastructure | AA23: Reticulation | AB23: Power Plants | AD23: Sustainable human settlements and improved quality of household life
A24: =A23 -> Adjustments Budget | B24: ="Revised target "& B1&"/"&RIGHT(B1,2)+1 -> Revised target 2013/14 | C24: Revised target 2014/15 | D24: Revised target 2015/16 | E24: Revised target 2016/17 | F24: Revised target 2017/18 | G24: Revised target 2018/19 | H24: Revised target 2019/20 | I24: Revised target 2020/21 | J24: ="Revised target "& J1&"/"&RIGHT(J1,2)+1 -> Revised target 2021/22 | K24: Revised target 2022/23 | L24: Revised target 2023/24 | M24: Revised target 2024/25 | N24: Revised target 2025/26 | O24: Revised target 2026/27 | Z24: Information and Communication Infrastructure | AA24: Sewerage purification | AB24: HV Substations | AD24: Responsive, accountable, effective and efficient local government
A25: NOTE: This sheet should not be directly amended - select headings from sheet 'S' | Z25: Community Facilities | AA25: Waste Management | AB25: HV Switching Station | AD25: Protect and enhance our environmental assets and natural resources
Z26: Sport and Recreation Facilities | AA26: Transportation | AB26: HV Transmission Conductors | AD26: Create a better South Africa and contribute to a better Africa and a better world
A27: Name link | B27: 140 | Z27: Heritage assets | AA27: Gas | AB27: MV Substations | AD27: An efficient, effective and development-oriented public service
A28: Name of Muni | B28: =INDEX(B29:B307,B27,1) -> LIM351 Blouberg | Z28: Revenue Generating | AA28: Parks & gardens | AB28: MV Switching Stations | AD28: A comprehensive, responsive and sustainable social protection system
B29: Choose name from list | C29: Set name on 'Instructions' sheet | Z29: Non-revenue Generating | AA29: Sportsfields & stadia | AB29: MV Networks | AD29: A diverse, socially cohesive society with a common national identity
B30: BUF Buffalo City | C30: EC EASTERN CAPE | Z30: Operational Buildings | AA30: Swimming pools | AB30: LV Networks
B31: NMA Nelson Mandela Bay | C31: EC EASTERN CAPE | Z31: Housing | AA31: Community halls | AB31: Capital Spares
B32: EC101 Dr Beyers Naude | C32: EC EASTERN CAPE | Z32: Biological or Cultivated Assets | AA32: Libraries | AB32: Dams and Weirs
B33: EC102 Blue Crane Route | C33: EC EASTERN CAPE | Z33: Servitudes | AA33: Recreational facilities | AB33: Boreholes
B34: EC104 Makana | C34: EC EASTERN CAPE | Z34: Licences and Rights | AA34: Fire, safety & emergency | AB34: Reservoirs
B35: EC105 Ndlambe | C35: EC EASTERN CAPE | Z35: Computer Equipment | AA35: Security and policing | AB35: Pump Stations
B36: EC106 Sundays River Valley | C36: EC EASTERN CAPE | Z36: Furniture and Office Equipment | AA36: Buses | AB36: Water Treatment Works
B37: EC108 Kouga | C37: EC EASTERN CAPE | Z37: Machinery and Equipment | AA37: Clinics | AB37: Bulk Mains
B38: EC109 Kou-Kamma | C38: EC EASTERN CAPE | Z38: Transport Assets | AA38: Museums & Art Galleries | AB38: Distribution
B39: DC10 Sarah Baartman | C39: EC EASTERN CAPE | Z39: Land | AA39: Cemeteries | AB39: Distribution Points
B40: EC121 Mbhashe | C40: EC EASTERN CAPE | Z40: Zoo's, Marine and Non-biological Animals | AA40: Social rental housing | AB40: PRV Stations
B41: EC122 Mnquma | C41: EC EASTERN CAPE | AA41: Buildings | AB41: Capital Spares
B42: EC123 Great Kei | C42: EC EASTERN CAPE | AA42: Housing development | AB42: Pump Station
B43: EC124 Amahlathi | C43: EC EASTERN CAPE | AA43: General vehicles | AB43: Reticulation
B44: EC126 Ngqushwa | C44: EC EASTERN CAPE | AA44: Specialised vehicles - Refuse | AB44: Waste Water Treatment Works
B45: EC129 Raymond Mhlaba | C45: EC EASTERN CAPE | AA45: Specialised vehicles - Fire | AB45: Outfall Sewers
B46: DC12 Amathole | C46: EC EASTERN CAPE | AA46: Specialised vehicles - Conservancy | AB46: Toilet Facilities
B47: EC131 Inxuba Yethemba | C47: EC EASTERN CAPE | AA47: Specialised vehicles - Ambulances | AB47: Capital Spares
B48: EC135 Intsika Yethu | C48: EC EASTERN CAPE | AA48: Plant & equipment | AB48: Landfill Sites
B49: EC136 Emalahleni (Ec) | C49: EC EASTERN CAPE | AA49: Computers - hardware/equipment | AB49: Waste Transfer Stations
B50: EC137 Engcobo | C50: EC EASTERN CAPE | AA50: Furniture and other office equipment | AB50: Waste Processing Facilities
B51: EC138 Sakhisizwe | C51: EC EASTERN CAPE | AA51: Abattoirs | AB51: Waste Drop-off Points
B52: EC139 Enoch Mgijima | C52: EC EASTERN CAPE | AA52: Markets | AB52: Waste Separation Facilities
B53: DC13 Chris Hani | C53: EC EASTERN CAPE | AA53: Civic Land and Buildings | AB53: Electricity Generation Facilities
B54: EC141 Elundini | C54: EC EASTERN CAPE | AA54: Other Buildings | AB54: Capital Spares
B55: EC142 Senqu | C55: EC EASTERN CAPE | AA55: Other Land | AB55: Rail Lines
B56: EC145 Walter Sisulu | C56: EC EASTERN CAPE | AA56: Surplus Assets - (Investment or Inventory) | AB56: Rail Structures
B57: DC14 Joe Gqabi | C57: EC EASTERN CAPE | AA57: Computers - software & programming | AB57: Rail Furniture
B58: EC153 Ngquza Hills | C58: EC EASTERN CAPE | AA58: Other | AB58: Drainage Collection
B59: EC154 Port St Johns | C59: EC EASTERN CAPE | AB59: Storm water Conveyance
B60: EC155 Nyandeni | C60: EC EASTERN CAPE | Z60: SA16 - Investments | AB60: Attenuation
B61: EC156 Mhlontlo | C61: EC EASTERN CAPE | Z61: Security | AA61: Interest rate | AB61: MV Substations
B62: EC157 King Sabata Dalindyebo | C62: EC EASTERN CAPE | Z62: Yes | AA62: Fixed | AB62: LV Networks
B63: DC15 O .R. Tambo | C63: EC EASTERN CAPE | Z63: No | AA63: Variable | AB63: Capital Spares
B64: EC441 Matatiele | C64: EC EASTERN CAPE | AB64: Sand Pumps
B65: EC442 Umzimvubu | C65: EC EASTERN CAPE | AB65: Piers
B66: EC443 Winnie Madikizela Mandela | C66: EC EASTERN CAPE | Z66: SA36, SA37 - Capital projects | AB66: Revetments
B67: EC444 Ntabankulu | C67: EC EASTERN CAPE | Z67: Yes | AB67: Promenades
B68: DC44 Alfred Nzo | C68: EC EASTERN CAPE | Z68: No | AB68: Capital Spares
B69: MAN Mangaung | C69: FS FREE STATE | AB69: Data Centres
B70: FS161 Letsemeng | C70: FS FREE STATE | AB70: Core Layers
B71: FS162 Kopanong | C71: FS FREE STATE | AB71: Distribution Layers
B72: FS163 Mohokare | C72: FS FREE STATE | AB72: Capital Spares
B73: DC16 Xhariep | C73: FS FREE STATE | AB73: Halls
B74: FS181 Masilonyana | C74: FS FREE STATE | AB74: Centres
B75: FS182 Tokologo | C75: FS FREE STATE | AB75: Crèches
B76: FS183 Tswelopele | C76: FS FREE STATE | AB76: Clinics/Care Centres
B77: FS184 Matjhabeng | C77: FS FREE STATE | AB77: Fire/Ambulance Stations
B78: FS185 Nala | C78: FS FREE STATE | AB78: Testing Stations
B79: DC18 Lejweleputswa | C79: FS FREE STATE | AB79: Museums
B80: FS191 Setsoto | C80: FS FREE STATE | AB80: Galleries
B81: FS192 Dihlabeng | C81: FS FREE STATE | AB81: Theatres
B82: FS193 Nketoana | C82: FS FREE STATE | AB82: Libraries
B83: FS194 Maluti-a-Phofung | C83: FS FREE STATE | AB83: Cemeteries/Crematoria
B84: FS195 Phumelela | C84: FS FREE STATE | AB84: Police
B85: FS196 Mantsopa | C85: FS FREE STATE | AB85: Purls
B86: DC19 Thabo Mofutsanyana | C86: FS FREE STATE | AB86: Public Open Space
B87: FS201 Moqhaka | C87: FS FREE STATE | AB87: Nature Reserves
B88: FS203 Ngwathe | C88: FS FREE STATE | AB88: Public Ablution Facilities
B89: FS204 Metsimaholo | C89: FS FREE STATE | AB89: Markets
B90: FS205 Mafube | C90: FS FREE STATE | AB90: Stalls
B91: DC20 Fezile Dabi | C91: FS FREE STATE | AB91: Abattoirs
B92: EKU City of Ekurhuleni | C92: GT GAUTENG | AB92: Airports
B93: JHB City Of Johannesburg | C93: GT GAUTENG | AB93: Taxi Ranks/Bus Terminals
B94: TSH City Of Tshwane | C94: GT GAUTENG | AB94: Capital Spares
B95: GT421 Emfuleni | C95: GT GAUTENG | AB95: Indoor Facilities
B96: GT422 Midvaal | C96: GT GAUTENG | AB96: Outdoor Facilities
B97: GT423 Lesedi | C97: GT GAUTENG | AB97: Capital Spares
B98: DC42 Sedibeng | C98: GT GAUTENG | AB98: Monuments
B99: GT481 Mogale City | C99: GT GAUTENG | AB99: Historic Buildings
B100: GT484 Merafong City | C100: GT GAUTENG | AB100: Works of Art
B101: GT485 Rand West City | C101: GT GAUTENG | AB101: Conservation Areas
B102: DC48 West Rand | C102: GT GAUTENG | AB102: Other Heritage
B103: ETH eThekwini | C103: KZN KWAZULU-NATAL | AB103: Improved Property
B104: KZN212 Umdoni | C104: KZN KWAZULU-NATAL | AB104: Unimproved Property
B105: KZN213 Umzumbe | C105: KZN KWAZULU-NATAL | AB105: Municipal Offices
B106: KZN214 uMuziwabantu | C106: KZN KWAZULU-NATAL | AB106: Pay/Enquiry Points
B107: KZN216 Ray Nkonyeni | C107: KZN KWAZULU-NATAL | AB107: Building Plan Offices
B108: DC21 Ugu | C108: KZN KWAZULU-NATAL | AB108: Workshops
B109: KZN221 uMshwathi | C109: KZN KWAZULU-NATAL | AB109: Yards
B110: KZN222 uMngeni | C110: KZN KWAZULU-NATAL | AB110: Stores
B111: KZN223 Mpofana | C111: KZN KWAZULU-NATAL | AB111: Laboratories
B112: KZN224 Impendle | C112: KZN KWAZULU-NATAL | AB112: Training Centres
B113: KZN225 Msunduzi | C113: KZN KWAZULU-NATAL | AB113: Manufacturing Plant
B114: KZN226 Mkhambathini | C114: KZN KWAZULU-NATAL | AB114: Depots
B115: KZN227 Richmond | C115: KZN KWAZULU-NATAL | AB115: Capital Spares
B116: DC22 uMgungundlovu | C116: KZN KWAZULU-NATAL | AB116: Staff Housing
B117: KZN235 Okhahlamba | C117: KZN KWAZULU-NATAL | AB117: Social Housing
B118: KZN237 Inkosi Langalibalele | C118: KZN KWAZULU-NATAL | AB118: Capital Spares
B119: KZN238 Alfred Duma | C119: KZN KWAZULU-NATAL | AB119: Water Rights
B120: DC23 Uthukela | C120: KZN KWAZULU-NATAL | AB120: Effluent Licenses
B121: KZN241 Endumeni | C121: KZN KWAZULU-NATAL | AB121: Solid Waste Licenses
B122: KZN242 Nquthu | C122: KZN KWAZULU-NATAL | AB122: Computer Software and Applications
B123: KZN244 Msinga | C123: KZN KWAZULU-NATAL | AB123: Load Settlement Software Applications
B124: KZN245 Umvoti | C124: KZN KWAZULU-NATAL | AB124: Unspecified
B125: DC24 Umzinyathi | C125: KZN KWAZULU-NATAL
B126: KZN252 Newcastle | C126: KZN KWAZULU-NATAL
B127: KZN253 Emadlangeni | C127: KZN KWAZULU-NATAL
B128: KZN254 Dannhauser | C128: KZN KWAZULU-NATAL
B129: DC25 Amajuba | C129: KZN KWAZULU-NATAL
B130: KZN261 eDumbe | C130: KZN KWAZULU-NATAL
B131: KZN262 uPhongolo | C131: KZN KWAZULU-NATAL
B132: KZN263 Abaqulusi | C132: KZN KWAZULU-NATAL
B133: KZN265 Nongoma | C133: KZN KWAZULU-NATAL
B134: KZN266 Ulundi | C134: KZN KWAZULU-NATAL
B135: DC26 Zululand | C135: KZN KWAZULU-NATAL
B136: KZN271 Umhlabuyalingana | C136: KZN KWAZULU-NATAL
B137: KZN272 Jozini | C137: KZN KWAZULU-NATAL
B138: KZN275 Mtubatuba | C138: KZN KWAZULU-NATAL
B139: KZN276 Hlabisa Big Five | C139: KZN KWAZULU-NATAL
B140: DC27 Umkhanyakude | C140: KZN KWAZULU-NATAL
B141: KZN281 Mfolozi | C141: KZN KWAZULU-NATAL
B142: KZN282 uMhlathuze | C142: KZN KWAZULU-NATAL
B143: KZN284 uMlalazi | C143: KZN KWAZULU-NATAL
B144: KZN285 Mthonjaneni | C144: KZN KWAZULU-NATAL
B145: KZN286 Nkandla | C145: KZN KWAZULU-NATAL
B146: DC28 King Cetshwayo | C146: KZN KWAZULU-NATAL
B147: KZN291 Mandeni | C147: KZN KWAZULU-NATAL
B148: KZN292 KwaDukuza | C148: KZN KWAZULU-NATAL
B149: KZN293 Ndwedwe | C149: KZN KWAZULU-NATAL
B150: KZN294 Maphumulo | C150: KZN KWAZULU-NATAL
B151: DC29 iLembe | C151: KZN KWAZULU-NATAL
B152: KZN433 Greater Kokstad | C152: KZN KWAZULU-NATAL
B153: KZN434 Johannes Phumani Phungula | C153: KZN KWAZULU-NATAL
B154: KZN435 Umzimkhulu | C154: KZN KWAZULU-NATAL
B155: KZN436 Dr Nkosazana Dlamini Zuma | C155: KZN KWAZULU-NATAL
B156: DC43 Harry Gwala | C156: KZN KWAZULU-NATAL
B157: LIM331 Greater Giyani | C157: LIM LIMPOPO
B158: LIM332 Greater Letaba | C158: LIM LIMPOPO
B159: LIM333 Greater Tzaneen | C159: LIM LIMPOPO
B160: LIM334 Ba-Phalaborwa | C160: LIM LIMPOPO
B161: LIM335 Maruleng | C161: LIM LIMPOPO
B162: DC33 Mopani | C162: LIM LIMPOPO
B163: LIM341 Musina | C163: LIM LIMPOPO
B164: LIM343 Thulamela | C164: LIM LIMPOPO
B165: LIM344 Makhado | C165: LIM LIMPOPO
B166: LIM345 Collins Chabane | C166: LIM LIMPOPO
B167: DC34 Vhembe | C167: LIM LIMPOPO
B168: LIM351 Blouberg | C168: LIM LIMPOPO
B169: LIM353 Molemole | C169: LIM LIMPOPO
B170: LIM354 Polokwane | C170: LIM LIMPOPO
B171: LIM355 Lepelle-Nkumpi | C171: LIM LIMPOPO
B172: DC35 Capricorn | C172: LIM LIMPOPO
B173: LIM361 Thabazimbi | C173: LIM LIMPOPO
B174: LIM362 Lephalale | C174: LIM LIMPOPO
B175: LIM366 Bela Bela | C175: LIM LIMPOPO
B176: LIM367 Mogalakwena | C176: LIM LIMPOPO
B177: LIM368 Modimolle-Mookgopong | C177: LIM LIMPOPO
B178: DC36 Waterberg | C178: LIM LIMPOPO
B179: LIM471 Ephraim Mogale | C179: LIM LIMPOPO
B180: LIM472 Elias Motsoaledi | C180: LIM LIMPOPO
B181: LIM473 Makhuduthamaga | C181: LIM LIMPOPO
B182: LIM476 Tubatse Fetakgomo | C182: LIM LIMPOPO
B183: DC47 Sekhukhune | C183: LIM LIMPOPO
B184: MP301 Albert Luthuli | C184: MP MPUMALANGA
B185: MP302 Msukaligwa | C185: MP MPUMALANGA
B186: MP303 Mkhondo | C186: MP MPUMALANGA
B187: MP304 Pixley Ka Seme (MP) | C187: MP MPUMALANGA
B188: MP305 Lekwa | C188: MP MPUMALANGA
B189: MP306 Dipaleseng | C189: MP MPUMALANGA
B190: MP307 Govan Mbeki | C190: MP MPUMALANGA
B191: DC30 Gert Sibande | C191: MP MPUMALANGA
B192: MP311 Victor Khanye | C192: MP MPUMALANGA
B193: MP312 Emalahleni (Mp) | C193: MP MPUMALANGA
B194: MP313 Steve Tshwete | C194: MP MPUMALANGA
B195: MP314 Emakhazeni | C195: MP MPUMALANGA
B196: MP315 Thembisile Hani | C196: MP MPUMALANGA
B197: MP316 Dr J.S. Moroka | C197: MP MPUMALANGA
B198: DC31 Nkangala | C198: MP MPUMALANGA
B199: MP321 Thaba Chweu | C199: MP MPUMALANGA
B200: MP324 Nkomazi | C200: MP MPUMALANGA
... 87 more rows

Sheet Org structure
A1: Organisational Structure Votes | C1: Organisational Structure Sub-Votes | E1: Display Sub-Votes
A2: =B2&" - "&C2 -> Vote 01 - Executive & Council | B2: Vote 01 | C2: Executive & Council
A3: =B4&" - "&C4 -> Vote 02 - Finance And Administration | B3: 01.1 | C3: Council General | D3: =CONCATENATE(B3, " - ", C3) -> 01.1 - Council General | E3: 01.1 - Council General
A4: =B6&" - "&C6 -> Vote 03 - Community Service | B4: Vote 02 | C4: Finance And Administration
A5: =B8&" - "&C8 -> Vote 04 - Public And Safety | B5: 02.1 | C5: Municipal Manager | D5: =CONCATENATE(B5, " - ", C5) -> 02.1 - Municipal Manager | E5: 02.1 - Municipal Manager
A6: =B10&" - "&C10 -> Vote 05 - Waste Management | B6: Vote 03 | C6: Community Service
A7: =B16&" - "&C16 -> Vote 06 - Roads Services | B7: 03.1 | C7: Finance Services Administration | D7: =CONCATENATE(B7, " - ", C7) -> 03.1 - Finance Services Administration | E7: 03.1 - Finance Services Administration
A8: =B21&" - "&C21 -> Vote 07 - Econominc Development And Planning | B8: Vote 04 | C8: Public And Safety
A9: =B24&" - "&C24 -> Vote 08 - | B9: 04.1 | C9: Corporate Services Administration | D9: =CONCATENATE(B9, " - ", C9) -> 04.1 - Corporate Services Administration | E9: 04.1 - Corporate Services Administration
A10: Vote 09 - | B10: Vote 05 | C10: Waste Management
A11: Vote 10 - | B11: 05.1 | C11: Technical Services Administration | D11: =CONCATENATE(B11, " - ", C11) -> 05.1 - Technical Services Administration | E11: 05.1 - Technical Services Administration
A12: Vote 11 - | B12: 05.2 | C12: Electrical Services | D12: =CONCATENATE(B12, " - ", C12) -> 05.2 - Electrical Services | E12: 05.2 - Electrical Services
A13: Vote 12 - | B13: 05.3 | C13: Water Services | D13: =CONCATENATE(B13, " - ", C13) -> 05.3 - Water Services | E13: 05.3 - Water Services
A14: Vote 13 - | B14: 05.4 | C14: Sanitation Services | D14: =CONCATENATE(B14, " - ", C14) -> 05.4 - Sanitation Services | E14: 05.4 - Sanitation Services
A15: Vote 14 - | B15: 05.5 | C15: Roads Services | D15: =CONCATENATE(B15, " - ", C15) -> 05.5 - Roads Services | E15: 05.5 - Roads Services
A16: Vote 15 - Other | B16: Vote 06 | C16: Roads Services
B17: 06.1 | C17: Community Services Administration | D17: =CONCATENATE(B17, " - ", C17) -> 06.1 - Community Services Administration | E17: 06.1 - Community Services Administration
B18: 06.2 | C18: Traffic Services | D18: =CONCATENATE(B18, " - ", C18) -> 06.2 - Traffic Services | E18: 06.2 - Traffic Services
B19: 06.3 | C19: Refuse | D19: =CONCATENATE(B19, " - ", C19) -> 06.3 - Refuse | E19: 06.3 - Refuse
B20: 06.4 | C20: Pound Services | D20: =CONCATENATE(B20, " - ", C20) -> 06.4 - Pound Services | E20: 06.4 - Pound Services
B21: Vote 07 | C21: Econominc Development And Planning
B22: 07.1 | C22: Project Management Unit | D22: =CONCATENATE(B22, " - ", C22) -> 07.1 - Project Management Unit | E22: 07.1 - Project Management Unit
B23: 07.2 | C23: Economic Development And Planning | D23: =CONCATENATE(B23, " - ", C23) -> 07.2 - Economic Development And Planning | E23: 07.2 - Economic Development And Planning
B24: Vote 08
B25: Vote 09
B26: Vote 10
B27: Vote 11
B28: Vote 12
B29: Vote 13
B30: Vote 14
B31: Vote 15 | C31: Other

Sheet Contacts
A1: =muni&" - "&" Contact Information" -> LIM351 Blouberg - Contact Information
A3: A. GENERAL INFORMATION
A4: Municipality | B4: =muni -> LIM351 Blouberg | C4: =IF(B4="Choose name from List","Set name on 'Instructions' sheet", "") -> 
A6: Grade | B6: 3 | C6: 1 Grade in terms of the Remuneration of Public Office Bearers Act.
A8: Province | B8: =IF(B4>" ",VLOOKUP(B4,'Lookup and lists'!B29:C307,2, FALSE)," ") -> LIM LIMPOPO
A10: Web Address | B10: www.blouberg.gov.za
A12: e-mail Address | B12: blou@blouberg.gov.za
A14: B. CONTACT INFORMATION
A15: Postal address:
A16: P.O. Box | B16: Box 1593
A17: City / Town | B17: Senwabarwana
A18: Postal Code | B18: 0790
A20: Street address
A21: Building | B21: 2nd Building
A22: Street No. & Name | B22: Senwabarwana/Dendron Road
A23: City / Town | B23: Senwabarwana
A24: Postal Code | B24: 0790
A26: General Contacts
A27: Telephone number | B27: 015 505 7100
A28: Fax number | B28: 015 505 0296
A30: C. POLITICAL LEADERSHIP
A31: Speaker: | C31: Secretary/PA to the Speaker:
A32: ID Number | C32: ID Number
A33: Title | B33: Mr | C33: Title | D33: Mrs
A34: Name | B34: Boloka | C34: Name | D34: MALATJI PJ
A35: Telephone number | B35: 015 505 7117 | C35: Telephone number | D35: 015 505 7189
A36: Cell number | B36: 071 234 4190 | C36: Cell number | D36: 076 654 3873
A37: Fax number | B37: 015 505 0296 | C37: Fax number | D37: 105 505 0296
A38: E-mail address | B38: bolokamp@blouberg.gov.za | C38: E-mail address | D38: Malatjip@blouberg.gov.za
A40: Mayor/Executive Mayor: | C40: Secretary/PA to the Mayor/Executive Mayor:
A41: ID Number | C41: ID Number
A42: Title | B42: Mrs | C42: Title | D42: Ms
A43: Name | B43: Thamaga M | C43: Name | D43: MATLAPU M
A44: Telephone number | B44: 015 505 7191 | C44: Telephone number | D44: 015 505 7191
A45: Cell number | B45: 082 515 7596 | C45: Cell number | D45: 082 515 7596
A46: Fax number | B46: 015 505 0296 | C46: Fax number | D46: 015 505 0296
A47: E-mail address | B47: Maria@gmail.com | C47: E-mail address | D47: matlapum@blouberg.gov.za
A49: Deputy Mayor/Executive Mayor: | C49: Secretary/PA to the Deputy Mayor/Executive Mayor:
A50: ID Number | C50: ID Number
A51: Title | C51: Title
A52: Name | C52: Name
A53: Telephone number | C53: Telephone number
A54: Cell number | C54: Cell number
A55: Fax number | C55: Fax number
A56: E-mail address | C56: E-mail address
A58: D. MANAGEMENT LEADERSHIP
A59: Municipal Manager: | C59: Secretary/PA to the Municipal Manager:
A60: ID Number | C60: ID Number | D60: 8402021376082
A61: Title | B61: Mr | C61: Title | D61: Mrs
A62: Name | B62: RAMOTHOALA R | C62: Name | D62: RAMOLOMO MS
A63: Telephone number | B63: 015 505 7163 | C63: Telephone number | D63: 015 505 7100/21
A64: Cell number | B64: 0825234435 | C64: Cell number | D64: 0786875828
A65: Fax number | B65: 015 505 0296 | C65: Fax number | D65: 015 505 0296
A66: E-mail address | B66: Ramothoalar@blouberg.gov.za | C66: E-mail address | D66: RamolomoM@blouberg.gov.za
A68: Chief Financial Officer | C68: Secretary/PA to the Chief Financial Officer
A69: ID Number | C69: ID Number
A70: Title | B70: Mr | C70: Title
A71: Name | B71: Motupa M.J | C71: Name
A72: Telephone number | B72: 015 505 7147 | C72: Telephone number
A73: Cell number | B73: 082 818 0008 | C73: Cell number
A74: Fax number | B74: 015 505 0296 | C74: Fax number
A75: E-mail address | B75: Matupaj@blouberg.gov.za | C75: E-mail address
A77: Official responsible for submitting financial information | C77: Official responsible for submitting financial information
A78: ID Number | B78: 8107260490086 | C78: ID Number
A79: Title | B79: Ms | C79: Title
A80: Name | B80: Riba M | C80: Name
A81: Telephone number | B81: 015 505 7156 | C81: Telephone number
A82: Cell number | B82: 083 561 9472 | C82: Cell number
A83: Fax number | B83: 015 505 0296 | C83: Fax number
A84: E-mail address | B84: Ribam@blouberg.gov.za | C84: E-mail address
A85: Official responsible for submitting financial information | C85: Official responsible for submitting financial information
A86: ID Number | C86: ID Number
A87: Title | C87: Title
A88: Name | C88: Name
A89: Telephone number | C89: Telephone number
A90: Cell number | C90: Cell number
A91: Fax number | C91: Fax number
A92: E-mail address | C92: E-mail address
A93: Official responsible for submitting financial information | C93: Official responsible for submitting financial information
A94: ID Number | C94: ID Number
A95: Title | C95: Title
A96: Name | C96: Name
A97: Telephone number | C97: Telephone number
A98: Cell number | C98: Cell number
A99: Fax number | C99: Fax number
A100: E-mail address | C100: E-mail address
A101: Official responsible for submitting financial information | C101: Official responsible for submitting financial information
A102: ID Number | C102: ID Number
A103: Title | C103: Title
A104: Name | C104: Name
A105: Telephone number | C105: Telephone number
A106: Cell number | C106: Cell number
A107: Fax number | C107: Fax number
A108: E-mail address | C108: E-mail address
A109: Official responsible for submitting financial information | C109: Official responsible for submitting financial information
A110: ID Number | C110: ID Number
A111: Title | C111: Title
A112: Name | C112: Name
A113: Telephone number | C113: Telephone number
A114: Cell number | C114: Cell number
A115: Fax number | C115: Fax number
A116: E-mail address | C116: E-mail address
A117: Official responsible for submitting financial information | C117: Official responsible for submitting financial information
A118: ID Number | C118: ID Number
A119: Title | C119: Title
A120: Name | C120: Name
A121: Telephone number | C121: Telephone number
A122: Cell number | C122: Cell number
A123: Fax number | C123: Fax number
A124: E-mail address | C124: E-mail address
A125: Official responsible for submitting financial information | C125: Official responsible for submitting financial information
A126: ID Number | C126: ID Number
A127: Title | C127: Title
A128: Name | C128: Name
A129: Telephone number | C129: Telephone number
A130: Cell number | C130: Cell number
A131: Fax number | C131: Fax number
A132: E-mail address | C132: E-mail address
A133: Official responsible for submitting financial information
A134: ID Number
A135: Title
A136: Name
A137: Telephone number
A138: Cell number
A139: Fax number
A140: E-mail address

Sheet A1-Sum
A1: =muni&" - "&Approve1 -> LIM351 Blouberg - Table A1 Budget Summary
A2: =desc -> Description | B2: =head1b -> 2021/22 | C2: =head1A -> 2022/23 | D2: =Head1 -> 2023/24 | E2: =Head2 -> Current Year 2024/25 | I2: =Head3 -> 2025/26 Medium Term Revenue & Expenditure Framework
A3: R thousands | B3: =Head5 -> Audited Outcome | C3: =Head5 -> Audited Outcome | D3: =Head5 -> Audited Outcome | E3: =Head6 -> Original Budget | F3: =Head7 -> Adjusted Budget | G3: =Head8 -> Full Year Forecast | H3: =Head5b -> Pre-audit outcome | I3: =Head9 -> Budget Year 2025/26 | J3: =Head10 -> Budget Year +1 2026/27 | K3: =Head11 -> Budget Year +2 2027/28
A4: Financial Performance
A5: Property rates | B5: ='A4-FinPerf RE'!C22 -> 29497010.89 | C5: ='A4-FinPerf RE'!D22 -> 25228987.14 | D5: ='A4-FinPerf RE'!E22 -> 68960730.64 | E5: ='A4-FinPerf RE'!F22 -> 34586407 | F5: ='A4-FinPerf RE'!G22 -> 69755697 | G5: ='A4-FinPerf RE'!H22 -> 69755697 | H5: ='A4-FinPerf RE'!I22 -> 72542480.26 | I5: ='A4-FinPerf RE'!J22 -> 76395001 | J5: ='A4-FinPerf RE'!K22 -> 79832777 | K5: ='A4-FinPerf RE'!L22 -> 83828597
A6: Service charges | B6: =SUM('A4-FinPerf RE'!C6:C9) -> 31039184.97 | C6: =SUM('A4-FinPerf RE'!D6:D9) -> 33877028.36 | D6: =SUM('A4-FinPerf RE'!E6:E9) -> 37518572.48 | E6: =SUM('A4-FinPerf RE'!F6:F9) -> 57958333 | F6: =SUM('A4-FinPerf RE'!G6:G9) -> 57758333 | G6: =SUM('A4-FinPerf RE'!H6:H9) -> 57758333 | H6: =SUM('A4-FinPerf RE'!I6:I9) -> 41486255.54 | I6: =SUM('A4-FinPerf RE'!J6:J9) -> 64573219 | J6: =SUM('A4-FinPerf RE'!K6:K9) -> 67479014 | K6: =SUM('A4-FinPerf RE'!L6:L9) -> 67165990
A7: Investment revenue | B7: ='A4-FinPerf RE'!C14 -> 2018715.85 | C7: ='A4-FinPerf RE'!D14 -> 4112363.63 | D7: ='A4-FinPerf RE'!E14 -> 7720659.9 | E7: ='A4-FinPerf RE'!F14 -> 8063596 | F7: ='A4-FinPerf RE'!G14 -> 11063596 | G7: ='A4-FinPerf RE'!H14 -> 11063596 | H7: ='A4-FinPerf RE'!I14 -> 7129626.15 | I7: ='A4-FinPerf RE'!J14 -> 11550395 | J7: ='A4-FinPerf RE'!K14 -> 12070162 | K7: ='A4-FinPerf RE'!L14 -> 12371917
A8: Transfer and subsidies - Operational | B8: ='A4-FinPerf RE'!C26 -> 214162630.3 | C8: ='A4-FinPerf RE'!D26 -> 225391142.6 | D8: ='A4-FinPerf RE'!E26 -> 241376084 | E8: ='A4-FinPerf RE'!F26 -> 250671000 | F8: ='A4-FinPerf RE'!G26 -> 250671000 | G8: ='A4-FinPerf RE'!H26 -> 250671000 | H8: ='A4-FinPerf RE'!I26 -> 249720857.3 | I8: ='A4-FinPerf RE'!J26 -> 249480000 | J8: ='A4-FinPerf RE'!K26 -> 246404000 | K8: ='A4-FinPerf RE'!L26 -> 257523000
A9: Other own revenue | B9: ='A4-FinPerf RE'!C33-SUM(B5:B8) -> 12851223.13 | C9: ='A4-FinPerf RE'!D33-SUM(C5:C8) -> 31523088.93 | D9: ='A4-FinPerf RE'!E33-SUM(D5:D8) -> 18026860.49 | E9: ='A4-FinPerf RE'!F33-SUM(E5:E8) -> 14826903 | F9: ='A4-FinPerf RE'!G33-SUM(F5:F8) -> 17826903 | G9: ='A4-FinPerf RE'!H33-SUM(G5:G8) -> 17826903 | H9: ='A4-FinPerf RE'!I33-SUM(H5:H8) -> 10909135.16 | I9: ='A4-FinPerf RE'!J33-SUM(I5:I8) -> 15213297 | J9: ='A4-FinPerf RE'!K33-SUM(J5:J8) -> 15859233 | K9: ='A4-FinPerf RE'!L33-SUM(K5:K8) -> 16255716
A10: ='A4-FinPerf RE'!A33 -> Total Revenue (excluding capital transfers and contributions) | B10: =SUM(B5:B9) -> 289568765.1 | C10: =SUM(C5:C9) -> 320132610.6 | D10: 373602907.5 | E10: 366106239 | F10: 407075529 | G10: 407075529 | H10: 381788354.4 | I10: 417211912 | J10: 421645186 | K10: 437145220
A11: Employee costs | B11: ='A4-FinPerf RE'!C35 -> 119858269 | C11: ='A4-FinPerf RE'!D35 -> 124043649 | D11: ='A4-FinPerf RE'!E35 -> 132264727.5 | E11: ='A4-FinPerf RE'!F35 -> 140755081 | F11: ='A4-FinPerf RE'!G35 -> 140755081 | G11: ='A4-FinPerf RE'!H35 -> 140755081 | H11: ='A4-FinPerf RE'!I35 -> 127479363.7 | I11: ='A4-FinPerf RE'!J35 -> 151448377 | J11: ='A4-FinPerf RE'!K35 -> 155128555 | K11: ='A4-FinPerf RE'!L35 -> 159006765
A12: Remuneration of councillors | B12: ='A4-FinPerf RE'!C36 -> 17213956.91 | C12: ='A4-FinPerf RE'!D36 -> 17982273.07 | D12: ='A4-FinPerf RE'!E36 -> 19212717.03 | E12: ='A4-FinPerf RE'!F36 -> 21997665 | F12: ='A4-FinPerf RE'!G36 -> 21997665 | G12: ='A4-FinPerf RE'!H36 -> 21997665 | H12: ='A4-FinPerf RE'!I36 -> 18109288.23 | I12: ='A4-FinPerf RE'!J36 -> 22965572 | J12: ='A4-FinPerf RE'!K36 -> 23999024 | K12: ='A4-FinPerf RE'!L36 -> 24599002
A13: Depreciation and amortisation | B13: ='A4-FinPerf RE'!C40 -> 30420608.43 | C13: ='A4-FinPerf RE'!D40 -> 35157656.59 | D13: ='A4-FinPerf RE'!E40 -> 33819527.29 | E13: ='A4-FinPerf RE'!F40 -> 33513635 | F13: ='A4-FinPerf RE'!G40 -> 33513635 | G13: ='A4-FinPerf RE'!H40 -> 33513635 | H13: ='A4-FinPerf RE'!I40 -> 0 | I13: ='A4-FinPerf RE'!J40 -> 34988257 | J13: ='A4-FinPerf RE'!K40 -> 36562722 | K13: ='A4-FinPerf RE'!L40 -> 37476791
A14: Interest | B14: ='A4-FinPerf RE'!C41 -> 0 | C14: ='A4-FinPerf RE'!D41 -> 0 | D14: ='A4-FinPerf RE'!E41 -> 4441877.01 | E14: ='A4-FinPerf RE'!F41 -> 0 | F14: ='A4-FinPerf RE'!G41 -> 0 | G14: ='A4-FinPerf RE'!H41 -> 0 | H14: ='A4-FinPerf RE'!I41 -> 0 | I14: ='A4-FinPerf RE'!J41 -> 0 | J14: ='A4-FinPerf RE'!K41 -> 0 | K14: ='A4-FinPerf RE'!L41 -> 0
A15: Inventory consumed and bulk purchases | B15: ='A4-FinPerf RE'!C37+'A4-FinPerf RE'!C38 -> 57305148.64 | C15: ='A4-FinPerf RE'!D37+'A4-FinPerf RE'!D38 -> 56552612.47 | D15: ='A4-FinPerf RE'!E37+'A4-FinPerf RE'!E38 -> 62212546.39 | E15: ='A4-FinPerf RE'!F37+'A4-FinPerf RE'!F38 -> 66777183 | F15: ='A4-FinPerf RE'!G37+'A4-FinPerf RE'!G38 -> 69777183 | G15: ='A4-FinPerf RE'!H37+'A4-FinPerf RE'!H38 -> 69777183 | H15: ='A4-FinPerf RE'!I37+'A4-FinPerf RE'!I38 -> 58908485.29 | I15: ='A4-FinPerf RE'!J37+'A4-FinPerf RE'!J38 -> 69926059 | J15: ='A4-FinPerf RE'!K37+'A4-FinPerf RE'!K38 -> 73871979 | K15: ='A4-FinPerf RE'!L37+'A4-FinPerf RE'!L38 -> 75718777
A16: Transfers and subsidies | B16: ='A4-FinPerf RE'!C43 -> 49860 | C16: ='A4-FinPerf RE'!D43 -> 0 | D16: ='A4-FinPerf RE'!E43 -> 0 | E16: ='A4-FinPerf RE'!F43 -> 0 | F16: ='A4-FinPerf RE'!G43 -> 0 | G16: ='A4-FinPerf RE'!H43 -> 0 | H16: ='A4-FinPerf RE'!I43 -> 0 | I16: ='A4-FinPerf RE'!J43 -> 0 | J16: ='A4-FinPerf RE'!K43 -> 0 | K16: ='A4-FinPerf RE'!L43 -> 0
A17: Other expenditure | B17: ='A4-FinPerf RE'!C48-SUM(B11:B16) -> 103731104.5 | C17: ='A4-FinPerf RE'!D48-SUM(C11:C16) -> 182037499.1 | D17: ='A4-FinPerf RE'!E48-SUM(D11:D16) -> 96417110.92 | E17: ='A4-FinPerf RE'!F48-SUM(E11:E16) -> 169859001 | F17: ='A4-FinPerf RE'!G48-SUM(F11:F16) -> 163151319 | G17: ='A4-FinPerf RE'!H48-SUM(G11:G16) -> 163151319 | H17: ='A4-FinPerf RE'!I48-SUM(H11:H16) -> 90707074.42 | I17: ='A4-FinPerf RE'!J48-SUM(I11:I16) -> 121159969 | J17: ='A4-FinPerf RE'!K48-SUM(J11:J16) -> 115295782 | K17: ='A4-FinPerf RE'!L48-SUM(K11:K16) -> 122791207
A18: ='A4-FinPerf RE'!A48 -> Total Expenditure | B18: =SUM(B11:B17) -> 328578947.5 | C18: =SUM(C11:C17) -> 415773690.2 | D18: 348368506.1 | E18: 432902565 | F18: 429194883 | G18: 429194883 | H18: 295204211.7 | I18: 400488234 | J18: 404858062 | K18: 419592542
A19: ='A4-FinPerf RE'!A49 -> Surplus/(Deficit) | B19: =B10-B18 -> -39010182.3 | C19: =C10-C18 -> -95641079.55 | D19: 25234401.4 | E19: -66796326 | F19: -22119354 | G19: -22119354 | H19: 86584142.73 | I19: 16723678 | J19: 16787124 | K19: 17552678
A20: ='A4-FinPerf RE'!A50 -> Transfers and subsidies - capital (monetary allocations) | B20: ='A4-FinPerf RE'!C50 -> 62602152.7 | C20: ='A4-FinPerf RE'!D50 -> 112528034.1 | D20: ='A4-FinPerf RE'!E50 -> 95456552.07 | E20: ='A4-FinPerf RE'!F50 -> 67485000 | F20: ='A4-FinPerf RE'!G50 -> 126168204 | G20: ='A4-FinPerf RE'!H50 -> 126168204 | H20: ='A4-FinPerf RE'!I50 -> 106267527.1 | I20: ='A4-FinPerf RE'!J50 -> 70241000 | J20: ='A4-FinPerf RE'!K50 -> 75105000 | K20: ='A4-FinPerf RE'!L50 -> 78484000
A21: ='A4-FinPerf RE'!A51 -> Transfers and subsidies - capital (in-kind) | B21: ='A4-FinPerf RE'!C51 -> 0 | C21: ='A4-FinPerf RE'!D51 -> 0 | D21: ='A4-FinPerf RE'!E51 -> 0 | E21: ='A4-FinPerf RE'!F51 -> 0 | F21: ='A4-FinPerf RE'!G51 -> 0 | G21: ='A4-FinPerf RE'!H51 -> 0 | H21: ='A4-FinPerf RE'!I51 -> 0 | I21: ='A4-FinPerf RE'!J51 -> 0 | J21: ='A4-FinPerf RE'!K51 -> 0 | K21: ='A4-FinPerf RE'!L51 -> 0
A22: ='A4-FinPerf RE'!A52 -> Surplus/(Deficit) after capital transfers & contributions | B22: =B19+SUM(B20:B21) -> 23591970.4 | C22: =C19+SUM(C20:C21) -> 16886954.54 | D22: 120690953.5 | E22: 688674 | F22: 104048850 | G22: 104048850 | H22: 192851669.9 | I22: 86964678 | J22: 91892124 | K22: 96036678
A23: ='A4-FinPerf RE'!A58 -> Share of Surplus/Deficit attributable to Associate | B23: ='A4-FinPerf RE'!C58 -> 0 | C23: ='A4-FinPerf RE'!D58 -> 0 | D23: ='A4-FinPerf RE'!E58 -> 0 | E23: ='A4-FinPerf RE'!F58 -> 0 | F23: ='A4-FinPerf RE'!G58 -> 0 | G23: ='A4-FinPerf RE'!H58 -> 0 | H23: ='A4-FinPerf RE'!I58 -> 0 | I23: ='A4-FinPerf RE'!J58 -> 0 | J23: ='A4-FinPerf RE'!K58 -> 0 | K23: ='A4-FinPerf RE'!L58 -> 0
A24: ='A4-FinPerf RE'!A60 -> Surplus/(Deficit) for the year | B24: =B22+B23 -> 23591970.4 | C24: =C22+C23 -> 16886954.54 | D24: 120690953.5 | E24: 688674 | F24: 104048850 | G24: 104048850 | H24: 192851669.9 | I24: 86964678 | J24: 91892124 | K24: 96036678
A25: Capital expenditure & funds sources
A26: Capital expenditure | B26: ='A5-Capex'!C63 -> 8073757.71 | C26: ='A5-Capex'!D63 -> 523676 | D26: ='A5-Capex'!E63 -> 84578647.42 | E26: ='A5-Capex'!F63 -> 74908531 | F26: ='A5-Capex'!G63 -> 145509170 | G26: ='A5-Capex'!H63 -> 145509170 | H26: ='A5-Capex'!I63 -> 94233009.24 | I26: ='A5-Capex'!J63 -> 86964800 | J26: ='A5-Capex'!K63 -> 92705000 | K26: ='A5-Capex'!L63 -> 96877400
A27: Transfers recognised - capital | B27: ='A5-Capex'!C70 -> 0 | C27: ='A5-Capex'!D70 -> 0 | D27: ='A5-Capex'!E70 -> 83484427.59 | E27: ='A5-Capex'!F70 -> 65785000 | F27: ='A5-Capex'!G70 -> 125178416 | G27: ='A5-Capex'!H70 -> 125178416 | H27: ='A5-Capex'!I70 -> 86296993.77 | I27: ='A5-Capex'!J70 -> 67564800 | J27: ='A5-Capex'!K70 -> 75105000 | K27: ='A5-Capex'!L70 -> 78484000
A29: ='A5-Capex'!A72 -> Borrowing | B29: ='A5-Capex'!C72 -> 0 | C29: ='A5-Capex'!D72 -> 0 | D29: ='A5-Capex'!E72 -> 0 | E29: ='A5-Capex'!F72 -> 0 | F29: ='A5-Capex'!G72 -> 0 | G29: ='A5-Capex'!H72 -> 0 | H29: ='A5-Capex'!I72 -> 0 | I29: ='A5-Capex'!J72 -> 0 | J29: ='A5-Capex'!K72 -> 0 | K29: ='A5-Capex'!L72 -> 0
A30: ='A5-Capex'!A73 -> Internally generated funds | B30: ='A5-Capex'!C73 -> 8073757.71 | C30: ='A5-Capex'!D73 -> 523676 | D30: ='A5-Capex'!E73 -> 1094219.83 | E30: ='A5-Capex'!F73 -> 9123531 | F30: ='A5-Capex'!G73 -> 20330754 | G30: ='A5-Capex'!H73 -> 20330754 | H30: ='A5-Capex'!I73 -> 7936015.47 | I30: ='A5-Capex'!J73 -> 19400000 | J30: ='A5-Capex'!K73 -> 17600000 | K30: ='A5-Capex'!L73 -> 18393400
A31: Total sources of capital funds | B31: =+B27+B29+B30 -> 8073757.71 | C31: =+C27+C29+C30 -> 523676 | D31: 84578647.42 | E31: 74908531 | F31: 145509170 | G31: 145509170 | H31: 94233009.24 | I31: 86964800 | J31: 92705000 | K31: 96877400
A32: Financial position
A33: ='A6-FinPos'!A13 -> Total current assets | B33: ='A6-FinPos'!C13 -> 95700961.6 | C33: ='A6-FinPos'!D13 -> 157302092.7 | D33: ='A6-FinPos'!E13 -> 283431826.5 | E33: ='A6-FinPos'!F13 -> 262884038.8 | F33: ='A6-FinPos'!G13 -> 323947109.9 | G33: ='A6-FinPos'!H13 -> 323947109.9 | H33: ='A6-FinPos'!I13 -> 312587512.7 | I33: ='A6-FinPos'!J13 -> 389279934.9 | J33: ='A6-FinPos'!K13 -> 437395931.9 | K33: ='A6-FinPos'!L13 -> 453037211.9
A34: ='A6-FinPos'!A25 -> Total non current assets | B34: ='A6-FinPos'!C25 -> 986551571.8 | C34: ='A6-FinPos'!D25 -> 1076475557 | D34: ='A6-FinPos'!E25 -> 1133303904 | E34: ='A6-FinPos'!F25 -> 1138425676 | F34: ='A6-FinPos'!G25 -> 1198317712 | G34: ='A6-FinPos'!H25 -> 1198317712 | H34: ='A6-FinPos'!I25 -> 1224660946 | I34: ='A6-FinPos'!J25 -> 1432922480 | J34: ='A6-FinPos'!K25 -> 1499230776 | K34: ='A6-FinPos'!L25 -> 1538566323
A35: ='A6-FinPos'!A37 -> Total current liabilities | B35: ='A6-FinPos'!C37 -> 89480325.37 | C35: ='A6-FinPos'!D37 -> 113648505.3 | D35: ='A6-FinPos'!E37 -> 198580296.5 | E35: ='A6-FinPos'!F37 -> 75307156 | F35: ='A6-FinPos'!G37 -> 75307156 | G35: ='A6-FinPos'!H37 -> 75307156 | H35: ='A6-FinPos'!I37 -> 127558044.8 | I35: ='A6-FinPos'!J37 -> 128391051 | J35: ='A6-FinPos'!K37 -> 119753646 | K35: ='A6-FinPos'!L37 -> 129506861
A36: ='A6-FinPos'!A43 -> Total non current liabilities | B36: ='A6-FinPos'!C43 -> 23995855.17 | C36: ='A6-FinPos'!D43 -> 38433209.98 | D36: ='A6-FinPos'!E43 -> 19629114.12 | E36: ='A6-FinPos'!F43 -> 27203817 | F36: ='A6-FinPos'!G43 -> 27203817 | G36: ='A6-FinPos'!H43 -> 27203817 | H36: ='A6-FinPos'!I43 -> 19629114.12 | I36: ='A6-FinPos'!J43 -> 21724942 | J36: ='A6-FinPos'!K43 -> 22702566 | K36: ='A6-FinPos'!L43 -> 23270130
A37: Community wealth/Equity | B37: ='A6-FinPos'!C50 -> 1055035250 | C37: ='A6-FinPos'!D50 -> 1077456476 | D37: ='A6-FinPos'!E50 -> 1200040776 | E37: ='A6-FinPos'!F50 -> 1339316667 | F37: ='A6-FinPos'!G50 -> 1457959774 | G37: ='A6-FinPos'!H50 -> 1457959774 | H37: ='A6-FinPos'!I50 -> 1391582937 | I37: ='A6-FinPos'!J50 -> 1652401899 | J37: ='A6-FinPos'!K50 -> 1794592356 | K37: ='A6-FinPos'!L50 -> 1839297800
A38: Cash flows
A39: Net cash from (used) operating | B39: ='A7-CFlow'!C17 -> -52470381.77 | C39: ='A7-CFlow'!D17 -> -131839263.5 | D39: ='A7-CFlow'!E17 -> 119403011.7 | E39: ='A7-CFlow'!F17 -> 79658878 | F39: ='A7-CFlow'!G17 -> 146076188 | G39: ='A7-CFlow'!H17 -> 146076188 | H39: ='A7-CFlow'!I17 -> -89787784.06 | I39: ='A7-CFlow'!J17 -> 94196500 | J39: ='A7-CFlow'!K17 -> 99840660 | K39: ='A7-CFlow'!L17 -> 100835867
A40: Net cash from (used) investing | B40: ='A7-CFlow'!C27 -> -8073757.71 | C40: ='A7-CFlow'!D27 -> -750306.17 | D40: ='A7-CFlow'!E27 -> -89327281.46 | E40: ='A7-CFlow'!F27 -> -68373398.96 | F40: ='A7-CFlow'!G27 -> -145509170 | G40: ='A7-CFlow'!H27 -> -145509170 | H40: ='A7-CFlow'!I27 -> -87873074.96 | I40: ='A7-CFlow'!J27 -> -84964800 | J40: ='A7-CFlow'!K27 -> -90615000 | K40: ='A7-CFlow'!L27 -> -94735150
A41: Net cash from (used) financing | B41: ='A7-CFlow'!C36 -> 0 | C41: ='A7-CFlow'!D36 -> 0 | D41: ='A7-CFlow'!E36 -> 6537705.17 | E41: ='A7-CFlow'!F36 -> 0 | F41: ='A7-CFlow'!G36 -> 0 | G41: ='A7-CFlow'!H36 -> 0 | H41: ='A7-CFlow'!I36 -> 0 | I41: ='A7-CFlow'!J36 -> 0 | J41: ='A7-CFlow'!K36 -> 0 | K41: ='A7-CFlow'!L36 -> 0
A42: =LEFT('A7-CFlow'!A40,37) -> Cash/cash equivalents at the year end | B42: ='A7-CFlow'!C40 -> -19213536.6 | C42: ='A7-CFlow'!D40 -> -47755019.15 | D42: ='A7-CFlow'!E40 -> 138456108.5 | E42: ='A7-CFlow'!F40 -> 208776570 | F42: ='A7-CFlow'!G40 -> 198058109 | G42: ='A7-CFlow'!H40 -> 198058109 | H42: ='A7-CFlow'!I40 -> -177660859 | I42: ='A7-CFlow'!J40 -> 195256294 | J42: ='A7-CFlow'!K40 -> 204481954 | K42: ='A7-CFlow'!L40 -> 210582671
A44: Cash backing/surplus reconciliation
A45: ='A8-ResRecon'!A4 -> Cash and investments available | B45: ='A8-ResRecon'!C8 -> 89472523.86 | C45: ='A8-ResRecon'!D8 -> 106707276.7 | D45: ='A8-ResRecon'!E8 -> 197424330.2 | E45: ='A8-ResRecon'!F8 -> 215461290 | F45: ='A8-ResRecon'!G8 -> 264172904 | G45: ='A8-ResRecon'!H8 -> 264172904 | H45: ='A8-ResRecon'!I8 -> 141824515.9 | I45: ='A8-ResRecon'!J8 -> 250044989 | J45: ='A8-ResRecon'!K8 -> 292257123 | K45: ='A8-ResRecon'!L8 -> 301431778
A46: ='A8-ResRecon'!A10 -> Application of cash and investments | B46: ='A8-ResRecon'!C18 -> 81055622.76 | C46: ='A8-ResRecon'!D18 -> 61250134.26 | D46: ='A8-ResRecon'!E18 -> 124223670.3 | E46: ='A8-ResRecon'!F18 -> 50239708 | F46: ='A8-ResRecon'!G18 -> 54862708 | G46: ='A8-ResRecon'!H18 -> 54862708 | H46: ='A8-ResRecon'!I18 -> 39232635.37 | I46: ='A8-ResRecon'!J18 -> 6590378 | J46: ='A8-ResRecon'!K18 -> -7546527 | K46: ='A8-ResRecon'!L18 -> 520507
A47: Balance - surplus (shortfall) | B47: =B45-B46 -> 8416901.1 | C47: =C45-C46 -> 45457142.41 | D47: 73200659.83 | E47: 165221582 | F47: 209310196 | G47: 209310196 | H47: 102591880.6 | I47: 243454611 | J47: 299803650 | K47: 300911271
A48: Asset management
A49: Asset register summary (WDV) | B49: ='A9-Asset'!C180 -> 778068844.1 | C49: ='A9-Asset'!D180 -> 912847317.2 | D49: ='A9-Asset'!E180 -> 957867714.8 | E49: ='A9-Asset'!F180 -> 1111180398 | F49: ='A9-Asset'!G180 -> 1053571993 | G49: ='A9-Asset'!H180 -> 1053571993 | I49: ='A9-Asset'!I180 -> 1344210167 | J49: ='A9-Asset'!J180 -> 1393714273 | K49: ='A9-Asset'!K180 -> 1428910532
A50: ='A9-Asset'!A183 -> Depreciation | B50: ='A9-Asset'!C183 -> 30420608.43 | C50: ='A9-Asset'!D183 -> 35157656.59 | D50: ='A9-Asset'!E183 -> 33819527.29 | E50: ='A9-Asset'!F183 -> 33513635 | F50: ='A9-Asset'!G183 -> 33513635 | G50: ='A9-Asset'!H183 -> 33513635 | I50: ='A9-Asset'!I183 -> 34988257 | J50: ='A9-Asset'!J183 -> 36562722 | K50: ='A9-Asset'!K183 -> 37476791
A51: Renewal and Upgrading of Existing Assets | B51: ='A9-Asset'!C40+'A9-Asset'!C75 -> 93057.64 | C51: ='A9-Asset'!D40+'A9-Asset'!D75 -> 0 | D51: ='A9-Asset'!E40+'A9-Asset'!E75 -> 837890.78 | E51: ='A9-Asset'!F40+'A9-Asset'!F75 -> 16816000 | F51: ='A9-Asset'!G40+'A9-Asset'!G75 -> 6988144 | G51: ='A9-Asset'!H40+'A9-Asset'!H75 -> 6988144 | I51: ='A9-Asset'!I40+'A9-Asset'!I75 -> 9300000 | J51: ='A9-Asset'!J40+'A9-Asset'!J75 -> 6100000 | K51: ='A9-Asset'!K40+'A9-Asset'!K75 -> 11148400
A52: Repairs and Maintenance | B52: ='A9-Asset'!C184 -> 16747919.76 | C52: ='A9-Asset'!D184 -> 5831457.51 | D52: ='A9-Asset'!E184 -> 10281730.63 | E52: ='A9-Asset'!F184 -> 5931016 | F52: ='A9-Asset'!G184 -> 3314016 | G52: ='A9-Asset'!H184 -> 3314016 | I52: ='A9-Asset'!I184 -> 3515528 | J52: ='A9-Asset'!J184 -> 3569229 | K52: ='A9-Asset'!K184 -> 3658463
A54: Free services
A55: Cost of Free Basic Services provided | B55: ='A10-SerDel'!C60 -> 19177.77 | C55: ='A10-SerDel'!D60 -> 24456.72 | D55: ='A10-SerDel'!E60 -> 25600.08 | E55: ='A10-SerDel'!F60 -> 4207000 | F55: ='A10-SerDel'!G60 -> 3807000 | G55: ='A10-SerDel'!H60 -> 3807000 | I55: ='A10-SerDel'!I60 -> 5336408 | J55: ='A10-SerDel'!J60 -> 5581329 | K55: ='A10-SerDel'!K60 -> 5122092
A56: Revenue cost of free services provided | B56: ='A10-SerDel'!C79 -> 2981107.94 | C56: ='A10-SerDel'!D79 -> 7823351.55 | D56: ='A10-SerDel'!E79 -> 35293690.61 | E56: ='A10-SerDel'!F79 -> 7586249 | F56: ='A10-SerDel'!G79 -> 12261484 | G56: ='A10-SerDel'!H79 -> 12261484 | I56: ='A10-SerDel'!I79 -> 13396907 | J56: ='A10-SerDel'!J79 -> 13999767 | K56: ='A10-SerDel'!K79 -> 14349761
A57: Households below minimum service level
A58: ='A10-SerDel'!A5 -> Water: | B58: ='A10-SerDel'!C14 -> 0 | C58: ='A10-SerDel'!D14 -> 0 | D58: ='A10-SerDel'!E14 -> 0 | E58: ='A10-SerDel'!F14 -> 0 | F58: ='A10-SerDel'!G14 -> 0 | G58: ='A10-SerDel'!H14 -> 0 | I58: ='A10-SerDel'!I14 -> 0 | J58: ='A10-SerDel'!J14 -> 0 | K58: ='A10-SerDel'!K14 -> 0
A59: ='A10-SerDel'!A16 -> Sanitation/sewerage: | B59: ='A10-SerDel'!C26 -> 0 | C59: ='A10-SerDel'!D26 -> 0 | D59: ='A10-SerDel'!E26 -> 0 | E59: ='A10-SerDel'!F26 -> 0 | F59: ='A10-SerDel'!G26 -> 0 | G59: ='A10-SerDel'!H26 -> 0 | I59: ='A10-SerDel'!I26 -> 0 | J59: ='A10-SerDel'!J26 -> 0 | K59: ='A10-SerDel'!K26 -> 0
A60: ='A10-SerDel'!A28 -> Energy: | B60: ='A10-SerDel'!C35 -> 0 | C60: ='A10-SerDel'!D35 -> 0 | D60: ='A10-SerDel'!E35 -> 0 | E60: ='A10-SerDel'!F35 -> 0 | F60: ='A10-SerDel'!G35 -> 0 | G60: ='A10-SerDel'!H35 -> 0 | I60: ='A10-SerDel'!I35 -> 0 | J60: ='A10-SerDel'!J35 -> 0 | K60: ='A10-SerDel'!K35 -> 0
A61: ='A10-SerDel'!A37 -> Refuse: | B61: ='A10-SerDel'!C45 -> 0 | C61: ='A10-SerDel'!D45 -> 0 | D61: ='A10-SerDel'!E45 -> 0 | E61: ='A10-SerDel'!F45 -> 0 | F61: ='A10-SerDel'!G45 -> 0 | G61: ='A10-SerDel'!H45 -> 0 | I61: ='A10-SerDel'!I45 -> 0 | J61: ='A10-SerDel'!J45 -> 0 | K61: ='A10-SerDel'!K45 -> 0

Sheet A2-FinPerf SC
A1: =muni&" - "&Approve3 -> LIM351 Blouberg - Table A2 Budgeted Financial Performance (revenue and expenditure by functional classification)
A2: ="Functional Classification "&desc -> Functional Classification Description | B2: =head27 -> Ref | C2: =head1b -> 2021/22 | D2: =head1A -> 2022/23 | E2: =Head1 -> 2023/24 | F2: =Head2 -> Current Year 2024/25 | I2: =Head3 -> 2025/26 Medium Term Revenue & Expenditure Framework
A3: R thousand | B3: 1 | C3: =Head5 -> Audited Outcome | D3: =Head5 -> Audited Outcome | E3: =Head5 -> Audited Outcome | F3: =Head6 -> Original Budget | G3: =Head7 -> Adjusted Budget | H3: =Head8 -> Full Year Forecast | I3: =Head9 -> Budget Year 2025/26 | J3: =Head10 -> Budget Year +1 2026/27 | K3: =Head11 -> Budget Year +2 2027/28
A4: Revenue - Functional
A5: Governance and administration | C5: =SUM(C6:C8) -> 245714191.5 | D5: =SUM(D6:D8) -> 274907887.2 | E5: 318491486.7 | F5: 293731126 | G5: 332000416 | H5: 332000416 | I5: 337083655 | J5: 339798425 | K5: 355252287
A6: Executive and council | C6: =A2A!C6 -> 0 | D6: =A2A!D6 -> 0 | E6: =A2A!E6 -> 0 | F6: =A2A!F6 -> 0 | G6: =A2A!G6 -> 0 | H6: =A2A!H6 -> 0 | I6: =A2A!I6 -> 0 | J6: =A2A!J6 -> 0 | K6: =A2A!K6 -> 0
A7: Finance and administration | C7: =A2A!C9 -> 245714191.5 | D7: =A2A!D9 -> 274907887.2 | E7: =A2A!E9 -> 318491486.7 | F7: =A2A!F9 -> 293731126 | G7: =A2A!G9 -> 332000416 | H7: =A2A!H9 -> 332000416 | I7: =A2A!I9 -> 337083655 | J7: =A2A!J9 -> 339798425 | K7: =A2A!K9 -> 355252287
A8: Internal audit | C8: =A2A!C23 -> 0 | D8: =A2A!D23 -> 0 | E8: =A2A!E23 -> 0 | F8: =A2A!F23 -> 0 | G8: =A2A!G23 -> 0 | H8: =A2A!H23 -> 0 | I8: =A2A!I23 -> 0 | J8: =A2A!J23 -> 0 | K8: =A2A!K23 -> 0
A9: Community and public safety | C9: =SUM(C10:C14) -> 3316321.67 | D9: =SUM(D10:D14) -> 2742997.67 | E9: 2774533.16 | F9: 6818500 | G9: 6818500 | H9: 6818500 | I9: 7143345 | J9: 7464799 | K9: 7651418
A10: Community and social services | C10: =A2A!C26 -> 0 | D10: =A2A!D26 -> 0 | E10: =A2A!E26 -> 0 | F10: =A2A!F26 -> 0 | G10: =A2A!G26 -> 0 | H10: =A2A!H26 -> 0 | I10: =A2A!I26 -> 0 | J10: =A2A!J26 -> 0 | K10: =A2A!K26 -> 0
A11: Sport and recreation | C11: =A2A!C48 -> 0 | D11: =A2A!D48 -> 0 | E11: =A2A!E48 -> 0 | F11: =A2A!F48 -> 0 | G11: =A2A!G48 -> 0 | H11: =A2A!H48 -> 0 | I11: =A2A!I48 -> 0 | J11: =A2A!J48 -> 0 | K11: =A2A!K48 -> 0
A12: Public safety | C12: =A2A!C54 -> 3316321.67 | D12: =A2A!D54 -> 2742997.67 | E12: =A2A!E54 -> 2774533.16 | F12: =A2A!F54 -> 6818500 | G12: =A2A!G54 -> 6818500 | H12: =A2A!H54 -> 6818500 | I12: =A2A!I54 -> 7143345 | J12: =A2A!J54 -> 7464799 | K12: =A2A!K54 -> 7651418
A13: Housing | C13: =A2A!C63 -> 0 | D13: =A2A!D63 -> 0 | E13: =A2A!E63 -> 0 | F13: =A2A!F63 -> 0 | G13: =A2A!G63 -> 0 | H13: =A2A!H63 -> 0 | I13: =A2A!I63 -> 0 | J13: =A2A!J63 -> 0 | K13: =A2A!K63 -> 0
A14: Health | C14: =A2A!C66 -> 0 | D14: =A2A!D66 -> 0 | E14: =A2A!E66 -> 0 | F14: =A2A!F66 -> 0 | G14: =A2A!G66 -> 0 | H14: =A2A!H66 -> 0 | I14: =A2A!I66 -> 0 | J14: =A2A!J66 -> 0 | K14: =A2A!K66 -> 0
A15: Economic and environmental services | C15: =SUM(C16:C18) -> 70364971.2 | D15: =SUM(D16:D18) -> 91173149.63 | E15: 85391509.65 | F15: 70003555 | G15: 117333264 | H15: 117333264 | I15: 73076947 | J15: 62068564 | K15: 64798654
A16: Planning and development | C16: =A2A!C75 -> 57486716.36 | D16: =A2A!D75 -> 91173149.63 | E16: =A2A!E75 -> 76997179.88 | F16: =A2A!F75 -> 54287555 | G16: =A2A!G75 -> 58912288 | H16: =A2A!H75 -> 58912288 | I16: =A2A!I75 -> 57359947 | J16: =A2A!J75 -> 62068564 | K16: =A2A!K75 -> 64798654
A17: Road transport | C17: =A2A!C86 -> 12878254.84 | D17: =A2A!D86 -> 0 | E17: =A2A!E86 -> 8394329.77 | F17: =A2A!F86 -> 15716000 | G17: =A2A!G86 -> 58420976 | H17: =A2A!H86 -> 58420976 | I17: =A2A!I86 -> 15717000 | J17: =A2A!J86 -> 0 | K17: =A2A!K86 -> 0
A18: Environmental protection | C18: =A2A!C91 -> 0 | D18: =A2A!D91 -> 0 | E18: =A2A!E91 -> 0 | F18: =A2A!F91 -> 0 | G18: =A2A!G91 -> 0 | H18: =A2A!H91 -> 0 | I18: =A2A!I91 -> 0 | J18: =A2A!J91 -> 0 | K18: =A2A!K91 -> 0
A19: Trading services | C19: =SUM(C20:C23) -> 32775433.5 | D19: =SUM(D20:D23) -> 63836610.17 | E19: 62401930.1 | F19: 63038058 | G19: 77091553 | H19: 77091553 | I19: 70148965 | J19: =SUM(J20:J23) -> 87418398 | K19: 87926861
A20: Energy sources | C20: =A2A!C99 -> 29464538.93 | D20: =A2A!D99 -> 59700824.68 | E20: =A2A!E99 -> 58894783.24 | F20: =A2A!F99 -> 56286558 | G20: =A2A!G99 -> 71640053 | H20: =A2A!H99 -> 71640053 | I20: =A2A!I99 -> 62235686 | J20: =A2A!J99 -> 81036292 | K20: =A2A!K99 -> 83385200
A21: Water management | C21: =A2A!C103 -> 11436.52 | D21: =A2A!D103 -> 8162.17 | E21: =A2A!E103 -> 0 | F21: =A2A!F103 -> 0 | G21: =A2A!G103 -> 0 | H21: =A2A!H103 -> 0 | I21: =A2A!I103 -> 0 | J21: =A2A!J103 -> 0 | K21: =A2A!K103 -> 0
A22: Waste water management | C22: =A2A!C107 -> 23524.88 | D22: =A2A!D107 -> 10993.02 | E22: =A2A!E107 -> 0 | F22: =A2A!F107 -> 0 | G22: =A2A!G107 -> 0 | H22: =A2A!H107 -> 0 | I22: =A2A!I107 -> 0 | J22: =A2A!J107 -> 0 | K22: =A2A!K107 -> 0
A23: Waste management | C23: =A2A!C112 -> 3275933.17 | D23: =A2A!D112 -> 4116630.3 | E23: =A2A!E112 -> 3507146.86 | F23: =A2A!F112 -> 6751500 | G23: =A2A!G112 -> 5451500 | H23: =A2A!H112 -> 5451500 | I23: =A2A!I112 -> 7913279 | J23: =A2A!J112 -> 6382106 | K23: =A2A!K112 -> 4541661
A24: Other | B24: 4 | C24: =A2A!C117 -> 0 | D24: =A2A!D117 -> 0 | E24: =A2A!E117 -> 0 | F24: =A2A!F117 -> 0 | G24: =A2A!G117 -> 0 | H24: =A2A!H117 -> 0 | I24: =A2A!I117 -> 0 | J24: =A2A!J117 -> 0 | K24: =A2A!K117 -> 0
A25: ="Total "&A4 -> Total Revenue - Functional | B25: 2 | C25: =C5+C9+C15+C19+C24 -> 352170917.9 | D25: =D5+D9+D15+D19+D24 -> 432660644.7 | E25: =E5+E9+E15+E19+E24 -> 469059459.6 | F25: 433591239 | G25: 533243733 | H25: 533243733 | I25: =I5+I9+I15+I19+I24 -> 487452912 | J25: 496750186 | K25: 515629220
A27: Expenditure - Functional
A28: Governance and administration | C28: =SUM(C29:C31) -> 157167716.3 | D28: =SUM(D29:D31) -> 250407200.1 | E28: 162388544.9 | F28: 226413674 | G28: 225120344 | H28: 225120344 | I28: 188442976 | J28: 200429401 | K28: 210053159
A29: Executive and council | C29: =A2A!C128 -> 61439667.02 | D29: =A2A!D128 -> 71221015.14 | E29: =A2A!E128 -> 72405817.01 | F29: =A2A!F128 -> 74063121 | G29: =A2A!G128 -> 73182584 | H29: =A2A!H128 -> 73182584 | I29: =A2A!I128 -> 54763829 | J29: =A2A!J128 -> 62380714 | K29: =A2A!K128 -> 63712933
A30: Finance and administration | C30: =A2A!C131 -> 95728049.31 | D30: =A2A!D131 -> 179186184.9 | E30: =A2A!E131 -> 89982727.87 | F30: =A2A!F131 -> 152350553 | G30: =A2A!G131 -> 151937760 | H30: =A2A!H131 -> 151937760 | I30: =A2A!I131 -> 133679147 | J30: =A2A!J131 -> 138048687 | K30: =A2A!K131 -> 146340226
A31: Internal audit | C31: =A2A!C145 -> 0 | D31: =A2A!D145 -> 0 | E31: =A2A!E145 -> 0 | F31: =A2A!F145 -> 0 | G31: =A2A!G145 -> 0 | H31: =A2A!H145 -> 0 | I31: =A2A!I145 -> 0 | J31: =A2A!J145 -> 0 | K31: =A2A!K145 -> 0
A32: Community and public safety | C32: =SUM(C33:C37) -> 16366667.65 | D32: =SUM(D33:D37) -> 18028859.62 | E32: 19581825.13 | F32: 18551191 | G32: 18486191 | H32: 18486191 | I32: 36186608 | J32: 20163995 | K32: 20660596
A33: Community and social services | C33: =A2A!C148 -> 0 | D33: =A2A!D148 -> 0 | E33: =A2A!E148 -> 0 | F33: =A2A!F148 -> 0 | G33: =A2A!G148 -> 0 | H33: =A2A!H148 -> 0 | I33: =A2A!I148 -> 0 | J33: =A2A!J148 -> 0 | K33: =A2A!K148 -> 0
A34: Sport and recreation | C34: =A2A!C170 -> 0 | D34: =A2A!D170 -> 0 | E34: =A2A!E170 -> 0 | F34: =A2A!F170 -> 0 | G34: =A2A!G170 -> 0 | H34: =A2A!H170 -> 0 | I34: =A2A!I170 -> 0 | J34: =A2A!J170 -> 0 | K34: =A2A!K170 -> 0
A35: Public safety | C35: =A2A!C176 -> 16366667.65 | D35: =A2A!D176 -> 18028859.62 | E35: =A2A!E176 -> 19581825.13 | F35: =A2A!F176 -> 18551191 | G35: =A2A!G176 -> 18486191 | H35: =A2A!H176 -> 18486191 | I35: =A2A!I176 -> 36186608 | J35: =A2A!J176 -> 20163995 | K35: =A2A!K176 -> 20660596
A36: Housing | C36: =A2A!C185 -> 0 | D36: =A2A!D185 -> 0 | E36: =A2A!E185 -> 0 | F36: =A2A!F185 -> 0 | G36: =A2A!G185 -> 0 | H36: =A2A!H185 -> 0 | I36: =A2A!I185 -> 0 | J36: =A2A!J185 -> 0 | K36: =A2A!K185 -> 0
A37: Health | C37: =A2A!C188 -> 0 | D37: =A2A!D188 -> 0 | E37: =A2A!E188 -> 0 | F37: =A2A!F188 -> 0 | G37: =A2A!G188 -> 0 | H37: =A2A!H188 -> 0 | I37: =A2A!I188 -> 0 | J37: =A2A!J188 -> 0 | K37: =A2A!K188 -> 0
A38: Economic and environmental services | C38: =SUM(C39:C41) -> 37444051.03 | D38: =SUM(D39:D41) -> 36644512.02 | E38: 40924436.05 | F38: 36259765 | G38: 34260707 | H38: 34260707 | I38: 36950454 | J38: 38592323 | K38: 39557138
A39: Planning and development | C39: =A2A!C197 -> 12763468.56 | D39: =A2A!D197 -> 14528126.82 | E39: =A2A!E197 -> 18357436.04 | F39: =A2A!F197 -> 16534740 | G39: =A2A!G197 -> 14735682 | H39: =A2A!H197 -> 14735682 | I39: =A2A!I197 -> 15893629 | J39: =A2A!J197 -> 16587944 | K39: =A2A!K197 -> 17002644
A40: Road transport | C40: =A2A!C208 -> 24680582.47 | D40: =A2A!D208 -> 22116385.2 | E40: =A2A!E208 -> 22567000.01 | F40: =A2A!F208 -> 19725025 | G40: =A2A!G208 -> 19525025 | H40: =A2A!H208 -> 19525025 | I40: =A2A!I208 -> 21056825 | J40: =A2A!J208 -> 22004379 | K40: =A2A!K208 -> 22554494
A41: Environmental protection | C41: =A2A!C213 -> 0 | D41: =A2A!D213 -> 0 | E41: =A2A!E213 -> 0 | F41: =A2A!F213 -> 0 | G41: =A2A!G213 -> 0 | H41: =A2A!H213 -> 0 | I41: =A2A!I213 -> 0 | J41: =A2A!J213 -> 0 | K41: =A2A!K213 -> 0
A42: Trading services | C42: =SUM(C43:C46) -> 113016253.6 | D42: =SUM(D43:D46) -> 108799771.8 | E42: 126988158.3 | F42: =SUM(F43:F46) -> 151677935 | G42: 149015641 | H42: 149015641 | I42: 138908196 | J42: 144859598 | K42: =SUM(K43:K46) -> 148481087
A43: Energy sources | C43: =A2A!C221 -> 82910838.93 | D43: =A2A!D221 -> 87249631.64 | E43: =A2A!E221 -> 94625202.05 | F43: =A2A!F221 -> 112765648 | G43: =A2A!G221 -> 111645648 | H43: =A2A!H221 -> 111645648 | I43: =A2A!I221 -> 103072217 | J43: =A2A!J221 -> 106388768 | K43: =A2A!K221 -> 109048484
A44: Water management | C44: =A2A!C225 -> 0 | D44: =A2A!D225 -> 0 | E44: =A2A!E225 -> 0 | F44: =A2A!F225 -> 0 | G44: =A2A!G225 -> 0 | H44: =A2A!H225 -> 0 | I44: =A2A!I225 -> 0 | J44: =A2A!J225 -> 0 | K44: =A2A!K225 -> 0
A45: Waste water management | C45: =A2A!C229 -> 0 | D45: =A2A!D229 -> 0 | E45: =A2A!E229 -> 73367.34 | F45: =A2A!F229 -> 0 | G45: =A2A!G229 -> 0 | H45: =A2A!H229 -> 0 | I45: =A2A!I229 -> 0 | J45: =A2A!J229 -> 0 | K45: =A2A!K229 -> 0
A46: Waste management | C46: =A2A!C234 -> 30105414.62 | D46: =A2A!D234 -> 21550140.11 | E46: =A2A!E234 -> 32289588.9 | F46: =A2A!F234 -> 38912287 | G46: =A2A!G234 -> 37369993 | H46: =A2A!H234 -> 37369993 | I46: =A2A!I234 -> 35835979 | J46: =A2A!J234 -> 38470830 | K46: =A2A!K234 -> 39432603
A47: Other | B47: 4 | C47: =A2A!C239 -> 0 | D47: =A2A!D239 -> 0 | E47: =A2A!E239 -> 0 | F47: =A2A!F239 -> 0 | G47: =A2A!G239 -> 0 | H47: =A2A!H239 -> 0 | I47: =A2A!I239 -> 0 | J47: =A2A!J239 -> 0 | K47: =A2A!K239 -> 0
A48: ="Total "&A27 -> Total Expenditure - Functional | B48: 3 | C48: =C28+C32+C38+C42+C47 -> 323994688.6 | D48: =D28+D32+D38+D42+D47 -> 413880343.4 | E48: =E28+E32+E38+E42+E47 -> 349882964.4 | F48: =F28+F32+F38+F42+F47 -> 432902565 | G48: 426882883 | H48: 426882883 | I48: 400488234 | J48: 404045317 | K48: 418751980
A49: =result -> Surplus/(Deficit) for the year | C49: =C25-C48 -> 28176229.29 | D49: =D25-D48 -> 18780301.28 | E49: 119176495.2 | F49: 688674 | G49: 106360850 | H49: 106360850 | I49: 86964678 | J49: 92704869 | K49: 96877240
A50: =head27a -> References
A51: 1. Government Finance Statistics Functions and Sub-functions are standardised to assist the compilation of national and international accounts for comparison purposes
A52: 2. Total Revenue by functional classification must reconcile to Total Operating Revenue shown in Budgeted Financial Performance (revenue and expenditure)
A53: 3. Total Expenditure by Functional Classification must reconcile to Total Operating Expenditure shown in Budgeted Financial Performance (revenue and expenditure)
A54: 4. All amounts must be classified under a functional classification . The GFS function 'Other' is only for Abbatoirs, Air Transport, Forestry, Licensing and Regulation, Markets and Tourism - and if used must be supported by footnotes. Nothing else may be placed under 'Other'. Assign associate share to relevant classification.

Sheet A2A
A1: =muni&" - "&Approve3 -> LIM351 Blouberg - Table A2 Budgeted Financial Performance (revenue and expenditure by functional classification)
A2: ="Functional Classification "&desc -> Functional Classification Description | B2: =head27 -> Ref | C2: =head1b -> 2021/22 | D2: =head1A -> 2022/23 | E2: =Head1 -> 2023/24 | F2: =Head2 -> Current Year 2024/25 | I2: =Head3 -> 2025/26 Medium Term Revenue & Expenditure Framework
A3: R thousand | B3: 1 | C3: =Head5 -> Audited Outcome | D3: =Head5 -> Audited Outcome | E3: =Head5 -> Audited Outcome | F3: =Head6 -> Original Budget | G3: =Head7 -> Adjusted Budget | H3: =Head8 -> Full Year Forecast | I3: =Head9 -> Budget Year 2025/26 | J3: =Head10 -> Budget Year +1 2026/27 | K3: =Head11 -> Budget Year +2 2027/28
A4: Revenue - Functional
A5: Municipal governance and administration | C5: =C6+C9+C23 -> 245714191.5 | D5: =D6+D9+D23 -> 274907887.2 | E5: 318491486.7 | F5: 293731126 | G5: 332000416 | H5: 332000416 | I5: 337083655 | J5: 339798425 | K5: 355252287
A6: Executive and council | C6: =SUM(C7:C8) -> 0 | D6: =SUM(D7:D8) -> 0 | E6: 0 | F6: 0 | G6: 0 | H6: 0 | I6: 0 | J6: 0 | K6: 0
A7: Mayor and Council | C7: 0 | D7: 0 | E7: 0 | F7: 0 | G7: 0 | H7: 0 | I7: 0 | J7: 0 | K7: 0
A8: Municipal Manager, Town Secretary and Chief Executive | C8: 0 | D8: 0 | E8: 0 | F8: 0 | G8: 0 | H8: 0 | I8: 0 | J8: 0 | K8: 0
A9: Finance and administration | C9: =SUM(C10:C22) -> 245714191.5 | D9: =SUM(D10:D22) -> 274907887.2 | E9: 318491486.7 | F9: 293731126 | G9: 332000416 | H9: 332000416 | I9: 337083655 | J9: 339798425 | K9: 355252287
A10: Administrative and Corporate Support | C10: 4408854.77 | D10: 6219635.72 | E10: 468400.48 | F10: 310592 | G10: 310592 | H10: 310592 | I10: 512659 | J10: 535729 | K10: 549122
A11: Asset Management
A12: Finance | C12: 241305336.7 | D12: 268688251.5 | E12: 318023086.2 | F12: 293420534 | G12: 331689824 | H12: 331689824 | I12: 336570996 | J12: 339262696 | K12: 354703165
A13: Fleet Management
A14: Human Resources
A15: Information Technology
A16: Legal Services
A17: Marketing, Customer Relations, Publicity and Media Co-ordination
A18: Property Services
A19: Risk Management
A20: Security Services
A21: Supply Chain Management
A22: Valuation Service
A23: Internal audit | C23: =SUM(C24:C24) -> 0 | D23: =SUM(D24:D24) -> 0 | E23: 0 | F23: 0 | G23: 0 | H23: 0 | I23: 0 | J23: 0 | K23: 0
A24: Governance Function
A25: Community and public safety | C25: =C26+C48+C54+C63+C66 -> 3316321.67 | D25: =D26+D48+D54+D63+D66 -> 2742997.67 | E25: 2774533.16 | F25: 6818500 | G25: 6818500 | H25: 6818500 | I25: 7143345 | J25: 7464799 | K25: 7651418
A26: Community and social services | C26: =SUM(C27:C47) -> 0 | D26: =SUM(D27:D47) -> 0 | E26: 0 | F26: 0 | G26: 0 | H26: 0 | I26: 0 | J26: 0 | K26: 0
A27: Aged Care
A28: Agricultural
A29: Animal Care and Diseases
A30: Cemeteries, Funeral Parlours and Crematoriums | C30: 0 | D30: 0 | E30: 0 | F30: 0 | G30: 0 | H30: 0 | I30: 0 | J30: 0 | K30: 0
A31: Child Care Facilities
A32: Community Halls and Facilities
A33: Consumer Protection
A34: Cultural Matters
A35: Disaster Management
A36: Education
A37: Indigenous and Customary Law
A38: Industrial Promotion
A39: Language Policy
A40: Libraries and Archives
A41: Literacy Programmes
A42: Media Services
A43: Museums and Art Galleries
A44: Population Development
A45: Provincial Cultural Matters
A46: Theatres
A47: Zoo's
A48: Sport and recreation | C48: =SUM(C49:C53) -> 0 | D48: =SUM(D49:D53) -> 0 | E48: 0 | F48: 0 | G48: 0 | H48: 0 | I48: 0 | J48: 0 | K48: 0
A49: Beaches and Jetties
A50: Casinos, Racing, Gambling, Wagering
A51: Community Parks (including Nurseries)
A52: Recreational Facilities
A53: Sports Grounds and Stadiums
A54: Public safety | C54: =SUM(C55:C62) -> 3316321.67 | D54: =SUM(D55:D62) -> 2742997.67 | E54: 2774533.16 | F54: 6818500 | G54: 6818500 | H54: 6818500 | I54: 7143345 | J54: 7464799 | K54: 7651418
A55: Civil Defence
A56: Cleansing
A57: Control of Public Nuisances
A58: Fencing and Fences
A59: Fire Fighting and Protection
A60: Licensing and Control of Animals
A61: Police Forces, Traffic and Street Parking Control | C61: 3316321.67 | D61: 2742997.67 | E61: 2774533.16 | F61: 6818500 | G61: 6818500 | H61: 6818500 | I61: 7143345 | J61: 7464799 | K61: 7651418
A62: Pounds | C62: 0 | D62: 0 | E62: 0 | F62: 0 | G62: 0 | H62: 0 | I62: 0 | J62: 0 | K62: 0
A63: Housing | C63: =SUM(C64:C65) -> 0 | D63: =SUM(D64:D65) -> 0 | E63: 0 | F63: 0 | G63: 0 | H63: 0 | I63: 0 | J63: 0 | K63: 0
A64: Housing
A65: Informal Settlements
A66: Health | C66: =SUM(C67:C73) -> 0 | D66: =SUM(D67:D73) -> 0 | E66: 0 | F66: 0 | G66: 0 | H66: 0 | I66: 0 | J66: 0 | K66: 0
A67: Ambulance
A68: Health Services
A69: Laboratory Services
A70: Food Control
A71: Health Surveillance and Prevention of Communicable Diseases including immunizations
A72: Vector Control
A73: Chemical Safety
A74: Economic and environmental services | C74: =C75+C86+C91 -> 70364971.2 | D74: =D75+D86+D91 -> 91173149.63 | E74: 85391509.65 | F74: 70003555 | G74: 117333264 | H74: 117333264 | I74: 73076947 | J74: 62068564 | K74: 64798654
A75: Planning and development | C75: =SUM(C76:C85) -> 57486716.36 | D75: =SUM(D76:D85) -> 91173149.63 | E75: 76997179.88 | F75: 54287555 | G75: 58912288 | H75: 58912288 | I75: 57359947 | J75: 62068564 | K75: 64798654
A76: Billboards
A77: Corporate Wide Strategic Planning (IDPs, LEDs)
A78: Central City Improvement District
A79: Development Facilitation
A80: Economic Development/Planning | C80: 880891.61 | D80: 5870829.24 | E80: 8656006.09 | F80: 2518555 | G80: 6518555 | H80: 6518555 | I80: 2835947 | J80: 2963564 | K80: 3037654
A81: Regional Planning and Development
A82: Town Planning, Building Regulations and Enforcement, and City Engineer
A83: Project Management Unit | C83: 56605824.75 | D83: 85302320.39 | E83: 68341173.79 | F83: 51769000 | G83: 52393733 | H83: 52393733 | I83: 54524000 | J83: 59105000 | K83: 61761000
A84: Provincial Planning
A85: Support to Local Municipalities
A86: Road transport | C86: =SUM(C87:C90) -> 12878254.84 | D86: =SUM(D87:D90) -> 0 | E86: 8394329.77 | F86: 15716000 | G86: 58420976 | H86: 58420976 | I86: 15717000 | J86: 0 | K86: 0
A87: Public Transport
A88: Road and Traffic Regulation
A89: Roads | C89: 12878254.84 | D89: 0 | E89: 8394329.77 | F89: 15716000 | G89: 58420976 | H89: 58420976 | I89: 15717000 | J89: 0 | K89: 0
A90: Taxi Ranks
A91: Environmental protection | C91: =SUM(C92:C97) -> 0 | D91: =SUM(D92:D97) -> 0 | E91: 0 | F91: 0 | G91: 0 | H91: 0 | I91: 0 | J91: 0 | K91: 0
A92: Biodiversity and Landscape
A93: Coastal Protection
A94: Indigenous Forests
A95: Nature Conservation
A96: Pollution Control
A97: Soil Conservation
A98: Trading services | C98: =C99+C103+C107+C112 -> 32775433.5 | D98: =D99+D103+D107+D112 -> 63836610.17 | E98: 62401930.1 | F98: 63038058 | G98: 77091553 | H98: 77091553 | I98: 70148965 | J98: 87418398 | K98: =K99+K103+K107+K112 -> 87926861
A99: Energy sources | C99: =SUM(C100:C102) -> 29464538.93 | D99: =SUM(D100:D102) -> 59700824.68 | E99: 58894783.24 | F99: 56286558 | G99: 71640053 | H99: 71640053 | I99: 62235686 | J99: 81036292 | K99: 83385200
A100: Electricity | C100: 29464538.93 | D100: 59700824.68 | E100: 58894783.24 | F100: 56286558 | G100: 71640053 | H100: 71640053 | I100: 62235686 | J100: 81036292 | K100: 83385200
A101: Street Lighting and Signal Systems
A102: Nonelectric Energy
A103: Water management | C103: =SUM(C104:C106) -> 11436.52 | D103: =SUM(D104:D106) -> 8162.17 | E103: 0 | F103: 0 | G103: 0 | H103: 0 | I103: 0 | J103: 0 | K103: 0
A104: Water Treatment | C104: 11436.52 | D104: 8162.17 | E104: 0 | F104: 0 | G104: 0 | H104: 0 | I104: 0 | J104: 0 | K104: 0
A105: Water Distribution
A106: Water Storage
A107: Waste water management | C107: =SUM(C108:C111) -> 23524.88 | D107: =SUM(D108:D111) -> 10993.02 | E107: 0 | F107: 0 | G107: 0 | H107: 0 | I107: 0 | J107: 0 | K107: 0
A108: Public Toilets
A109: Sewerage
A110: Storm Water Management | C110: 0 | D110: 0 | E110: 0 | F110: 0 | G110: 0 | H110: 0 | I110: 0 | J110: 0 | K110: 0
A111: Waste Water Treatment | C111: 23524.88 | D111: 10993.02 | E111: 0 | F111: 0 | G111: 0 | H111: 0 | I111: 0 | J111: 0 | K111: 0
A112: Waste management | C112: =SUM(C113:C116) -> 3275933.17 | D112: =SUM(D113:D116) -> 4116630.3 | E112: 3507146.86 | F112: 6751500 | G112: 5451500 | H112: 5451500 | I112: 7913279 | J112: 6382106 | K112: 4541661
A113: Recycling
A114: Solid Waste Disposal (Landfill Sites) | C114: 3275933.17 | D114: 4116630.3 | E114: 3507146.86 | F114: 6751500 | G114: 5451500 | H114: 5451500 | I114: 7913279 | J114: 6382106 | K114: 4541661
A115: Solid Waste Removal
A116: Street Cleaning
A117: Other | C117: =SUM(C118:C123) -> 0 | D117: =SUM(D118:D123) -> 0 | E117: 0 | F117: 0 | G117: 0 | H117: 0 | I117: 0 | J117: 0 | K117: 0
A118: Abattoirs
A119: Air Transport
A120: Forestry
A121: Licensing and Regulation
A122: Markets
A123: Tourism
A124: ="Total "&A4 -> Total Revenue - Functional | B124: 2 | C124: =C5+C25+C74+C98+C117 -> 352170917.9 | D124: =D5+D25+D74+D98+D117 -> 432660644.7 | E124: 469059459.6 | F124: 433591239 | G124: 533243733 | H124: 533243733 | I124: 487452912 | J124: 496750186 | K124: 515629220
A126: Expenditure - Functional
A127: =A5 -> Municipal governance and administration | C127: =C128+C131+C145 -> 157167716.3 | D127: =D128+D131+D145 -> 250407200.1 | E127: 162388544.9 | F127: 226413674 | G127: 225120344 | H127: 225120344 | I127: 188442976 | J127: 200429401 | K127: 210053159
A128: Executive and council | C128: =SUM(C129:C130) -> 61439667.02 | D128: =SUM(D129:D130) -> 71221015.14 | E128: 72405817.01 | F128: 74063121 | G128: 73182584 | H128: 73182584 | I128: 54763829 | J128: 62380714 | K128: 63712933
A129: Mayor and Council | C129: 18394330.48 | D129: 19739846.8 | E129: 21767091.31 | F129: 25208466 | G129: 24678335 | H129: 24678335 | I129: 25206341 | J129: 26392878 | K129: 27052709
A130: Municipal Manager, Town Secretary and Chief Executive | C130: 43045336.54 | D130: 51481168.34 | E130: 50638725.7 | F130: 48854655 | G130: 48504249 | H130: 48504249 | I130: 29557488 | J130: 35987836 | K130: 36660224
A131: Finance and administration | C131: =SUM(C132:C144) -> 95728049.31 | D131: =SUM(D132:D144) -> 179186184.9 | E131: 89982727.87 | F131: 152350553 | G131: 151937760 | H131: 151937760 | I131: 133679147 | J131: 138048687 | K131: 146340226
A132: Administrative and Corporate Support | C132: 57859291.06 | D132: 72340528.55 | E132: 66500231.58 | F132: 83701715 | G132: 83182415 | H132: 83182415 | I132: 82493780 | J132: 86885255 | K132: 89057397
A133: Asset Management
A134: Finance | C134: 37868758.25 | D134: 106845656.4 | E134: 23482496.29 | F134: 68648838 | G134: 68755345 | H134: 68755345 | I134: 51185367 | J134: 51163432 | K134: 57282829
A135: Fleet Management
A136: Human Resources
A137: Information Technology
A138: Legal Services
A139: Marketing, Customer Relations, Publicity and Media Co-ordination
A140: Property Services
A141: Risk Management
A142: Security Services
A143: Supply Chain Management
A144: Valuation Service
A145: Internal audit | C145: =SUM(C146:C146) -> 0 | D145: =SUM(D146:D146) -> 0 | E145: 0 | F145: 0 | G145: 0 | H145: 0 | I145: 0 | J145: 0 | K145: 0
A146: Governance Function
A147: Community and public safety | C147: =C148+C170+C176+C185+C188 -> 16366667.65 | D147: =D148+D170+D176+D185+D188 -> 18028859.62 | E147: 19581825.13 | F147: 18551191 | G147: 18486191 | H147: 18486191 | I147: 36186608 | J147: 20163995 | K147: 20660596
A148: Community and social services | C148: =SUM(C149:C169) -> 0 | D148: =SUM(D149:D169) -> 0 | E148: 0 | F148: 0 | G148: 0 | H148: 0 | I148: 0 | J148: 0 | K148: 0
A149: Aged Care
A150: Agricultural
A151: Animal Care and Diseases
A152: Cemeteries, Funeral Parlours and Crematoriums | C152: 0 | D152: 0 | E152: 0 | F152: 0 | G152: 0 | H152: 0 | I152: 0 | J152: 0 | K152: 0
A153: Child Care Facilities
A154: Community Halls and Facilities
A155: Consumer Protection
A156: Cultural Matters
A157: Disaster Management
A158: Education
A159: =A37 -> Indigenous and Customary Law
A160: Industrial Promotion
A161: Language Policy
A162: Libraries and Archives | C162: 0 | D162: 0 | E162: 0 | F162: 0 | G162: 0 | H162: 0 | I162: 0 | J162: 0 | K162: 0
A163: Literacy Programmes
A164: Media Services
A165: Museums and Art Galleries
A166: Population Development
A167: Provincial Cultural Matters
A168: Theatres
A169: Zoo's
A170: Sport and recreation | C170: =SUM(C171:C175) -> 0 | D170: =SUM(D171:D175) -> 0 | E170: 0 | F170: 0 | G170: 0 | H170: 0 | I170: 0 | J170: 0 | K170: 0
A171: Beaches and Jetties
A172: Casinos, Racing, Gambling, Wagering
A173: Community Parks (including Nurseries)
A174: Recreational Facilities | C174: 0 | D174: 0 | E174: 0 | F174: 0 | G174: 0 | H174: 0 | I174: 0 | J174: 0 | K174: 0
A175: Sports Grounds and Stadiums
A176: Public safety | C176: =SUM(C177:C184) -> 16366667.65 | D176: =SUM(D177:D184) -> 18028859.62 | E176: 19581825.13 | F176: 18551191 | G176: 18486191 | H176: 18486191 | I176: 36186608 | J176: 20163995 | K176: 20660596
A177: Civil Defence
A178: Cleansing
A179: =A57 -> Control of Public Nuisances
A180: Fencing and Fences
A181: Fire Fighting and Protection
A182: Licensing and Control of Animals
A183: Police Forces, Traffic and Street Parking Control | C183: 16205807.65 | D183: 17801790.49 | E183: 19324785.13 | F183: 18257471 | G183: 18192471 | H183: 18192471 | I183: 35886608 | J183: 19863995 | K183: 20360596
A184: Pounds | C184: 160860 | D184: 227069.13 | E184: 257040 | F184: 293720 | G184: 293720 | H184: 293720 | I184: 300000 | J184: 300000 | K184: 300000
A185: =A63 -> Housing | C185: =SUM(C186:C187) -> 0 | D185: =SUM(D186:D187) -> 0 | E185: 0 | F185: 0 | G185: 0 | H185: 0 | I185: 0 | J185: 0 | K185: 0
A186: Housing
A187: Informal Settlements
A188: Health | C188: =SUM(C189:C195) -> 0 | D188: =SUM(D189:D195) -> 0 | E188: 0 | F188: 0 | G188: 0 | H188: 0 | I188: 0 | J188: 0 | K188: 0
A189: Ambulance
A190: Health Services
A191: Laboratory Services
A192: Food Control
A193: Health Surveillance and Prevention of Communicable Diseases including immunizations
A194: Vector Control
A195: Chemical Safety
A196: Economic and environmental services | C196: =C197+C208+C213 -> 37444051.03 | D196: =D197+D208+D213 -> 36644512.02 | E196: 40924436.05 | F196: 36259765 | G196: 34260707 | H196: 34260707 | I196: 36950454 | J196: 38592323 | K196: 39557138
A197: Planning and development | C197: =SUM(C198:C207) -> 12763468.56 | D197: =SUM(D198:D207) -> 14528126.82 | E197: 18357436.04 | F197: 16534740 | G197: 14735682 | H197: 14735682 | I197: 15893629 | J197: 16587944 | K197: 17002644
A198: Billboards
A199: Corporate Wide Strategic Planning (IDPs, LEDs)
A200: Central City Improvement District
A201: Development Facilitation
... 51 more rows

Sheet A3-FinPerf V
A1: =muni&" - "&Approve2 -> LIM351 Blouberg - Table A3 Budgeted Financial Performance (revenue and expenditure by municipal vote)
A2: =Vdesc -> Vote Description | B2: =head27 -> Ref | C2: =head1b -> 2021/22 | D2: =head1A -> 2022/23 | E2: =Head1 -> 2023/24 | F2: =Head2 -> Current Year 2024/25 | I2: =Head3 -> 2025/26 Medium Term Revenue & Expenditure Framework | L2: =Head4 -> LTFS
A3: R thousand | C3: =Head5 -> Audited Outcome | D3: =Head5 -> Audited Outcome | E3: =Head5 -> Audited Outcome | F3: =Head6 -> Original Budget | G3: =Head7 -> Adjusted Budget | H3: =Head8 -> Full Year Forecast | I3: =Head9 -> Budget Year 2025/26 | J3: =Head10 -> Budget Year +1 2026/27 | K3: =Head11 -> Budget Year +2 2027/28 | L3: =Head12 -> Forecast 2028/29 | M3: =Head13 -> Forecast 2029/30 | N3: =Head14 -> Forecast 2030/31 | O3: =Head15 -> Forecast 2031/32 | P3: =Head16 -> Forecast 2032/33 | Q3: =Head17 -> Forecast 2033/34 | R3: =Head18 -> Forecast 2034/35 | S3: =Head19 -> Forecast 2035/36 | T3: =Head20 -> Forecast 2036/37 | U3: =Head21 -> Forecast 2037/38 | V3: =Head22 -> Forecast 2038/39 | W3: =Head23 -> Forecast 2039/40
A4: Revenue by Vote | B4: 1
A5: =A3A!A5 -> Vote 01 - Executive & Council | C5: =A3A!C5 -> 0 | D5: =A3A!D5 -> 0 | E5: =A3A!E5 -> 0 | F5: =A3A!F5 -> 0 | G5: =A3A!G5 -> 0 | H5: =A3A!H5 -> 0 | I5: =A3A!I5 -> 0 | J5: =A3A!J5 -> 0 | K5: =A3A!K5 -> 0
A6: =A3A!A7 -> Vote 02 - Finance And Administration | C6: =A3A!C7 -> 0 | D6: =A3A!D7 -> 0 | E6: =A3A!E7 -> 0 | F6: =A3A!F7 -> 0 | G6: =A3A!G7 -> 0 | H6: =A3A!H7 -> 0 | I6: =A3A!I7 -> 0 | J6: =A3A!J7 -> 0 | K6: =A3A!K7 -> 0
A7: =A3A!A9 -> Vote 03 - Community Service | C7: =A3A!C9 -> 241305336.7 | D7: =A3A!D9 -> 268688251.5 | E7: =A3A!E9 -> 318023086.2 | F7: =A3A!F9 -> 293420534 | G7: =A3A!G9 -> 331689824 | H7: =A3A!H9 -> 331689824 | I7: =A3A!I9 -> 336570996 | J7: =A3A!J9 -> 339262696 | K7: =A3A!K9 -> 354703165
A8: =A3A!A11 -> Vote 04 - Public And Safety | C8: =A3A!C11 -> 4408854.77 | D8: =A3A!D11 -> 6219635.72 | E8: =A3A!E11 -> 468400.48 | F8: =A3A!F11 -> 310592 | G8: =A3A!G11 -> 310592 | H8: =A3A!H11 -> 310592 | I8: =A3A!I11 -> 512659 | J8: =A3A!J11 -> 535729 | K8: =A3A!K11 -> 549122
A9: =A3A!A13 -> Vote 05 - Waste Management | C9: =A3A!C13 -> 42377755.17 | D9: =A3A!D13 -> 59719979.87 | E9: =A3A!E13 -> 67289113.01 | F9: =A3A!F13 -> 72002558 | G9: =A3A!G13 -> 130061029 | H9: =A3A!H13 -> 130061029 | I9: =A3A!I13 -> 77952686 | J9: =A3A!J13 -> 81036292 | K9: =A3A!K13 -> 83385200
A10: =A3A!A19 -> Vote 06 - Roads Services | C10: =A3A!C19 -> 6592254.84 | D10: =A3A!D19 -> 6859627.97 | E10: =A3A!E19 -> 6281680.02 | F10: =A3A!F19 -> 13570000 | G10: =A3A!G19 -> 12270000 | H10: =A3A!H19 -> 12270000 | I10: =A3A!I19 -> 15056624 | J10: =A3A!J19 -> 13846905 | K10: =A3A!K19 -> 12193079
A11: =A3A!A24 -> Vote 07 - Econominc Development And Planning | C11: =A3A!C24 -> 57486716.36 | D11: =A3A!D24 -> 91173149.63 | E11: =A3A!E24 -> 76997179.88 | F11: =A3A!F24 -> 54287555 | G11: =A3A!G24 -> 58912288 | H11: =A3A!H24 -> 58912288 | I11: =A3A!I24 -> 57359947 | J11: =A3A!J24 -> 62068564 | K11: =A3A!K24 -> 64798654
A12: ='Org structure'!A9 -> Vote 08 - | C12: =A3A!C27 -> 0 | D12: =A3A!D27 -> 0 | E12: =A3A!E27 -> 0 | F12: =A3A!F27 -> 0 | G12: =A3A!G27 -> 0 | H12: =A3A!H27 -> 0 | I12: =A3A!I27 -> 0 | J12: =A3A!J27 -> 0 | K12: =A3A!K27 -> 0
A13: ='Org structure'!A10 -> Vote 09 - | C13: =A3A!C28 -> 0 | D13: =A3A!D28 -> 0 | E13: =A3A!E28 -> 0 | F13: =A3A!F28 -> 0 | G13: =A3A!G28 -> 0 | H13: =A3A!H28 -> 0 | I13: =A3A!I28 -> 0 | J13: =A3A!J28 -> 0 | K13: =A3A!K28 -> 0
A14: ='Org structure'!A11 -> Vote 10 - | C14: =A3A!C29 -> 0 | D14: =A3A!D29 -> 0 | E14: =A3A!E29 -> 0 | F14: =A3A!F29 -> 0 | G14: =A3A!G29 -> 0 | H14: =A3A!H29 -> 0 | I14: =A3A!I29 -> 0 | J14: =A3A!J29 -> 0 | K14: =A3A!K29 -> 0
A15: ='Org structure'!A12 -> Vote 11 - | C15: =A3A!C30 -> 0 | D15: =A3A!D30 -> 0 | E15: =A3A!E30 -> 0 | F15: =A3A!F30 -> 0 | G15: =A3A!G30 -> 0 | H15: =A3A!H30 -> 0 | I15: =A3A!I30 -> 0 | J15: =A3A!J30 -> 0 | K15: =A3A!K30 -> 0 | L15: =A5A!#REF! -> 
A16: ='Org structure'!A13 -> Vote 12 - | C16: =A3A!C31 -> 0 | D16: =A3A!D31 -> 0 | E16: =A3A!E31 -> 0 | F16: =A3A!F31 -> 0 | G16: =A3A!G31 -> 0 | H16: =A3A!H31 -> 0 | I16: =A3A!I31 -> 0 | J16: =A3A!J31 -> 0 | K16: =A3A!K31 -> 0 | L16: =A5A!#REF! -> 
A17: ='Org structure'!A14 -> Vote 13 - | C17: =A3A!C32 -> 0 | D17: =A3A!D32 -> 0 | E17: =A3A!E32 -> 0 | F17: =A3A!F32 -> 0 | G17: =A3A!G32 -> 0 | H17: =A3A!H32 -> 0 | I17: =A3A!I32 -> 0 | J17: =A3A!J32 -> 0 | K17: =A3A!K32 -> 0 | L17: =A5A!#REF! -> 
A18: ='Org structure'!A15 -> Vote 14 - | C18: =A3A!C33 -> 0 | D18: =A3A!D33 -> 0 | E18: =A3A!E33 -> 0 | F18: =A3A!F33 -> 0 | G18: =A3A!G33 -> 0 | H18: =A3A!H33 -> 0 | I18: =A3A!I33 -> 0 | J18: =A3A!J33 -> 0 | K18: =A3A!K33 -> 0 | L18: =A5A!#REF! -> 
A19: ='Org structure'!A16 -> Vote 15 - Other | C19: =A3A!C34 -> 0 | D19: =A3A!D34 -> 0 | E19: =A3A!E34 -> 0 | F19: =A3A!F34 -> 0 | G19: =A3A!G34 -> 0 | H19: =A3A!H34 -> 0 | I19: =A3A!I34 -> 0 | J19: =A3A!J34 -> 0 | K19: =A3A!K34 -> 0 | L19: =A5A!#REF! -> 
A20: Total Revenue by Vote | B20: 2 | C20: =SUM(C5:C19) -> 352170917.9 | D20: =SUM(D5:D19) -> 432660644.7 | E20: 469059459.6 | F20: 433591239 | G20: 533243733 | H20: 533243733 | I20: 487452912 | J20: 496750186 | K20: 515629220
A22: Expenditure by Vote to be appropriated | B22: 1
A23: =A3A!A38 -> Vote 01 - Executive & Council | C23: =A3A!C38 -> 18394330.48 | D23: =A3A!D38 -> 19739846.8 | E23: =A3A!E38 -> 21767091.31 | F23: =A3A!F38 -> 25208466 | G23: =A3A!G38 -> 24678335 | H23: =A3A!H38 -> 24678335 | I23: =A3A!I38 -> 25206341 | J23: =A3A!J38 -> 26392878 | K23: =A3A!K38 -> 27052709
A24: =A3A!A40 -> Vote 02 - Finance And Administration | C24: =A3A!C40 -> 43045336.54 | D24: =A3A!D40 -> 51481168.34 | E24: =A3A!E40 -> 50638725.7 | F24: =A3A!F40 -> 48854655 | G24: =A3A!G40 -> 48504249 | H24: =A3A!H40 -> 48504249 | I24: =A3A!I40 -> 29557488 | J24: =A3A!J40 -> 35987836 | K24: =A3A!K40 -> 36660224
A25: =A3A!A42 -> Vote 03 - Community Service | C25: =A3A!C42 -> 37868758.25 | D25: =A3A!D42 -> 106845656.4 | E25: =A3A!E42 -> 23482496.29 | F25: =A3A!F42 -> 68648838 | G25: =A3A!G42 -> 68755345 | H25: =A3A!H42 -> 68755345 | I25: =A3A!I42 -> 51185367 | J25: =A3A!J42 -> 51163432 | K25: =A3A!K42 -> 57282829
A26: =A3A!A44 -> Vote 04 - Public And Safety | C26: =A3A!C44 -> 57859291.06 | D26: =A3A!D44 -> 72340528.55 | E26: =A3A!E44 -> 66500231.58 | F26: =A3A!F44 -> 83701715 | G26: =A3A!G44 -> 83182415 | H26: =A3A!H44 -> 83182415 | I26: =A3A!I44 -> 82493780 | J26: =A3A!J44 -> 86885255 | K26: =A3A!K44 -> 89057397
A27: =A3A!A46 -> Vote 05 - Waste Management | C27: =A3A!C46 -> 107591421.4 | D27: =A3A!D46 -> 109366016.8 | E27: =A3A!E46 -> 117265569.4 | F27: =A3A!F46 -> 132490673 | G27: =A3A!G46 -> 131170673 | H27: =A3A!H46 -> 131170673 | I27: =A3A!I46 -> 124129042 | J27: =A3A!J46 -> 128393147 | K27: =A3A!K46 -> 131602978
A28: =A3A!A52 -> Vote 06 - Roads Services | C28: =A3A!C52 -> 46472082.27 | D28: =A3A!D52 -> 39578999.73 | E28: =A3A!E52 -> 51871414.03 | F28: =A3A!F52 -> 57463478 | G28: =A3A!G52 -> 55856184 | H28: =A3A!H52 -> 55856184 | I28: =A3A!I52 -> 72022587 | J28: =A3A!J52 -> 58634825 | K28: =A3A!K52 -> 60093199
A29: =A3A!A57 -> Vote 07 - Econominc Development And Planning | C29: =A3A!C57 -> 12763468.56 | D29: =A3A!D57 -> 14528126.82 | E29: =A3A!E57 -> 18357436.04 | F29: =A3A!F57 -> 16534740 | G29: =A3A!G57 -> 14735682 | H29: =A3A!H57 -> 14735682 | I29: =A3A!I57 -> 15893629 | J29: =A3A!J57 -> 16587944 | K29: =A3A!K57 -> 17002644
A30: ='Org structure'!A9 -> Vote 08 - | C30: =A3A!C60 -> 0 | D30: =A3A!D60 -> 0 | E30: =A3A!E60 -> 0 | F30: =A3A!F60 -> 0 | G30: =A3A!G60 -> 0 | H30: =A3A!H60 -> 0 | I30: =A3A!I60 -> 0 | J30: =A3A!J60 -> 0 | K30: =A3A!K60 -> 0
A31: ='Org structure'!A10 -> Vote 09 - | C31: =A3A!C61 -> 0 | D31: =A3A!D61 -> 0 | E31: =A3A!E61 -> 0 | F31: =A3A!F61 -> 0 | G31: =A3A!G61 -> 0 | H31: =A3A!H61 -> 0 | I31: =A3A!I61 -> 0 | J31: =A3A!J61 -> 0 | K31: =A3A!K61 -> 0
A32: ='Org structure'!A11 -> Vote 10 - | C32: =A3A!C62 -> 0 | D32: =A3A!D62 -> 0 | E32: =A3A!E62 -> 0 | F32: =A3A!F62 -> 0 | G32: =A3A!G62 -> 0 | H32: =A3A!H62 -> 0 | I32: =A3A!I62 -> 0 | J32: =A3A!J62 -> 0 | K32: =A3A!K62 -> 0
A33: ='Org structure'!A12 -> Vote 11 - | C33: =A3A!C63 -> 0 | D33: =A3A!D63 -> 0 | E33: =A3A!E63 -> 0 | F33: =A3A!F63 -> 0 | G33: =A3A!G63 -> 0 | H33: =A3A!H63 -> 0 | I33: =A3A!I63 -> 0 | J33: =A3A!J63 -> 0 | K33: =A3A!K63 -> 0 | L33: =A3A!#REF! -> 
A34: ='Org structure'!A13 -> Vote 12 - | C34: =A3A!C64 -> 0 | D34: =A3A!D64 -> 0 | E34: =A3A!E64 -> 0 | F34: =A3A!F64 -> 0 | G34: =A3A!G64 -> 0 | H34: =A3A!H64 -> 0 | I34: =A3A!I64 -> 0 | J34: =A3A!J64 -> 0 | K34: =A3A!K64 -> 0 | L34: =A3A!#REF! -> 
A35: ='Org structure'!A14 -> Vote 13 - | C35: =A3A!C65 -> 0 | D35: =A3A!D65 -> 0 | E35: =A3A!E65 -> 0 | F35: =A3A!F65 -> 0 | G35: =A3A!G65 -> 0 | H35: =A3A!H65 -> 0 | I35: =A3A!I65 -> 0 | J35: =A3A!J65 -> 0 | K35: =A3A!K65 -> 0 | L35: =A3A!#REF! -> 
A36: ='Org structure'!A15 -> Vote 14 - | C36: =A3A!C66 -> 0 | D36: =A3A!D66 -> 0 | E36: =A3A!E66 -> 0 | F36: =A3A!F66 -> 0 | G36: =A3A!G66 -> 0 | H36: =A3A!H66 -> 0 | I36: =A3A!I66 -> 0 | J36: =A3A!J66 -> 0 | K36: =A3A!K66 -> 0 | L36: =A3A!#REF! -> 
A37: ='Org structure'!A16 -> Vote 15 - Other | C37: =A3A!C67 -> 0 | D37: =A3A!D67 -> 0 | E37: =A3A!E67 -> 0 | F37: =A3A!F67 -> 0 | G37: =A3A!G67 -> 0 | H37: =A3A!H67 -> 0 | I37: =A3A!I67 -> 0 | J37: =A3A!J67 -> 0 | K37: =A3A!K67 -> 0 | L37: =A3A!#REF! -> 
A38: Total Expenditure by Vote | B38: 2 | C38: =SUM(C23:C37) -> 323994688.6 | D38: =SUM(D23:D37) -> 413880343.4 | E38: =SUM(E23:E37) -> 349882964.3 | F38: 432902565 | G38: 426882883 | H38: 426882883 | I38: 400488234 | J38: 404045317 | K38: 418751980 | L38: =SUM(L23:L29) -> 0 | M38: 0 | N38: 0 | O38: 0 | P38: 0 | Q38: 0 | R38: 0 | S38: 0 | T38: 0 | U38: 0 | V38: 0 | W38: 0
A39: =result -> Surplus/(Deficit) for the year | B39: 2 | C39: =C20-C38 -> 28176229.29 | D39: =D20-D38 -> 18780301.28 | E39: 119176495.2 | F39: 688674 | G39: 106360850 | H39: 106360850 | I39: 86964678 | J39: 92704869 | K39: 96877240 | L39: 0 | M39: 0 | N39: 0 | O39: 0 | P39: 0 | Q39: 0 | R39: 0 | S39: 0 | T39: 0 | U39: 0 | V39: 0 | W39: 0
A40: =head27a -> References
A41: 1. Insert 'Vote'; e.g. department, if different to functional classification structure
A42: 2. Must reconcile to Budgeted Financial Performance (revenue and expenditure)
A43: 3. Assign share in 'associate' to relevant Vote

Sheet A3A
A1: =muni&" - "&Approve2&"A" -> LIM351 Blouberg - Table A3 Budgeted Financial Performance (revenue and expenditure by municipal vote)A
A2: =Vdesc -> Vote Description | B2: =head27 -> Ref | C2: =head1b -> 2021/22 | D2: =head1A -> 2022/23 | E2: =Head1 -> 2023/24 | F2: =Head2 -> Current Year 2024/25 | I2: =Head3 -> 2025/26 Medium Term Revenue & Expenditure Framework | L2: =Head4 -> LTFS
A3: R thousand | C3: =Head5 -> Audited Outcome | D3: =Head5 -> Audited Outcome | E3: =Head5 -> Audited Outcome | F3: =Head6 -> Original Budget | G3: =Head7 -> Adjusted Budget | H3: =Head8 -> Full Year Forecast | I3: =Head9 -> Budget Year 2025/26 | J3: =Head10 -> Budget Year +1 2026/27 | K3: =Head11 -> Budget Year +2 2027/28 | L3: =Head12 -> Forecast 2028/29 | M3: =Head13 -> Forecast 2029/30 | N3: =Head14 -> Forecast 2030/31 | O3: =Head15 -> Forecast 2031/32 | P3: =Head16 -> Forecast 2032/33 | Q3: =Head17 -> Forecast 2033/34 | R3: =Head18 -> Forecast 2034/35 | S3: =Head19 -> Forecast 2035/36 | T3: =Head20 -> Forecast 2036/37 | U3: =Head21 -> Forecast 2037/38 | V3: =Head22 -> Forecast 2038/39 | W3: =Head23 -> Forecast 2039/40
A4: Revenue by Vote | B4: 1
A5: ='Org structure'!A2 -> Vote 01 - Executive & Council | C5: =SUM(C6:C6) -> 0 | D5: 0 | E5: 0 | F5: 0 | G5: 0 | H5: 0 | I5: 0 | J5: 0 | K5: 0
A6: ='Org structure'!E3 -> 01.1 - Council General | C6: 0 | D6: 0 | E6: 0 | F6: 0 | G6: 0 | H6: 0 | I6: 0 | J6: 0 | K6: 0
A7: ='Org structure'!A3 -> Vote 02 - Finance And Administration | C7: =SUM(C8:C8) -> 0 | D7: 0 | E7: 0 | F7: 0 | G7: 0 | H7: 0 | I7: 0 | J7: 0 | K7: 0
A8: ='Org structure'!E5 -> 02.1 - Municipal Manager | C8: 0 | D8: 0 | E8: 0 | F8: 0 | G8: 0 | H8: 0 | I8: 0 | J8: 0 | K8: 0
A9: ='Org structure'!A4 -> Vote 03 - Community Service | C9: =SUM(C10:C10) -> 241305336.7 | D9: 268688251.5 | E9: 318023086.2 | F9: 293420534 | G9: 331689824 | H9: 331689824 | I9: 336570996 | J9: 339262696 | K9: 354703165
A10: ='Org structure'!E7 -> 03.1 - Finance Services Administration | C10: 241305336.7 | D10: 268688251.5 | E10: 318023086.2 | F10: 293420534 | G10: 331689824 | H10: 331689824 | I10: 336570996 | J10: 339262696 | K10: 354703165
A11: ='Org structure'!A5 -> Vote 04 - Public And Safety | C11: =SUM(C12:C12) -> 4408854.77 | D11: 6219635.72 | E11: 468400.48 | F11: 310592 | G11: 310592 | H11: 310592 | I11: 512659 | J11: 535729 | K11: 549122
A12: ='Org structure'!E9 -> 04.1 - Corporate Services Administration | C12: 4408854.77 | D12: 6219635.72 | E12: 468400.48 | F12: 310592 | G12: 310592 | H12: 310592 | I12: 512659 | J12: 535729 | K12: 549122
A13: ='Org structure'!A6 -> Vote 05 - Waste Management | C13: =SUM(C14:C18) -> 42377755.17 | D13: 59719979.87 | E13: 67289113.01 | F13: 72002558 | G13: 130061029 | H13: 130061029 | I13: 77952686 | J13: 81036292 | K13: 83385200
A14: ='Org structure'!E11 -> 05.1 - Technical Services Administration | C14: 0 | D14: 0 | E14: 0 | F14: 0 | G14: 0 | H14: 0 | I14: 0 | J14: 0 | K14: 0
A15: ='Org structure'!E12 -> 05.2 - Electrical Services | C15: 29464538.93 | D15: 59700824.68 | E15: 58894783.24 | F15: 56286558 | G15: 71640053 | H15: 71640053 | I15: 62235686 | J15: 81036292 | K15: 83385200
A16: ='Org structure'!E13 -> 05.3 - Water Services | C16: 11436.52 | D16: 8162.17 | E16: 0 | F16: 0 | G16: 0 | H16: 0 | I16: 0 | J16: 0 | K16: 0
A17: ='Org structure'!E14 -> 05.4 - Sanitation Services | C17: 23524.88 | D17: 10993.02 | E17: 0 | F17: 0 | G17: 0 | H17: 0 | I17: 0 | J17: 0 | K17: 0
A18: ='Org structure'!E15 -> 05.5 - Roads Services | C18: 12878254.84 | D18: 0 | E18: 8394329.77 | F18: 15716000 | G18: 58420976 | H18: 58420976 | I18: 15717000 | J18: 0 | K18: 0
A19: ='Org structure'!A7 -> Vote 06 - Roads Services | C19: =SUM(C20:C23) -> 6592254.84 | D19: 6859627.97 | E19: 6281680.02 | F19: 13570000 | G19: 12270000 | H19: 12270000 | I19: 15056624 | J19: 13846905 | K19: 12193079
A20: ='Org structure'!E17 -> 06.1 - Community Services Administration | C20: 1266000 | D20: 1950000 | E20: 1185000 | F20: 3319700 | G20: 2769700 | H20: 2769700 | I20: 2508547 | J20: 772827 | K20: 792148
A21: ='Org structure'!E18 -> 06.2 - Traffic Services | C21: 3316321.67 | D21: 2742997.67 | E21: 2774533.16 | F21: 6818500 | G21: 6818500 | H21: 6818500 | I21: 7143345 | J21: 7464799 | K21: 7651418
A22: ='Org structure'!E19 -> 06.3 - Refuse | C22: 2009933.17 | D22: 2166630.3 | E22: 2322146.86 | F22: 3431800 | G22: 2681800 | H22: 2681800 | I22: 5404732 | J22: 5609279 | K22: 3749513
A23: ='Org structure'!E20 -> 06.4 - Pound Services | C23: 0 | D23: 0 | E23: 0 | F23: 0 | G23: 0 | H23: 0 | I23: 0 | J23: 0 | K23: 0
A24: ='Org structure'!A8 -> Vote 07 - Econominc Development And Planning | C24: =SUM(C25:C26) -> 57486716.36 | D24: 91173149.63 | E24: 76997179.88 | F24: 54287555 | G24: 58912288 | H24: 58912288 | I24: 57359947 | J24: 62068564 | K24: 64798654
A25: ='Org structure'!E22 -> 07.1 - Project Management Unit | C25: 56605824.75 | D25: 85302320.39 | E25: 68341173.79 | F25: 51769000 | G25: 52393733 | H25: 52393733 | I25: 54524000 | J25: 59105000 | K25: 61761000
A26: ='Org structure'!E23 -> 07.2 - Economic Development And Planning | C26: 880891.61 | D26: 5870829.24 | E26: 8656006.09 | F26: 2518555 | G26: 6518555 | H26: 6518555 | I26: 2835947 | J26: 2963564 | K26: 3037654
A27: ='Org structure'!A9 -> Vote 08 - | C27: 0 | D27: 0 | E27: 0 | F27: 0 | G27: 0 | H27: 0 | I27: 0 | J27: 0 | K27: 0
A28: ='Org structure'!A10 -> Vote 09 - | C28: 0 | D28: 0 | E28: 0 | F28: 0 | G28: 0 | H28: 0 | I28: 0 | J28: 0 | K28: 0
A29: ='Org structure'!A11 -> Vote 10 - | C29: 0 | D29: 0 | E29: 0 | F29: 0 | G29: 0 | H29: 0 | I29: 0 | J29: 0 | K29: 0
A30: ='Org structure'!A12 -> Vote 11 - | C30: 0 | D30: 0 | E30: 0 | F30: 0 | G30: 0 | H30: 0 | I30: 0 | J30: 0 | K30: 0
A31: ='Org structure'!A13 -> Vote 12 - | C31: 0 | D31: 0 | E31: 0 | F31: 0 | G31: 0 | H31: 0 | I31: 0 | J31: 0 | K31: 0
A32: ='Org structure'!A14 -> Vote 13 - | C32: 0 | D32: 0 | E32: 0 | F32: 0 | G32: 0 | H32: 0 | I32: 0 | J32: 0 | K32: 0
A33: ='Org structure'!A15 -> Vote 14 - | C33: 0 | D33: 0 | E33: 0 | F33: 0 | G33: 0 | H33: 0 | I33: 0 | J33: 0 | K33: 0
A34: ='Org structure'!A16 -> Vote 15 - Other | C34: 0 | D34: 0 | E34: 0 | F34: 0 | G34: 0 | H34: 0 | I34: 0 | J34: 0 | K34: 0
A35: Total Revenue by Vote | B35: 2 | C35: =C5+C7+C9+C11+C13+C19+C24+C27+C28+C29+C30+C31+C32+C33+C34 -> 352170917.9 | D35: 432660644.7 | E35: 469059459.6 | F35: 433591239 | G35: 533243733 | H35: 533243733 | I35: 487452912 | J35: 496750186 | K35: 515629220 | L35: =SUM(#REF!) ->  | M35: =SUM(#REF!) ->  | N35: =SUM(#REF!) ->  | O35: =SUM(#REF!) ->  | P35: =SUM(#REF!) ->  | Q35: =SUM(#REF!) ->  | R35: =SUM(#REF!) ->  | S35: =SUM(#REF!) ->  | T35: =SUM(#REF!) ->  | U35: =SUM(#REF!) ->  | V35: =SUM(#REF!) ->  | W35: =SUM(#REF!) -> 
A37: Expenditure by Vote | B37: 1
A38: ='Org structure'!A2 -> Vote 01 - Executive & Council | C38: =SUM(C39:C39) -> 18394330.48 | D38: 19739846.8 | E38: 21767091.31 | F38: 25208466 | G38: 24678335 | H38: 24678335 | I38: 25206341 | J38: 26392878 | K38: 27052709
A39: ='Org structure'!E3 -> 01.1 - Council General | C39: 18394330.48 | D39: 19739846.8 | E39: 21767091.31 | F39: 25208466 | G39: 24678335 | H39: 24678335 | I39: 25206341 | J39: 26392878 | K39: 27052709
A40: ='Org structure'!A3 -> Vote 02 - Finance And Administration | C40: =SUM(C41:C41) -> 43045336.54 | D40: 51481168.34 | E40: 50638725.7 | F40: 48854655 | G40: 48504249 | H40: 48504249 | I40: 29557488 | J40: 35987836 | K40: 36660224
A41: ='Org structure'!E5 -> 02.1 - Municipal Manager | C41: 43045336.54 | D41: 51481168.34 | E41: 50638725.7 | F41: 48854655 | G41: 48504249 | H41: 48504249 | I41: 29557488 | J41: 35987836 | K41: 36660224
A42: ='Org structure'!A4 -> Vote 03 - Community Service | C42: =SUM(C43:C43) -> 37868758.25 | D42: 106845656.4 | E42: 23482496.29 | F42: 68648838 | G42: 68755345 | H42: 68755345 | I42: 51185367 | J42: 51163432 | K42: 57282829
A43: ='Org structure'!E7 -> 03.1 - Finance Services Administration | C43: 37868758.25 | D43: 106845656.4 | E43: 23482496.29 | F43: 68648838 | G43: 68755345 | H43: 68755345 | I43: 51185367 | J43: 51163432 | K43: 57282829
A44: ='Org structure'!A5 -> Vote 04 - Public And Safety | C44: =SUM(C45:C45) -> 57859291.06 | D44: 72340528.55 | E44: 66500231.58 | F44: 83701715 | G44: 83182415 | H44: 83182415 | I44: 82493780 | J44: 86885255 | K44: 89057397
A45: ='Org structure'!E9 -> 04.1 - Corporate Services Administration | C45: 57859291.06 | D45: 72340528.55 | E45: 66500231.58 | F45: 83701715 | G45: 83182415 | H45: 83182415 | I45: 82493780 | J45: 86885255 | K45: 89057397
A46: ='Org structure'!A6 -> Vote 05 - Waste Management | C46: =SUM(C47:C51) -> 107591421.4 | D46: 109366016.8 | E46: 117265569.4 | F46: 132490673 | G46: 131170673 | H46: 131170673 | I46: 124129042 | J46: 128393147 | K46: 131602978
A47: ='Org structure'!E11 -> 05.1 - Technical Services Administration | C47: 7125928.34 | D47: 7888569.82 | E47: 6731822.7 | F47: 7404611 | G47: 7904611 | H47: 7904611 | I47: 8386023 | J47: 8596198 | K47: 8811100
A48: ='Org structure'!E12 -> 05.2 - Electrical Services | C48: 75784910.59 | D48: 79361061.82 | E48: 87893379.35 | F48: 105361037 | G48: 103741037 | H48: 103741037 | I48: 94686194 | J48: 97792570 | K48: 100237384
A49: ='Org structure'!E13 -> 05.3 - Water Services | C49: 0 | D49: 0 | E49: 0 | F49: 0 | G49: 0 | H49: 0 | I49: 0 | J49: 0 | K49: 0
A50: ='Org structure'!E14 -> 05.4 - Sanitation Services | C50: 0 | D50: 0 | E50: 73367.34 | F50: 0 | G50: 0 | H50: 0 | I50: 0 | J50: 0 | K50: 0
A51: ='Org structure'!E15 -> 05.5 - Roads Services | C51: 24680582.47 | D51: 22116385.2 | E51: 22567000.01 | F51: 19725025 | G51: 19525025 | H51: 19525025 | I51: 21056825 | J51: 22004379 | K51: 22554494
A52: ='Org structure'!A7 -> Vote 06 - Roads Services | C52: =SUM(C53:C56) -> 46472082.27 | D52: 39578999.73 | E52: 51871414.03 | F52: 57463478 | G52: 55856184 | H52: 55856184 | I52: 72022587 | J52: 58634825 | K52: 60093199
A53: ='Org structure'!E17 -> 06.1 - Community Services Administration | C53: 26418926.07 | D53: 18324422.32 | E53: 27398281.18 | F53: 31983411 | G53: 30576117 | H53: 30576117 | I53: 29836377 | J53: 31158109 | K53: 31937064
A54: ='Org structure'!E18 -> 06.2 - Traffic Services | C54: 16205807.65 | D54: 17801790.49 | E54: 19324785.13 | F54: 18257471 | G54: 18192471 | H54: 18192471 | I54: 35886608 | J54: 19863995 | K54: 20360596
A55: ='Org structure'!E19 -> 06.3 - Refuse | C55: 3686488.55 | D55: 3225717.79 | E55: 4891307.72 | F55: 6928876 | G55: 6793876 | H55: 6793876 | I55: 5999602 | J55: 7312721 | K55: 7495539
A56: ='Org structure'!E20 -> 06.4 - Pound Services | C56: 160860 | D56: 227069.13 | E56: 257040 | F56: 293720 | G56: 293720 | H56: 293720 | I56: 300000 | J56: 300000 | K56: 300000
A57: ='Org structure'!A8 -> Vote 07 - Econominc Development And Planning | C57: =SUM(C58:C59) -> 12763468.56 | D57: 14528126.82 | E57: 18357436.04 | F57: 16534740 | G57: 14735682 | H57: 14735682 | I57: 15893629 | J57: 16587944 | K57: 17002644
A58: ='Org structure'!E22 -> 07.1 - Project Management Unit | C58: 409465.25 | D58: 1259030.52 | E58: 0 | F58: 2100000 | G58: 1332561 | H58: 1332561 | I58: 2728400 | J58: 2851178 | K58: 2922459
A59: ='Org structure'!E23 -> 07.2 - Economic Development And Planning | C59: 12354003.31 | D59: 13269096.3 | E59: 18357436.04 | F59: 14434740 | G59: 13403121 | H59: 13403121 | I59: 13165229 | J59: 13736766 | K59: 14080185
A60: ='Org structure'!A9 -> Vote 08 - | C60: 0 | D60: 0 | E60: 0 | F60: 0 | G60: 0 | H60: 0 | I60: 0 | J60: 0 | K60: 0
A61: ='Org structure'!A10 -> Vote 09 - | C61: 0 | D61: 0 | E61: 0 | F61: 0 | G61: 0 | H61: 0 | I61: 0 | J61: 0 | K61: 0
A62: ='Org structure'!A11 -> Vote 10 - | C62: 0 | D62: 0 | E62: 0 | F62: 0 | G62: 0 | H62: 0 | I62: 0 | J62: 0 | K62: 0
A63: ='Org structure'!A12 -> Vote 11 - | C63: 0 | D63: 0 | E63: 0 | F63: 0 | G63: 0 | H63: 0 | I63: 0 | J63: 0 | K63: 0
A64: ='Org structure'!A13 -> Vote 12 - | C64: 0 | D64: 0 | E64: 0 | F64: 0 | G64: 0 | H64: 0 | I64: 0 | J64: 0 | K64: 0
A65: ='Org structure'!A14 -> Vote 13 - | C65: 0 | D65: 0 | E65: 0 | F65: 0 | G65: 0 | H65: 0 | I65: 0 | J65: 0 | K65: 0
A66: ='Org structure'!A15 -> Vote 14 - | C66: 0 | D66: 0 | E66: 0 | F66: 0 | G66: 0 | H66: 0 | I66: 0 | J66: 0 | K66: 0
A67: ='Org structure'!A16 -> Vote 15 - Other | C67: 0 | D67: 0 | E67: 0 | F67: 0 | G67: 0 | H67: 0 | I67: 0 | J67: 0 | K67: 0
A68: Total Expenditure by Vote | B68: 2 | C68: =C38+C40+C42+C44+C46+C52+C57+C60+C61+C62+C63+C64+C65+C66+C67 -> 323994688.6 | D68: 413880343.4 | E68: 349882964.3 | F68: 432902565 | G68: 426882883 | H68: 426882883 | I68: 400488234 | J68: 404045317 | K68: 418751980 | L68: =SUM(L38:L59) -> 0 | M68: 0 | N68: 0 | O68: 0 | P68: 0 | Q68: 0 | R68: 0 | S68: 0 | T68: 0 | U68: 0 | V68: 0 | W68: 0
A70: =result -> Surplus/(Deficit) for the year | B70: 2 | C70: =C35-C68 -> 28176229.29 | D70: 18780301.28 | E70: 119176495.2 | F70: 688674 | G70: 106360850 | H70: 106360850 | I70: 86964678 | J70: 92704869 | K70: 96877240
A71: =head27a -> References
A72: 1. Insert 'Vote'; e.g. Department, if different to Functional structure
A73: 2. Must reconcile to Financial Performance ('Revenue and Expenditure by Functional Classification' and 'Revenue and Expenditure')
A74: 3. Assign share in 'associate' to relevant Vote

Sheet A4-FinPerf RE
A1: =muni&" - "&Approve4 -> LIM351 Blouberg - Table A4 Budgeted Financial Performance (revenue and expenditure)
A2: =desc -> Description | B2: =head27 -> Ref | C2: =head1b -> 2021/22 | D2: =head1A -> 2022/23 | E2: =Head1 -> 2023/24 | F2: =Head2 -> Current Year 2024/25 | J2: =Head3 -> 2025/26 Medium Term Revenue & Expenditure Framework | M2: =Head4 -> LTFS
A3: R thousand | B3: 1 | C3: =Head5 -> Audited Outcome | D3: =Head5 -> Audited Outcome | E3: =Head5 -> Audited Outcome | F3: =Head6 -> Original Budget | G3: =Head7 -> Adjusted Budget | H3: =Head8 -> Full Year Forecast | I3: =Head5b -> Pre-audit outcome | J3: =Head9 -> Budget Year 2025/26 | K3: =Head10 -> Budget Year +1 2026/27 | L3: =Head11 -> Budget Year +2 2027/28 | M3: =Head12 -> Forecast 2028/29 | N3: =Head13 -> Forecast 2029/30 | O3: =Head14 -> Forecast 2030/31 | P3: =Head15 -> Forecast 2031/32 | Q3: =Head16 -> Forecast 2032/33 | R3: =Head17 -> Forecast 2033/34 | S3: =Head18 -> Forecast 2034/35 | T3: =Head19 -> Forecast 2035/36 | U3: =Head20 -> Forecast 2036/37 | V3: =Head21 -> Forecast 2037/38 | W3: =Head22 -> Forecast 2038/39 | X3: =Head23 -> Forecast 2039/40
A4: Revenue
A5: Exchange Revenue
A6: Service charges - Electricity | B6: 2 | C6: ='SA1'!C17 -> 29116330.23 | D6: ='SA1'!D17 -> 31889458.17 | E6: ='SA1'!E17 -> 35449328.96 | F6: ='SA1'!F17 -> 55308333 | G6: ='SA1'!G17 -> 55508333 | H6: ='SA1'!H17 -> 55508333 | I6: ='SA1'!I17 -> 39511560.06 | J6: ='SA1'!J17 -> 61323219 | K6: ='SA1'!K17 -> 64082764 | L6: ='SA1'!L17 -> 65684833
A7: Service charges - Water | B7: 2 | C7: ='SA1'!C23 -> 0 | D7: ='SA1'!D23 -> 0 | E7: ='SA1'!E23 -> 0 | F7: ='SA1'!F23 -> 0 | G7: ='SA1'!G23 -> 0 | H7: ='SA1'!H23 -> 0 | I7: ='SA1'!I23 -> 10206.59 | J7: ='SA1'!J23 -> 0 | K7: ='SA1'!K23 -> 0 | L7: ='SA1'!L23 -> 0
A8: Service charges - Waste Water Management | B8: 2 | C8: ='SA1'!C29 -> 34961.4 | D8: ='SA1'!D29 -> 19155.19 | E8: ='SA1'!E29 -> 0 | F8: ='SA1'!F29 -> 0 | G8: ='SA1'!G29 -> 0 | H8: ='SA1'!H29 -> 0 | I8: ='SA1'!I29 -> -87101.56 | J8: ='SA1'!J29 -> 0 | K8: ='SA1'!K29 -> 0 | L8: ='SA1'!L29 -> 0
A9: Service charges - Waste Management | B9: 2 | C9: ='SA1'!C36 -> 1887893.34 | D9: ='SA1'!D36 -> 1968415 | E9: ='SA1'!E36 -> 2069243.52 | F9: ='SA1'!F36 -> 2650000 | G9: ='SA1'!G36 -> 2250000 | H9: ='SA1'!H36 -> 2250000 | I9: ='SA1'!I36 -> 2051590.45 | J9: ='SA1'!J36 -> 3250000 | K9: ='SA1'!K36 -> 3396250 | L9: ='SA1'!L36 -> 1481157
A10: Sale of Goods and Rendering of Services | C10: 4620449.23 | D10: 6478906.78 | E10: 604998.04 | F10: 416090 | G10: 916090 | H10: 916090 | I10: 748075.96 | J10: 395375 | K10: 413166 | L10: 423495
A11: Agency services | C11: 0 | D11: 0 | E11: 0 | F11: 314700 | G11: 200000 | H11: 200000 | I11: 0 | J11: 150000 | K11: 156750 | L11: 160669
A12: Interest
A13: Interest earned from Receivables | C13: 447119.43 | D13: 795888.53 | E13: 1065528.1 | F13: 1500000 | G13: 1150000 | H13: 1150000 | I13: 2032317.79 | J13: 1200600 | K13: 1254627 | L13: 1285994
A14: Interest earned from Current and Non Current Assets | C14: 2018715.85 | D14: 4112363.63 | E14: 7720659.9 | F14: 8063596 | G14: 11063596 | H14: 11063596 | I14: 7129626.15 | J14: 11550395 | K14: 12070162 | L14: 12371917
A15: Dividends
A16: Rent on Land | C16: 550413.06 | D16: 461442.68 | E16: 604906.35 | F16: 926053 | G16: 1526053 | H16: 1526053 | I16: 2545997.05 | J16: 1593200 | K16: 1664894 | L16: 1706517
A17: Rental from Fixed Assets | C17: 0 | D17: 0 | E17: 0 | F17: 0 | G17: 0 | H17: 0 | I17: 0 | J17: 0 | K17: 0 | L17: 0
A18: Licence and permits | C18: 1200666.21 | D18: 1427943.61 | E18: 1223369.91 | F18: 5245000 | G18: 5245000 | H18: 5245000 | I18: 1346699.19 | J18: 5475780 | K18: 5722192 | L18: 5865246
A19: Special rating levies
A20: Operational Revenue | C20: 1086789.58 | D20: 5922559.03 | E20: 8797485.81 | F20: 2294857 | G20: 5294857 | H20: 5294857 | I20: 238316.12 | J20: 2524831 | K20: 2599784 | L20: 2664779
A21: Non-Exchange Revenue
A22: Property rates | B22: 2 | C22: ='SA1'!C10 -> 29497010.89 | D22: ='SA1'!D10 -> 25228987.14 | E22: ='SA1'!E10 -> 68960730.64 | F22: ='SA1'!F10 -> 34586407 | G22: ='SA1'!G10 -> 69755697 | H22: ='SA1'!H10 -> 69755697 | I22: ='SA1'!I10 -> 72542480.26 | J22: ='SA1'!J10 -> 76395001 | K22: ='SA1'!K10 -> 79832777 | L22: ='SA1'!L10 -> 83828597
A23: Surcharges and Taxes
A24: Fines, penalties and forfeits | C24: 80348.7 | D24: 1799193.99 | E24: 0 | F24: 2801725 | G24: 2166425 | H24: 2166425 | I24: 324369.18 | J24: 2286579 | K24: 2389477 | L24: 2449214
A25: Licences or permits | C25: 3316321.67 | D25: 2738447.67 | E25: 2774533.16 | F25: 0 | G25: 0 | H25: 0 | I25: 2258569.88 | J25: 0 | K25: 0 | L25: 0
A26: Transfer and subsidies - Operational | C26: 214162630.3 | D26: 225391142.6 | E26: 241376084 | F26: 250671000 | G26: 250671000 | H26: 250671000 | I26: 249720857.3 | J26: 249480000 | K26: 246404000 | L26: 257523000
A27: Interest | C27: 1549115.25 | D27: 1266423.7 | E27: 1396171.29 | F27: 1328478 | G27: 1328478 | H27: 1328478 | I27: 1414789.99 | J27: 1586932 | K27: 1658343 | L27: 1699802
A28: Fuel Levy
A29: Operational Revenue | C29: 0 | D29: 0 | E29: 0 | F29: 0 | G29: 0 | H29: 0 | I29: 0 | J29: 0 | K29: 0 | L29: 0
A30: Gains on disposal of Assets | C30: 0 | D30: 0 | E30: 1559867.83 | F30: 0 | G30: 0 | H30: 0 | I30: 0 | J30: 0 | K30: 0 | L30: 0
A31: Other Gains | C31: 0 | D31: 10632282.94 | E31: 0 | F31: 0 | G31: 0 | H31: 0 | I31: 0 | J31: 0 | K31: 0 | L31: 0
A32: Discontinued Operations
A33: Total Revenue (excluding capital transfers and contributions) | C33: =SUM(C6:C20)+SUM(C22:C32) -> 289568765.1 | D33: =SUM(D6:D20)+SUM(D22:D32) -> 320132610.6 | E33: 373602907.5 | F33: 366106239 | G33: 407075529 | H33: 407075529 | I33: 381788354.4 | J33: 417211912 | K33: 421645186 | L33: 437145220
A34: Expenditure
A35: Employee related costs | B35: 2 | C35: ='SA1'!C71 -> 119858269 | D35: ='SA1'!D71 -> 124043649 | E35: ='SA1'!E71 -> 132264727.5 | F35: ='SA1'!F71 -> 140755081 | G35: ='SA1'!G71 -> 140755081 | H35: ='SA1'!H71 -> 140755081 | I35: ='SA1'!I71 -> 127479363.7 | J35: ='SA1'!J71 -> 151448377 | K35: ='SA1'!K71 -> 155128555 | L35: ='SA1'!L71 -> 159006765 | M35: ='SA1'!M71 -> 0 | N35: ='SA1'!N71 -> 0 | O35: ='SA1'!O71 -> 0 | P35: ='SA1'!P71 -> 0 | Q35: ='SA1'!Q71 -> 0 | R35: ='SA1'!R71 -> 0 | S35: ='SA1'!S71 -> 0 | T35: ='SA1'!T71 -> 0
A36: Remuneration of councillors | C36: 17213956.91 | D36: 17982273.07 | E36: 19212717.03 | F36: 21997665 | G36: 21997665 | H36: 21997665 | I36: 18109288.23 | J36: 22965572 | K36: 23999024 | L36: 24599002
A37: Bulk purchases - electricity | B37: 2 | C37: ='SA1'!C88 -> 50884659.64 | D37: ='SA1'!D88 -> 52983493.47 | E37: ='SA1'!E88 -> 58974105.39 | F37: ='SA1'!F88 -> 61440000 | G37: ='SA1'!G88 -> 64440000 | H37: ='SA1'!H88 -> 64440000 | I37: ='SA1'!I88 -> 56318256.35 | J37: ='SA1'!J88 -> 67275360 | K37: ='SA1'!K88 -> 70302752 | L37: ='SA1'!L88 -> 72060320
A38: Inventory consumed | B38: 8 | C38: ='SA1'!C169 -> 6420489 | D38: ='SA1'!D169 -> 3569119 | E38: ='SA1'!E169 -> 3238441 | F38: ='SA1'!F169 -> 5337183 | G38: ='SA1'!G169 -> 5337183 | H38: ='SA1'!H169 -> 5337183 | I38: ='SA1'!I169 -> 2590228.94 | J38: ='SA1'!J169 -> 2650699 | K38: ='SA1'!K169 -> 3569227 | L38: ='SA1'!L169 -> 3658457
A39: Debt impairment | B39: 3 | C39: 0 | D39: 1259030.52 | E39: 0 | F39: 49170559 | G39: 49170559 | H39: 49170559 | I39: 0 | J39: 17483213 | K39: 17049064 | L39: 22315601
A40: Depreciation and amortisation | C40: ='SA1'!C83 -> 30420608.43 | D40: ='SA1'!D83 -> 35157656.59 | E40: ='SA1'!E83 -> 33819527.29 | F40: ='SA1'!F83 -> 33513635 | G40: ='SA1'!G83 -> 33513635 | H40: ='SA1'!H83 -> 33513635 | I40: ='SA1'!I83 -> 0 | J40: ='SA1'!J83 -> 34988257 | K40: ='SA1'!K83 -> 36562722 | L40: ='SA1'!L83 -> 37476791
A41: Interest | C41: 0 | D41: 0 | E41: 4441877.01 | F41: 0 | G41: 0 | H41: 0 | I41: 0 | J41: 0 | K41: 0 | L41: 0
A42: Contracted services | C42: ='SA1'!C127 -> 60952163.63 | D42: ='SA1'!D127 -> 61218972.2 | E42: ='SA1'!E127 -> 47561822.95 | F42: ='SA1'!F127 -> 54287316 | G42: ='SA1'!G127 -> 50132903 | H42: ='SA1'!H127 -> 50132903 | I42: ='SA1'!I127 -> 38598367.9 | J42: ='SA1'!J127 -> 42645339 | K42: ='SA1'!K127 -> 34701133 | L42: ='SA1'!L127 -> 35341363
A43: Transfers and subsidies | C43: ='SA1'!C93 -> 49860 | D43: ='SA1'!D93 -> 0 | E43: ='SA1'!E93 -> 0 | F43: ='SA1'!F93 -> 0 | G43: ='SA1'!G93 -> 0 | H43: ='SA1'!H93 -> 0 | I43: ='SA1'!I93 -> 0 | J43: ='SA1'!J93 -> 0 | K43: ='SA1'!K93 -> 0 | L43: ='SA1'!L93 -> 0
A44: Irrecoverable debts written off | C44: 2370462.72 | D44: 54121083.6 | E44: -9057591.09 | F44: 0 | G44: 0 | H44: 0 | I44: 0 | J44: 0 | K44: 0 | L44: 0
A45: Operational costs | C45: ='SA1'!C157 -> 40958958.28 | D45: ='SA1'!D157 -> 55028708.82 | E45: ='SA1'!E157 -> 57016689.05 | F45: ='SA1'!F157 -> 66401126 | G45: ='SA1'!G157 -> 63847857 | H45: ='SA1'!H157 -> 63847857 | I45: ='SA1'!I157 -> 52108706.52 | J45: ='SA1'!J157 -> 61031417 | K45: ='SA1'!K157 -> 63545585 | L45: ='SA1'!L157 -> 65134243
A46: Losses on disposal of Assets | C46: -550480.13 | D46: -222579 | E46: 896190.01 | F46: 0 | G46: 0 | H46: 0 | I46: 0 | J46: 0 | K46: 0 | L46: 0
A47: Other Losses | C47: 0 | D47: 10632282.94 | E47: 0 | F47: 0 | G47: 0 | H47: 0 | I47: 0 | J47: 0 | K47: 0 | L47: 0
A48: Total Expenditure | C48: =SUM(C35:C47) -> 328578947.5 | D48: =SUM(D35:D47) -> 415773690.2 | E48: 348368506.1 | F48: 432902565 | G48: 429194883 | H48: 429194883 | I48: 295204211.7 | J48: 400488234 | K48: 404858062 | L48: 419592542 | M48: =SUM(M35:M47) -> 0 | N48: 0 | O48: 0 | P48: 0 | Q48: 0 | R48: 0 | S48: 0 | T48: 0 | U48: 0 | V48: 0 | W48: 0 | X48: 0
A49: Surplus/(Deficit) | C49: =C33-C48 -> -39010182.3 | D49: =D33-D48 -> -95641079.55 | E49: 25234401.4 | F49: -66796326 | G49: -22119354 | H49: -22119354 | I49: 86584142.73 | J49: 16723678 | K49: 16787124 | L49: 17552678 | M49: =M33+M48 -> 0 | N49: 0 | O49: 0 | P49: 0 | Q49: 0 | R49: 0 | S49: 0 | T49: 0 | U49: 0 | V49: 0 | W49: 0 | X49: 0
A50: Transfers and subsidies - capital (monetary allocations) | B50: 6 | C50: 62602152.7 | D50: 112528034.1 | E50: 95456552.07 | F50: 67485000 | G50: 126168204 | H50: 126168204 | I50: 106267527.1 | J50: 70241000 | K50: 75105000 | L50: 78484000
A51: Transfers and subsidies - capital (in-kind) | B51: 6
A52: Surplus/(Deficit) after capital transfers & contributions | C52: =SUM(C49:C51) -> 23591970.4 | D52: =SUM(D49:D51) -> 16886954.54 | E52: 120690953.5 | F52: 688674 | G52: 104048850 | H52: 104048850 | I52: 192851669.9 | J52: 86964678 | K52: 91892124 | L52: 96036678
A53: Income Tax
A54: Surplus/(Deficit) after income tax | C54: =+C52-C53 -> 23591970.4 | D54: =+D52-D53 -> 16886954.54 | E54: 120690953.5 | F54: 688674 | G54: 104048850 | H54: 104048850 | I54: 192851669.9 | J54: 86964678 | K54: 91892124 | L54: 96036678 | M54: 0 | N54: 0 | O54: 0 | P54: 0 | Q54: 0
A55: Share of Surplus/Deficit attributable to Joint Venture
A56: Share of Surplus/Deficit attributable to Minorities
A57: Surplus/(Deficit) attributable to municipality | C57: =SUM(C54:C56) -> 23591970.4 | D57: =SUM(D54:D56) -> 16886954.54 | E57: 120690953.5 | F57: 688674 | G57: 104048850 | H57: 104048850 | I57: 192851669.9 | J57: 86964678 | K57: 91892124 | L57: 96036678 | M57: 0 | N57: 0 | O57: 0 | P57: 0 | Q57: 0
A58: Share of Surplus/Deficit attributable to Associate | B58: 7
A59: Intercompany/Parent subsidiary transactions
A60: =result -> Surplus/(Deficit) for the year | B60: 1 | C60: =SUM(C57:C59) -> 23591970.4 | D60: =SUM(D57:D59) -> 16886954.54 | E60: 120690953.5 | F60: 688674 | G60: 104048850 | H60: 104048850 | I60: 192851669.9 | J60: 86964678 | K60: 91892124 | L60: 96036678 | M60: 0 | N60: 0 | O60: 0 | P60: 0 | Q60: 0 | R60: =R36+R59 -> 0 | S60: 0 | T60: 0 | U60: 0 | V60: 0 | W60: 0 | X60: 0
A61: References
A62: 1. Classifications are revenue sources and expenditure type
A63: 2. Detail to be provided in Table SA1 | O63: =O60-'A4-FinPerf RE'!J60 -> -86964678 | P63: =P60-'A4-FinPerf RE'!K60 -> -91892124 | Q63: =Q60-'A4-FinPerf RE'!L60 -> -96036678
A64: 3. Debt impairment includes Impairment and Reversal of Impairment Losses
A65: 4. Expenditure type components previously shown under repairs and maintenance should be allocated back to the originating expenditure group/item; e.g. employee costs
A66: 5. Repairs & maintenance detailed in Table A9 and Table SA34c
A67: 6. Contributions are funds provided by external organisations to assist with infrastructure development; e.g. developer contributions (detail to be provided in Table SA1)
A68: 7. Equity method ( Includes Joint Ventures)
A69: 8. All materials consumed including water consumed and materials used in operations.
A70: 9 Operational revenue is a summary of imatereial item that are on the chart not on the face of the A4 due to imateriality.

Sheet A4 Funding (hidden)
A1: Western Cape: Saldanha Bay (WC014) - Table A4 Funding Tool Summary for 4th Quarter ended 30 June 2024
A2: A4 Code | B2: A4 Description | C2: Type | D2: Classification | E2: =head1b -> 2021/22 | F2: =head1A -> 2022/23 | G2: =Head1 -> 2023/24 | H2: =Head2 -> Current Year 2024/25 | L2: =Head3 -> 2025/26 Medium Term Revenue & Expenditure Framework
A3: R thousands | E3: =Head5 -> Audited Outcome | F3: =Head5 -> Audited Outcome | G3: =Head5 -> Audited Outcome | H3: =Head6 -> Original Budget | I3: =Head7 -> Adjusted Budget | J3: =Head8 -> Full Year Forecast | K3: =Head5b -> Pre-audit outcome | L3: =Head9 -> Budget Year 2025/26 | M3: =Head10 -> Budget Year +1 2026/27 | N3: =Head11 -> Budget Year +2 2027/28
A4: 0300 | B4: Exchange Revenue / Service charges - Electricity | C4: Non-Cash | D4: Debtor accrual - service charges electricity accrued through exchange receivables | E4: ='SA3'!C8 -> 21315171.86 | F4: ='SA3'!D8 -> 27518665.66 | G4: ='SA3'!E8 -> 31724655.02 | H4: ='SA3'!F8 -> 20792849 | I4: ='SA3'!G8 -> 20792849 | J4: ='SA3'!H8 -> 20792849 | K4: ='SA3'!I8 -> 42656131.94 | L4: ='SA3'!J8 -> 34698856 | M4: ='SA3'!K8 -> 35982024 | N4: ='SA3'!L8 -> 40168809
D5: Non-Cash Total | E5: =SUM(E4) -> 21315171.86 | F5: =SUM(F4) -> 27518665.66 | G5: 31724655.02 | H5: 20792849 | I5: 20792849 | J5: 20792849 | K5: 42656131.94 | L5: 34698856 | M5: 35982024 | N5: 40168809
B6: Exchange Revenue / Service charges - Electricity Total
A7: 0400 | B7: Exchange Revenue / Service charges - Water | C7: Non-Cash | D7: Debtor accrual - service charges water accrued through exchange receivables | E7: ='SA3'!C9 -> 0 | F7: ='SA3'!D9 -> 0 | G7: ='SA3'!E9 -> 0 | H7: ='SA3'!F9 -> 0 | I7: ='SA3'!G9 -> 0 | J7: ='SA3'!H9 -> 0 | K7: ='SA3'!I9 -> 120077.35 | L7: ='SA3'!J9 -> 0 | M7: ='SA3'!K9 -> 0 | N7: ='SA3'!L9 -> 0
D8: Non-Cash Total
B9: Exchange Revenue / Service charges - Water Total
A10: 0500 | B10: Exchange Revenue / Service charges - Waste Water Management | C10: Non-Cash | D10: Debtor accrual - service charges waste water management accrued through exchange receivables | E10: ='SA3'!C11 -> 0 | F10: ='SA3'!D11 -> 0 | G10: ='SA3'!E11 -> 0 | H10: ='SA3'!F11 -> 0 | I10: ='SA3'!G11 -> 0 | J10: ='SA3'!H11 -> 0 | K10: ='SA3'!I11 -> -114046.5 | L10: ='SA3'!J11 -> 0 | M10: ='SA3'!K11 -> 0 | N10: ='SA3'!L11 -> 0
D11: Non-Cash Total
B12: Exchange Revenue / Service charges - Waste Water Management Total
A13: 0600 | B13: Exchange Revenue / Service charges - Waste Management | C13: Non-Cash | D13: Debtor accrual - service charges waste management accrued through exchange receivables | E13: ='SA3'!C10 -> 5090355.41 | F13: ='SA3'!D10 -> 6968356.49 | G13: ='SA3'!E10 -> 8821082.12 | H13: ='SA3'!F10 -> 5491457 | I13: ='SA3'!G10 -> 5491457 | J13: ='SA3'!H10 -> 5491457 | K13: ='SA3'!I10 -> 10468360.65 | L13: ='SA3'!J10 -> 9658294 | M13: ='SA3'!K10 -> 10092918 | N13: ='SA3'!L10 -> 10345240
D14: Non-Cash Total
B15: Exchange Revenue / Service charges - Waste Management Total
A16: 0700 | B16: Exchange Revenue / Sale of Goods and Rendering of Services | C16: Cash | D16: Cash sales of goods and rendering of services | E16: ='SA3'!C138 -> 977360372.5 | F16: 0 | G16: 0 | H16: 0 | I16: 0 | J16: 0 | K16: 0 | L16: 0 | M16: 0 | N16: 0
D17: Proceeds sale of PPE | E17: 0 | F17: 0 | G17: 0 | H17: 0 | I17: 0 | J17: 0 | K17: 0 | L17: 0 | M17: 0 | N17: 0
D18: Cash Total | E18: 0 | F18: 0 | G18: 0 | H18: 0 | I18: 0 | J18: 0 | K18: 0 | L18: 0 | M18: 0 | N18: 0
B19: Exchange Revenue / Sale of Goods and Rendering of Services Total | E19: 0 | F19: 0 | G19: 0 | H19: 0 | I19: 0 | J19: 0 | K19: 0 | L19: 0 | M19: 0 | N19: 0
A20: 0800 | B20: Exchange Revenue / Agency services | C20: Cash | D20: Cash - agency services | E20: 0 | F20: 0 | G20: 0 | H20: 0 | I20: 0 | J20: 0 | K20: 0 | L20: 0 | M20: 0 | N20: 0
D21: Cash Total | E21: 0 | F21: 0 | G21: 0 | H21: 0 | I21: 0 | J21: 0 | K21: 0 | L21: 0 | M21: 0 | N21: 0
B22: Exchange Revenue / Agency services Total | E22: 0 | F22: 0 | G22: 0 | H22: 0 | I22: 0 | J22: 0 | K22: 0 | L22: 0 | M22: 0 | N22: 0
A23: 0900 | B23: Exchange Revenue / Interest | C23: Non-Cash | D23: Deemed interest | E23: 0 | F23: 0 | G23: 0 | H23: 0 | I23: 0 | J23: 0 | K23: 0 | L23: 0 | M23: 0 | N23: 0
D24: Non-Cash Total
B25: Exchange Revenue / Interest Total
A26: 1000 | B26: Exchange Revenue / Interest earned from Receivables | C26: Non-Cash | D26: Affiliates/related parties/associated companies | E26: 0 | F26: 0 | G26: 0 | H26: 0 | I26: 0 | J26: 0 | K26: 0 | L26: 0 | M26: 0 | N26: 0
D27: Debtor accrual - interest outstanding debtors accrued through exchange receivables | E27: 0 | F27: 0 | G27: 0 | H27: 0 | I27: 0 | J27: 0 | K27: 0 | L27: 0 | M27: 0 | N27: 0
D28: SARS | E28: 0 | F28: 0 | G28: 0 | H28: 0 | I28: 0 | J28: 0 | K28: 0 | L28: 0 | M28: 0 | N28: 0
D29: Non-Cash Total | E29: 0 | F29: 0 | G29: 0 | H29: 0 | I29: 0 | J29: 0 | K29: 0 | L29: 0 | M29: 0 | N29: 0
B30: Exchange Revenue / Interest earned from Receivables Total | E30: 0 | F30: 0 | G30: 0 | H30: 0 | I30: 0 | J30: 0 | K30: 0 | L30: 0 | M30: 0 | N30: 0
A31: 1100 | B31: Exchange Revenue / Interest earned from Current and Non Current Assets | C31: Cash | D31: Cash - interest external investments | E31: 0 | F31: 0 | G31: 0 | H31: 0 | I31: 0 | J31: 0 | K31: 0 | L31: 0 | M31: 0 | N31: 0
D32: Cash Total | E32: 0 | F32: 0 | G32: 0 | H32: 0 | I32: 0 | J32: 0 | K32: 0 | L32: 0 | M32: 0 | N32: 0
B33: Exchange Revenue / Interest earned from Current and Non Current Assets Total | E33: 0 | F33: 0 | G33: 0 | H33: 0 | I33: 0 | J33: 0 | K33: 0 | L33: 0 | M33: 0 | N33: 0
A34: 1200 | B34: Exchange Revenue / Dividends | C34: Cash | D34: Cash - dividends received | E34: 0 | F34: 0 | G34: 0 | H34: 0 | I34: 0 | J34: 0 | K34: 0 | L34: 0 | M34: 0 | N34: 0
D35: Cash Total | E35: 0 | F35: 0 | G35: 0 | H35: 0 | I35: 0 | J35: 0 | K35: 0 | L35: 0 | M35: 0 | N35: 0
B36: Exchange Revenue / Dividends Total | E36: 0 | F36: 0 | G36: 0 | H36: 0 | I36: 0 | J36: 0 | K36: 0 | L36: 0 | M36: 0 | N36: 0
A37: 1300 | B37: Exchange Revenue / Rent on Land | C37: Cash | D37: Cash - rent on land | E37: 0 | F37: 0 | G37: 0 | H37: 0 | I37: 0 | J37: 0 | K37: 0 | L37: 0 | M37: 0 | N37: 0
D38: Cash Total | E38: 0 | F38: 0 | G38: 0 | H38: 0 | I38: 0 | J38: 0 | K38: 0 | L38: 0 | M38: 0 | N38: 0
B39: Exchange Revenue / Rent on Land Total | E39: 0 | F39: 0 | G39: 0 | H39: 0 | I39: 0 | J39: 0 | K39: 0 | L39: 0 | M39: 0 | N39: 0
A40: 1400 | B40: Exchange Revenue / Rental from Fixed Assets | C40: Cash | D40: Cash - rental from fixed assets | E40: 0 | F40: 0 | G40: 0 | H40: 0 | I40: 0 | J40: 0 | K40: 0 | L40: 0 | M40: 0 | N40: 0
D41: Cash Total | E41: 0 | F41: 0 | G41: 0 | H41: 0 | I41: 0 | J41: 0 | K41: 0 | L41: 0 | M41: 0 | N41: 0
B42: Exchange Revenue / Rental from Fixed Assets Total | E42: 0 | F42: 0 | G42: 0 | H42: 0 | I42: 0 | J42: 0 | K42: 0 | L42: 0 | M42: 0 | N42: 0
A43: 1500 | B43: Exchange Revenue / Licence and permits | C43: Cash | D43: Cash - licence and permits | E43: 0 | F43: 0 | G43: 0 | H43: 0 | I43: 0 | J43: 0 | K43: 0 | L43: 0 | M43: 0 | N43: 0
D44: Cash Total | E44: 0 | F44: 0 | G44: 0 | H44: 0 | I44: 0 | J44: 0 | K44: 0 | L44: 0 | M44: 0 | N44: 0
B45: Exchange Revenue / Licence and permits Total | E45: 0 | F45: 0 | G45: 0 | H45: 0 | I45: 0 | J45: 0 | K45: 0 | L45: 0 | M45: 0 | N45: 0
A46: 1550 | B46: Exchange Revenue / Special rating levies | C46: Cash | D46: Cash - Special rating levies | E46: 0 | F46: 0 | G46: 0 | H46: 0 | I46: 0 | J46: 0 | K46: 0 | L46: 0 | M46: 0 | N46: 0
D47: Cash Total | E47: 0 | F47: 0 | G47: 0 | H47: 0 | I47: 0 | J47: 0 | K47: 0 | L47: 0 | M47: 0 | N47: 0
B48: Exchange Revenue / Special rating levies Total | E48: 0 | F48: 0 | G48: 0 | H48: 0 | I48: 0 | J48: 0 | K48: 0 | L48: 0 | M48: 0 | N48: 0
A49: 1600 | B49: Exchange Revenue / Operational Revenue | C49: Cash | D49: Cash - Operating revenue | E49: 0 | F49: 0 | G49: 0 | H49: 0 | I49: 0 | J49: 0 | K49: 0 | L49: 0 | M49: 0 | N49: 0
D50: Cash Total | E50: 0 | F50: 0 | G50: 0 | H50: 0 | I50: 0 | J50: 0 | K50: 0 | L50: 0 | M50: 0 | N50: 0
B51: Exchange Revenue / Operational Revenue Total | E51: 0 | F51: 0 | G51: 0 | H51: 0 | I51: 0 | J51: 0 | K51: 0 | L51: 0 | M51: 0 | N51: 0
A52: 1800 | B52: Non-Exchange Revenue / Property rates | C52: Non-Cash | D52: Debtor accrual - property rates accrued through non-exchange receivables | E52: 0 | F52: 0 | G52: 0 | H52: 0 | I52: 0 | J52: 0 | K52: 0 | L52: 0 | M52: 0 | N52: 0
D53: Non-Cash Total | E53: 0 | F53: 0 | G53: 0 | H53: 0 | I53: 0 | J53: 0 | K53: 0 | L53: 0 | M53: 0 | N53: 0
B54: Non-Exchange Revenue / Property rates Total | E54: 0 | F54: 0 | G54: 0 | H54: 0 | I54: 0 | J54: 0 | K54: 0 | L54: 0 | M54: 0 | N54: 0
A55: 1900 | B55: Non-Exchange Revenue / Surcharges and Taxes | C55: Non-Cash | D55: Debtor accrual - surcharges & taxes accrued through non-exchange receivables | E55: 0 | F55: 0 | G55: 0 | H55: 0 | I55: 0 | J55: 0 | K55: 0 | L55: 0 | M55: 0 | N55: 0
D56: Non-Cash Total | E56: 0 | F56: 0 | G56: 0 | H56: 0 | I56: 0 | J56: 0 | K56: 0 | L56: 0 | M56: 0 | N56: 0
B57: Non-Exchange Revenue / Surcharges and Taxes Total | E57: 0 | F57: 0 | G57: 0 | H57: 0 | I57: 0 | J57: 0 | K57: 0 | L57: 0 | M57: 0 | N57: 0
A58: 2000 | B58: Non-Exchange Revenue / Fines, penalties and forfeits | C58: Non-Cash | D58: Debtor accrual - Fines, penalties and forfeits revenue accrued through non-exchanges receivables | E58: 0 | F58: 0 | G58: 0 | H58: 0 | I58: 0 | J58: 0 | K58: 0 | L58: 0 | M58: 0 | N58: 0
D59: Non-Cash Total | E59: 0 | F59: 0 | G59: 0 | H59: 0 | I59: 0 | J59: 0 | K59: 0 | L59: 0 | M59: 0 | N59: 0
B60: Non-Exchange Revenue / Fines, penalties and forfeits Total | E60: 0 | F60: 0 | G60: 0 | H60: 0 | I60: 0 | J60: 0 | K60: 0 | L60: 0 | M60: 0 | N60: 0
A61: 2100 | B61: Non-Exchange Revenue / Licences or permits | C61: Cash | D61: Cash - licences or permits | E61: 0 | F61: 0 | G61: 0 | H61: 0 | I61: 0 | J61: 0 | K61: 0 | L61: 0 | M61: 0 | N61: 0
D62: Cash Total | E62: 0 | F62: 0 | G62: 0 | H62: 0 | I62: 0 | J62: 0 | K62: 0 | L62: 0 | M62: 0 | N62: 0
B63: Non-Exchange Revenue / Licences or permits Total | E63: 0 | F63: 0 | G63: 0 | H63: 0 | I63: 0 | J63: 0 | K63: 0 | L63: 0 | M63: 0 | N63: 0
A64: 2200 | B64: Non-Exchange Revenue / Transfer and subsidies - Operational | C64: Cash | D64: Cash - Operational transfers and subsidies | E64: 0 | F64: 0 | G64: 0 | H64: 0 | I64: 0 | J64: 0 | K64: 0 | L64: 0 | M64: 0 | N64: 0
D65: Cash Total | E65: 0 | F65: 0 | G65: 0 | H65: 0 | I65: 0 | J65: 0 | K65: 0 | L65: 0 | M65: 0 | N65: 0
C66: Non-Cash | D66: Operational allocation in-kind | E66: 0 | F66: 0 | G66: 0 | H66: 0 | I66: 0 | J66: 0 | K66: 0 | L66: 0 | M66: 0 | N66: 0
D67: Non-Cash Total | E67: 0 | F67: 0 | G67: 0 | H67: 0 | I67: 0 | J67: 0 | K67: 0 | L67: 0 | M67: 0 | N67: 0
B68: Non-Exchange Revenue / Transfer and subsidies - Operational Total | E68: 0 | F68: 0 | G68: 0 | H68: 0 | I68: 0 | J68: 0 | K68: 0 | L68: 0 | M68: 0 | N68: 0
A69: 2300 | B69: Non-Exchange Revenue / Interest | C69: Non-Cash | D69: Debtor accrual - interest outstanding property rates accrued through non-exchange receivables | E69: 0 | F69: 0 | G69: 0 | H69: 0 | I69: 0 | J69: 0 | K69: 0 | L69: 0 | M69: 0 | N69: 0
D70: Debtor accrual - interest outstanding service charges electricity accrued through exchange receivables | E70: 0 | F70: 0 | G70: 0 | H70: 0 | I70: 0 | J70: 0 | K70: 0 | L70: 0 | M70: 0 | N70: 0
D71: Debtor accrual - interest outstanding service charges waste management accrued through exchange receivables | E71: 0 | F71: 0 | G71: 0 | H71: 0 | I71: 0 | J71: 0 | K71: 0 | L71: 0 | M71: 0 | N71: 0
D72: Debtor accrual - interest outstanding service charges waste water management accrued through exchange receivables | E72: 0 | F72: 0 | G72: 0 | H72: 0 | I72: 0 | J72: 0 | K72: 0 | L72: 0 | M72: 0 | N72: 0
D73: Debtor accrual - interest outstanding service charges water accrued through exchange receivables | E73: 0 | F73: 0 | G73: 0 | H73: 0 | I73: 0 | J73: 0 | K73: 0 | L73: 0 | M73: 0 | N73: 0
D74: Non-Cash Total | E74: 0 | F74: 0 | G74: 0 | H74: 0 | I74: 0 | J74: 0 | K74: 0 | L74: 0 | M74: 0 | N74: 0
B75: Non-Exchange Revenue / Interest Total | E75: 0 | F75: 0 | G75: 0 | H75: 0 | I75: 0 | J75: 0 | K75: 0 | L75: 0 | M75: 0 | N75: 0
A76: 2400 | B76: Non-Exchange Revenue / Fuel Levy | C76: Cash | D76: Cash collection fuel levy | E76: 0 | F76: 0 | G76: 0 | H76: 0 | I76: 0 | J76: 0 | K76: 0 | L76: 0 | M76: 0 | N76: 0
D77: Cash Total | E77: 0 | F77: 0 | G77: 0 | H77: 0 | I77: 0 | J77: 0 | K77: 0 | L77: 0 | M77: 0 | N77: 0
B78: Non-Exchange Revenue / Fuel Levy Total | E78: 0 | F78: 0 | G78: 0 | H78: 0 | I78: 0 | J78: 0 | K78: 0 | L78: 0 | M78: 0 | N78: 0
A79: 2500 | B79: Non-Exchange Revenue / Operational Revenue | C79: Non-Cash | D79: Debtor accrual - availability charges electricity accrued through non-exchange receivables | E79: 0 | F79: 0 | G79: 0 | H79: 0 | I79: 0 | J79: 0 | K79: 0 | L79: 0 | M79: 0 | N79: 0
D80: Debtor accrual - availability charges waste management accrued through non-exchange receivables | E80: 0 | F80: 0 | G80: 0 | H80: 0 | I80: 0 | J80: 0 | K80: 0 | L80: 0 | M80: 0 | N80: 0
D81: Debtor accrual - availability charges waste water management accrued through non-exchange receivables | E81: 0 | F81: 0 | G81: 0 | H81: 0 | I81: 0 | J81: 0 | K81: 0 | L81: 0 | M81: 0 | N81: 0
D82: Debtor accrual - availability charges water accrued through non-exchange receivables | E82: 0 | F82: 0 | G82: 0 | H82: 0 | I82: 0 | J82: 0 | K82: 0 | L82: 0 | M82: 0 | N82: 0
D83: Non-Cash Total | E83: 0 | F83: 0 | G83: 0 | H83: 0 | I83: 0 | J83: 0 | K83: 0 | L83: 0 | M83: 0 | N83: 0
B84: Non-Exchange Revenue / Operational Revenue Total | E84: 0 | F84: 0 | G84: 0 | H84: 0 | I84: 0 | J84: 0 | K84: 0 | L84: 0 | M84: 0 | N84: 0
A85: 2600 | B85: Non-Exchange Revenue / Gains on disposal of Assets | C85: Non-Cash | D85: Biological assets | E85: 0 | F85: 0 | G85: 0 | H85: 0 | I85: 0 | J85: 0 | K85: 0 | L85: 0 | M85: 0 | N85: 0
D86: Discontinued operations | E86: 0 | F86: 0 | G86: 0 | H86: 0 | I86: 0 | J86: 0 | K86: 0 | L86: 0 | M86: 0 | N86: 0
D87: Heritage assets | E87: 0 | F87: 0 | G87: 0 | H87: 0 | I87: 0 | J87: 0 | K87: 0 | L87: 0 | M87: 0 | N87: 0
D88: Intangible assets | E88: 0 | F88: 0 | G88: 0 | H88: 0 | I88: 0 | J88: 0 | K88: 0 | L88: 0 | M88: 0 | N88: 0
D89: Investment property | E89: 0 | F89: 0 | G89: 0 | H89: 0 | I89: 0 | J89: 0 | K89: 0 | L89: 0 | M89: 0 | N89: 0
D90: Land | E90: 0 | F90: 0 | G90: 0 | H90: 0 | I90: 0 | J90: 0 | K90: 0 | L90: 0 | M90: 0 | N90: 0
D91: Living resources | E91: 0 | F91: 0 | G91: 0 | H91: 0 | I91: 0 | J91: 0 | K91: 0 | L91: 0 | M91: 0 | N91: 0
D92: Other assets | E92: 0 | F92: 0 | G92: 0 | H92: 0 | I92: 0 | J92: 0 | K92: 0 | L92: 0 | M92: 0 | N92: 0
D93: PPE | E93: 0 | F93: 0 | G93: 0 | H93: 0 | I93: 0 | J93: 0 | K93: 0 | L93: 0 | M93: 0 | N93: 0
D94: Non-Cash Total | E94: 0 | F94: 0 | G94: 0 | H94: 0 | I94: 0 | J94: 0 | K94: 0 | L94: 0 | M94: 0 | N94: 0
B95: Non-Exchange Revenue / Gains on disposal of Assets Total | E95: 0 | F95: 0 | G95: 0 | H95: 0 | I95: 0 | J95: 0 | K95: 0 | L95: 0 | M95: 0 | N95: 0
A96: 2700 | B96: Non-Exchange Revenue / Other Gains | C96: Non-Cash | D96: Fair value adjustment actuarial assesments - leave gratuity | E96: 0 | F96: 0 | G96: 0 | H96: 0 | I96: 0 | J96: 0 | K96: 0 | L96: 0 | M96: 0 | N96: 0
D97: Fair value adjustment actuarial assesments - long service awards | E97: 0 | F97: 0 | G97: 0 | H97: 0 | I97: 0 | J97: 0 | K97: 0 | L97: 0 | M97: 0 | N97: 0
D98: Fair value adjustment actuarial assesments - medical aid | E98: 0 | F98: 0 | G98: 0 | H98: 0 | I98: 0 | J98: 0 | K98: 0 | L98: 0 | M98: 0 | N98: 0
D99: Fair value adjustment actuarial assesments - pension funds | E99: 0 | F99: 0 | G99: 0 | H99: 0 | I99: 0 | J99: 0 | K99: 0 | L99: 0 | M99: 0 | N99: 0
D100: Fair value adjustment biological assets | E100: 0 | F100: 0 | G100: 0 | H100: 0 | I100: 0 | J100: 0 | K100: 0 | L100: 0 | M100: 0 | N100: 0
D101: Fair value adjustment heritage assets | E101: 0 | F101: 0 | G101: 0 | H101: 0 | I101: 0 | J101: 0 | K101: 0 | L101: 0 | M101: 0 | N101: 0
D102: Fair value adjustment interest rate swap | E102: 0 | F102: 0 | G102: 0 | H102: 0 | I102: 0 | J102: 0 | K102: 0 | L102: 0 | M102: 0 | N102: 0
D103: Fair value adjustment investment property | E103: 0 | F103: 0 | G103: 0 | H103: 0 | I103: 0 | J103: 0 | K103: 0 | L103: 0 | M103: 0 | N103: 0
D104: Fair value adjustment investments | E104: 0 | F104: 0 | G104: 0 | H104: 0 | I104: 0 | J104: 0 | K104: 0 | L104: 0 | M104: 0 | N104: 0
D105: Fair value adjustment living resources | E105: 0 | F105: 0 | G105: 0 | H105: 0 | I105: 0 | J105: 0 | K105: 0 | L105: 0 | M105: 0 | N105: 0
D106: Foreign exchange | E106: 0 | F106: 0 | G106: 0 | H106: 0 | I106: 0 | J106: 0 | K106: 0 | L106: 0 | M106: 0 | N106: 0
D107: Inventory - fair value assessment | E107: 0 | F107: 0 | G107: 0 | H107: 0 | I107: 0 | J107: 0 | K107: 0 | L107: 0 | M107: 0 | N107: 0
D108: Inventory - increase in net realisable value | E108: 0 | F108: 0 | G108: 0 | H108: 0 | I108: 0 | J108: 0 | K108: 0 | L108: 0 | M108: 0 | N108: 0
D109: Debt Waived | E109: 0 | F109: 0 | G109: 0 | H109: 0 | I109: 0 | J109: 0 | K109: 0 | L109: 0 | M109: 0 | N109: 0
D110: Non-Cash Total | E110: 0 | F110: 0 | G110: 0 | H110: 0 | I110: 0 | J110: 0 | K110: 0 | L110: 0 | M110: 0 | N110: 0
B111: Non-Exchange Revenue / Other Gains Total | E111: 0 | F111: 0 | G111: 0 | H111: 0 | I111: 0 | J111: 0 | K111: 0 | L111: 0 | M111: 0 | N111: 0
A112: 2800 | B112: Revenue / Discontinued Operations | C112: Non-Cash | D112: Discontinued operations | E112: 0 | F112: 0 | G112: 0 | H112: 0 | I112: 0 | J112: 0 | K112: 0 | L112: 0 | M112: 0 | N112: 0
D113: Non-Cash Total | E113: 0 | F113: 0 | G113: 0 | H113: 0 | I113: 0 | J113: 0 | K113: 0 | L113: 0 | M113: 0 | N113: 0
B114: Revenue / Discontinued Operations Total | E114: 0 | F114: 0 | G114: 0 | H114: 0 | I114: 0 | J114: 0 | K114: 0 | L114: 0 | M114: 0 | N114: 0
A115: 3100 | B115: Expenditure / Employee related costs | C115: Non-Cash | D115: Cost capitalised to PPE (credit account) | E115: 0 | F115: 0 | G115: 0 | H115: 0 | I115: 0 | J115: 0 | K115: 0 | L115: 0 | M115: 0 | N115: 0
D116: Creditor accrual - Employee related expenditure accrued through payables from non-exchange transactions | E116: 0 | F116: 0 | G116: 0 | H116: 0 | I116: 0 | J116: 0 | K116: 0 | L116: 0 | M116: 0 | N116: 0
D117: In-kind benefits | E117: 0 | F117: 0 | G117: 0 | H117: 0 | I117: 0 | J117: 0 | K117: 0 | L117: 0 | M117: 0 | N117: 0
D118: In-kind benefits - cost capitalised to PPE (credit account) | E118: 0 | F118: 0 | G118: 0 | H118: 0 | I118: 0 | J118: 0 | K118: 0 | L118: 0 | M118: 0 | N118: 0
D119: Post-retirement benefit: medical | E119: 0 | F119: 0 | G119: 0 | H119: 0 | I119: 0 | J119: 0 | K119: 0 | L119: 0 | M119: 0 | N119: 0
D120: Post-retirement benefit: pension | E120: 0 | F120: 0 | G120: 0 | H120: 0 | I120: 0 | J120: 0 | K120: 0 | L120: 0 | M120: 0 | N120: 0
D121: Non-Cash Total | E121: 0 | F121: 0 | G121: 0 | H121: 0 | I121: 0 | J121: 0 | K121: 0 | L121: 0 | M121: 0 | N121: 0
B122: Expenditure / Employee related costs Total | E122: 0 | F122: 0 | G122: 0 | H122: 0 | I122: 0 | J122: 0 | K122: 0 | L122: 0 | M122: 0 | N122: 0
A123: 3200 | B123: Expenditure / Remuneration of councillors | C123: Non-Cash | D123: Creditor Accrual - councillor remuneration accrued through payables from non-exchange transactions | E123: 0 | F123: 0 | G123: 0 | H123: 0 | I123: 0 | J123: 0 | K123: 0 | L123: 0 | M123: 0 | N123: 0
D124: In-kind benefits to councillors | E124: 0 | F124: 0 | G124: 0 | H124: 0 | I124: 0 | J124: 0 | K124: 0 | L124: 0 | M124: 0 | N124: 0
D125: Use of personal facilities | E125: 0 | F125: 0 | G125: 0 | H125: 0 | I125: 0 | J125: 0 | K125: 0 | L125: 0 | M125: 0 | N125: 0
D126: Non-Cash Total | E126: 0 | F126: 0 | G126: 0 | H126: 0 | I126: 0 | J126: 0 | K126: 0 | L126: 0 | M126: 0 | N126: 0
B127: Expenditure / Remuneration of councillors Total | E127: 0 | F127: 0 | G127: 0 | H127: 0 | I127: 0 | J127: 0 | K127: 0 | L127: 0 | M127: 0 | N127: 0
A128: 3300 | B128: Expenditure / Bulk purchases - electricity | C128: Non-Cash | D128: Creditor accrual - bulk purchases electricity accrued through payables from exchange transactions | E128: 0 | F128: 0 | G128: 0 | H128: 0 | I128: 0 | J128: 0 | K128: 0 | L128: 0 | M128: 0 | N128: 0
D129: Non-Cash Total | E129: 0 | F129: 0 | G129: 0 | H129: 0 | I129: 0 | J129: 0 | K129: 0 | L129: 0 | M129: 0 | N129: 0
B130: Expenditure / Bulk purchases - electricity Total | E130: 0 | F130: 0 | G130: 0 | H130: 0 | I130: 0 | J130: 0 | K130: 0 | L130: 0 | M130: 0 | N130: 0
A131: 3400 | B131: Expenditure / Inventory consumed | C131: Non-Cash | D131: Creditor accrual - bulk purchases water accrued through payables from exchange transactions | E131: 0 | F131: 0 | G131: 0 | H131: 0 | I131: 0 | J131: 0 | K131: 0 | L131: 0 | M131: 0 | N131: 0
D132: Inventory consumed - agricultural | E132: 0 | F132: 0 | G132: 0 | H132: 0 | I132: 0 | J132: 0 | K132: 0 | L132: 0 | M132: 0 | N132: 0
D133: Inventory consumed - capitalisation of inventory consumed | E133: 0 | F133: 0 | G133: 0 | H133: 0 | I133: 0 | J133: 0 | K133: 0 | L133: 0 | M133: 0 | N133: 0
D134: Inventory consumed - finished Goods | E134: 0 | F134: 0 | G134: 0 | H134: 0 | I134: 0 | J134: 0 | K134: 0 | L134: 0 | M134: 0 | N134: 0
D135: Inventory consumed - housing stock | E135: 0 | F135: 0 | G135: 0 | H135: 0 | I135: 0 | J135: 0 | K135: 0 | L135: 0 | M135: 0 | N135: 0
D136: Inventory consumed - land | E136: 0 | F136: 0 | G136: 0 | H136: 0 | I136: 0 | J136: 0 | K136: 0 | L136: 0 | M136: 0 | N136: 0
D137: Inventory consumed - materials and supplies | E137: 0 | F137: 0 | G137: 0 | H137: 0 | I137: 0 | J137: 0 | K137: 0 | L137: 0 | M137: 0 | N137: 0
D138: Inventory consumed - standard rated | E138: 0 | F138: 0 | G138: 0 | H138: 0 | I138: 0 | J138: 0 | K138: 0 | L138: 0 | M138: 0 | N138: 0
D139: Inventory consumed - water | E139: 0 | F139: 0 | G139: 0 | H139: 0 | I139: 0 | J139: 0 | K139: 0 | L139: 0 | M139: 0 | N139: 0
D140: Inventory consumed - zero rated | E140: 0 | F140: 0 | G140: 0 | H140: 0 | I140: 0 | J140: 0 | K140: 0 | L140: 0 | M140: 0 | N140: 0
D141: Non-Cash Total | E141: 0 | F141: 0 | G141: 0 | H141: 0 | I141: 0 | J141: 0 | K141: 0 | L141: 0 | M141: 0 | N141: 0
B142: Expenditure / Inventory consumed Total | E142: 0 | F142: 0 | G142: 0 | H142: 0 | I142: 0 | J142: 0 | K142: 0 | L142: 0 | M142: 0 | N142: 0
A143: 3500 | B143: Expenditure / Debt impairment | C143: Non-Cash | D143: Impairment loss - exchange revenue - electricity | E143: 0 | F143: 0 | G143: 0 | H143: 0 | I143: 0 | J143: 0 | K143: 0 | L143: 0 | M143: 0 | N143: 0
D144: Impairment loss - exchange revenue - other | E144: 0 | F144: 0 | G144: 0 | H144: 0 | I144: 0 | J144: 0 | K144: 0 | L144: 0 | M144: 0 | N144: 0
D145: Impairment loss - exchange revenue - waste management | E145: 0 | F145: 0 | G145: 0 | H145: 0 | I145: 0 | J145: 0 | K145: 0 | L145: 0 | M145: 0 | N145: 0
D146: Impairment loss - exchange revenue - waste water management | E146: 0 | F146: 0 | G146: 0 | H146: 0 | I146: 0 | J146: 0 | K146: 0 | L146: 0 | M146: 0 | N146: 0
D147: Impairment loss - exchange revenue - water | E147: 0 | F147: 0 | G147: 0 | H147: 0 | I147: 0 | J147: 0 | K147: 0 | L147: 0 | M147: 0 | N147: 0
D148: Impairment loss - non-exchange revenue - other | E148: 0 | F148: 0 | G148: 0 | H148: 0 | I148: 0 | J148: 0 | K148: 0 | L148: 0 | M148: 0 | N148: 0
D149: Impairment loss - non-exchange revenue - prop rates | E149: 0 | F149: 0 | G149: 0 | H149: 0 | I149: 0 | J149: 0 | K149: 0 | L149: 0 | M149: 0 | N149: 0
D150: Impairment loss - non-exchange revenue - serv charges | E150: 0 | F150: 0 | G150: 0 | H150: 0 | I150: 0 | J150: 0 | K150: 0 | L150: 0 | M150: 0 | N150: 0
D151: Impairment loss - non-exchange revenue - serv charges - electricity | E151: 0 | F151: 0 | G151: 0 | H151: 0 | I151: 0 | J151: 0 | K151: 0 | L151: 0 | M151: 0 | N151: 0
D152: Impairment loss - non-exchange revenue - serv charges - waste management | E152: 0 | F152: 0 | G152: 0 | H152: 0 | I152: 0 | J152: 0 | K152: 0 | L152: 0 | M152: 0 | N152: 0
D153: Impairment loss - non-exchange revenue - serv charges - waste water management | E153: 0 | F153: 0 | G153: 0 | H153: 0 | I153: 0 | J153: 0 | K153: 0 | L153: 0 | M153: 0 | N153: 0
D154: Impairment loss - non-exchange revenue - serv charges - water | E154: 0 | F154: 0 | G154: 0 | H154: 0 | I154: 0 | J154: 0 | K154: 0 | L154: 0 | M154: 0 | N154: 0
D155: Reversal of Impairment loss - exchange revenue - electricity | E155: 0 | F155: 0 | G155: 0 | H155: 0 | I155: 0 | J155: 0 | K155: 0 | L155: 0 | M155: 0 | N155: 0
D156: Reversal of Impairment loss - non-exchange revenue - other | E156: 0 | F156: 0 | G156: 0 | H156: 0 | I156: 0 | J156: 0 | K156: 0 | L156: 0 | M156: 0 | N156: 0
D157: Reversal of Impairment loss - non-exchange revenue - prop rates | E157: 0 | F157: 0 | G157: 0 | H157: 0 | I157: 0 | J157: 0 | K157: 0 | L157: 0 | M157: 0 | N157: 0
D158: Reversal of Impairment loss - non-exchange revenue - serv charges | E158: 0 | F158: 0 | G158: 0 | H158: 0 | I158: 0 | J158: 0 | K158: 0 | L158: 0 | M158: 0 | N158: 0
D159: Reversal of Impairment loss - non-exchange revenue - serv charges - electricity | E159: 0 | F159: 0 | G159: 0 | H159: 0 | I159: 0 | J159: 0 | K159: 0 | L159: 0 | M159: 0 | N159: 0
D160: Reversal of Impairment loss - non-exchange revenue - serv charges - waste management | E160: 0 | F160: 0 | G160: 0 | H160: 0 | I160: 0 | J160: 0 | K160: 0 | L160: 0 | M160: 0 | N160: 0
D161: Reversal of Impairment loss - non-exchange revenue - serv charges - waste water mangement | E161: 0 | F161: 0 | G161: 0 | H161: 0 | I161: 0 | J161: 0 | K161: 0 | L161: 0 | M161: 0 | N161: 0
D162: Reversal of Impairment loss - non-exchange revenue - serv charges - water | E162: 0 | F162: 0 | G162: 0 | H162: 0 | I162: 0 | J162: 0 | K162: 0 | L162: 0 | M162: 0 | N162: 0
D163: Reversal of Impairment loss - exchange revenue - waste management | E163: 0 | F163: 0 | G163: 0 | H163: 0 | I163: 0 | J163: 0 | K163: 0 | L163: 0 | M163: 0 | N163: 0
D164: Reversal of Impairment loss - exchange revenue - waste water management | E164: 0 | F164: 0 | G164: 0 | H164: 0 | I164: 0 | J164: 0 | K164: 0 | L164: 0 | M164: 0 | N164: 0
D165: Reversal of Impairment loss - exchange revenue - water | E165: 0 | F165: 0 | G165: 0 | H165: 0 | I165: 0 | J165: 0 | K165: 0 | L165: 0 | M165: 0 | N165: 0
D166: Reversal of Impairment loss - exchange revenue - other | E166: 0 | F166: 0 | G166: 0 | H166: 0 | I166: 0 | J166: 0 | K166: 0 | L166: 0 | M166: 0 | N166: 0
D167: Non-Cash Total | E167: 0 | F167: 0 | G167: 0 | H167: 0 | I167: 0 | J167: 0 | K167: 0 | L167: 0 | M167: 0 | N167: 0
B168: Expenditure / Debt impairment Total | E168: 0 | F168: 0 | G168: 0 | H168: 0 | I168: 0 | J168: 0 | K168: 0 | L168: 0 | M168: 0 | N168: 0
A169: 3600 | B169: Expenditure / Depreciation and amortisation | C169: Non-Cash | D169: Amortisation - intangible assets | E169: 0 | F169: 0 | G169: 0 | H169: 0 | I169: 0 | J169: 0 | K169: 0 | L169: 0 | M169: 0 | N169: 0
D170: Depreciation - biological or cultivated assets | E170: 0 | F170: 0 | G170: 0 | H170: 0 | I170: 0 | J170: 0 | K170: 0 | L170: 0 | M170: 0 | N170: 0
D171: Depreciation - heritage assets | E171: 0 | F171: 0 | G171: 0 | H171: 0 | I171: 0 | J171: 0 | K171: 0 | L171: 0 | M171: 0 | N171: 0
D172: Depreciation - intangible assets | E172: 0 | F172: 0 | G172: 0 | H172: 0 | I172: 0 | J172: 0 | K172: 0 | L172: 0 | M172: 0 | N172: 0
D173: Depreciation - investment property | E173: 0 | F173: 0 | G173: 0 | H173: 0 | I173: 0 | J173: 0 | K173: 0 | L173: 0 | M173: 0 | N173: 0
D174: Depreciation - living resources | E174: 0 | F174: 0 | G174: 0 | H174: 0 | I174: 0 | J174: 0 | K174: 0 | L174: 0 | M174: 0 | N174: 0
D175: Depreciation - PPE | E175: 0 | F175: 0 | G175: 0 | H175: 0 | I175: 0 | J175: 0 | K175: 0 | L175: 0 | M175: 0 | N175: 0
D176: Depreciation - Land | E176: 0 | F176: 0 | G176: 0 | H176: 0 | I176: 0 | J176: 0 | K176: 0 | L176: 0 | M176: 0 | N176: 0
D177: Impairment loss - biological or cultivated assets | E177: 0 | F177: 0 | G177: 0 | H177: 0 | I177: 0 | J177: 0 | K177: 0 | L177: 0 | M177: 0 | N177: 0
D178: Impairment loss - heritage assets | E178: 0 | F178: 0 | G178: 0 | H178: 0 | I178: 0 | J178: 0 | K178: 0 | L178: 0 | M178: 0 | N178: 0
D179: Impairment loss - intangible assets | E179: 0 | F179: 0 | G179: 0 | H179: 0 | I179: 0 | J179: 0 | K179: 0 | L179: 0 | M179: 0 | N179: 0
D180: Impairment loss - investment property | E180: 0 | F180: 0 | G180: 0 | H180: 0 | I180: 0 | J180: 0 | K180: 0 | L180: 0 | M180: 0 | N180: 0
D181: Impairment loss - living resources | E181: 0 | F181: 0 | G181: 0 | H181: 0 | I181: 0 | J181: 0 | K181: 0 | L181: 0 | M181: 0 | N181: 0
D182: Impairment loss - PPE | E182: 0 | F182: 0 | G182: 0 | H182: 0 | I182: 0 | J182: 0 | K182: 0 | L182: 0 | M182: 0 | N182: 0
D183: Impairment loss - PPE - construction WIP | E183: 0 | F183: 0 | G183: 0 | H183: 0 | I183: 0 | J183: 0 | K183: 0 | L183: 0 | M183: 0 | N183: 0
D184: Reversal impairment loss - biological or cultivated assets | E184: 0 | F184: 0 | G184: 0 | H184: 0 | I184: 0 | J184: 0 | K184: 0 | L184: 0 | M184: 0 | N184: 0
D185: Reversal impairment loss - investment property | E185: 0 | F185: 0 | G185: 0 | H185: 0 | I185: 0 | J185: 0 | K185: 0 | L185: 0 | M185: 0 | N185: 0
D186: Reversal impairment loss - living resources | E186: 0 | F186: 0 | G186: 0 | H186: 0 | I186: 0 | J186: 0 | K186: 0 | L186: 0 | M186: 0 | N186: 0
D187: Reversal impairment loss - PPE | E187: 0 | F187: 0 | G187: 0 | H187: 0 | I187: 0 | J187: 0 | K187: 0 | L187: 0 | M187: 0 | N187: 0
D188: Reversal impairment loss - PPE - construction WIP | E188: 0 | F188: 0 | G188: 0 | H188: 0 | I188: 0 | J188: 0 | K188: 0 | L188: 0 | M188: 0 | N188: 0
D189: Reversal of impairment loss - heritage assets | E189: 0 | F189: 0 | G189: 0 | H189: 0 | I189: 0 | J189: 0 | K189: 0 | L189: 0 | M189: 0 | N189: 0
D190: Reversal of impairment loss - intangible assets | E190: 0 | F190: 0 | G190: 0 | H190: 0 | I190: 0 | J190: 0 | K190: 0 | L190: 0 | M190: 0 | N190: 0
D191: Non-Cash Total | E191: 0 | F191: 0 | G191: 0 | H191: 0 | I191: 0 | J191: 0 | K191: 0 | L191: 0 | M191: 0 | N191: 0
B192: Expenditure / Depreciation and amortisation Total | E192: 0 | F192: 0 | G192: 0 | H192: 0 | I192: 0 | J192: 0 | K192: 0 | L192: 0 | M192: 0 | N192: 0
A193: 3700 | B193: Expenditure / Interest | C193: Cash | D193: Direct cash payment | E193: 0 | F193: 0 | G193: 0 | H193: 0 | I193: 0 | J193: 0 | K193: 0 | L193: 0 | M193: 0 | N193: 0
D194: Cash Total | E194: 0 | F194: 0 | G194: 0 | H194: 0 | I194: 0 | J194: 0 | K194: 0 | L194: 0 | M194: 0 | N194: 0
C195: Non-Cash | D195: Accrual of finance charges - discounting of financial instruments | E195: 0 | F195: 0 | G195: 0 | H195: 0 | I195: 0 | J195: 0 | K195: 0 | L195: 0 | M195: 0 | N195: 0
D196: Accrual of finance charges - interest costs intercompany/parentsubsidiary transactions | E196: 0 | F196: 0 | G196: 0 | H196: 0 | I196: 0 | J196: 0 | K196: 0 | L196: 0 | M196: 0 | N196: 0
D197: Accrual of finance charges - interest costs long service awards | E197: 0 | F197: 0 | G197: 0 | H197: 0 | I197: 0 | J197: 0 | K197: 0 | L197: 0 | M197: 0 | N197: 0
D198: Accrual of finance charges - interest costs non-current provisions | E198: 0 | F198: 0 | G198: 0 | H198: 0 | I198: 0 | J198: 0 | K198: 0 | L198: 0 | M198: 0 | N198: 0
D199: Non-Cash Total | E199: 0 | F199: 0 | G199: 0 | H199: 0 | I199: 0 | J199: 0 | K199: 0 | L199: 0 | M199: 0 | N199: 0
B200: Expenditure / Interest Total | E200: 0 | F200: 0 | G200: 0 | H200: 0 | I200: 0 | J200: 0 | K200: 0 | L200: 0 | M200: 0 | N200: 0
... 111 more rows

Sheet A5-Capex
A2: =Vdesc -> Vote Description | B2: =head27 -> Ref | C2: =head1b -> 2021/22 | D2: =head1A -> 2022/23 | E2: =Head1 -> 2023/24 | F2: =Head2 -> Current Year 2024/25 | J2: =Head3 -> 2025/26 Medium Term Revenue & Expenditure Framework
A3: R thousand | B3: 1 | C3: =Head5 -> Audited Outcome | D3: =Head5 -> Audited Outcome | E3: =Head5 -> Audited Outcome | F3: =Head6 -> Original Budget | G3: =Head7 -> Adjusted Budget | H3: =Head8 -> Full Year Forecast | I3: =Head5b -> Pre-audit outcome | J3: =Head9 -> Budget Year 2025/26 | K3: =Head10 -> Budget Year +1 2026/27 | L3: =Head11 -> Budget Year +2 2027/28
A4: Capital expenditure - Vote
A5: Multi-year expenditure to be appropriated | B5: 2
A6: =A5A!A6 -> Vote 01 - Executive & Council | C6: =A5A!C6 -> 0 | D6: =A5A!D6 -> 0 | E6: =A5A!E6 -> 0 | F6: =A5A!F6 -> 0 | G6: =A5A!G6 -> 0 | H6: =A5A!H6 -> 0 | I6: =A5A!I6 -> 0 | J6: =A5A!J6 -> 0 | K6: =A5A!K6 -> 0 | L6: =A5A!L6 -> 0
A7: =A5A!A7 -> Vote 02 - Finance And Administration | C7: =A5A!C7 -> 0 | D7: =A5A!D7 -> 0 | E7: =A5A!E7 -> 0 | F7: =A5A!F7 -> 0 | G7: =A5A!G7 -> 0 | H7: =A5A!H7 -> 0 | I7: =A5A!I7 -> 0 | J7: =A5A!J7 -> 0 | K7: =A5A!K7 -> 0 | L7: =A5A!L7 -> 0
A8: =A5A!A8 -> Vote 03 - Community Service | C8: =A5A!C8 -> 0 | D8: =A5A!D8 -> 0 | E8: =A5A!E8 -> 0 | F8: =A5A!F8 -> 0 | G8: =A5A!G8 -> 0 | H8: =A5A!H8 -> 0 | I8: =A5A!I8 -> 0 | J8: =A5A!J8 -> 0 | K8: =A5A!K8 -> 0 | L8: =A5A!L8 -> 0
A9: =A5A!A9 -> Vote 04 - Public And Safety | C9: =A5A!C9 -> 0 | D9: =A5A!D9 -> 0 | E9: =A5A!E9 -> 0 | F9: =A5A!F9 -> 0 | G9: =A5A!G9 -> 0 | H9: =A5A!H9 -> 0 | I9: =A5A!I9 -> 0 | J9: =A5A!J9 -> 0 | K9: =A5A!K9 -> 0 | L9: =A5A!L9 -> 0
A10: =A5A!A10 -> Vote 05 - Waste Management | C10: =A5A!C10 -> 0 | D10: =A5A!D10 -> 0 | E10: =A5A!E10 -> 0 | F10: =A5A!F10 -> 0 | G10: =A5A!G10 -> 0 | H10: =A5A!H10 -> 0 | I10: =A5A!I10 -> 0 | J10: =A5A!J10 -> 18617000 | K10: =A5A!K10 -> 500000 | L10: =A5A!L10 -> 522000
A11: =A5A!A13 -> Vote 06 - Roads Services | C11: =A5A!C13 -> 0 | D11: =A5A!D13 -> 0 | E11: =A5A!E13 -> 0 | F11: =A5A!F13 -> 0 | G11: =A5A!G13 -> 0 | H11: =A5A!H13 -> 0 | I11: =A5A!I13 -> 0 | J11: =A5A!J13 -> 0 | K11: =A5A!K13 -> 0 | L11: =A5A!L13 -> 0
A12: =A5A!A14 -> Vote 07 - Econominc Development And Planning | C12: =A5A!C14 -> 0 | D12: =A5A!D14 -> 0 | E12: =A5A!E14 -> 0 | F12: =A5A!F14 -> 0 | G12: =A5A!G14 -> 0 | H12: =A5A!H14 -> 0 | I12: =A5A!I14 -> 0 | J12: =A5A!J14 -> 0 | K12: =A5A!K14 -> 0 | L12: =A5A!L14 -> 0
A13: ='Org structure'!A9 -> Vote 08 - | C13: =A5A!C15 -> 0 | D13: =A5A!D15 -> 0 | E13: =A5A!E15 -> 0 | F13: =A5A!F15 -> 0 | G13: =A5A!G15 -> 0 | H13: =A5A!H15 -> 0 | I13: =A5A!I15 -> 0 | J13: =A5A!J15 -> 0 | K13: =A5A!K15 -> 0 | L13: =A5A!L15 -> 0
A14: ='Org structure'!A10 -> Vote 09 - | C14: =A5A!C16 -> 0 | D14: =A5A!D16 -> 0 | E14: =A5A!E16 -> 0 | F14: =A5A!F16 -> 0 | G14: =A5A!G16 -> 0 | H14: =A5A!H16 -> 0 | I14: =A5A!I16 -> 0 | J14: =A5A!J16 -> 0 | K14: =A5A!K16 -> 0 | L14: =A5A!L16 -> 0
A15: ='Org structure'!A11 -> Vote 10 - | C15: =A5A!C17 -> 0 | D15: =A5A!D17 -> 0 | E15: =A5A!E17 -> 0 | F15: =A5A!F17 -> 0 | G15: =A5A!G17 -> 0 | H15: =A5A!H17 -> 0 | I15: =A5A!I17 -> 0 | J15: =A5A!J17 -> 0 | K15: =A5A!K17 -> 0 | L15: =A5A!L17 -> 0
A16: ='Org structure'!A12 -> Vote 11 - | C16: =A5A!C18 -> 0 | D16: =A5A!D18 -> 0 | E16: =A5A!E18 -> 0 | F16: =A5A!F18 -> 0 | G16: =A5A!G18 -> 0 | H16: =A5A!H18 -> 0 | I16: =A5A!I18 -> 0 | J16: =A5A!J18 -> 0 | K16: =A5A!K18 -> 0 | L16: =A5A!L18 -> 0
A17: ='Org structure'!A13 -> Vote 12 - | C17: =A5A!C19 -> 0 | D17: =A5A!D19 -> 0 | E17: =A5A!E19 -> 0 | F17: =A5A!F19 -> 0 | G17: =A5A!G19 -> 0 | H17: =A5A!H19 -> 0 | I17: =A5A!I19 -> 0 | J17: =A5A!J19 -> 0 | K17: =A5A!K19 -> 0 | L17: =A5A!L19 -> 0
A18: ='Org structure'!A14 -> Vote 13 - | C18: =A5A!C20 -> 0 | D18: =A5A!D20 -> 0 | E18: =A5A!E20 -> 0 | F18: =A5A!F20 -> 0 | G18: =A5A!G20 -> 0 | H18: =A5A!H20 -> 0 | I18: =A5A!I20 -> 0 | J18: =A5A!J20 -> 0 | K18: =A5A!K20 -> 0 | L18: =A5A!L20 -> 0
A19: ='Org structure'!A15 -> Vote 14 - | C19: =A5A!C21 -> 0 | D19: =A5A!D21 -> 0 | E19: =A5A!E21 -> 0 | F19: =A5A!F21 -> 0 | G19: =A5A!G21 -> 0 | H19: =A5A!H21 -> 0 | I19: =A5A!I21 -> 0 | J19: =A5A!J21 -> 0 | K19: =A5A!K21 -> 0 | L19: =A5A!L21 -> 0
A20: ='Org structure'!A16 -> Vote 15 - Other | C20: =A5A!C22 -> 0 | D20: =A5A!D22 -> 0 | E20: =A5A!E22 -> 0 | F20: =A5A!F22 -> 0 | G20: =A5A!G22 -> 0 | H20: =A5A!H22 -> 0 | I20: =A5A!I22 -> 0 | J20: =A5A!J22 -> 0 | K20: =A5A!K22 -> 0 | L20: =A5A!L22 -> 0
A21: Capital multi-year expenditure sub-total | B21: 7 | C21: =SUM(C6:C20) -> 0 | D21: =SUM(D6:D20) -> 0 | E21: 0 | F21: 0 | G21: 0 | H21: =SUM(H6:H20) -> 0 | I21: 0 | J21: 18617000 | K21: 500000 | L21: 522000
A23: Single-year expenditure to be appropriated | B23: 2
A24: =A5A!A27 -> Vote 01 - Executive & Council | C24: =A5A!C27 -> 0 | D24: =A5A!D27 -> 0 | E24: =A5A!E27 -> 0 | F24: =A5A!F27 -> 0 | G24: =A5A!G27 -> 0 | H24: =A5A!H27 -> 0 | I24: =A5A!I27 -> 0 | J24: =A5A!J27 -> 0 | K24: =A5A!K27 -> 0 | L24: =A5A!L27 -> 0
A25: =A5A!A28 -> Vote 02 - Finance And Administration | C25: =A5A!C28 -> 140969 | D25: =A5A!D28 -> 0 | E25: =A5A!E28 -> 0 | F25: =A5A!F28 -> 0 | G25: =A5A!G28 -> 0 | H25: =A5A!H28 -> 0 | I25: =A5A!I28 -> 0 | J25: =A5A!J28 -> 0 | K25: =A5A!K28 -> 0 | L25: =A5A!L28 -> 0
A26: =A5A!A30 -> Vote 03 - Community Service | C26: =A5A!C30 -> 0 | D26: =A5A!D30 -> 0 | E26: =A5A!E30 -> 0 | F26: =A5A!F30 -> 0 | G26: =A5A!G30 -> 0 | H26: =A5A!H30 -> 0 | I26: =A5A!I30 -> 0 | J26: =A5A!J30 -> 0 | K26: =A5A!K30 -> 0 | L26: =A5A!L30 -> 0
A27: =A5A!A31 -> Vote 04 - Public And Safety | C27: =A5A!C31 -> 7154745.87 | D27: =A5A!D31 -> 108585 | E27: =A5A!E31 -> 209230.94 | F27: =A5A!F31 -> 5600000 | G27: =A5A!G31 -> 1500000 | H27: =A5A!H31 -> 1500000 | I27: =A5A!I31 -> 1306223.58 | J27: =A5A!J31 -> 5700000 | K27: =A5A!K31 -> 11000000 | L27: =A5A!L31 -> 6723000
A28: =A5A!A33 -> Vote 05 - Waste Management | C28: =A5A!C33 -> 531085.55 | D28: =A5A!D33 -> 217091 | E28: =A5A!E33 -> 24979542.16 | F28: =A5A!F33 -> 18689531 | G28: =A5A!G33 -> 88328920 | H28: =A5A!H33 -> 88328920 | I28: =A5A!I33 -> 47472360.57 | J28: =A5A!J33 -> 9300000 | K28: =A5A!K33 -> 22100000 | L28: =A5A!L33 -> 27871400
A29: =A5A!A37 -> Vote 06 - Roads Services | C29: =A5A!C37 -> 246957.29 | D29: =A5A!D37 -> 0 | E29: =A5A!E37 -> 0 | F29: =A5A!F37 -> 250000 | G29: =A5A!G37 -> 350000 | H29: =A5A!H37 -> 350000 | I29: =A5A!I37 -> 148500 | J29: =A5A!J37 -> 0 | K29: =A5A!K37 -> 0 | L29: =A5A!L37 -> 0
A30: =A5A!A40 -> Vote 07 - Econominc Development And Planning | C30: =A5A!C40 -> 0 | D30: =A5A!D40 -> 198000 | E30: =A5A!E40 -> 59389874.32 | F30: =A5A!F40 -> 50369000 | G30: =A5A!G40 -> 55330250 | H30: =A5A!H40 -> 55330250 | I30: =A5A!I40 -> 45305925.09 | J30: =A5A!J40 -> 53347800 | K30: =A5A!K40 -> 59105000 | L30: =A5A!L40 -> 61761000
A31: ='Org structure'!A9 -> Vote 08 - | C31: =A5A!C43 -> 0 | D31: =A5A!D43 -> 0 | E31: =A5A!E43 -> 0 | F31: =A5A!F43 -> 0 | G31: =A5A!G43 -> 0 | H31: =A5A!H43 -> 0 | I31: =A5A!I43 -> 0 | J31: =A5A!J43 -> 0 | K31: =A5A!K43 -> 0 | L31: =A5A!L43 -> 0
A32: ='Org structure'!A10 -> Vote 09 - | C32: =A5A!C44 -> 0 | D32: =A5A!D44 -> 0 | E32: =A5A!E44 -> 0 | F32: =A5A!F44 -> 0 | G32: =A5A!G44 -> 0 | H32: =A5A!H44 -> 0 | I32: =A5A!I44 -> 0 | J32: =A5A!J44 -> 0 | K32: =A5A!K44 -> 0 | L32: =A5A!L44 -> 0
A33: ='Org structure'!A11 -> Vote 10 - | C33: =A5A!C45 -> 0 | D33: =A5A!D45 -> 0 | E33: =A5A!E45 -> 0 | F33: =A5A!F45 -> 0 | G33: =A5A!G45 -> 0 | H33: =A5A!H45 -> 0 | I33: =A5A!I45 -> 0 | J33: =A5A!J45 -> 0 | K33: =A5A!K45 -> 0 | L33: =A5A!L45 -> 0
A34: ='Org structure'!A12 -> Vote 11 - | C34: =A5A!C46 -> 0 | D34: =A5A!D46 -> 0 | E34: =A5A!E46 -> 0 | F34: =A5A!F46 -> 0 | G34: =A5A!G46 -> 0 | H34: =A5A!H46 -> 0 | I34: =A5A!I46 -> 0 | J34: =A5A!J46 -> 0 | K34: =A5A!K46 -> 0 | L34: =A5A!L46 -> 0
A35: ='Org structure'!A13 -> Vote 12 - | C35: =A5A!C47 -> 0 | D35: =A5A!D47 -> 0 | E35: =A5A!E47 -> 0 | F35: =A5A!F47 -> 0 | G35: =A5A!G47 -> 0 | H35: =A5A!H47 -> 0 | I35: =A5A!I47 -> 0 | J35: =A5A!J47 -> 0 | K35: =A5A!K47 -> 0 | L35: =A5A!L47 -> 0
A36: ='Org structure'!A14 -> Vote 13 - | C36: =A5A!C48 -> 0 | D36: =A5A!D48 -> 0 | E36: =A5A!E48 -> 0 | F36: =A5A!F48 -> 0 | G36: =A5A!G48 -> 0 | H36: =A5A!H48 -> 0 | I36: =A5A!I48 -> 0 | J36: =A5A!J48 -> 0 | K36: =A5A!K48 -> 0 | L36: =A5A!L48 -> 0
A37: ='Org structure'!A15 -> Vote 14 - | C37: =A5A!C49 -> 0 | D37: =A5A!D49 -> 0 | E37: =A5A!E49 -> 0 | F37: =A5A!F49 -> 0 | G37: =A5A!G49 -> 0 | H37: =A5A!H49 -> 0 | I37: =A5A!I49 -> 0 | J37: =A5A!J49 -> 0 | K37: =A5A!K49 -> 0 | L37: =A5A!L49 -> 0
A38: ='Org structure'!A16 -> Vote 15 - Other | C38: =A5A!C50 -> 0 | D38: =A5A!D50 -> 0 | E38: =A5A!E50 -> 0 | F38: =A5A!F50 -> 0 | G38: =A5A!G50 -> 0 | H38: =A5A!H50 -> 0 | I38: =A5A!I50 -> 0 | J38: =A5A!J50 -> 0 | K38: =A5A!K50 -> 0 | L38: =A5A!L50 -> 0
A39: Capital single-year expenditure sub-total | C39: =SUM(C24:C38) -> 8073757.71 | D39: =SUM(D24:D38) -> 523676 | E39: 84578647.42 | F39: 74908531 | G39: 145509170 | H39: 145509170 | I39: 94233009.24 | J39: 68347800 | K39: 92205000 | L39: 96355400
A40: Total Capital Expenditure - Vote | C40: =C39+C21 -> 8073757.71 | D40: =D39+D21 -> 523676 | E40: 84578647.42 | F40: 74908531 | G40: 145509170 | H40: 145509170 | I40: 94233009.24 | J40: 86964800 | K40: 92705000 | L40: 96877400
A42: Capital Expenditure - Functional
A43: Governance and administration | C43: =SUM(C44:C46) -> 7295714.87 | D43: =SUM(D44:D46) -> 108585 | E43: 209230.94 | F43: 5600000 | G43: 1500000 | H43: 1500000 | I43: 1306223.58 | J43: 5700000 | K43: 11000000 | L43: 6723000
A44: Executive and council | C44: 140969 | D44: 0 | E44: 0 | F44: 0 | G44: 0 | H44: 0 | I44: 0 | J44: 0 | K44: 0 | L44: 0
A45: Finance and administration | C45: 7154745.87 | D45: 108585 | E45: 209230.94 | F45: 5600000 | G45: 1500000 | H45: 1500000 | I45: 1306223.58 | J45: 5700000 | K45: 11000000 | L45: 6723000
A46: Internal audit
A47: Community and public safety | C47: =SUM(C48:C52) -> 153900 | D47: =SUM(D48:D52) -> 0 | E47: 0 | F47: 0 | G47: 200000 | H47: 200000 | I47: 0 | J47: 0 | K47: 0 | L47: 0
A48: Community and social services
A49: Sport and recreation
A50: Public safety | C50: 153900 | D50: 0 | E50: 0 | F50: 0 | G50: 200000 | H50: 200000 | I50: 0 | J50: 0 | K50: 0 | L50: 0
A51: Housing
A52: Health
A53: Economic and environmental services | C53: =SUM(C54:C56) -> 48000 | D53: =SUM(D54:D56) -> 198000 | E53: 63211634.15 | F53: 66085000 | G53: 114547238 | H53: 114547238 | I53: 86296993.77 | J53: 69064800 | K53: 59105000 | L53: 61761000
A54: Planning and development | C54: 0 | D54: 198000 | E54: 59389874.32 | F54: 50369000 | G54: 55330250 | H54: 55330250 | I54: 45305925.09 | J54: 53347800 | K54: 59105000 | L54: 61761000
A55: Road transport | C55: 48000 | D55: 0 | E55: 3821759.83 | F55: 15716000 | G55: 59216988 | H55: 59216988 | I55: 40991068.68 | J55: 15717000 | K55: 0 | L55: 0
A56: Environmental protection
A57: Trading services | C57: =SUM(C58:C61) -> 576142.84 | D57: =SUM(D58:D61) -> 217091 | E57: 21157782.33 | F57: 3223531 | G57: 29261932 | H57: 29261932 | I57: 6629791.89 | J57: 12200000 | K57: 22600000 | L57: 28393400
A58: Energy sources | C58: 483085.55 | D58: 217091 | E58: 21157782.33 | F58: 2973531 | G58: 29111932 | H58: 29111932 | I58: 6481291.89 | J58: 12200000 | K58: 22600000 | L58: 28393400
A59: Water management
A60: Waste water management
A61: Waste management | C61: 93057.29 | D61: 0 | E61: 0 | F61: 250000 | G61: 150000 | H61: 150000 | I61: 148500 | J61: 0 | K61: 0 | L61: 0
A62: Other
A63: Total Capital Expenditure - Functional | B63: 3 | C63: =C43+C47+C53+C57+C62 -> 8073757.71 | D63: =D43+D47+D53+D57+D62 -> 523676 | E63: 84578647.42 | F63: 74908531 | G63: 145509170 | H63: 145509170 | I63: 94233009.24 | J63: 86964800 | K63: 92705000 | L63: =L43+L47+L53+L57+L62 -> 96877400
A65: Funded by:
A66: National Government | C66: 0 | D66: 0 | E66: 83484427.59 | F66: 65785000 | G66: 125178416 | H66: 125178416 | I66: 86296993.77 | J66: 67564800 | K66: 75105000 | L66: 78484000
A67: Provincial Government
A68: District Municipality
A69: Transfers and subsidies - capital (monetary allocations) (Nat / Prov Departm Agencies, Households, Non-profit Institutions, Private Enterprises, Public Corporatons, Higher Educ Institutions) | C69: 0 | D69: 0 | E69: 0 | F69: 0 | G69: 0 | H69: 0 | I69: 0 | J69: 0 | K69: 0 | L69: 0
A70: Transfers recognised - capital | B70: 4 | C70: =SUM(C66:C69) -> 0 | D70: 0 | E70: 83484427.59 | F70: 65785000 | G70: 125178416 | H70: 125178416 | I70: 86296993.77 | J70: 67564800 | K70: 75105000 | L70: 78484000
A72: Borrowing | B72: 6 | C72: 0 | D72: 0 | E72: 0 | F72: 0 | G72: 0 | H72: 0 | I72: 0 | J72: 0 | K72: 0 | L72: 0
A73: Internally generated funds | C73: 8073757.71 | D73: 523676 | E73: 1094219.83 | F73: 9123531 | G73: 20330754 | H73: 20330754 | I73: 7936015.47 | J73: 19400000 | K73: 17600000 | L73: 18393400
A74: Total Capital Funding | B74: 7 | C74: =+C70+C72+C73 -> 8073757.71 | D74: =+D70+D72+D73 -> 523676 | E74: 84578647.42 | F74: 74908531 | G74: 145509170 | H74: 145509170 | I74: 94233009.24 | J74: 86964800 | K74: 92705000 | L74: 96877400
A75: =head27a -> References
A76: 1. Municipalities may choose to appropriate for capital expenditure for three years or for one year (if one year appropriation projected expenditure required for yr2 and yr3).
A77: 2. Include capital component of PPP unitary payment. Note that capital transfers are only appropriated to municipalities for the budget year
A78: 3. Capital expenditure by functional classification must reconcile to the appropriations by vote
A79: 4. Must reconcile to supporting table SA20 and to Budgeted Financial Performance (revenue and expenditure)
A81: 6. Include finance leases and PPP capital funding component of unitary payment - total borrowing/repayments to reconcile to changes in Table SA17
A82: 7. Total Capital Funding must balance with Total Capital Expenditure
A83: 8. Include any capitalised interest (MFMA section 46) as part of relevant capital budget

Sheet A5A
A1: =muni&" - "&Approve5 -> LIM351 Blouberg - Table A5 Budgeted Capital Expenditure by vote, functional classification and funding
A2: =Vdesc -> Vote Description | B2: =head27 -> Ref | C2: =head1b -> 2021/22 | D2: =head1A -> 2022/23 | E2: =Head1 -> 2023/24 | F2: =Head2 -> Current Year 2024/25 | J2: =Head3 -> 2025/26 Medium Term Revenue & Expenditure Framework | N2: ="Multi-year appropriation for "&Head9& " in the "&Head2A&" Annual Budget" -> Multi-year appropriation for Budget Year 2025/26 in the 2024/25 Annual Budget | R2: ="Multi-year appropriation for "&RIGHT(Head10,7)& " in the "&Head2A&" Annual Budget" -> Multi-year appropriation for 2026/27 in the 2024/25 Annual Budget | V2: New multi-year appropriations (funds for new and existing projects)
A3: R thousand | B3: 1 | C3: =Head5 -> Audited Outcome | D3: =Head5 -> Audited Outcome | E3: =Head5 -> Audited Outcome | F3: =Head6 -> Original Budget | G3: =Head7 -> Adjusted Budget | H3: =Head8 -> Full Year Forecast | I3: =Head5b -> Pre-audit outcome | J3: =Head9 -> Budget Year 2025/26 | K3: =Head10 -> Budget Year +1 2026/27 | L3: =Head11 -> Budget Year +2 2027/28 | N3: ="Appropriation for "&RIGHT(Head9,7) -> Appropriation for 2025/26 | O3: ="Adjustments in "&Head2A -> Adjustments in 2024/25 | P3: ="Downward adjustments for "&RIGHT(Head9,7) -> Downward adjustments for 2025/26 | Q3: Appropriation carried forward | R3: ="Appropriation for "&RIGHT(Head9,7) -> Appropriation for 2025/26 | S3: ="Adjustments in "&Head2A -> Adjustments in 2024/25 | T3: ="Downward adjustments for "&RIGHT(Head9,7) -> Downward adjustments for 2025/26 | U3: Appropriation carried forward | V3: =Head9 -> Budget Year 2025/26 | W3: =Head10 -> Budget Year +1 2026/27 | X3: =Head11 -> Budget Year +2 2027/28
A4: Capital expenditure - Municipal Vote
A5: Multi-year expenditure appropriation | B5: 2
A6: ='Org structure'!A2 -> Vote 01 - Executive & Council | C6: 0 | D6: 0 | E6: 0 | F6: 0 | G6: 0 | H6: 0 | I6: 0 | J6: 0 | K6: 0 | L6: 0 | N6: 0 | O6: 0 | P6: 0 | Q6: 0 | R6: 0 | S6: 0 | T6: 0 | U6: 0 | V6: 0 | W6: 0
A7: ='Org structure'!A3 -> Vote 02 - Finance And Administration | C7: 0 | D7: 0 | E7: 0 | F7: 0 | G7: 0 | H7: 0 | I7: 0 | J7: 0 | K7: 0 | L7: 0 | N7: 0 | O7: 0 | P7: 0 | Q7: 0 | R7: 0 | S7: 0 | T7: 0 | U7: 0 | V7: 0 | W7: 0
A8: ='Org structure'!A4 -> Vote 03 - Community Service | C8: 0 | D8: 0 | E8: 0 | F8: 0 | G8: 0 | H8: 0 | I8: 0 | J8: 0 | K8: 0 | L8: 0 | N8: 0 | O8: 0 | P8: 0 | Q8: 0 | R8: 0 | S8: 0 | T8: 0 | U8: 0 | V8: 0 | W8: 0
A9: ='Org structure'!A5 -> Vote 04 - Public And Safety | C9: 0 | D9: 0 | E9: 0 | F9: 0 | G9: 0 | H9: 0 | I9: 0 | J9: 0 | K9: 0 | L9: 0 | N9: 0 | O9: 0 | P9: 0 | Q9: 0 | R9: 0 | S9: 0 | T9: 0 | U9: 0 | V9: 0 | W9: 0
A10: ='Org structure'!A6 -> Vote 05 - Waste Management | C10: =SUM(C11:C12) -> 0 | D10: 0 | E10: 0 | F10: 0 | G10: 0 | H10: 0 | I10: 0 | J10: 18617000 | K10: 500000 | L10: 522000 | N10: =SUM(N11:N12) -> 18617000 | O10: 0 | P10: 0 | Q10: 18617000 | R10: 500000 | S10: 0 | T10: 0 | U10: 500000 | V10: 0 | W10: 0 | X10: 522000
A11: ='Org structure'!E12 -> 05.2 - Electrical Services | C11: 0 | D11: 0 | E11: 0 | F11: 0 | G11: 0 | H11: 0 | I11: 0 | J11: =Q11+V11 -> 2900000 | K11: =U11+W11 -> 500000 | L11: =X11 -> 522000 | N11: 2900000 | O11: 0 | P11: 0 | Q11: =SUM(N11:P11) -> 2900000 | R11: 500000 | S11: 0 | T11: 0 | U11: =SUM(R11:T11) -> 500000 | V11: 0 | W11: 0 | X11: 522000
A12: ='Org structure'!E15 -> 05.5 - Roads Services | C12: 0 | D12: 0 | E12: 0 | F12: 0 | G12: 0 | H12: 0 | I12: 0 | J12: =Q12+V12 -> 15717000 | K12: =U12+W12 -> 0 | L12: =X12 -> 0 | N12: 15717000 | O12: 0 | P12: 0 | Q12: =SUM(N12:P12) -> 15717000 | R12: 0 | S12: 0 | T12: 0 | U12: =SUM(R12:T12) -> 0 | V12: 0 | W12: 0 | X12: 0
A13: ='Org structure'!A7 -> Vote 06 - Roads Services | C13: 0 | D13: 0 | E13: 0 | F13: 0 | G13: 0 | H13: 0 | I13: 0 | J13: 0 | K13: 0 | L13: 0 | N13: 0 | O13: 0 | P13: 0 | Q13: 0 | R13: 0 | S13: 0 | T13: 0 | U13: 0 | V13: 0 | W13: 0
A14: ='Org structure'!A8 -> Vote 07 - Econominc Development And Planning | C14: 0 | D14: 0 | E14: 0 | F14: 0 | G14: 0 | H14: 0 | I14: 0 | J14: 0 | K14: 0 | L14: 0 | N14: 0 | O14: 0 | P14: 0 | Q14: 0 | R14: 0 | S14: 0 | T14: 0 | U14: 0 | V14: 0 | W14: 0
A15: ='Org structure'!A9 -> Vote 08 - | C15: 0 | D15: 0 | E15: 0 | F15: 0 | G15: 0 | H15: 0 | I15: 0 | J15: 0 | K15: 0 | L15: 0 | N15: 0 | O15: 0 | P15: 0 | Q15: 0 | R15: 0 | S15: 0 | T15: 0 | U15: 0 | V15: 0 | W15: 0 | X15: 0
A16: ='Org structure'!A10 -> Vote 09 - | C16: 0 | D16: 0 | E16: 0 | F16: 0 | G16: 0 | H16: 0 | I16: 0 | J16: 0 | K16: 0 | L16: 0 | N16: 0 | O16: 0 | P16: 0 | Q16: 0 | R16: 0 | S16: 0 | T16: 0 | U16: 0 | V16: 0 | W16: 0 | X16: 0
A17: ='Org structure'!A11 -> Vote 10 - | C17: 0 | D17: 0 | E17: 0 | F17: 0 | G17: 0 | H17: 0 | I17: 0 | J17: 0 | K17: 0 | L17: 0 | N17: 0 | O17: 0 | P17: 0 | Q17: 0 | R17: 0 | S17: 0 | T17: 0 | U17: 0 | V17: 0 | W17: 0 | X17: 0
A18: ='Org structure'!A12 -> Vote 11 - | C18: 0 | D18: 0 | E18: 0 | F18: 0 | G18: 0 | H18: 0 | I18: 0 | J18: 0 | K18: 0 | L18: 0 | N18: 0 | O18: 0 | P18: 0 | Q18: 0 | R18: 0 | S18: 0 | T18: 0 | U18: 0 | V18: 0 | W18: 0 | X18: 0
A19: ='Org structure'!A13 -> Vote 12 - | C19: 0 | D19: 0 | E19: 0 | F19: 0 | G19: 0 | H19: 0 | I19: 0 | J19: 0 | K19: 0 | L19: 0 | N19: 0 | O19: 0 | P19: 0 | Q19: 0 | R19: 0 | S19: 0 | T19: 0 | U19: 0 | V19: 0 | W19: 0 | X19: 0
A20: ='Org structure'!A14 -> Vote 13 - | C20: 0 | D20: 0 | E20: 0 | F20: 0 | G20: 0 | H20: 0 | I20: 0 | J20: 0 | K20: 0 | L20: 0 | N20: 0 | O20: 0 | P20: 0 | Q20: 0 | R20: 0 | S20: 0 | T20: 0 | U20: 0 | V20: 0 | W20: 0 | X20: 0
A21: ='Org structure'!A15 -> Vote 14 - | C21: 0 | D21: 0 | E21: 0 | F21: 0 | G21: 0 | H21: 0 | I21: 0 | J21: 0 | K21: 0 | L21: 0 | N21: 0 | O21: 0 | P21: 0 | Q21: 0 | R21: 0 | S21: 0 | T21: 0 | U21: 0 | V21: 0 | W21: 0 | X21: 0
A22: ='Org structure'!A16 -> Vote 15 - Other | C22: 0 | D22: 0 | E22: 0 | F22: 0 | G22: 0 | H22: 0 | I22: 0 | J22: 0 | K22: 0 | L22: 0 | N22: 0 | O22: 0 | P22: 0 | Q22: 0 | R22: 0 | S22: 0 | T22: 0 | U22: 0 | V22: 0 | W22: 0 | X22: 0
A23: Capital multi-year expenditure sub-total | C23: =C6+C7+C8+C9+C10+C13+C14+C15+C16+C17+C18+C19+C20+C21+C22 -> 0 | D23: 0 | E23: 0 | F23: 0 | G23: 0 | H23: 0 | I23: 0 | J23: 18617000 | K23: 500000 | L23: 522000 | N23: =N6+N7+N8+N9+N10+N13+N14+N15+N16+N17+N18+N19+N20+N21+N22 -> 18617000 | O23: 0 | P23: 0 | Q23: 18617000 | R23: 500000 | S23: 0 | T23: 0 | U23: 500000 | V23: 0 | W23: 0
A25: Capital expenditure - Municipal Vote
A26: Single-year expenditure appropriation | B26: 2
A27: ='Org structure'!A2 -> Vote 01 - Executive & Council | C27: 0 | D27: 0 | E27: 0 | F27: 0 | G27: 0 | H27: 0 | I27: 0 | J27: 0 | K27: 0 | L27: 0
A28: ='Org structure'!A3 -> Vote 02 - Finance And Administration | C28: =SUM(C29:C29) -> 140969 | D28: 0 | E28: 0 | F28: 0 | G28: 0 | H28: 0 | I28: 0 | J28: 0 | K28: 0 | L28: 0
A29: ='Org structure'!E5 -> 02.1 - Municipal Manager | C29: 140969 | D29: 0 | E29: 0 | F29: 0 | G29: 0 | H29: 0 | I29: 0 | J29: 0 | K29: 0 | L29: 0
A30: ='Org structure'!A4 -> Vote 03 - Community Service | C30: 0 | D30: 0 | E30: 0 | F30: 0 | G30: 0 | H30: 0 | I30: 0 | J30: 0 | K30: 0 | L30: 0
A31: ='Org structure'!A5 -> Vote 04 - Public And Safety | C31: =SUM(C32:C32) -> 7154745.87 | D31: 108585 | E31: 209230.94 | F31: 5600000 | G31: 1500000 | H31: 1500000 | I31: 1306223.58 | J31: 5700000 | K31: 11000000 | L31: 6723000
A32: ='Org structure'!E9 -> 04.1 - Corporate Services Administration | C32: 7154745.87 | D32: 108585 | E32: 209230.94 | F32: 5600000 | G32: 1500000 | H32: 1500000 | I32: 1306223.58 | J32: 5700000 | K32: 11000000 | L32: 6723000
A33: ='Org structure'!A6 -> Vote 05 - Waste Management | C33: =SUM(C34:C36) -> 531085.55 | D33: 217091 | E33: 24979542.16 | F33: 18689531 | G33: 88328920 | H33: 88328920 | I33: 47472360.57 | J33: 9300000 | K33: 22100000 | L33: 27871400
A34: ='Org structure'!E11 -> 05.1 - Technical Services Administration | C34: 0 | D34: 0 | E34: 0 | F34: 0 | G34: 0 | H34: 0 | I34: 0 | J34: 6300000 | K34: 5000000 | L34: 10000000
A35: ='Org structure'!E12 -> 05.2 - Electrical Services | C35: 483085.55 | D35: 217091 | E35: 21157782.33 | F35: 2973531 | G35: 29111932 | H35: 29111932 | I35: 6481291.89 | J35: 3000000 | K35: 17100000 | L35: 17871400
A36: ='Org structure'!E15 -> 05.5 - Roads Services | C36: 48000 | D36: 0 | E36: 3821759.83 | F36: 15716000 | G36: 59216988 | H36: 59216988 | I36: 40991068.68 | J36: 0 | K36: 0 | L36: 0
A37: ='Org structure'!A7 -> Vote 06 - Roads Services | C37: =SUM(C38:C39) -> 246957.29 | D37: 0 | E37: 0 | F37: 250000 | G37: 350000 | H37: 350000 | I37: 148500 | J37: 0 | K37: 0 | L37: 0
A38: ='Org structure'!E17 -> 06.1 - Community Services Administration | C38: 93057.29 | D38: 0 | E38: 0 | F38: 250000 | G38: 150000 | H38: 150000 | I38: 148500 | J38: 0 | K38: 0 | L38: 0
A39: ='Org structure'!E18 -> 06.2 - Traffic Services | C39: 153900 | D39: 0 | E39: 0 | F39: 0 | G39: 200000 | H39: 200000 | I39: 0 | J39: 0 | K39: 0 | L39: 0
A40: ='Org structure'!A8 -> Vote 07 - Econominc Development And Planning | C40: =SUM(C41:C42) -> 0 | D40: 198000 | E40: 59389874.32 | F40: 50369000 | G40: 55330250 | H40: 55330250 | I40: 45305925.09 | J40: 53347800 | K40: 59105000 | L40: 61761000
A41: ='Org structure'!E22 -> 07.1 - Project Management Unit | C41: 0 | D41: 0 | E41: 59389874.32 | F41: 49769000 | G41: 54730250 | H41: 54730250 | I41: 45305925.09 | J41: 53347800 | K41: 59105000 | L41: 61761000
A42: ='Org structure'!E23 -> 07.2 - Economic Development And Planning | C42: 0 | D42: 198000 | E42: 0 | F42: 600000 | G42: 600000 | H42: 600000 | I42: 0 | J42: 0 | K42: 0 | L42: 0
A43: ='Org structure'!A9 -> Vote 08 - | C43: 0 | D43: 0 | E43: 0 | F43: 0 | G43: 0 | H43: 0 | I43: 0 | J43: 0 | K43: 0 | L43: 0
A44: ='Org structure'!A10 -> Vote 09 - | C44: 0 | D44: 0 | E44: 0 | F44: 0 | G44: 0 | H44: 0 | I44: 0 | J44: 0 | K44: 0 | L44: 0
A45: ='Org structure'!A11 -> Vote 10 - | C45: 0 | D45: 0 | E45: 0 | F45: 0 | G45: 0 | H45: 0 | I45: 0 | J45: 0 | K45: 0 | L45: 0
A46: ='Org structure'!A12 -> Vote 11 - | C46: 0 | D46: 0 | E46: 0 | F46: 0 | G46: 0 | H46: 0 | I46: 0 | J46: 0 | K46: 0 | L46: 0
A47: ='Org structure'!A13 -> Vote 12 - | C47: 0 | D47: 0 | E47: 0 | F47: 0 | G47: 0 | H47: 0 | I47: 0 | J47: 0 | K47: 0 | L47: 0
A48: ='Org structure'!A14 -> Vote 13 - | C48: 0 | D48: 0 | E48: 0 | F48: 0 | G48: 0 | H48: 0 | I48: 0 | J48: 0 | K48: 0 | L48: 0
A49: ='Org structure'!A15 -> Vote 14 - | C49: 0 | D49: 0 | E49: 0 | F49: 0 | G49: 0 | H49: 0 | I49: 0 | J49: 0 | K49: 0 | L49: 0
A50: ='Org structure'!A16 -> Vote 15 - Other | C50: 0 | D50: 0 | E50: 0 | F50: 0 | G50: 0 | H50: 0 | I50: 0 | J50: 0 | K50: 0 | L50: 0
A51: Capital single-year expenditure sub-total | C51: =C27+C28+C30+C31+C33+C37+C40+C43+C44+C45+C46+C47+C48+C49+C50 -> 8073757.71 | D51: 523676 | E51: 84578647.42 | F51: 74908531 | G51: 145509170 | H51: 145509170 | I51: 94233009.24 | J51: 68347800 | K51: 92205000 | L51: 96355400
A52: Total Capital Expenditure | C52: =C23+C51 -> 8073757.71 | D52: 523676 | E52: 84578647.42 | F52: 74908531 | G52: 145509170 | H52: 145509170 | I52: 94233009.24 | J52: 86964800 | K52: 92705000 | L52: 96877400

Sheet A6-FinPos
A1: =muni&" - "&Approve6 -> LIM351 Blouberg - Table A6 Budgeted Financial Position
A2: =desc -> Description | B2: =head27 -> Ref | C2: =head1b -> 2021/22 | D2: =head1A -> 2022/23 | E2: =Head1 -> 2023/24 | F2: =Head2 -> Current Year 2024/25 | J2: =Head3 -> 2025/26 Medium Term Revenue & Expenditure Framework
A3: R thousand | C3: =Head5 -> Audited Outcome | D3: =Head5 -> Audited Outcome | E3: =Head5 -> Audited Outcome | F3: =Head6 -> Original Budget | G3: =Head7 -> Adjusted Budget | H3: =Head8 -> Full Year Forecast | I3: =Head5b -> Pre-audit outcome | J3: =Head9 -> Budget Year 2025/26 | K3: =Head10 -> Budget Year +1 2026/27 | L3: =Head11 -> Budget Year +2 2027/28
A4: ASSETS
A5: Current assets
A6: Cash and cash equivalents | C6: 89472523.86 | D6: 101842673.1 | E6: 186024594.6 | F6: 204752687 | G6: 264172904 | H6: 264172904 | I6: 133300747.4 | J6: 250044989 | K6: 292257123 | L6: 301431778
A7: Trade and other receivables from exchange transactions | B7: 1 | C7: ='SA3'!C20 -> 10973132.95 | D7: ='SA3'!D20 -> 13515517.22 | E7: ='SA3'!E20 -> 10991355.62 | F7: ='SA3'!F20 -> 4649905 | G7: ='SA3'!G20 -> 4649905 | H7: ='SA3'!H20 -> 4649905 | I7: ='SA3'!I20 -> 25352791.29 | J7: ='SA3'!J20 -> 14802767 | K7: ='SA3'!K20 -> 15190612 | L7: ='SA3'!L20 -> 18857611
A8: Receivables from non-exchange transactions | B8: 1 | C8: ='SA3'!C29 -> -25249958.64 | D8: ='SA3'!D29 -> 18188266.01 | E8: ='SA3'!E29 -> 57755090.03 | F8: ='SA3'!F29 -> 35928077 | G8: ='SA3'!G29 -> 37570931 | H8: ='SA3'!H29 -> 37570931 | I8: ='SA3'!I29 -> 119474709.8 | J8: ='SA3'!J29 -> 94864078 | K8: ='SA3'!K29 -> 99132960 | L8: ='SA3'!L29 -> 101208553
A9: Current portion of non-current receivables
A10: Inventory | B10: 2 | C10: ='SA3'!C132 -> 2603082.85 | D10: ='SA3'!D132 -> 2897361.85 | E10: ='SA3'!E132 -> 1853961.85 | F10: ='SA3'!F132 -> 1853961.85 | G10: ='SA3'!G132 -> 1853961.85 | H10: ='SA3'!H132 -> 1853961.85 | I10: ='SA3'!I132 -> 2276007.91 | J10: ='SA3'!J132 -> 1853961.85 | K10: ='SA3'!K132 -> 1853961.85 | L10: ='SA3'!L132 -> 1853961.85
A11: VAT | C11: 17124383.05 | D11: 21796330.44 | E11: 27744880.44 | F11: 2930660 | G11: 2930660 | H11: 2930660 | I11: 33099663.75 | J11: 27714139 | K11: 28961275 | L11: 29685308
A12: Other current assets | C12: 777797.53 | D12: -938056 | E12: -938056 | F12: 12768748 | G12: 12768748 | H12: 12768748 | I12: -916407.42 | J12: 0 | K12: 0 | L12: 0
A13: Total current assets | C13: =SUM(C6:C12) -> 95700961.6 | D13: =SUM(D6:D12) -> 157302092.7 | E13: 283431826.5 | F13: 262884038.8 | G13: 323947109.9 | H13: 323947109.9 | I13: 312587512.7 | J13: 389279934.9 | K13: 437395931.9 | L13: 453037211.9
A14: Non current assets
A15: Investments | C15: 0 | D15: 4864603.53 | E15: 11399735.57 | F15: 10708603 | G15: 0 | H15: 0 | I15: 8523768.51 | J15: 0 | K15: 0 | L15: 0
A16: Investment property | C16: 8950501.09 | D16: 9433600.01 | E16: 9916000.01 | F16: 9516517 | G16: 9516517 | H16: 9516517 | I16: 9916000.01 | J16: 9916001 | K16: 10362221 | L16: 10621276
A17: Property, plant and equipment | B17: 3 | C17: ='SA3'!C138 -> 977360372.5 | D17: ='SA3'!D138 -> 1062002550 | E17: ='SA3'!E138 -> 1111879283 | F17: ='SA3'!F138 -> 1117417188 | G17: ='SA3'!G138 -> 1188017827 | H17: ='SA3'!H138 -> 1188017827 | I17: ='SA3'!I138 -> 1206112292 | J17: ='SA3'!J138 -> 1422516518 | K17: ='SA3'!K138 -> 1488356546 | L17: ='SA3'!L138 -> 1527420236
A18: Biological assets
A19: Living and non-living resources
A20: Heritage assets | C20: 0 | D20: 0 | E20: 0 | F20: 0 | G20: 0 | H20: 0 | I20: 0 | J20: 0 | K20: 0 | L20: 0
A21: Intangible assets | C21: 240698.21 | D21: 174803.45 | E21: 108884.85 | F21: 783368 | G21: 783368 | H21: 783368 | I21: 108884.85 | J21: 489961 | K21: 512009 | L21: 524811
A22: Trade and other receivables from exchange transactions
A23: Non-current receivables from non-exchange transactions
A24: Other non-current assets
A25: Total non current assets | C25: =SUM(C15:C24) -> 986551571.8 | D25: =SUM(D15:D24) -> 1076475557 | E25: 1133303904 | F25: 1138425676 | G25: 1198317712 | H25: 1198317712 | I25: 1224660946 | J25: 1432922480 | K25: 1499230776 | L25: 1538566323
A26: TOTAL ASSETS | C26: =C13+C25 -> 1082252533 | D26: =D13+D25 -> 1233777649 | E26: =E13+E25 -> 1416735730 | F26: =F13+F25 -> 1401309715 | G26: 1522264822 | H26: 1522264822 | I26: 1537248458 | J26: 1822202415 | K26: 1936626708 | L26: 1991603535
A27: LIABILITIES
A28: Current liabilities
A29: Bank overdraft
A30: Financial liabilities | C30: ='SA3'!C144 -> 0 | D30: ='SA3'!D144 -> 0 | E30: ='SA3'!E144 -> 6537705.17 | F30: ='SA3'!F144 -> 9322788 | G30: ='SA3'!G144 -> 9322788 | H30: ='SA3'!H144 -> 9322788 | I30: ='SA3'!I144 -> 6537705.17 | J30: ='SA3'!J144 -> 15860494 | K30: ='SA3'!K144 -> 16574216 | L30: ='SA3'!L144 -> 16988572
A31: Consumer deposits | C31: -8680.44 | D31: -7959.44 | E31: -7959.44 | F31: 0 | G31: 0 | H31: 0 | I31: -7959.44 | J31: -7960 | K31: -8318 | L31: -8526
A32: Trade and other payables from exchange transactions | B32: 4 | C32: 50691062.78 | D32: 72030665.83 | E32: 98974851.85 | F32: 35483462 | G32: 35483462 | H32: 35483462 | I32: 58963074.94 | J32: 71590274 | K32: 70846833 | L32: 70818008
A33: Trade and other payables from non-exchange transactions | B33: 5 | C33: 24315315.17 | D33: 20158138.51 | E33: 59646502.42 | F33: 23000000 | G33: 23000000 | H33: 23000000 | I33: 21280117.99 | J33: 11135395 | K33: 1186488 | L33: 9775520
A34: Provision | C34: 0 | D34: 0 | E34: 2591202.14 | F34: 2200906 | G34: 2200906 | H34: 2200906 | I34: 2591202.14 | J34: 2591203 | K34: 2707807 | L34: 2775502
A35: VAT | C35: 14482627.86 | D35: 21467660.36 | E35: 30837994.36 | F35: 5300000 | G35: 5300000 | H35: 5300000 | I35: 38193904.05 | J35: 27221645 | K35: 28446620 | L35: 29157785
A36: Other current liabilities
A37: Total current liabilities | C37: =SUM(C29:C36) -> 89480325.37 | D37: =SUM(D29:D36) -> 113648505.3 | E37: 198580296.5 | F37: 75307156 | G37: 75307156 | H37: 75307156 | I37: 127558044.8 | J37: 128391051 | K37: 119753646 | L37: 129506861
A38: Non current liabilities
A39: Financial liabilities | B39: 6 | C39: ='SA3'!C156 -> 774315.49 | D39: ='SA3'!D156 -> 14187045.3 | E39: ='SA3'!E156 -> 2768429.12 | F39: ='SA3'!F156 -> 4864257 | G39: ='SA3'!G156 -> 4864257 | H39: ='SA3'!H156 -> 4864257 | I39: ='SA3'!I156 -> 2768429.12 | J39: ='SA3'!J156 -> 4864257 | K39: ='SA3'!K156 -> 5083150 | L39: ='SA3'!L156 -> 5210228
A40: Provision | B40: 7 | C40: ='SA3'!C170 -> 23221539.68 | D40: ='SA3'!D170 -> 24246164.68 | E40: ='SA3'!E170 -> 16860685 | F40: ='SA3'!F170 -> 22339560 | G40: ='SA3'!G170 -> 22339560 | H40: ='SA3'!H170 -> 22339560 | I40: ='SA3'!I170 -> 16860685 | J40: ='SA3'!J170 -> 16860685 | K40: ='SA3'!K170 -> 17619416 | L40: ='SA3'!L170 -> 18059902
A41: Long term portion of trade payables | C41: ='SA3'!C158 -> 0 | D41: ='SA3'!D158 -> 0 | E41: ='SA3'!E158 -> 0 | F41: ='SA3'!F158 -> 0 | G41: ='SA3'!G158 -> 0 | H41: ='SA3'!H158 -> 0 | I41: ='SA3'!I158 -> 0 | J41: ='SA3'!J158 -> 0 | K41: ='SA3'!K158 -> 0 | L41: ='SA3'!L158 -> 0
A42: Other non-current liabilities
A43: Total non current liabilities | C43: =SUM(C39:C42) -> 23995855.17 | D43: =SUM(D39:D42) -> 38433209.98 | E43: 19629114.12 | F43: 27203817 | G43: 27203817 | H43: 27203817 | I43: 19629114.12 | J43: 21724942 | K43: 22702566 | L43: 23270130
A44: TOTAL LIABILITIES | C44: =C37+C43 -> 113476180.5 | D44: =D37+D43 -> 152081715.2 | E44: =E37+E43 -> 218209410.6 | F44: =F37+F43 -> 102510973 | G44: 102510973 | H44: 102510973 | I44: 147187159 | J44: 150115993 | K44: =K37+K43 -> 142456212 | L44: 152776991
A45: NET ASSETS | C45: =C26-C44 -> 968776352.8 | D45: 1081695934 | E45: 1198526319 | F45: 1298798742 | G45: 1419753849 | H45: 1419753849 | I45: 1390061299 | J45: 1672086422 | K45: 1794170496 | L45: 1838826544
A46: COMMUNITY WEALTH/EQUITY
A47: Accumulated surplus/(deficit) | B47: 8 | C47: ='SA3'!C182 -> 1055035250 | D47: ='SA3'!D182 -> 1077456476 | E47: ='SA3'!E182 -> 1200040776 | F47: ='SA3'!F182 -> 1339316667 | G47: ='SA3'!G182 -> 1457959774 | H47: ='SA3'!H182 -> 1457959774 | I47: ='SA3'!I182 -> 1391582937 | J47: ='SA3'!J182 -> 1652401899 | K47: ='SA3'!K182 -> 1794592356 | L47: ='SA3'!L182 -> 1839297800
A48: Reserves and funds | B48: 9 | C48: ='SA3'!C189 -> 0 | D48: ='SA3'!D189 -> 0 | E48: ='SA3'!E189 -> 0 | F48: ='SA3'!F189 -> 0 | G48: ='SA3'!G189 -> 0 | H48: ='SA3'!H189 -> 0 | I48: ='SA3'!I189 -> 0 | J48: ='SA3'!J189 -> 0 | K48: ='SA3'!K189 -> 0 | L48: ='SA3'!L189 -> 0
A49: Other
A50: TOTAL COMMUNITY WEALTH/EQUITY | B50: 10 | C50: =SUM(C47:C49) -> 1055035250 | D50: =SUM(D47:D49) -> 1077456476 | E50: 1200040776 | F50: 1339316667 | G50: 1457959774 | H50: 1457959774 | I50: 1391582937 | J50: 1652401899 | K50: 1794592356 | L50: 1839297800
A51: =head27a -> References
A52: 1. Detail breakdown in Table SA3 for Trade receivables from Exchange and Non-exchange transactions
A53: 2. Include completed low cost housing to be transferred to beneficiaries within 12 months detail provided in Table SA3
A54: 3. Include 'Construction-work-in-progress' (disclosed separately in annual financial statements) detail in SA3
A55: 4. Detail breakdown in Table SA3.
A56: 5. Detail breakdown in Table SA3.
A57: 6. Detail breakdown in Table SA3.
A58: 7 Detail breakdown in Table SA3.
A59: 8. Detail breakdown in Table SA3.
A60: 9. Detail breakdown in Table SA3. Includes reserves to be funded by statute.
A61: 10. Net assets must balance with Total Community Wealth/Equity

Sheet A6 Inventory
A2: Store Type | B2: Classification | C2: =head1b -> 2021/22 | D2: =head1A -> 2022/23 | E2: =Head1 -> 2023/24 | F2: =Head2 -> Current Year 2024/25 | J2: =Head3 -> 2025/26 Medium Term Revenue & Expenditure Framework
A3: R thousands | C3: =Head5 -> Audited Outcome | D3: =Head5 -> Audited Outcome | E3: =Head5 -> Audited Outcome | F3: =Head6 -> Original Budget | G3: =Head7 -> Adjusted Budget | H3: =Head8 -> Full Year Forecast | I3: =Head5b -> Pre-audit outcome | J3: =Head9 -> Budget Year 2025/26 | K3: =Head10 -> Budget Year +1 2026/27 | L3: =Head11 -> Budget Year +2 2027/28
A4: Agricultural | B4: Opening balance - Agricultural | C4: ='SA3'!C66 -> 0 | D4: ='SA3'!D66 -> 0 | E4: ='SA3'!E66 -> 0 | F4: ='SA3'!F66 -> 0 | G4: ='SA3'!G66 -> 0 | H4: ='SA3'!H66 -> 0 | I4: ='SA3'!I66 -> 0 | J4: ='SA3'!J66 -> 0 | K4: ='SA3'!K66 -> 0 | L4: ='SA3'!L66 -> 0
B5: Acquisitions - Agricultural | C5: ='SA3'!C67 -> 0 | D5: ='SA3'!D67 -> 0 | E5: ='SA3'!E67 -> 0 | F5: ='SA3'!F67 -> 0 | G5: ='SA3'!G67 -> 0 | H5: ='SA3'!H67 -> 0 | I5: ='SA3'!I67 -> 0 | J5: ='SA3'!J67 -> 0 | K5: ='SA3'!K67 -> 0 | L5: ='SA3'!L67 -> 0
B6: Adjustments - Agricultural | C6: ='SA3'!C68 -> 0 | D6: ='SA3'!D68 -> 0 | E6: ='SA3'!E68 -> 0 | F6: ='SA3'!F68 -> 0 | G6: ='SA3'!G68 -> 0 | H6: ='SA3'!H68 -> 0 | I6: ='SA3'!I68 -> 0 | J6: ='SA3'!J68 -> 0 | K6: ='SA3'!K68 -> 0 | L6: ='SA3'!L68 -> 0
B7: Issues - Agricultural | C7: ='SA3'!C69 -> 0 | D7: ='SA3'!D69 -> 0 | E7: ='SA3'!E69 -> 0 | F7: ='SA3'!F69 -> 0 | G7: ='SA3'!G69 -> 0 | H7: ='SA3'!H69 -> 0 | I7: ='SA3'!I69 -> 0 | J7: ='SA3'!J69 -> 0 | K7: ='SA3'!K69 -> 0 | L7: ='SA3'!L69 -> 0
B8: Write Off - Agricultural | C8: ='SA3'!C70 -> 0 | D8: ='SA3'!D70 -> 0 | E8: ='SA3'!E70 -> 0 | F8: ='SA3'!F70 -> 0 | G8: ='SA3'!G70 -> 0 | H8: ='SA3'!H70 -> 0 | I8: ='SA3'!I70 -> 0 | J8: ='SA3'!J70 -> 0 | K8: ='SA3'!K70 -> 0 | L8: ='SA3'!L70 -> 0
B9: Correction of Prior period errors - Agricultural | C9: ='SA3'!C71 -> 0 | D9: ='SA3'!D71 -> 0 | E9: ='SA3'!E71 -> 0 | F9: ='SA3'!F71 -> 0 | G9: ='SA3'!G71 -> 0 | H9: ='SA3'!H71 -> 0 | I9: ='SA3'!I71 -> 0 | J9: ='SA3'!J71 -> 0 | K9: ='SA3'!K71 -> 0 | L9: ='SA3'!L71 -> 0
A10: Agricultural Total | C10: =SUM(C4:C9) -> 0 | D10: =SUM(D4:D9) -> 0 | E10: 0 | F10: 0 | G10: 0 | H10: 0 | I10: 0 | J10: 0 | K10: 0 | L10: 0
A11: Consumables Standard Rated | B11: Opening balance - Consumables Standard Rated | C11: ='SA3'!C76 -> 3448774.35 | D11: ='SA3'!D76 -> 1345372.35 | E11: ='SA3'!E76 -> 1679943.35 | F11: ='SA3'!F76 -> 1107931.35 | G11: ='SA3'!G76 -> 1107931.35 | H11: ='SA3'!H76 -> 1107931.35 | I11: ='SA3'!I76 -> 1107931.35 | J11: ='SA3'!J76 -> 1107931.35 | K11: ='SA3'!K76 -> 1107931.35 | L11: ='SA3'!L76 -> 1107931.35
B12: Acquisitions - Consumables Standard Rated | C12: ='SA3'!C77 -> 4317087 | D12: ='SA3'!D77 -> 14160273 | E12: ='SA3'!E77 -> 2666429 | F12: ='SA3'!F77 -> 5337183 | G12: ='SA3'!G77 -> 5337183 | H12: ='SA3'!H77 -> 5337183 | I12: ='SA3'!I77 -> 3012275 | J12: ='SA3'!J77 -> 2650699 | K12: ='SA3'!K77 -> 3569227 | L12: ='SA3'!L77 -> 3658457
B13: Adjustments - Consumables Standard Rated | C13: ='SA3'!C78 -> -6420489 | D13: ='SA3'!D78 -> -3569119 | E13: ='SA3'!E78 -> -3238441 | F13: ='SA3'!F78 -> -5337183 | G13: ='SA3'!G78 -> -5337183 | H13: ='SA3'!H78 -> -5337183 | I13: ='SA3'!I78 -> -2590228.94 | J13: ='SA3'!J78 -> -2650699 | K13: ='SA3'!K78 -> -3569227 | L13: ='SA3'!L78 -> -3658457
B14: Issues - Consumables Standard Rated | C14: ='SA3'!C79 -> 0 | D14: ='SA3'!D79 -> 0 | E14: ='SA3'!E79 -> 0 | F14: ='SA3'!F79 -> 0 | G14: ='SA3'!G79 -> 0 | H14: ='SA3'!H79 -> 0 | I14: ='SA3'!I79 -> 0 | J14: ='SA3'!J79 -> 0 | K14: ='SA3'!K79 -> 0 | L14: ='SA3'!L79 -> 0
B15: Write Off - Consumables Standard Rated | C15: ='SA3'!C80 -> 0 | D15: ='SA3'!D80 -> -10256583 | E15: ='SA3'!E80 -> 0 | F15: ='SA3'!F80 -> 0 | G15: ='SA3'!G80 -> 0 | H15: ='SA3'!H80 -> 0 | I15: ='SA3'!I80 -> 0 | J15: ='SA3'!J80 -> 0 | K15: ='SA3'!K80 -> 0 | L15: ='SA3'!L80 -> 0
B16: Correction of Prior period errors - Consumables Standard Rated | C16: ='SA3'!C81 -> 0 | D16: ='SA3'!D81 -> 0 | E16: ='SA3'!E81 -> 0 | F16: ='SA3'!F81 -> 0 | G16: ='SA3'!G81 -> 0 | H16: ='SA3'!H81 -> 0 | I16: ='SA3'!I81 -> 0 | J16: ='SA3'!J81 -> 0 | K16: ='SA3'!K81 -> 0 | L16: ='SA3'!L81 -> 0
A17: Consumables Standard Rated Total | C17: =SUM(C11:C16) -> 1345372.35 | D17: =SUM(D11:D16) -> 1679943.35 | E17: 1107931.35 | F17: 1107931.35 | G17: 1107931.35 | H17: 1107931.35 | I17: 1529977.41 | J17: 1107931.35 | K17: 1107931.35 | L17: 1107931.35
A18: Consumables Zero Rated | B18: Opening balance - Consumables Zero Rated | C18: ='SA3'!C84 -> 0 | D18: ='SA3'!D84 -> 0 | E18: ='SA3'!E84 -> 0 | F18: ='SA3'!F84 -> 0 | G18: ='SA3'!G84 -> 0 | H18: ='SA3'!H84 -> 0 | I18: ='SA3'!I84 -> 0 | J18: ='SA3'!J84 -> 0 | K18: ='SA3'!K84 -> 0 | L18: ='SA3'!L84 -> 0
B19: Acquisitions - Consumables Zero Rated | C19: ='SA3'!C85 -> 0 | D19: ='SA3'!D85 -> 0 | E19: ='SA3'!E85 -> 0 | F19: ='SA3'!F85 -> 0 | G19: ='SA3'!G85 -> 0 | H19: ='SA3'!H85 -> 0 | I19: ='SA3'!I85 -> 0 | J19: ='SA3'!J85 -> 0 | K19: ='SA3'!K85 -> 0 | L19: ='SA3'!L85 -> 0
B20: Adjustments - Consumables Zero Rated | C20: ='SA3'!C86 -> 0 | D20: ='SA3'!D86 -> 0 | E20: ='SA3'!E86 -> 0 | F20: ='SA3'!F86 -> 0 | G20: ='SA3'!G86 -> 0 | H20: ='SA3'!H86 -> 0 | I20: ='SA3'!I86 -> 0 | J20: ='SA3'!J86 -> 0 | K20: ='SA3'!K86 -> 0 | L20: ='SA3'!L86 -> 0
B21: Issues - Consumables Zero Rated | C21: ='SA3'!C87 -> 0 | D21: ='SA3'!D87 -> 0 | E21: ='SA3'!E87 -> 0 | F21: ='SA3'!F87 -> 0 | G21: ='SA3'!G87 -> 0 | H21: ='SA3'!H87 -> 0 | I21: ='SA3'!I87 -> 0 | J21: ='SA3'!J87 -> 0 | K21: ='SA3'!K87 -> 0 | L21: ='SA3'!L87 -> 0
B22: Write Off - Consumables Zero Rated | C22: ='SA3'!C88 -> 0 | D22: ='SA3'!D88 -> 0 | E22: ='SA3'!E88 -> 0 | F22: ='SA3'!F88 -> 0 | G22: ='SA3'!G88 -> 0 | H22: ='SA3'!H88 -> 0 | I22: ='SA3'!I88 -> 0 | J22: ='SA3'!J88 -> 0 | K22: ='SA3'!K88 -> 0 | L22: ='SA3'!L88 -> 0
B23: Correction of Prior period errors - Consumables Zero Rated | C23: ='SA3'!C89 -> 0 | D23: ='SA3'!D89 -> 0 | E23: ='SA3'!E89 -> 0 | F23: ='SA3'!F89 -> 0 | G23: ='SA3'!G89 -> 0 | H23: ='SA3'!H89 -> 0 | I23: ='SA3'!I89 -> 0 | J23: ='SA3'!J89 -> 0 | K23: ='SA3'!K89 -> 0 | L23: ='SA3'!L89 -> 0
A24: Consumables Zero Rated Total | C24: =SUM(C18:C23) -> 0 | D24: =SUM(D18:D23) -> 0 | E24: 0 | F24: 0 | G24: 0 | H24: 0 | I24: 0 | J24: 0 | K24: 0 | L24: 0
A25: Finished Goods | B25: Opening balance - Finished Goods | C25: ='SA3'!C102 -> 0 | D25: ='SA3'!D102 -> 0 | E25: ='SA3'!E102 -> 0 | F25: ='SA3'!F102 -> 0 | G25: ='SA3'!G102 -> 0 | H25: ='SA3'!H102 -> 0 | I25: ='SA3'!I102 -> 0 | J25: ='SA3'!J102 -> 0 | K25: ='SA3'!K102 -> 0 | L25: ='SA3'!L102 -> 0
B26: Acquisitions - Finished Goods | C26: ='SA3'!C103 -> 0 | D26: ='SA3'!D103 -> 0 | E26: ='SA3'!E103 -> 0 | F26: ='SA3'!F103 -> 0 | G26: ='SA3'!G103 -> 0 | H26: ='SA3'!H103 -> 0 | I26: ='SA3'!I103 -> 0 | J26: ='SA3'!J103 -> 0 | K26: ='SA3'!K103 -> 0 | L26: ='SA3'!L103 -> 0
B27: Adjustments - Finished Goods | C27: ='SA3'!C104 -> 0 | D27: ='SA3'!D104 -> 0 | E27: ='SA3'!E104 -> 0 | F27: ='SA3'!F104 -> 0 | G27: ='SA3'!G104 -> 0 | H27: ='SA3'!H104 -> 0 | I27: ='SA3'!I104 -> 0 | J27: ='SA3'!J104 -> 0 | K27: ='SA3'!K104 -> 0 | L27: ='SA3'!L104 -> 0
B28: Issues -Finished Goods | C28: ='SA3'!C105 -> 0 | D28: ='SA3'!D105 -> 0 | E28: ='SA3'!E105 -> 0 | F28: ='SA3'!F105 -> 0 | G28: ='SA3'!G105 -> 0 | H28: ='SA3'!H105 -> 0 | I28: ='SA3'!I105 -> 0 | J28: ='SA3'!J105 -> 0 | K28: ='SA3'!K105 -> 0 | L28: ='SA3'!L105 -> 0
B29: Write Off - Finished Goods | C29: ='SA3'!C106 -> 0 | D29: ='SA3'!D106 -> 0 | E29: ='SA3'!E106 -> 0 | F29: ='SA3'!F106 -> 0 | G29: ='SA3'!G106 -> 0 | H29: ='SA3'!H106 -> 0 | I29: ='SA3'!I106 -> 0 | J29: ='SA3'!J106 -> 0 | K29: ='SA3'!K106 -> 0 | L29: ='SA3'!L106 -> 0
B30: Correction of Prior period errors - Finished Goods | C30: ='SA3'!C98 -> 0 | D30: ='SA3'!D98 -> 0 | E30: ='SA3'!E98 -> 0 | F30: ='SA3'!F98 -> 0 | G30: ='SA3'!G98 -> 0 | H30: ='SA3'!H98 -> 0 | I30: ='SA3'!I98 -> 0 | J30: ='SA3'!J98 -> 0 | K30: ='SA3'!K98 -> 0 | L30: ='SA3'!L98 -> 0
A31: Finished Goods Total | C31: =SUM(C25:C30) -> 0 | D31: =SUM(D25:D30) -> 0 | E31: 0 | F31: 0 | G31: 0 | H31: 0 | I31: 0 | J31: 0 | K31: 0 | L31: 0
A32: Housing Stock | B32: Opening balance - Housing Stock | C32: ='SA3'!C117 -> 0 | D32: ='SA3'!D117 -> 0 | E32: ='SA3'!E117 -> 0 | F32: ='SA3'!F117 -> 0 | G32: ='SA3'!G117 -> 0 | H32: ='SA3'!H117 -> 0 | I32: ='SA3'!I117 -> 0 | J32: ='SA3'!J117 -> 0 | K32: ='SA3'!K117 -> 0 | L32: ='SA3'!L117 -> 0
B33: Acquisitions - Housing Stock | C33: ='SA3'!C118 -> 0 | D33: ='SA3'!D118 -> 0 | E33: ='SA3'!E118 -> 0 | F33: ='SA3'!F118 -> 0 | G33: ='SA3'!G118 -> 0 | H33: ='SA3'!H118 -> 0 | I33: ='SA3'!I118 -> 0 | J33: ='SA3'!J118 -> 0 | K33: ='SA3'!K118 -> 0 | L33: ='SA3'!L118 -> 0
B34: Sales - Housing Stock | C34: ='SA3'!C119 -> 0 | D34: ='SA3'!D119 -> 0 | E34: ='SA3'!E119 -> 0 | F34: ='SA3'!F119 -> 0 | G34: ='SA3'!G119 -> 0 | H34: ='SA3'!H119 -> 0 | I34: ='SA3'!I119 -> 0 | J34: ='SA3'!J119 -> 0 | K34: ='SA3'!K119 -> 0 | L34: ='SA3'!L119 -> 0
B35: Transfer - Housing stock | C35: ='SA3'!C120 -> 0 | D35: ='SA3'!D120 -> 0 | E35: ='SA3'!E120 -> 0 | F35: ='SA3'!F120 -> 0 | G35: ='SA3'!G120 -> 0 | H35: ='SA3'!H120 -> 0 | I35: ='SA3'!I120 -> 0 | J35: ='SA3'!J120 -> 0 | K35: ='SA3'!K120 -> 0 | L35: ='SA3'!L120 -> 0
B36: Correction of Prior period errors - Housing stock | C36: ='SA3'!C121 -> 0 | D36: ='SA3'!D121 -> 0 | E36: ='SA3'!E121 -> 0 | F36: ='SA3'!F121 -> 0 | G36: ='SA3'!G121 -> 0 | H36: ='SA3'!H121 -> 0 | I36: ='SA3'!I121 -> 0 | J36: ='SA3'!J121 -> 0 | K36: ='SA3'!K121 -> 0 | L36: ='SA3'!L121 -> 0
A37: Housing Stock Total | C37: =SUM(C32:C36) -> 0 | D37: =SUM(D32:D36) -> 0 | E37: 0 | F37: 0 | G37: 0 | H37: 0 | I37: 0 | J37: 0 | K37: 0 | L37: 0
A38: Land | B38: Opening balance - Land | C38: ='SA3'!C125 -> 1194558.5 | D38: ='SA3'!D125 -> 1257710.5 | E38: ='SA3'!E125 -> 1217418.5 | F38: ='SA3'!F125 -> 746030.5 | G38: ='SA3'!G125 -> 746030.5 | H38: ='SA3'!H125 -> 746030.5 | I38: ='SA3'!I125 -> 746030.5 | J38: ='SA3'!J125 -> 746030.5 | K38: ='SA3'!K125 -> 746030.5 | L38: ='SA3'!L125 -> 746030.5
B39: Acquisitions - Land | C39: ='SA3'!C126 -> 63152 | D39: ='SA3'!D126 -> -40292 | E39: ='SA3'!E126 -> 0 | F39: ='SA3'!F126 -> 0 | G39: ='SA3'!G126 -> 0 | H39: ='SA3'!H126 -> 0 | I39: ='SA3'!I126 -> 0 | J39: ='SA3'!J126 -> 0 | K39: ='SA3'!K126 -> 0 | L39: ='SA3'!L126 -> 0
B40: Sales - land | C40: ='SA3'!C127 -> 0 | D40: ='SA3'!D127 -> 0 | E40: ='SA3'!E127 -> -471388 | F40: ='SA3'!F127 -> 0 | G40: ='SA3'!G127 -> 0 | H40: ='SA3'!H127 -> 0 | I40: ='SA3'!I127 -> 0 | J40: ='SA3'!J127 -> 0 | K40: ='SA3'!K127 -> 0 | L40: ='SA3'!L127 -> 0
B41: Adjustments - Land | C41: ='SA3'!C128 -> 0 | D41: ='SA3'!D128 -> 0 | E41: ='SA3'!E128 -> 0 | F41: ='SA3'!F128 -> 0 | G41: ='SA3'!G128 -> 0 | H41: ='SA3'!H128 -> 0 | I41: ='SA3'!I128 -> 0 | J41: ='SA3'!J128 -> 0 | K41: ='SA3'!K128 -> 0 | L41: ='SA3'!L128 -> 0
B42: Correction of Prior period errors - Land | C42: ='SA3'!C129 -> 0 | D42: ='SA3'!D129 -> 0 | E42: ='SA3'!E129 -> 0 | F42: ='SA3'!F129 -> 0 | G42: ='SA3'!G129 -> 0 | H42: ='SA3'!H129 -> 0 | I42: ='SA3'!I129 -> 0 | J42: ='SA3'!J129 -> 0 | K42: ='SA3'!K129 -> 0 | L42: ='SA3'!L129 -> 0
B43: Transfers - Land | C43: ='SA3'!C130 -> 0 | D43: ='SA3'!D130 -> 0 | E43: ='SA3'!E130 -> 0 | F43: ='SA3'!F130 -> 0 | G43: ='SA3'!G130 -> 0 | H43: ='SA3'!H130 -> 0 | I43: ='SA3'!I130 -> 0 | J43: ='SA3'!J130 -> 0 | K43: ='SA3'!K130 -> 0 | L43: ='SA3'!L130 -> 0
A44: Land Total | C44: =SUM(C38:C43) -> 1257710.5 | D44: =SUM(D38:D43) -> 1217418.5 | E44: 746030.5 | F44: 746030.5 | G44: 746030.5 | H44: 746030.5 | I44: 746030.5 | J44: 746030.5 | K44: 746030.5 | L44: 746030.5
A45: Materials and Supplies | B45: Opening balance - Materials and Supplies | C45: ='SA3'!C102 -> 0 | D45: ='SA3'!D102 -> 0 | E45: ='SA3'!E102 -> 0 | F45: ='SA3'!F102 -> 0 | G45: ='SA3'!G102 -> 0 | H45: ='SA3'!H102 -> 0 | I45: ='SA3'!I102 -> 0 | J45: ='SA3'!J102 -> 0 | K45: ='SA3'!K102 -> 0 | L45: ='SA3'!L102 -> 0
B46: Acquisitions - Materials and Supplies | C46: ='SA3'!C103 -> 0 | D46: ='SA3'!D103 -> 0 | E46: ='SA3'!E103 -> 0 | F46: ='SA3'!F103 -> 0 | G46: ='SA3'!G103 -> 0 | H46: ='SA3'!H103 -> 0 | I46: ='SA3'!I103 -> 0 | J46: ='SA3'!J103 -> 0 | K46: ='SA3'!K103 -> 0 | L46: ='SA3'!L103 -> 0
B47: Adjustments - Materials and Supplies | C47: ='SA3'!C104 -> 0 | D47: ='SA3'!D104 -> 0 | E47: ='SA3'!E104 -> 0 | F47: ='SA3'!F104 -> 0 | G47: ='SA3'!G104 -> 0 | H47: ='SA3'!H104 -> 0 | I47: ='SA3'!I104 -> 0 | J47: ='SA3'!J104 -> 0 | K47: ='SA3'!K104 -> 0 | L47: ='SA3'!L104 -> 0
B48: Issues - Materials and Supplies | C48: ='SA3'!C105 -> 0 | D48: ='SA3'!D105 -> 0 | E48: ='SA3'!E105 -> 0 | F48: ='SA3'!F105 -> 0 | G48: ='SA3'!G105 -> 0 | H48: ='SA3'!H105 -> 0 | I48: ='SA3'!I105 -> 0 | J48: ='SA3'!J105 -> 0 | K48: ='SA3'!K105 -> 0 | L48: ='SA3'!L105 -> 0
B49: Write Off - Materials and Supplies | C49: ='SA3'!C106 -> 0 | D49: ='SA3'!D106 -> 0 | E49: ='SA3'!E106 -> 0 | F49: ='SA3'!F106 -> 0 | G49: ='SA3'!G106 -> 0 | H49: ='SA3'!H106 -> 0 | I49: ='SA3'!I106 -> 0 | J49: ='SA3'!J106 -> 0 | K49: ='SA3'!K106 -> 0 | L49: ='SA3'!L106 -> 0
B50: Correction of Prior period errors - Materials and Supplies | C50: ='SA3'!C107 -> 0 | D50: ='SA3'!D107 -> 0 | E50: ='SA3'!E107 -> 0 | F50: ='SA3'!F107 -> 0 | G50: ='SA3'!G107 -> 0 | H50: ='SA3'!H107 -> 0 | I50: ='SA3'!I107 -> 0 | J50: ='SA3'!J107 -> 0 | K50: ='SA3'!K107 -> 0 | L50: ='SA3'!L107 -> 0
A51: Materials and Supplies Total | C51: =SUM(C45:C50) -> 0 | D51: =SUM(D45:D50) -> 0 | E51: 0 | F51: 0 | G51: 0 | H51: 0 | I51: 0 | J51: 0 | K51: 0 | L51: 0
A52: Water | B52: Opening balance - Water | C52: ='SA3'!C33 -> 0 | D52: ='SA3'!D33 -> 0 | E52: ='SA3'!E33 -> 0 | F52: ='SA3'!F33 -> 0 | G52: ='SA3'!G33 -> 0 | H52: ='SA3'!H33 -> 0 | I52: ='SA3'!I33 -> 0 | J52: ='SA3'!J33 -> 0 | K52: ='SA3'!K33 -> 0 | L52: ='SA3'!L33 -> 0
B53: Acquisitions - Water bulk purchases | C53: ='SA3'!C36 -> 0 | D53: ='SA3'!D36 -> 0 | E53: ='SA3'!E36 -> 0 | F53: ='SA3'!F36 -> 0 | G53: ='SA3'!G36 -> 0 | H53: ='SA3'!H36 -> 0 | I53: ='SA3'!I36 -> 0 | J53: ='SA3'!J36 -> 0 | K53: ='SA3'!K36 -> 0 | L53: ='SA3'!L36 -> 0
B54: Acquisitions - Water natural sources | C54: ='SA3'!C37 -> 0 | D54: ='SA3'!D37 -> 0 | E54: ='SA3'!E37 -> 0 | F54: ='SA3'!F37 -> 0 | G54: ='SA3'!G37 -> 0 | H54: ='SA3'!H37 -> 0 | I54: ='SA3'!I37 -> 0 | J54: ='SA3'!J37 -> 0 | K54: ='SA3'!K37 -> 0 | L54: ='SA3'!L37 -> 0
B55: Acquisitions - Water treatment works | C55: ='SA3'!C35 -> 0 | D55: ='SA3'!D35 -> 0 | E55: ='SA3'!E35 -> 0 | F55: ='SA3'!F35 -> 0 | G55: ='SA3'!G35 -> 0 | H55: ='SA3'!H35 -> 0 | I55: ='SA3'!I35 -> 0 | J55: ='SA3'!J35 -> 0 | K55: ='SA3'!K35 -> 0 | L55: ='SA3'!L35 -> 0
B56: Billed Authorised Consumption:Billed Metered Consumption:Free Basic Water | C56: ='SA3'!C41 -> 0 | D56: ='SA3'!D41 -> 0 | E56: ='SA3'!E41 -> 0 | F56: ='SA3'!F41 -> 0 | G56: ='SA3'!G41 -> 0 | H56: ='SA3'!H41 -> 0 | I56: ='SA3'!I41 -> 0 | J56: ='SA3'!J41 -> 0 | K56: ='SA3'!K41 -> 0 | L56: ='SA3'!L41 -> 0
B57: Billed Authorised Consumption:Billed Metered Consumption:Revenue Water | C57: ='SA3'!C43 -> 0 | D57: ='SA3'!D43 -> 0 | E57: ='SA3'!E43 -> 0 | F57: ='SA3'!F43 -> 0 | G57: ='SA3'!G43 -> 0 | H57: ='SA3'!H43 -> 0 | I57: ='SA3'!I43 -> 0 | J57: ='SA3'!J43 -> 0 | K57: ='SA3'!K43 -> 0 | L57: ='SA3'!L43 -> 0
B58: Billed Authorised Consumption:Billed Metered Consumption:Subsidised Water | C58: ='SA3'!C42 -> 0 | D58: ='SA3'!D42 -> 0 | E58: ='SA3'!E42 -> 0 | F58: ='SA3'!F42 -> 0 | G58: ='SA3'!G42 -> 0 | H58: ='SA3'!H42 -> 0 | I58: ='SA3'!I42 -> 0 | J58: ='SA3'!J42 -> 0 | K58: ='SA3'!K42 -> 0 | L58: ='SA3'!L42 -> 0
B59: Billed Authorised Consumption:Billed Unmetered Consumption:Free Basic Water | C59: ='SA3'!C45 -> 0 | D59: ='SA3'!D45 -> 0 | E59: ='SA3'!E45 -> 0 | F59: ='SA3'!F45 -> 0 | G59: ='SA3'!G45 -> 0 | H59: ='SA3'!H45 -> 0 | I59: ='SA3'!I45 -> 0 | J59: ='SA3'!J45 -> 0 | K59: ='SA3'!K45 -> 0 | L59: ='SA3'!L45 -> 0
B60: Billed Authorised Consumption:Billed Unmetered Consumption:Revenue Water | C60: ='SA3'!C47 -> 0 | D60: ='SA3'!D47 -> 0 | E60: ='SA3'!E47 -> 0 | F60: ='SA3'!F47 -> 0 | G60: ='SA3'!G47 -> 0 | H60: ='SA3'!H47 -> 0 | I60: ='SA3'!I47 -> 0 | J60: ='SA3'!J47 -> 0 | K60: ='SA3'!K47 -> 0 | L60: ='SA3'!L47 -> 0
B61: Billed Authorised Consumption:Billed Unmetered Consumption:Subsidised Water | C61: ='SA3'!C46 -> 0 | D61: ='SA3'!D46 -> 0 | E61: ='SA3'!E46 -> 0 | F61: ='SA3'!F46 -> 0 | G61: ='SA3'!G46 -> 0 | H61: ='SA3'!H46 -> 0 | I61: ='SA3'!I46 -> 0 | J61: ='SA3'!J46 -> 0 | K61: ='SA3'!K46 -> 0 | L61: ='SA3'!L46 -> 0
B62: Data Transfer and Management Errors | C62: ='SA3'!C59 -> 0 | D62: ='SA3'!D59 -> 0 | E62: ='SA3'!E59 -> 0 | F62: ='SA3'!F59 -> 0 | G62: ='SA3'!G59 -> 0 | H62: ='SA3'!H59 -> 0 | I62: ='SA3'!I59 -> 0 | J62: ='SA3'!J59 -> 0 | K62: ='SA3'!K59 -> 0 | L62: ='SA3'!L59 -> 0
B63: Non-revenue Water | C63: ='SA3'!C61 -> 0 | D63: ='SA3'!D61 -> 0 | E63: ='SA3'!E61 -> 0 | F63: ='SA3'!F61 -> 0 | G63: ='SA3'!G61 -> 0 | H63: ='SA3'!H61 -> 0 | I63: ='SA3'!I61 -> 0 | J63: ='SA3'!J61 -> 0 | K63: ='SA3'!K61 -> 0 | L63: ='SA3'!L61 -> 0
B64: Unavoidable Annual Real Losses | C64: ='SA3'!C60 -> 0 | D64: ='SA3'!D60 -> 0 | E64: ='SA3'!E60 -> 0 | F64: ='SA3'!F60 -> 0 | G64: ='SA3'!G60 -> 0 | H64: ='SA3'!H60 -> 0 | I64: ='SA3'!I60 -> 0 | J64: ='SA3'!J60 -> 0 | K64: ='SA3'!K60 -> 0 | L64: ='SA3'!L60 -> 0
B65: Unbilled Authorised Consumption:Unbilled Metered Consumption | C65: ='SA3'!C49 -> 0 | D65: ='SA3'!D49 -> 0 | E65: ='SA3'!E49 -> 0 | F65: ='SA3'!F49 -> 0 | G65: ='SA3'!G49 -> 0 | H65: ='SA3'!H49 -> 0 | I65: ='SA3'!I49 -> 0 | J65: ='SA3'!J49 -> 0 | K65: ='SA3'!K49 -> 0 | L65: ='SA3'!L49 -> 0
B66: Unbilled Authorised Consumption:Unbilled Unmetered Consumption | C66: ='SA3'!C50 -> 0 | D66: ='SA3'!D50 -> 0 | E66: ='SA3'!E50 -> 0 | F66: ='SA3'!F50 -> 0 | G66: ='SA3'!G50 -> 0 | H66: ='SA3'!H50 -> 0 | I66: ='SA3'!I50 -> 0 | J66: ='SA3'!J50 -> 0 | K66: ='SA3'!K50 -> 0 | L66: ='SA3'!L50 -> 0
B67: Water Losses:Apparent Losses:Customer Meter Inaccuracies | C67: ='SA3'!C54 -> 0 | D67: ='SA3'!D54 -> 0 | E67: ='SA3'!E54 -> 0 | F67: ='SA3'!F54 -> 0 | G67: ='SA3'!G54 -> 0 | H67: ='SA3'!H54 -> 0 | I67: ='SA3'!I54 -> 0 | J67: ='SA3'!J54 -> 0 | K67: ='SA3'!K54 -> 0 | L67: ='SA3'!L54 -> 0
B68: Water Losses:Apparent Losses:Unauthorised Consumption | C68: ='SA3'!C53 -> 0 | D68: ='SA3'!D53 -> 0 | E68: ='SA3'!E53 -> 0 | F68: ='SA3'!F53 -> 0 | G68: ='SA3'!G53 -> 0 | H68: ='SA3'!H53 -> 0 | I68: ='SA3'!I53 -> 0 | J68: ='SA3'!J53 -> 0 | K68: ='SA3'!K53 -> 0 | L68: ='SA3'!L53 -> 0
B69: Water Losses:Real Losses:Leakage and Overflows at Storage Tanks/Reservoirs | C69: ='SA3'!C57 -> 0 | D69: ='SA3'!D57 -> 0 | E69: ='SA3'!E57 -> 0 | F69: ='SA3'!F57 -> 0 | G69: ='SA3'!G57 -> 0 | H69: ='SA3'!H57 -> 0 | I69: ='SA3'!I57 -> 0 | J69: ='SA3'!J57 -> 0 | K69: ='SA3'!K57 -> 0 | L69: ='SA3'!L57 -> 0
B70: Water Losses:Real Losses:Leakage on Service Connections up to the point of Customer Meter | C70: ='SA3'!C58 -> 0 | D70: ='SA3'!D58 -> 0 | E70: ='SA3'!E58 -> 0 | F70: ='SA3'!F58 -> 0 | G70: ='SA3'!G58 -> 0 | H70: ='SA3'!H58 -> 0 | I70: ='SA3'!I58 -> 0 | J70: ='SA3'!J58 -> 0 | K70: ='SA3'!K58 -> 0 | L70: ='SA3'!L58 -> 0
B71: Water Losses:Real Losses:Leakage on Transmission and Distribution Mains | C71: ='SA3'!C56 -> 0 | D71: ='SA3'!D56 -> 0 | E71: ='SA3'!E56 -> 0 | F71: ='SA3'!F56 -> 0 | G71: ='SA3'!G56 -> 0 | H71: ='SA3'!H56 -> 0 | I71: ='SA3'!I56 -> 0 | J71: ='SA3'!J56 -> 0 | K71: ='SA3'!K56 -> 0 | L71: ='SA3'!L56 -> 0
B72: Correction of Prior period errors - Water | C72: ='SA3'!C62 -> 0 | D72: ='SA3'!D62 -> 0 | E72: ='SA3'!E62 -> 0 | F72: ='SA3'!F62 -> 0 | G72: ='SA3'!G62 -> 0 | H72: ='SA3'!H62 -> 0 | I72: ='SA3'!I62 -> 0 | J72: ='SA3'!J62 -> 0 | K72: ='SA3'!K62 -> 0 | L72: ='SA3'!L62 -> 0
A73: Water Total | C73: =SUM(C52:C72) -> 0 | D73: =SUM(D52:D72) -> 0 | E73: 0 | F73: 0 | G73: 0 | H73: 0 | I73: 0 | J73: 0 | K73: 0 | L73: 0
A74: Work-in-progress | B74: Opening balance - WIP | C74: ='SA3'!C111 -> 0 | D74: ='SA3'!D111 -> 0 | E74: ='SA3'!E111 -> 0 | F74: ='SA3'!F111 -> 0 | G74: ='SA3'!G111 -> 0 | H74: ='SA3'!H111 -> 0 | I74: ='SA3'!I111 -> 0 | J74: ='SA3'!J111 -> 0 | K74: ='SA3'!K111 -> 0 | L74: ='SA3'!L111 -> 0
B75: Materials - WIP | C75: ='SA3'!C112 -> 0 | D75: 0 | E75: 0 | F75: 0 | G75: 0 | H75: 0 | I75: 0 | J75: 0 | K75: 0 | L75: 0
B76: Transfer - WIP | C76: ='SA3'!C113 -> 0 | D76: ='SA3'!D113 -> 0 | E76: ='SA3'!E113 -> 0 | F76: ='SA3'!F113 -> 0 | G76: ='SA3'!G113 -> 0 | H76: ='SA3'!H113 -> 0 | I76: ='SA3'!I113 -> 0 | J76: ='SA3'!J113 -> 0 | K76: ='SA3'!K113 -> 0 | L76: ='SA3'!L113 -> 0
A77: Work-in-progress Total | C77: =SUM(C74:C76) -> 0 | D77: =SUM(D74:D76) -> 0 | E77: 0 | F77: 0 | G77: 0 | H77: 0 | I77: 0 | J77: 0 | K77: 0 | L77: 0
A78: Grand Total | C78: =+C73+C51+C44+C37+C31+C24+C17+C10 -> 2603082.85 | D78: =+D73+D51+D44+D37+D31+D24+D17+D10 -> 2897361.85 | E78: 1853961.85 | F78: 1853961.85 | G78: 1853961.85 | H78: 1853961.85 | I78: 2276007.91 | J78: 1853961.85 | K78: 1853961.85 | L78: 1853961.85

Sheet A7-CFlow
A1: =muni&" - "&Approve7 -> LIM351 Blouberg - Table A7 Budgeted Cash Flows
A2: =desc -> Description | B2: =head27 -> Ref | C2: =head1b -> 2021/22 | D2: =head1A -> 2022/23 | E2: =Head1 -> 2023/24 | F2: =Head2 -> Current Year 2024/25 | J2: =Head3 -> 2025/26 Medium Term Revenue & Expenditure Framework
A3: R thousand | C3: =Head5 -> Audited Outcome | D3: =Head5 -> Audited Outcome | E3: =Head5 -> Audited Outcome | F3: =Head6 -> Original Budget | G3: =Head7 -> Adjusted Budget | H3: =Head8 -> Full Year Forecast | I3: =Head5b -> Pre-audit outcome | J3: =Head9 -> Budget Year 2025/26 | K3: =Head10 -> Budget Year +1 2026/27 | L3: =Head11 -> Budget Year +2 2027/28
A4: CASH FLOW FROM OPERATING ACTIVITIES
A5: Receipts
A6: Property rates | C6: 57952874.74 | D6: 34034099.25 | E6: 45142804.84 | F6: 32857088 | G6: 31214234 | H6: 31214234 | I6: 9380457.97 | J6: ='SA30'!N5 -> 29030103 | K6: ='SA30'!O5 -> 30336458 | L6: ='SA30'!P5 -> 31497603
A7: Service charges | C7: 31249716.99 | D7: 27637574.28 | E7: 32988116.1 | F7: 57824150 | G7: 58024150 | H7: 58024150 | I7: 34529210.25 | J7: ='SA30'!N6+'SA30'!N7+'SA30'!N8+'SA30'!N9 -> 63465487 | K7: ='SA30'!O6+'SA30'!O7+'SA30'!O8+'SA30'!O9 -> 66595707 | L7: ='SA30'!P6+'SA30'!P7+'SA30'!P8+'SA30'!P9 -> 63038522
A8: Other revenue | C8: 61000042.79 | D8: 192307650.9 | E8: 230097920.3 | F8: 12975762 | G8: 18175313 | H8: 18175313 | I8: 125046523.4 | J8: ='SA30'!N11+'SA30'!N15+'SA30'!N16+'SA30'!N17+'SA30'!N19+'SA30'!N29 -> 15795571 | K8: ='SA30'!O11+'SA30'!O15+'SA30'!O16+'SA30'!O17+'SA30'!O19+'SA30'!O29 -> 16506371 | L8: ='SA30'!P11+'SA30'!P15+'SA30'!P16+'SA30'!P17+'SA30'!P19+'SA30'!P29 -> 16919042
A9: Transfers and Subsidies - Operational | B9: 1 | C9: 213922000 | D9: 70482920.63 | E9: 237376778.1 | F9: 250671000 | G9: 250671000 | H9: 250671000 | I9: 250137000 | J9: ='SA30'!N18 -> 249480000 | K9: ='SA30'!O18 -> 246404000 | L9: ='SA30'!P18 -> 257523000
A10: Transfers and Subsidies - Capital | B10: 1 | C10: 86764000 | D10: 104336000 | E10: 139159000 | F10: 67485000 | G10: 126168202 | H10: 126168202 | I10: 67485000 | J10: ='SA30'!N23+'SA30'!N24 -> 70241000 | K10: ='SA30'!O23+'SA30'!O24 -> 75105000 | L10: ='SA30'!P23+'SA30'!P24 -> 78484000
A11: Interest | C11: 833521.92 | D11: 276960.99 | E11: 3104351.95 | F11: 8063596 | G11: 11063596 | H11: 11063596 | I11: 2043596.23 | J11: ='SA30'!N12+'SA30'!N13 -> 11550395 | K11: ='SA30'!O12+'SA30'!O13 -> 12070162 | L11: ='SA30'!P12+'SA30'!P13 -> 12371917
A12: Dividends | J12: ='SA30'!N14 -> 0 | K12: ='SA30'!O14 -> 0 | L12: ='SA30'!P14 -> 0
A13: Payments
A14: Suppliers and employees | C14: -504192538.2 | D14: -560914469.5 | E14: -568465959.6 | F14: -350217718 | G14: -349240307 | H14: -349240307 | I14: -578409571.9 | J14: =-('SA30'!N35+'SA30'!N36+'SA30'!N38+'SA30'!N39+'SA30'!N40+'SA30'!N41+'SA30'!N44+'SA30'!N50) -> -345366056 | K14: =-('SA30'!O35+'SA30'!O36+'SA30'!O38+'SA30'!O39+'SA30'!O40+'SA30'!O41+'SA30'!O44+'SA30'!O50) -> -347177038 | L14: =-('SA30'!P35+'SA30'!P36+'SA30'!P38+'SA30'!P39+'SA30'!P40+'SA30'!P41+'SA30'!P44+'SA30'!P50) -> -358998217
A15: Interest | J15: =-('SA30'!N37) -> 0 | K15: =-('SA30'!O37) -> 0 | L15: =-('SA30'!P37) -> 0
A16: Transfers and Subsidies | B16: 1 | J16: =-('SA30'!N42+'SA30'!N43) -> 0 | K16: =-('SA30'!O42+'SA30'!O43) -> 0 | L16: =-('SA30'!P42+'SA30'!P43) -> 0
A17: NET CASH FROM/(USED) OPERATING ACTIVITIES | C17: =SUM(C6:C12)+SUM(C14:C16) -> -52470381.77 | D17: =SUM(D6:D12)+SUM(D14:D16) -> -131839263.5 | E17: 119403011.7 | F17: 79658878 | G17: 146076188 | H17: 146076188 | I17: =SUM(I6:I12)+SUM(I14:I16) -> -89787784.06 | J17: 94196500 | K17: 99840660 | L17: 100835867
A19: CASH FLOWS FROM INVESTING ACTIVITIES
A20: Receipts
A21: Proceeds on disposal of PPE | C21: 0 | D21: 0 | E21: 1559867.83 | F21: 0 | G21: 0 | H21: 0 | I21: 0 | J21: ='SA30'!N25 -> 2000000 | K21: ='SA30'!O25 -> 2090000 | L21: ='SA30'!P25 -> 2142250
A23: Decrease (increase) in non-current receivables | J23: ='SA30'!N30 -> 0 | K23: ='SA30'!O30 -> 0 | L23: ='SA30'!P30 -> 0
A24: Decrease (increase) in non-current investments | C24: 0 | D24: -226630.17 | E24: -6308501.87 | F24: 6535132.04 | G24: 0 | H24: 0 | I24: 2875967.06 | J24: ='SA30'!N31 -> 0 | K24: ='SA30'!O31 -> 0 | L24: ='SA30'!P31 -> 0
A25: Payments
A26: Capital assets | C26: -8073757.71 | D26: -523676 | E26: -84578647.42 | F26: -74908531 | G26: -145509170 | H26: -145509170 | I26: -90749042.02 | J26: =-('SA30'!N48) -> -86964800 | K26: =-('SA30'!O48) -> -92705000 | L26: =-('SA30'!P48) -> -96877400
A27: NET CASH FROM/(USED) INVESTING ACTIVITIES | C27: =+C21+C23+C24+C26 -> -8073757.71 | D27: =+D21+D23+D24+D26 -> -750306.17 | E27: -89327281.46 | F27: -68373398.96 | G27: -145509170 | H27: -145509170 | I27: -87873074.96 | J27: -84964800 | K27: -90615000 | L27: -94735150
A29: CASH FLOWS FROM FINANCING ACTIVITIES
A30: Receipts
A31: Short term loans | C31: 0 | D31: 0 | E31: 6537705.17 | F31: 0 | G31: 0 | H31: 0 | I31: 0 | J31: ='SA30'!N26 -> 0 | K31: ='SA30'!O26 -> 0 | L31: ='SA30'!P26 -> 0
A32: Borrowing long term/refinancing | J32: ='SA30'!N27 -> 0 | K32: ='SA30'!O27 -> 0 | L32: ='SA30'!P27 -> 0
A33: Increase (decrease) in consumer deposits | J33: ='SA30'!N28 -> 0 | K33: ='SA30'!O28 -> 0 | L33: ='SA30'!P28 -> 0
A34: Payments
A35: Repayment of borrowing | J35: =-('SA30'!N49) -> 0 | K35: =-('SA30'!O49) -> 0 | L35: =-('SA30'!P49) -> 0
A36: NET CASH FROM/(USED) FINANCING ACTIVITIES | C36: =SUM(C31:C33)+C35 -> 0 | D36: =SUM(D31:D33)+D35 -> 0 | E36: 6537705.17 | F36: 0 | G36: 0 | H36: 0 | I36: 0 | J36: 0 | K36: 0 | L36: 0
A38: NET INCREASE/ (DECREASE) IN CASH HELD | C38: =C17+C27+C36 -> -60544139.48 | D38: -132589569.7 | E38: 36613435.38 | F38: 11285479.04 | G38: 567018 | H38: 567018 | I38: -177660859 | J38: 9231700 | K38: 9225660 | L38: 6100717
A39: Cash/cash equivalents at the year begin: | B39: 2 | C39: 41330602.88 | D39: 84834550.5 | E39: 101842673.1 | F39: 197491091 | G39: 197491091 | H39: 197491091 | I39: 0 | J39: ='SA30'!N54 -> 186024594 | K39: =J40 -> 195256294 | L39: =K40 -> 204481954
A40: Cash/cash equivalents at the year end: | B40: 2 | C40: =C38+C39 -> -19213536.6 | D40: =D38+D39 -> -47755019.15 | E40: =E38+E39 -> 138456108.5 | F40: =F38+F39 -> 208776570 | G40: 198058109 | H40: 198058109 | I40: -177660859 | J40: 195256294 | K40: 204481954 | L40: 210582671
A41: =head27a -> References
A42: 1. Local/District municipalities to include transfers from/to District/Local Municipalities
A43: 2. Cash equivalents includes investments with maturities of 3 months or less
A44: 3. The MTREF is populated directly from SA30.
A45: Total receipts | C45: =SUM(C6:C12)+SUM(C21:C23) -> 451722156.4 | D45: 429075206 | E45: 689428839.1 | F45: 429876596 | G45: 495316495 | H45: 495316495 | I45: 488621787.8 | J45: 441562556 | K45: 449107698 | L45: 461976334
A46: Total payments | C46: =SUM(C14:C16)+C26 -> -512266295.9 | D46: -561438145.5 | E46: -653044607 | F46: -425126249 | G46: -494749477 | H46: -494749477 | I46: -669158613.9 | J46: -432330856 | K46: -439882038 | L46: -455875617
C47: =C45+C46 -> -60544139.48 | D47: =D45+D46 -> -132362939.5 | E47: 36384232.08 | F47: 4750347 | G47: 567018 | H47: 567018 | I47: -180536826.1 | J47: 9231700 | K47: 9225660 | L47: 6100717
A48: Borrowings & investments & c.deposits | C48: =C24+C32+C33 -> 0 | D48: =D24+D32+D33 -> -226630.17 | E48: -6308501.87 | F48: 6535132.04 | G48: 0 | H48: 0 | I48: 2875967.06 | J48: 0 | K48: 0 | L48: 0
A49: =A35 -> Repayment of borrowing | C49: =C35 -> 0 | D49: =D35 -> 0 | E49: 0 | F49: 0 | G49: 0 | H49: 0 | I49: =I35 -> 0 | J49: 0 | K49: 0 | L49: 0
C50: =C47+C48+C49 -> -60544139.48 | D50: =D47+D48+D49 -> -132589569.7 | E50: 30075730.21 | F50: 11285479.04 | G50: 567018 | H50: 567018 | I50: -177660859 | J50: 9231700 | K50: 9225660 | L50: 6100717
C51: =C38-C50 -> 0 | D51: 0 | E51: 6537705.17 | F51: 0 | G51: 0 | H51: 0 | I51: 0 | J51: 0 | K51: 0 | L51: 0

Sheet A8-ResRecon
A1: =muni&" - "&Approve8 -> LIM351 Blouberg - Table A8 Cash backed reserves/accumulated surplus reconciliation
A2: =desc -> Description | B2: =head27 -> Ref | C2: =head1b -> 2021/22 | D2: =head1A -> 2022/23 | E2: =Head1 -> 2023/24 | F2: =Head2 -> Current Year 2024/25 | J2: =Head3 -> 2025/26 Medium Term Revenue & Expenditure Framework
A3: R thousand | C3: =Head5 -> Audited Outcome | D3: =Head5 -> Audited Outcome | E3: =Head5 -> Audited Outcome | F3: =Head6 -> Original Budget | G3: =Head7 -> Adjusted Budget | H3: =Head8 -> Full Year Forecast | I3: =Head5b -> Pre-audit outcome | J3: =Head9 -> Budget Year 2025/26 | K3: =Head10 -> Budget Year +1 2026/27 | L3: =Head11 -> Budget Year +2 2027/28
A4: Cash and investments available
A5: =LEFT('A7-CFlow'!A40,37) -> Cash/cash equivalents at the year end | B5: 1 | C5: ='A7-CFlow'!C40 -> -19213536.6 | D5: ='A7-CFlow'!D40 -> -47755019.15 | E5: ='A7-CFlow'!E40 -> 138456108.5 | F5: ='A7-CFlow'!F40 -> 208776570 | G5: ='A7-CFlow'!G40 -> 198058109 | H5: ='A7-CFlow'!H40 -> 198058109 | I5: ='A7-CFlow'!I40 -> -177660859 | J5: ='A7-CFlow'!J40 -> 195256294 | K5: ='A7-CFlow'!K40 -> 204481954 | L5: ='A7-CFlow'!L40 -> 210582671
A6: Other current investments > 90 days | C6: ='A6-FinPos'!C6-'A6-FinPos'!C29-'A8-ResRecon'!C5 -> 108686060.5 | D6: ='A6-FinPos'!D6-'A6-FinPos'!D29-'A8-ResRecon'!D5 -> 149597692.3 | E6: ='A6-FinPos'!E6-'A6-FinPos'!E29-'A8-ResRecon'!E5 -> 47568486.07 | F6: ='A6-FinPos'!F6-'A6-FinPos'!F29-'A8-ResRecon'!F5 -> -4023883.04 | G6: ='A6-FinPos'!G6-'A6-FinPos'!G29-'A8-ResRecon'!G5 -> 66114795 | H6: ='A6-FinPos'!H6-'A6-FinPos'!H29-'A8-ResRecon'!H5 -> 66114795 | I6: ='A6-FinPos'!I6-'A6-FinPos'!I29-'A8-ResRecon'!I5 -> 310961606.4 | J6: ='A6-FinPos'!J6-'A6-FinPos'!J29-'A8-ResRecon'!J5 -> 54788695 | K6: ='A6-FinPos'!K6-'A6-FinPos'!K29-'A8-ResRecon'!K5 -> 87775169 | L6: ='A6-FinPos'!L6-'A6-FinPos'!L29-'A8-ResRecon'!L5 -> 90849107
A7: Non current Investments | B7: 1 | C7: ='A6-FinPos'!C15 -> 0 | D7: ='A6-FinPos'!D15 -> 4864603.53 | E7: ='A6-FinPos'!E15 -> 11399735.57 | F7: ='A6-FinPos'!F15 -> 10708603 | G7: ='A6-FinPos'!G15 -> 0 | H7: ='A6-FinPos'!H15 -> 0 | I7: ='A6-FinPos'!I15 -> 8523768.51 | J7: ='A6-FinPos'!J15 -> 0 | K7: ='A6-FinPos'!K15 -> 0 | L7: ='A6-FinPos'!L15 -> 0
A8: Cash and investments available: | C8: =SUM(C5:C7) -> 89472523.86 | D8: =SUM(D5:D7) -> 106707276.7 | E8: 197424330.2 | F8: 215461290 | G8: 264172904 | H8: 264172904 | I8: 141824515.9 | J8: 250044989 | K8: 292257123 | L8: 301431778
A10: Application of cash and investments
A11: Unspent conditional transfers | C11: ='SA3'!C149 -> 24315315.17 | D11: ='SA3'!D149 -> 20158138.51 | E11: ='SA3'!E149 -> 59646502.42 | F11: ='SA3'!F149 -> 23000000 | G11: ='SA3'!G149 -> 23000000 | H11: ='SA3'!H149 -> 23000000 | I11: ='SA3'!I149 -> 21280117.99 | J11: ='SA3'!J149 -> 11135395 | K11: ='SA3'!K149 -> 1186488 | L11: ='SA3'!L149 -> 9775520
A12: Unspent borrowing
A13: Statutory requirements | B13: 2 | C13: -2641755.19 | D13: -328670.08 | E13: 3093113.92 | F13: 2369340 | G13: 2369340 | H13: 2369340 | I13: 5094240.3 | J13: -492494 | K13: -514655 | L13: -527523
A14: Other working capital requirements | B14: 3 | C14: =-C34 -> 59382062.78 | D14: =-D34 -> 41420665.83 | E14: 58892851.85 | F14: =-F34 -> 22669462 | G14: 27292462 | H14: 27292462 | I14: 10267074.94 | J14: -6643726 | K14: -10926167 | L14: -11502992
A15: Other provisions | C15: 0 | D15: 0 | E15: 2591202.14 | F15: 2200906 | G15: 2200906 | H15: 2200906 | I15: 2591202.14 | J15: 2591203 | K15: 2707807 | L15: 2775502
A16: Long term investments committed | B16: 4 | C16: =C44 -> 0 | D16: =D44 -> 0 | E16: 0 | F16: 0 | G16: 0 | H16: 0 | I16: 0 | J16: 0 | K16: 0 | L16: 0
A17: Reserves to be backed by cash/investments | B17: 5
A18: Total Application of cash and investments: | C18: =SUM(C11:C17) -> 81055622.76 | D18: =SUM(D11:D17) -> 61250134.26 | E18: 124223670.3 | F18: 50239708 | G18: 54862708 | H18: 54862708 | I18: 39232635.37 | J18: 6590378 | K18: -7546527 | L18: 520507
A19: Surplus(shortfall) - Excluding Non-Current Creditors Trf to Debt Relief Benefits | C19: =C8-C18 -> 8416901.1 | D19: =D8-D18 -> 45457142.41 | E19: 73200659.83 | F19: 165221582 | G19: 209310196 | H19: 209310196 | I19: 102591880.6 | J19: 243454611 | K19: 299803650 | L19: 300911271
A20: Creditors transferred to Debt Relief - Non-Current portion | C20: ='SA3'!C162 -> 0 | D20: ='SA3'!D162 -> 0 | E20: ='SA3'!E162 -> 0 | F20: ='SA3'!F162 -> 0 | G20: ='SA3'!G162 -> 0 | H20: ='SA3'!H162 -> 0 | I20: ='SA3'!I162 -> 0 | J20: ='SA3'!J162 -> 0 | K20: ='SA3'!K162 -> 0 | L20: ='SA3'!L162 -> 0
A21: Surplus(shortfall) - Including Non-Current Creditors Trf to Debt Relief Benefits | C21: =SUM(C19:C20) -> 8416901.1 | D21: =SUM(D19:D20) -> 45457142.41 | E21: 73200659.83 | F21: 165221582 | G21: 209310196 | H21: 209310196 | I21: 102591880.6 | J21: 243454611 | K21: 299803650 | L21: 300911271
A22: =head27a -> References
A23: 1. Must reconcile with Budgeted Cash Flows
A24: 2. For example: VAT, taxation
A25: 3. Council approval for policy required - include sufficient working capital (e.g. allowing for a % of current debtors > 90 days as uncollectable)
A26: 4. For example: sinking fund requirements for borrowing
A27: 5. Council approval required for each reserve created and basis of cash backing of reserves - Total Reserves to be backed by cash/investments excl Valuation reserve
A30: Other working capital requirements
A31: Debtors | C31: =IF(ISERROR(ROUND(C37*C38,-3)),0,(ROUND(C37*C38,-3))) -> -8691000 | D31: =IF(ISERROR(ROUND(D37*D38,-3)),0,(ROUND(D37*D38,-3))) -> 30610000 | E31: 40082000 | F31: 12814000 | G31: 8191000 | H31: 8191000 | I31: 48696000 | J31: 78234000 | K31: 81773000 | L31: 82321000
A33: Creditors due | C33: ='SA3'!C147+'SA3'!C148 -> 50691062.78 | D33: ='SA3'!D147+'SA3'!D148 -> 72030665.83 | E33: ='SA3'!E147+'SA3'!E148 -> 98974851.85 | F33: ='SA3'!F147+'SA3'!F148 -> 35483462 | G33: ='SA3'!G147+'SA3'!G148 -> 35483462 | H33: ='SA3'!H147+'SA3'!H148 -> 35483462 | I33: ='SA3'!I147+'SA3'!I148 -> 58963074.94 | J33: ='SA3'!J147+'SA3'!J148 -> 71590274 | K33: ='SA3'!K147+'SA3'!K148 -> 70846833 | L33: ='SA3'!L147+'SA3'!L148 -> 70818008
A34: Total | C34: =C31-C33 -> -59382062.78 | D34: =D31-D33 -> -41420665.83 | E34: -58892851.85 | F34: -22669462 | G34: -27292462 | H34: -27292462 | I34: -10267074.94 | J34: 6643726 | K34: 10926167 | L34: 11502992
A36: Debtors collection assumptions
A37: Balance outstanding - debtors | C37: ='A6-FinPos'!C7+'A6-FinPos'!C8+'A6-FinPos'!C9+'A6-FinPos'!C22+'A6-FinPos'!C23 -> -14276825.69 | D37: ='A6-FinPos'!D7+'A6-FinPos'!D8+'A6-FinPos'!D9+'A6-FinPos'!D22+'A6-FinPos'!D23 -> 31703783.23 | E37: ='A6-FinPos'!E7+'A6-FinPos'!E8+'A6-FinPos'!E9+'A6-FinPos'!E22+'A6-FinPos'!E23 -> 68746445.65 | F37: ='A6-FinPos'!F7+'A6-FinPos'!F8+'A6-FinPos'!F9+'A6-FinPos'!F22+'A6-FinPos'!F23 -> 40577982 | G37: ='A6-FinPos'!G7+'A6-FinPos'!G8+'A6-FinPos'!G9+'A6-FinPos'!G22+'A6-FinPos'!G23 -> 42220836 | H37: ='A6-FinPos'!H7+'A6-FinPos'!H8+'A6-FinPos'!H9+'A6-FinPos'!H22+'A6-FinPos'!H23 -> 42220836 | I37: ='A6-FinPos'!I7+'A6-FinPos'!I8+'A6-FinPos'!I9+'A6-FinPos'!I22+'A6-FinPos'!I23 -> 144827501.1 | J37: ='A6-FinPos'!J7+'A6-FinPos'!J8+'A6-FinPos'!J9+'A6-FinPos'!J22+'A6-FinPos'!J23 -> 109666845 | K37: ='A6-FinPos'!K7+'A6-FinPos'!K8+'A6-FinPos'!K9+'A6-FinPos'!K22+'A6-FinPos'!K23 -> 114323572 | L37: ='A6-FinPos'!L7+'A6-FinPos'!L8+'A6-FinPos'!L9+'A6-FinPos'!L22+'A6-FinPos'!L23 -> 120066164
A38: Estimate of debtors collection rate | C38: =IF(ISERROR('SA10'!D10),0,('SA10'!D10)) -> 0.6087326912 | D38: =IF(ISERROR('SA10'!E10),0,('SA10'!E10)) -> 0.9654852755 | E38: =IF(ISERROR('SA10'!F10),0,('SA10'!F10)) -> 0.5830376301 | F38: =IF(ISERROR('SA10'!G10),0,('SA10'!G10)) -> 0.315779959 | G38: =IF(ISERROR('SA10'!H10),0,('SA10'!H10)) -> 0.1940114069 | H38: =IF(ISERROR('SA10'!I10),0,('SA10'!I10)) -> 0.1940114069 | I38: =IF(ISERROR('SA10'!J10),0,('SA10'!J10)) -> 0.336233275 | J38: =IF(ISERROR('SA10'!K10),0,('SA10'!K10)) -> 0.7133768182 | K38: =IF(ISERROR('SA10'!L10),0,('SA10'!L10)) -> 0.7152801294 | L38: =IF(ISERROR('SA10'!M10),0,('SA10'!M10)) -> 0.6856332746
K41: `
A42: =A16 -> Long term investments committed
A43: Balance (Insert description; eg sinking fund)
C44: =SUM(C43:C43) -> 0 | D44: 0 | E44: 0 | F44: 0 | G44: 0 | H44: 0 | I44: 0 | J44: 0 | K44: 0 | L44: 0
A45: =A17 -> Reserves to be backed by cash/investments
A46: Housing Development Fund | C46: ='SA3'!C184 -> 0 | D46: ='SA3'!D184 -> 0 | E46: ='SA3'!E184 -> 0 | F46: ='SA3'!F184 -> 0 | G46: ='SA3'!G184 -> 0 | H46: ='SA3'!H184 -> 0 | I46: ='SA3'!I184 -> 0 | J46: ='SA3'!J184 -> 0 | K46: ='SA3'!K184 -> 0 | L46: ='SA3'!L184 -> 0
A47: Capital replacement | C47: ='SA3'!C185 -> 0 | D47: ='SA3'!D185 -> 0 | E47: ='SA3'!E185 -> 0 | F47: ='SA3'!F185 -> 0 | G47: ='SA3'!G185 -> 0 | H47: ='SA3'!H185 -> 0 | I47: ='SA3'!I185 -> 0 | J47: ='SA3'!J185 -> 0 | K47: ='SA3'!K185 -> 0 | L47: ='SA3'!L185 -> 0
A48: Self-insurance | C48: ='SA3'!C186 -> 0 | D48: ='SA3'!D186 -> 0 | E48: ='SA3'!E186 -> 0 | F48: ='SA3'!F186 -> 0 | G48: ='SA3'!G186 -> 0 | H48: ='SA3'!H186 -> 0 | I48: ='SA3'!I186 -> 0 | J48: ='SA3'!J186 -> 0 | K48: ='SA3'!K186 -> 0 | L48: ='SA3'!L186 -> 0
A49: Compensation for Occupational Injuries and Diseases
A50: Employee Benefit reserve
A51: Non-current Provisions reserve
A52: Valuation roll reserve
A53: Investment in associate account
A54: Capitalisation
B55: 6 | C55: =SUM(C46:C54) -> 0 | D55: =SUM(D46:D54) -> 0 | E55: 0 | F55: 0 | G55: 0 | H55: 0 | I55: 0 | J55: 0 | K55: 0 | L55: 0
A56: Note:
A57: 6. Above reserves do not include Revaluation reserve. Revaluation reserve not required to be cash backed

Sheet A9-Asset
A1: =muni&" - "&Approve9 -> LIM351 Blouberg - Table A9 Asset Management
A2: =desc -> Description | B2: =head27 -> Ref | C2: =head1b -> 2021/22 | D2: =head1A -> 2022/23 | E2: =Head1 -> 2023/24 | F2: =Head2 -> Current Year 2024/25 | I2: =Head3 -> 2025/26 Medium Term Revenue & Expenditure Framework
A3: R thousand | C3: =Head5 -> Audited Outcome | D3: =Head5 -> Audited Outcome | E3: =Head5 -> Audited Outcome | F3: =Head6 -> Original Budget | G3: =Head7 -> Adjusted Budget | H3: =Head8 -> Full Year Forecast | I3: =Head9 -> Budget Year 2025/26 | J3: =Head10 -> Budget Year +1 2026/27 | K3: =Head11 -> Budget Year +2 2027/28
A4: CAPITAL EXPENDITURE
A5: Total New Assets | B5: 1 | C5: =C15+C18+C19+C22+C25+C26+SUM(C29:C35)+C38 -> 7980700.07 | D5: =D15+D18+D19+D22+D25+D26+SUM(D29:D35)+D38 -> 523676 | E5: 83740756.64 | F5: 58092531 | G5: 138521026 | H5: 138521026 | I5: 77664800 | J5: 86605000 | K5: 85729000
A6: Roads Infrastructure | C6: =SA34a!C7 -> 0 | D6: =SA34a!D7 -> 0 | E6: =SA34a!E7 -> 61048681.08 | F6: =SA34a!F7 -> 39776144 | G6: =SA34a!G7 -> 108943694 | H6: =SA34a!H7 -> 108943694 | I6: =SA34a!I7 -> 59610396 | J6: =SA34a!J7 -> 59105000 | K6: =SA34a!K7 -> 61761000
A7: Storm water Infrastructure | C7: =SA34a!C12 -> 0 | D7: =SA34a!D12 -> 0 | E7: =SA34a!E12 -> 0 | F7: =SA34a!F12 -> 0 | G7: =SA34a!G12 -> 0 | H7: =SA34a!H12 -> 0 | I7: =SA34a!I12 -> 0 | J7: =SA34a!J12 -> 0 | K7: =SA34a!K12 -> 0
A8: Electrical Infrastructure | C8: =SA34a!C16 -> 483085.55 | D8: =SA34a!D16 -> 217091 | E8: =SA34a!E16 -> 20272793.44 | F8: =SA34a!F16 -> 2073531 | G8: =SA34a!G16 -> 17719802 | H8: =SA34a!H16 -> 17719802 | I8: =SA34a!I16 -> 0 | J8: =SA34a!J16 -> 16000000 | K8: =SA34a!K16 -> 16723000
A9: Water Supply Infrastructure | C9: =SA34a!C26 -> 0 | D9: =SA34a!D26 -> 0 | E9: =SA34a!E26 -> 0 | F9: =SA34a!F26 -> 0 | G9: =SA34a!G26 -> 0 | H9: =SA34a!H26 -> 0 | I9: =SA34a!I26 -> 0 | J9: =SA34a!J26 -> 0 | K9: =SA34a!K26 -> 0
A10: Sanitation Infrastructure | C10: =SA34a!C37 -> 0 | D10: =SA34a!D37 -> 0 | E10: =SA34a!E37 -> 0 | F10: =SA34a!F37 -> 0 | G10: =SA34a!G37 -> 0 | H10: =SA34a!H37 -> 0 | I10: =SA34a!I37 -> 0 | J10: =SA34a!J37 -> 0 | K10: =SA34a!K37 -> 0
A11: Solid Waste Infrastructure | C11: =SA34a!C44 -> 0 | D11: =SA34a!D44 -> 0 | E11: =SA34a!E44 -> 0 | F11: =SA34a!F44 -> 0 | G11: =SA34a!G44 -> 0 | H11: =SA34a!H44 -> 0 | I11: =SA34a!I44 -> 0 | J11: =SA34a!J44 -> 0 | K11: =SA34a!K44 -> 0
A12: Rail Infrastructure | C12: =SA34a!C52 -> 0 | D12: =SA34a!D52 -> 0 | E12: =SA34a!E52 -> 0 | F12: =SA34a!F52 -> 0 | G12: =SA34a!G52 -> 0 | H12: =SA34a!H52 -> 0 | I12: =SA34a!I52 -> 0 | J12: =SA34a!J52 -> 0 | K12: =SA34a!K52 -> 0
A13: Coastal Infrastructure | C13: =SA34a!C62 -> 0 | D13: =SA34a!D62 -> 0 | E13: =SA34a!E62 -> 0 | F13: =SA34a!F62 -> 0 | G13: =SA34a!G62 -> 0 | H13: =SA34a!H62 -> 0 | I13: =SA34a!I62 -> 0 | J13: =SA34a!J62 -> 0 | K13: =SA34a!K62 -> 0
A14: Information and Communication Infrastructure | C14: =SA34a!C68 -> 0 | D14: =SA34a!D68 -> 0 | E14: =SA34a!E68 -> 0 | F14: =SA34a!F68 -> 0 | G14: =SA34a!G68 -> 0 | H14: =SA34a!H68 -> 0 | I14: =SA34a!I68 -> 0 | J14: =SA34a!J68 -> 0 | K14: =SA34a!K68 -> 0
A15: Infrastructure | C15: =SUM(C6:C14) -> 483085.55 | D15: =SUM(D6:D14) -> 217091 | E15: 81321474.52 | F15: 41849675 | G15: 126663496 | H15: 126663496 | I15: 59610396 | J15: 75105000 | K15: 78484000
A16: Community Facilities | C16: =SA34a!C75 -> 0 | D16: =SA34a!D75 -> 0 | E16: =SA34a!E75 -> 2162953.07 | F16: =SA34a!F75 -> 0 | G16: =SA34a!G75 -> 3619079 | H16: =SA34a!H75 -> 3619079 | I16: =SA34a!I75 -> 0 | J16: =SA34a!J75 -> 0 | K16: =SA34a!K75 -> 0
A17: Sport and Recreation Facilities | C17: =SA34a!C98 -> 0 | D17: =SA34a!D98 -> 0 | E17: =SA34a!E98 -> 0 | F17: =SA34a!F98 -> 0 | G17: =SA34a!G98 -> 0 | H17: =SA34a!H98 -> 0 | I17: =SA34a!I98 -> 0 | J17: =SA34a!J98 -> 0 | K17: =SA34a!K98 -> 0
A18: Community Assets | C18: =SUM(C16:C17) -> 0 | D18: =SUM(D16:D17) -> 0 | E18: 2162953.07 | F18: 0 | G18: 3619079 | H18: 3619079 | I18: 0 | J18: 0 | K18: 0
A19: Heritage Assets | C19: =SA34a!C103 -> 0 | D19: =SA34a!D103 -> 0 | E19: =SA34a!E103 -> 0 | F19: =SA34a!F103 -> 0 | G19: =SA34a!G103 -> 0 | H19: =SA34a!H103 -> 0 | I19: =SA34a!I103 -> 0 | J19: =SA34a!J103 -> 0 | K19: =SA34a!K103 -> 0
A20: Revenue Generating | C20: =SA34a!C111 -> 0 | D20: =SA34a!D111 -> 0 | E20: =SA34a!E111 -> 0 | F20: =SA34a!F111 -> 0 | G20: =SA34a!G111 -> 0 | H20: =SA34a!H111 -> 0 | I20: =SA34a!I111 -> 0 | J20: =SA34a!J111 -> 0 | K20: =SA34a!K111 -> 0
A21: Non-revenue Generating | C21: =SA34a!C114 -> 0 | D21: =SA34a!D114 -> 0 | E21: =SA34a!E114 -> 0 | F21: =SA34a!F114 -> 0 | G21: =SA34a!G114 -> 0 | H21: =SA34a!H114 -> 0 | I21: =SA34a!I114 -> 0 | J21: =SA34a!J114 -> 0 | K21: =SA34a!K114 -> 0
A22: Investment properties | C22: =SUM(C20:C21) -> 0 | D22: =SUM(D20:D21) -> 0 | E22: 0 | F22: 0 | G22: 0 | H22: 0 | I22: 0 | J22: 0 | K22: 0
A23: Operational Buildings | C23: =SA34a!C119 -> -0.35 | D23: =SA34a!D119 -> 0 | E23: =SA34a!E119 -> 0 | F23: =SA34a!F119 -> 0 | G23: =SA34a!G119 -> 0 | H23: =SA34a!H119 -> 0 | I23: =SA34a!I119 -> 0 | J23: =SA34a!J119 -> 0 | K23: =SA34a!K119 -> 0
A24: Housing | C24: =SA34a!C131 -> 0 | D24: =SA34a!D131 -> 0 | E24: =SA34a!E131 -> 0 | F24: =SA34a!F131 -> 0 | G24: =SA34a!G131 -> 0 | H24: =SA34a!H131 -> 0 | I24: =SA34a!I131 -> 0 | J24: =SA34a!J131 -> 0 | K24: =SA34a!K131 -> 0
A25: Other Assets | C25: =SUM(C23:C24) -> -0.35 | D25: =SUM(D23:D24) -> 0 | E25: 0 | F25: 0 | G25: 0 | H25: 0 | I25: 0 | J25: 0 | K25: 0
A26: Biological or Cultivated Assets | C26: =SA34a!C136 -> 0 | D26: =SA34a!D136 -> 0 | E26: =SA34a!E136 -> 0 | F26: =SA34a!F136 -> 0 | G26: =SA34a!G136 -> 0 | H26: =SA34a!H136 -> 0 | I26: =SA34a!I136 -> 0 | J26: =SA34a!J136 -> 0 | K26: =SA34a!K136 -> 0
A27: Servitudes | C27: =SA34a!C140 -> 0 | D27: =SA34a!D140 -> 0 | E27: =SA34a!E140 -> 0 | F27: =SA34a!F140 -> 0 | G27: =SA34a!G140 -> 0 | H27: =SA34a!H140 -> 0 | I27: =SA34a!I140 -> 0 | J27: =SA34a!J140 -> 0 | K27: =SA34a!K140 -> 0
A28: Licences and Rights | C28: =SA34a!C141 -> 0 | D28: =SA34a!D141 -> 0 | E28: =SA34a!E141 -> 0 | F28: =SA34a!F141 -> 600000 | G28: =SA34a!G141 -> 600000 | H28: =SA34a!H141 -> 600000 | I28: =SA34a!I141 -> 0 | J28: =SA34a!J141 -> 0 | K28: =SA34a!K141 -> 0
A29: Intangible Assets | C29: =SUM(C27:C28) -> 0 | D29: =SUM(D27:D28) -> 0 | E29: 0 | F29: 600000 | G29: 600000 | H29: 600000 | I29: 0 | J29: 0 | K29: 0
A30: Computer Equipment | C30: =SA34a!C149 -> 1381760.19 | D30: =SA34a!D149 -> 108585 | E30: =SA34a!E149 -> 209230.94 | F30: =SA34a!F149 -> 700000 | G30: =SA34a!G149 -> 730000 | H30: =SA34a!H149 -> 730000 | I30: =SA34a!I149 -> 100000 | J30: =SA34a!J149 -> 2000000 | K30: =SA34a!K149 -> 0
A31: Furniture and Office Equipment | C31: =SA34a!C152 -> 63581.68 | D31: =SA34a!D152 -> 0 | E31: =SA34a!E152 -> 0 | F31: =SA34a!F152 -> 1088451 | G31: =SA34a!G152 -> 788451 | H31: =SA34a!H152 -> 788451 | I31: =SA34a!I152 -> 550000 | J31: =SA34a!J152 -> 4000000 | K31: =SA34a!K152 -> 6723000
A32: Machinery and Equipment | C32: =SA34a!C155 -> 298895 | D32: =SA34a!D155 -> 198000 | E32: =SA34a!E155 -> 47098.11 | F32: =SA34a!F155 -> 150000 | G32: =SA34a!G155 -> 5350000 | H32: =SA34a!H155 -> 5350000 | I32: =SA34a!I155 -> 2900000 | J32: =SA34a!J155 -> 500000 | K32: =SA34a!K155 -> 522000
A33: Transport Assets | C33: =SA34a!C158 -> 5753378 | D33: =SA34a!D158 -> 0 | E33: =SA34a!E158 -> 0 | F33: =SA34a!F158 -> 13704405 | G33: =SA34a!G158 -> 770000 | H33: =SA34a!H158 -> 770000 | I33: =SA34a!I158 -> 14504404 | J33: =SA34a!J158 -> 5000000 | K33: =SA34a!K158 -> 0
A34: Land | C34: =SA34a!C161 -> 0 | D34: =SA34a!D161 -> 0 | E34: =SA34a!E161 -> 0 | F34: =SA34a!F161 -> 0 | G34: =SA34a!G161 -> 0 | H34: =SA34a!H161 -> 0 | I34: =SA34a!I161 -> 0 | J34: =SA34a!J161 -> 0 | K34: =SA34a!K161 -> 0
A35: Zoo's, Marine and Non-biological Animals | C35: =SA34a!C164 -> 0 | D35: =SA34a!D164 -> 0 | E35: =SA34a!E164 -> 0 | F35: =SA34a!F164 -> 0 | G35: =SA34a!G164 -> 0 | H35: =SA34a!H164 -> 0 | I35: =SA34a!I164 -> 0 | J35: =SA34a!J164 -> 0 | K35: =SA34a!K164 -> 0
A36: Mature | C36: =SA34a!C168 -> 0 | D36: =SA34a!D168 -> 0 | E36: =SA34a!E168 -> 0 | F36: =SA34a!F168 -> 0 | G36: =SA34a!G168 -> 0 | H36: =SA34a!H168 -> 0 | I36: =SA34a!I168 -> 0 | J36: =SA34a!J168 -> 0 | K36: =SA34a!K168 -> 0
A37: Immature | C37: =SA34a!C171 -> 0 | D37: =SA34a!D171 -> 0 | E37: =SA34a!E171 -> 0 | F37: =SA34a!F171 -> 0 | G37: =SA34a!G171 -> 0 | H37: =SA34a!H171 -> 0 | I37: =SA34a!I171 -> 0 | J37: =SA34a!J171 -> 0 | K37: =SA34a!K171 -> 0
A38: Living Resources | C38: =SUM(C36:C37) -> 0 | D38: =SUM(D36:D37) -> 0 | E38: 0 | F38: 0 | G38: 0 | H38: 0 | I38: 0 | J38: 0 | K38: 0
A40: Total Renewal of Existing Assets | B40: 2 | C40: =C50+C53+C54+C57+C60+C61+SUM(C64:C70)+C73 -> 0 | D40: =D50+D53+D54+D57+D60+D61+SUM(D64:D70)+D73 -> 0 | E40: 837890.78 | F40: 16616000 | G40: 6988144 | H40: 6988144 | I40: 3000000 | J40: 1100000 | K40: 1148400
A41: Roads Infrastructure | C41: =SA34b!C7 -> 0 | D41: =SA34b!D7 -> 0 | E41: =SA34b!E7 -> 0 | F41: =SA34b!F7 -> 15716000 | G41: =SA34b!G7 -> 796014 | H41: =SA34b!H7 -> 796014 | I41: =SA34b!I7 -> 0 | J41: =SA34b!J7 -> 0 | K41: =SA34b!K7 -> 0
A42: Storm water Infrastructure | C42: =SA34b!C12 -> 0 | D42: =SA34b!D12 -> 0 | E42: =SA34b!E12 -> 0 | F42: =SA34b!F12 -> 0 | G42: =SA34b!G12 -> 0 | H42: =SA34b!H12 -> 0 | I42: =SA34b!I12 -> 0 | J42: =SA34b!J12 -> 0 | K42: =SA34b!K12 -> 0
A43: Electrical Infrastructure | C43: =SA34b!C16 -> 0 | D43: =SA34b!D16 -> 0 | E43: =SA34b!E16 -> 837890.78 | F43: =SA34b!F16 -> 900000 | G43: =SA34b!G16 -> 6192130 | H43: =SA34b!H16 -> 6192130 | I43: =SA34b!I16 -> 3000000 | J43: =SA34b!J16 -> 1100000 | K43: =SA34b!K16 -> 1148400
A44: Water Supply Infrastructure | C44: =SA34b!C26 -> 0 | D44: =SA34b!D26 -> 0 | E44: =SA34b!E26 -> 0 | F44: =SA34b!F26 -> 0 | G44: =SA34b!G26 -> 0 | H44: =SA34b!H26 -> 0 | I44: =SA34b!I26 -> 0 | J44: =SA34b!J26 -> 0 | K44: =SA34b!K26 -> 0
A45: Sanitation Infrastructure | C45: =SA34b!C37 -> 0 | D45: =SA34b!D37 -> 0 | E45: =SA34b!E37 -> 0 | F45: =SA34b!F37 -> 0 | G45: =SA34b!G37 -> 0 | H45: =SA34b!H37 -> 0 | I45: =SA34b!I37 -> 0 | J45: =SA34b!J37 -> 0 | K45: =SA34b!K37 -> 0
A46: Solid Waste Infrastructure | C46: =SA34b!C44 -> 0 | D46: =SA34b!D44 -> 0 | E46: =SA34b!E44 -> 0 | F46: =SA34b!F44 -> 0 | G46: =SA34b!G44 -> 0 | H46: =SA34b!H44 -> 0 | I46: =SA34b!I44 -> 0 | J46: =SA34b!J44 -> 0 | K46: =SA34b!K44 -> 0
A47: Rail Infrastructure | C47: =SA34b!C52 -> 0 | D47: =SA34b!D52 -> 0 | E47: =SA34b!E52 -> 0 | F47: =SA34b!F52 -> 0 | G47: =SA34b!G52 -> 0 | H47: =SA34b!H52 -> 0 | I47: =SA34b!I52 -> 0 | J47: =SA34b!J52 -> 0 | K47: =SA34b!K52 -> 0
A48: Coastal Infrastructure | C48: =SA34b!C62 -> 0 | D48: =SA34b!D62 -> 0 | E48: =SA34b!E62 -> 0 | F48: =SA34b!F62 -> 0 | G48: =SA34b!G62 -> 0 | H48: =SA34b!H62 -> 0 | I48: =SA34b!I62 -> 0 | J48: =SA34b!J62 -> 0 | K48: =SA34b!K62 -> 0
A49: Information and Communication Infrastructure | C49: =SA34b!C68 -> 0 | D49: =SA34b!D68 -> 0 | E49: =SA34b!E68 -> 0 | F49: =SA34b!F68 -> 0 | G49: =SA34b!G68 -> 0 | H49: =SA34b!H68 -> 0 | I49: =SA34b!I68 -> 0 | J49: =SA34b!J68 -> 0 | K49: =SA34b!K68 -> 0
A50: Infrastructure | C50: =SUM(C41:C49) -> 0 | D50: =SUM(D41:D49) -> 0 | E50: 837890.78 | F50: 16616000 | G50: 6988144 | H50: 6988144 | I50: 3000000 | J50: 1100000 | K50: 1148400
A51: Community Facilities | C51: =SA34b!C75 -> 0 | D51: =SA34b!D75 -> 0 | E51: =SA34b!E75 -> 0 | F51: =SA34b!F75 -> 0 | G51: =SA34b!G75 -> 0 | H51: =SA34b!H75 -> 0 | I51: =SA34b!I75 -> 0 | J51: =SA34b!J75 -> 0 | K51: =SA34b!K75 -> 0
A52: Sport and Recreation Facilities | C52: =SA34b!C98 -> 0 | D52: =SA34b!D98 -> 0 | E52: =SA34b!E98 -> 0 | F52: =SA34b!F98 -> 0 | G52: =SA34b!G98 -> 0 | H52: =SA34b!H98 -> 0 | I52: =SA34b!I98 -> 0 | J52: =SA34b!J98 -> 0 | K52: =SA34b!K98 -> 0
A53: Community Assets | C53: =SUM(C51:C52) -> 0 | D53: =SUM(D51:D52) -> 0 | E53: 0 | F53: 0 | G53: 0 | H53: 0 | I53: 0 | J53: 0 | K53: 0
A54: Heritage Assets | C54: =SA34b!C103 -> 0 | D54: =SA34b!D103 -> 0 | E54: =SA34b!E103 -> 0 | F54: =SA34b!F103 -> 0 | G54: =SA34b!G103 -> 0 | H54: =SA34b!H103 -> 0 | I54: =SA34b!I103 -> 0 | J54: =SA34b!J103 -> 0 | K54: =SA34b!K103 -> 0
A55: Revenue Generating | C55: =SA34b!C111 -> 0 | D55: =SA34b!D111 -> 0 | E55: =SA34b!E111 -> 0 | F55: =SA34b!F111 -> 0 | G55: =SA34b!G111 -> 0 | H55: =SA34b!H111 -> 0 | I55: =SA34b!I111 -> 0 | J55: =SA34b!J111 -> 0 | K55: =SA34b!K111 -> 0
A56: Non-revenue Generating | C56: =SA34b!C114 -> 0 | D56: =SA34b!D114 -> 0 | E56: =SA34b!E114 -> 0 | F56: =SA34b!F114 -> 0 | G56: =SA34b!G114 -> 0 | H56: =SA34b!H114 -> 0 | I56: =SA34b!I114 -> 0 | J56: =SA34b!J114 -> 0 | K56: =SA34b!K114 -> 0
A57: Investment properties | C57: =SUM(C55:C56) -> 0 | D57: =SUM(D55:D56) -> 0 | E57: 0 | F57: 0 | G57: 0 | H57: 0 | I57: 0 | J57: 0 | K57: 0
A58: Operational Buildings | C58: =SA34b!C119 -> 0 | D58: =SA34b!D119 -> 0 | E58: =SA34b!E119 -> 0 | F58: =SA34b!F119 -> 0 | G58: =SA34b!G119 -> 0 | H58: =SA34b!H119 -> 0 | I58: =SA34b!I119 -> 0 | J58: =SA34b!J119 -> 0 | K58: =SA34b!K119 -> 0
A59: Housing | C59: =SA34b!C131 -> 0 | D59: =SA34b!D131 -> 0 | E59: =SA34b!E131 -> 0 | F59: =SA34b!F131 -> 0 | G59: =SA34b!G131 -> 0 | H59: =SA34b!H131 -> 0 | I59: =SA34b!I131 -> 0 | J59: =SA34b!J131 -> 0 | K59: =SA34b!K131 -> 0
A60: Other Assets | C60: =SUM(C58:C59) -> 0 | D60: =SUM(D58:D59) -> 0 | E60: 0 | F60: 0 | G60: 0 | H60: 0 | I60: 0 | J60: 0 | K60: 0
A61: Biological or Cultivated Assets | C61: =SA34b!C136 -> 0 | D61: =SA34b!D136 -> 0 | E61: =SA34b!E136 -> 0 | F61: =SA34b!F136 -> 0 | G61: =SA34b!G136 -> 0 | H61: =SA34b!H136 -> 0 | I61: =SA34b!I136 -> 0 | J61: =SA34b!J136 -> 0 | K61: =SA34b!K136 -> 0
A62: Servitudes | C62: =SA34b!C140 -> 0 | D62: =SA34b!D140 -> 0 | E62: =SA34b!E140 -> 0 | F62: =SA34b!F140 -> 0 | G62: =SA34b!G140 -> 0 | H62: =SA34b!H140 -> 0 | I62: =SA34b!I140 -> 0 | J62: =SA34b!J140 -> 0 | K62: =SA34b!K140 -> 0
A63: Licences and Rights | C63: =SA34b!C141 -> 0 | D63: =SA34b!D141 -> 0 | E63: =SA34b!E141 -> 0 | F63: =SA34b!F141 -> 0 | G63: =SA34b!G141 -> 0 | H63: =SA34b!H141 -> 0 | I63: =SA34b!I141 -> 0 | J63: =SA34b!J141 -> 0 | K63: =SA34b!K141 -> 0
A64: Intangible Assets | C64: =SUM(C62:C63) -> 0 | D64: =SUM(D62:D63) -> 0 | E64: 0 | F64: 0 | G64: 0 | H64: 0 | I64: 0 | J64: 0 | K64: 0
A65: Computer Equipment | C65: =SA34b!C149 -> 0 | D65: =SA34b!D149 -> 0 | E65: =SA34b!E149 -> 0 | F65: =SA34b!F149 -> 0 | G65: =SA34b!G149 -> 0 | H65: =SA34b!H149 -> 0 | I65: =SA34b!I149 -> 0 | J65: =SA34b!J149 -> 0 | K65: =SA34b!K149 -> 0
A66: Furniture and Office Equipment | C66: =SA34b!C152 -> 0 | D66: =SA34b!D152 -> 0 | E66: =SA34b!E152 -> 0 | F66: =SA34b!F152 -> 0 | G66: =SA34b!G152 -> 0 | H66: =SA34b!H152 -> 0 | I66: =SA34b!I152 -> 0 | J66: =SA34b!J152 -> 0 | K66: =SA34b!K152 -> 0
A67: Machinery and Equipment | C67: =SA34b!C155 -> 0 | D67: =SA34b!D155 -> 0 | E67: =SA34b!E155 -> 0 | F67: =SA34b!F155 -> 0 | G67: =SA34b!G155 -> 0 | H67: =SA34b!H155 -> 0 | I67: =SA34b!I155 -> 0 | J67: =SA34b!J155 -> 0 | K67: =SA34b!K155 -> 0
A68: Transport Assets | C68: =SA34b!C158 -> 0 | D68: =SA34b!D158 -> 0 | E68: =SA34b!E158 -> 0 | F68: =SA34b!F158 -> 0 | G68: =SA34b!G158 -> 0 | H68: =SA34b!H158 -> 0 | I68: =SA34b!I158 -> 0 | J68: =SA34b!J158 -> 0 | K68: =SA34b!K158 -> 0
A69: Land | C69: =SA34b!C161 -> 0 | D69: =SA34b!D161 -> 0 | E69: =SA34b!E161 -> 0 | F69: =SA34b!F161 -> 0 | G69: =SA34b!G161 -> 0 | H69: =SA34b!H161 -> 0 | I69: =SA34b!I161 -> 0 | J69: =SA34b!J161 -> 0 | K69: =SA34b!K161 -> 0
A70: Zoo's, Marine and Non-biological Animals | C70: =SA34b!C164 -> 0 | D70: =SA34b!D164 -> 0 | E70: =SA34b!E164 -> 0 | F70: =SA34b!F164 -> 0 | G70: =SA34b!G164 -> 0 | H70: =SA34b!H164 -> 0 | I70: =SA34b!I164 -> 0 | J70: =SA34b!J164 -> 0 | K70: =SA34b!K164 -> 0
A71: Mature | C71: =SA34b!C168 -> 0 | D71: =SA34b!D168 -> 0 | E71: =SA34b!E168 -> 0 | F71: =SA34b!F168 -> 0 | G71: =SA34b!G168 -> 0 | H71: =SA34b!H168 -> 0 | I71: =SA34b!I168 -> 0 | J71: =SA34b!J168 -> 0 | K71: =SA34b!K168 -> 0
A72: Immature | C72: =SA34b!C171 -> 0 | D72: =SA34b!D171 -> 0 | E72: =SA34b!E171 -> 0 | F72: =SA34b!F171 -> 0 | G72: =SA34b!G171 -> 0 | H72: =SA34b!H171 -> 0 | I72: =SA34b!I171 -> 0 | J72: =SA34b!J171 -> 0 | K72: =SA34b!K171 -> 0
A73: Living Resources | C73: =SUM(C71:C72) -> 0 | D73: 0 | E73: 0 | F73: 0 | G73: 0 | H73: 0 | I73: 0 | J73: 0 | K73: 0
A75: Total Upgrading of Existing Assets | B75: 6 | C75: =C85+C88+C89+C92+C95+C96+SUM(C99:C105)+C108 -> 93057.64 | D75: =D85+D88+D89+D92+D95+D96+SUM(D99:D105)+D108 -> 0 | E75: 0 | F75: 200000 | G75: 0 | H75: 0 | I75: 6300000 | J75: 5000000 | K75: 10000000
A76: Roads Infrastructure | C76: =SA34e!C7 -> 0 | D76: =SA34e!D7 -> 0 | E76: =SA34e!E7 -> 0 | F76: =SA34e!F7 -> 0 | G76: =SA34e!G7 -> 0 | H76: =SA34e!H7 -> 0 | I76: =SA34e!I7 -> 0 | J76: =SA34e!J7 -> 0 | K76: =SA34e!K7 -> 0
A77: Storm water Infrastructure | C77: =SA34e!C12 -> 0 | D77: =SA34e!D12 -> 0 | E77: =SA34e!E12 -> 0 | F77: =SA34e!F12 -> 0 | G77: =SA34e!G12 -> 0 | H77: =SA34e!H12 -> 0 | I77: =SA34e!I12 -> 0 | J77: =SA34e!J12 -> 0 | K77: =SA34e!K12 -> 0
A78: Electrical Infrastructure | C78: =SA34e!C16 -> 0 | D78: =SA34e!D16 -> 0 | E78: =SA34e!E16 -> 0 | F78: =SA34e!F16 -> 0 | G78: =SA34e!G16 -> 0 | H78: =SA34e!H16 -> 0 | I78: =SA34e!I16 -> 0 | J78: =SA34e!J16 -> 0 | K78: =SA34e!K16 -> 0
A79: Water Supply Infrastructure | C79: =SA34e!C26 -> 0 | D79: =SA34e!D26 -> 0 | E79: =SA34e!E26 -> 0 | F79: =SA34e!F26 -> 0 | G79: =SA34e!G26 -> 0 | H79: =SA34e!H26 -> 0 | I79: =SA34e!I26 -> 0 | J79: =SA34e!J26 -> 0 | K79: =SA34e!K26 -> 0
A80: Sanitation Infrastructure | C80: =SA34e!C37 -> 0 | D80: =SA34e!D37 -> 0 | E80: =SA34e!E37 -> 0 | F80: =SA34e!F37 -> 0 | G80: =SA34e!G37 -> 0 | H80: =SA34e!H37 -> 0 | I80: =SA34e!I37 -> 0 | J80: =SA34e!J37 -> 0 | K80: =SA34e!K37 -> 0
A81: Solid Waste Infrastructure | C81: =SA34e!C44 -> 0 | D81: =SA34e!D44 -> 0 | E81: =SA34e!E44 -> 0 | F81: =SA34e!F44 -> 0 | G81: =SA34e!G44 -> 0 | H81: =SA34e!H44 -> 0 | I81: =SA34e!I44 -> 0 | J81: =SA34e!J44 -> 0 | K81: =SA34e!K44 -> 0
A82: Rail Infrastructure | C82: =SA34e!C52 -> 0 | D82: =SA34e!D52 -> 0 | E82: =SA34e!E52 -> 0 | F82: =SA34e!F52 -> 0 | G82: =SA34e!G52 -> 0 | H82: =SA34e!H52 -> 0 | I82: =SA34e!I52 -> 0 | J82: =SA34e!J52 -> 0 | K82: =SA34e!K52 -> 0
A83: Coastal Infrastructure | C83: =SA34e!C62 -> 0 | D83: =SA34e!D62 -> 0 | E83: =SA34e!E62 -> 0 | F83: =SA34e!F62 -> 0 | G83: =SA34e!G62 -> 0 | H83: =SA34e!H62 -> 0 | I83: =SA34e!I62 -> 0 | J83: =SA34e!J62 -> 0 | K83: =SA34e!K62 -> 0
A84: Information and Communication Infrastructure | C84: =SA34e!C68 -> 0 | D84: =SA34e!D68 -> 0 | E84: =SA34e!E68 -> 0 | F84: =SA34e!F68 -> 0 | G84: =SA34e!G68 -> 0 | H84: =SA34e!H68 -> 0 | I84: =SA34e!I68 -> 0 | J84: =SA34e!J68 -> 0 | K84: =SA34e!K68 -> 0
A85: Infrastructure | C85: =SUM(C76:C84) -> 0 | D85: 0 | E85: 0 | F85: 0 | G85: 0 | H85: 0 | I85: 0 | J85: 0 | K85: 0
A86: Community Facilities | C86: =SA34e!C75 -> 0 | D86: =SA34e!D75 -> 0 | E86: =SA34e!E75 -> 0 | F86: =SA34e!F75 -> 0 | G86: =SA34e!G75 -> 0 | H86: =SA34e!H75 -> 0 | I86: =SA34e!I75 -> 0 | J86: =SA34e!J75 -> 0 | K86: =SA34e!K75 -> 0
A87: Sport and Recreation Facilities | C87: =SA34e!C98 -> 0 | D87: =SA34e!D98 -> 0 | E87: =SA34e!E98 -> 0 | F87: =SA34e!F98 -> 0 | G87: =SA34e!G98 -> 0 | H87: =SA34e!H98 -> 0 | I87: =SA34e!I98 -> 0 | J87: =SA34e!J98 -> 0 | K87: =SA34e!K98 -> 0
A88: Community Assets | C88: =SUM(C86:C87) -> 0 | D88: 0 | E88: 0 | F88: 0 | G88: 0 | H88: 0 | I88: 0 | J88: 0 | K88: 0
A89: Heritage Assets | C89: =SA34e!C103 -> 0 | D89: =SA34e!D103 -> 0 | E89: =SA34e!E103 -> 0 | F89: =SA34e!F103 -> 0 | G89: =SA34e!G103 -> 0 | H89: =SA34e!H103 -> 0 | I89: =SA34e!I103 -> 0 | J89: =SA34e!J103 -> 0 | K89: =SA34e!K103 -> 0
A90: Revenue Generating | C90: =SA34e!C111 -> 0 | D90: =SA34e!D111 -> 0 | E90: =SA34e!E111 -> 0 | F90: =SA34e!F111 -> 0 | G90: =SA34e!G111 -> 0 | H90: =SA34e!H111 -> 0 | I90: =SA34e!I111 -> 0 | J90: =SA34e!J111 -> 0 | K90: =SA34e!K111 -> 0
A91: Non-revenue Generating | C91: =SA34e!C114 -> 0 | D91: =SA34e!D114 -> 0 | E91: =SA34e!E114 -> 0 | F91: =SA34e!F114 -> 0 | G91: =SA34e!G114 -> 0 | H91: =SA34e!H114 -> 0 | I91: =SA34e!I114 -> 0 | J91: =SA34e!J114 -> 0 | K91: =SA34e!K114 -> 0
A92: Investment properties | C92: =SUM(C90:C91) -> 0 | D92: 0 | E92: 0 | F92: 0 | G92: 0 | H92: 0 | I92: 0 | J92: 0 | K92: 0
A93: Operational Buildings | C93: =SA34e!C119 -> 0 | D93: =SA34e!D119 -> 0 | E93: =SA34e!E119 -> 0 | F93: =SA34e!F119 -> 0 | G93: =SA34e!G119 -> 0 | H93: =SA34e!H119 -> 0 | I93: =SA34e!I119 -> 6300000 | J93: =SA34e!J119 -> 5000000 | K93: =SA34e!K119 -> 10000000
A94: Housing | C94: =SA34e!C131 -> 0 | D94: =SA34e!D131 -> 0 | E94: =SA34e!E131 -> 0 | F94: =SA34e!F131 -> 0 | G94: =SA34e!G131 -> 0 | H94: =SA34e!H131 -> 0 | I94: =SA34e!I131 -> 0 | J94: =SA34e!J131 -> 0 | K94: =SA34e!K131 -> 0
A95: Other Assets | C95: =SUM(C93:C94) -> 0 | D95: 0 | E95: 0 | F95: 0 | G95: 0 | H95: 0 | I95: 6300000 | J95: 5000000 | K95: 10000000
A96: Biological or Cultivated Assets | C96: =SA34e!C136 -> 0 | D96: =SA34e!D136 -> 0 | E96: =SA34e!E136 -> 0 | F96: =SA34e!F136 -> 0 | G96: =SA34e!G136 -> 0 | H96: =SA34e!H136 -> 0 | I96: =SA34e!I136 -> 0 | J96: =SA34e!J136 -> 0 | K96: =SA34e!K136 -> 0
A97: Servitudes | C97: =SA34e!C140 -> 0 | D97: =SA34e!D140 -> 0 | E97: =SA34e!E140 -> 0 | F97: =SA34e!F140 -> 0 | G97: =SA34e!G140 -> 0 | H97: =SA34e!H140 -> 0 | I97: =SA34e!I140 -> 0 | J97: =SA34e!J140 -> 0 | K97: =SA34e!K140 -> 0
A98: Licences and Rights | C98: =SA34e!C141 -> 0 | D98: =SA34e!D141 -> 0 | E98: =SA34e!E141 -> 0 | F98: =SA34e!F141 -> 0 | G98: =SA34e!G141 -> 0 | H98: =SA34e!H141 -> 0 | I98: =SA34e!I141 -> 0 | J98: =SA34e!J141 -> 0 | K98: =SA34e!K141 -> 0
A99: Intangible Assets | C99: =SUM(C97:C98) -> 0 | D99: 0 | E99: 0 | F99: 0 | G99: 0 | H99: 0 | I99: 0 | J99: 0 | K99: 0
A100: Computer Equipment | C100: =SA34e!C149 -> 0 | D100: =SA34e!D149 -> 0 | E100: =SA34e!E149 -> 0 | F100: =SA34e!F149 -> 0 | G100: =SA34e!G149 -> 0 | H100: =SA34e!H149 -> 0 | I100: =SA34e!I149 -> 0 | J100: =SA34e!J149 -> 0 | K100: =SA34e!K149 -> 0
A101: Furniture and Office Equipment | C101: =SA34e!C152 -> 0 | D101: =SA34e!D152 -> 0 | E101: =SA34e!E152 -> 0 | F101: =SA34e!F152 -> 0 | G101: =SA34e!G152 -> 0 | H101: =SA34e!H152 -> 0 | I101: =SA34e!I152 -> 0 | J101: =SA34e!J152 -> 0 | K101: =SA34e!K152 -> 0
A102: Machinery and Equipment | C102: =SA34e!C155 -> 93057.64 | D102: =SA34e!D155 -> 0 | E102: =SA34e!E155 -> 0 | F102: =SA34e!F155 -> 200000 | G102: =SA34e!G155 -> 0 | H102: =SA34e!H155 -> 0 | I102: =SA34e!I155 -> 0 | J102: =SA34e!J155 -> 0 | K102: =SA34e!K155 -> 0
A103: Transport Assets | C103: =SA34e!C158 -> 0 | D103: =SA34e!D158 -> 0 | E103: =SA34e!E158 -> 0 | F103: =SA34e!F158 -> 0 | G103: =SA34e!G158 -> 0 | H103: =SA34e!H158 -> 0 | I103: =SA34e!I158 -> 0 | J103: =SA34e!J158 -> 0 | K103: =SA34e!K158 -> 0
A104: Land | C104: =SA34e!C161 -> 0 | D104: =SA34e!D161 -> 0 | E104: =SA34e!E161 -> 0 | F104: =SA34e!F161 -> 0 | G104: =SA34e!G161 -> 0 | H104: =SA34e!H161 -> 0 | I104: =SA34e!I161 -> 0 | J104: =SA34e!J161 -> 0 | K104: =SA34e!K161 -> 0
A105: Zoo's, Marine and Non-biological Animals | C105: =SA34e!C164 -> 0 | D105: =SA34e!D164 -> 0 | E105: =SA34e!E164 -> 0 | F105: =SA34e!F164 -> 0 | G105: =SA34e!G164 -> 0 | H105: =SA34e!H164 -> 0 | I105: =SA34e!I164 -> 0 | J105: =SA34e!J164 -> 0 | K105: =SA34e!K164 -> 0
A106: Mature | C106: =SA34e!C168 -> 0 | D106: =SA34e!D168 -> 0 | E106: =SA34e!E168 -> 0 | F106: =SA34e!F168 -> 0 | G106: =SA34e!G168 -> 0 | H106: =SA34e!H168 -> 0 | I106: =SA34e!I168 -> 0 | J106: =SA34e!J168 -> 0 | K106: =SA34e!K168 -> 0
A107: Immature | C107: =SA34b!C171 -> 0 | D107: =SA34b!D171 -> 0 | E107: =SA34b!E171 -> 0 | F107: =SA34b!F171 -> 0 | G107: =SA34b!G171 -> 0 | H107: =SA34b!H171 -> 0 | I107: =SA34b!I171 -> 0 | J107: =SA34b!J171 -> 0 | K107: =SA34b!K171 -> 0
A108: Living Resources | C108: =SUM(C106:C107) -> 0 | D108: =SUM(D106:D107) -> 0 | E108: 0 | F108: 0 | G108: 0 | H108: 0 | I108: 0 | J108: 0 | K108: 0
A110: Total Capital Expenditure | B110: 4 | C110: =+C5+C40+C75 -> 8073757.71 | D110: =+D5+D40+D75 -> 523676 | E110: 84578647.42 | F110: 74908531 | G110: 145509170 | H110: 145509170 | I110: 86964800 | J110: 92705000 | K110: 96877400
A111: Roads Infrastructure | C111: =+C6+C41+C76 -> 0 | D111: 0 | E111: 61048681.08 | F111: 55492144 | G111: 109739708 | H111: 109739708 | I111: 59610396 | J111: 59105000 | K111: 61761000
A112: Storm water Infrastructure | C112: =+C7+C42+C77 -> 0 | D112: 0 | E112: 0 | F112: 0 | G112: 0 | H112: 0 | I112: 0 | J112: 0 | K112: 0
A113: Electrical Infrastructure | C113: =+C8+C43+C78 -> 483085.55 | D113: 217091 | E113: 21110684.22 | F113: 2973531 | G113: 23911932 | H113: 23911932 | I113: 3000000 | J113: 17100000 | K113: 17871400
A114: Water Supply Infrastructure | C114: =+C9+C44+C79 -> 0 | D114: 0 | E114: 0 | F114: 0 | G114: 0 | H114: 0 | I114: 0 | J114: 0 | K114: 0
A115: Sanitation Infrastructure | C115: =+C10+C45+C80 -> 0 | D115: 0 | E115: 0 | F115: 0 | G115: 0 | H115: 0 | I115: 0 | J115: 0 | K115: 0
A116: Solid Waste Infrastructure | C116: =+C11+C46+C81 -> 0 | D116: 0 | E116: 0 | F116: 0 | G116: 0 | H116: 0 | I116: 0 | J116: 0 | K116: 0
A117: Rail Infrastructure | C117: =+C12+C47+C82 -> 0 | D117: 0 | E117: 0 | F117: 0 | G117: 0 | H117: 0 | I117: 0 | J117: 0 | K117: 0
A118: Coastal Infrastructure | C118: =+C13+C48+C83 -> 0 | D118: 0 | E118: 0 | F118: 0 | G118: 0 | H118: 0 | I118: 0 | J118: 0 | K118: 0
A119: Information and Communication Infrastructure | C119: =+C14+C49+C84 -> 0 | D119: 0 | E119: 0 | F119: 0 | G119: 0 | H119: 0 | I119: 0 | J119: 0 | K119: 0
A120: Infrastructure | C120: =SUM(C111:C119) -> 483085.55 | D120: =SUM(D111:D119) -> 217091 | E120: 82159365.3 | F120: 58465675 | G120: 133651640 | H120: 133651640 | I120: 62610396 | J120: 76205000 | K120: 79632400
A121: Community Facilities | C121: =+C16+C51+C86 -> 0 | D121: 0 | E121: 2162953.07 | F121: 0 | G121: 3619079 | H121: 3619079 | I121: 0 | J121: 0 | K121: 0
A122: Sport and Recreation Facilities | C122: =+C17+C52+C87 -> 0 | D122: 0 | E122: 0 | F122: 0 | G122: 0 | H122: 0 | I122: 0 | J122: 0 | K122: 0
A123: Community Assets | C123: =SUM(C121:C122) -> 0 | D123: =SUM(D121:D122) -> 0 | E123: 2162953.07 | F123: 0 | G123: 3619079 | H123: 3619079 | I123: 0 | J123: 0 | K123: 0
A124: Heritage Assets | C124: =+C19+C54+C89 -> 0 | D124: 0 | E124: 0 | F124: 0 | G124: 0 | H124: 0 | I124: 0 | J124: 0 | K124: 0
A125: Revenue Generating | C125: =+C20+C55+C90 -> 0 | D125: 0 | E125: 0 | F125: 0 | G125: 0 | H125: 0 | I125: 0 | J125: 0 | K125: 0
A126: Non-revenue Generating | C126: =+C21+C56+C91 -> 0 | D126: 0 | E126: 0 | F126: 0 | G126: 0 | H126: 0 | I126: 0 | J126: 0 | K126: 0
A127: Investment properties | C127: =SUM(C125:C126) -> 0 | D127: =SUM(D125:D126) -> 0 | E127: 0 | F127: 0 | G127: 0 | H127: 0 | I127: 0 | J127: 0 | K127: 0
A128: Operational Buildings | C128: =+C23+C58+C93 -> -0.35 | D128: 0 | E128: 0 | F128: 0 | G128: 0 | H128: 0 | I128: 6300000 | J128: 5000000 | K128: 10000000
A129: Housing | C129: =+C24+C59+C94 -> 0 | D129: 0 | E129: 0 | F129: 0 | G129: 0 | H129: 0 | I129: 0 | J129: 0 | K129: 0
A130: Other Assets | C130: =SUM(C128:C129) -> -0.35 | D130: 0 | E130: 0 | F130: 0 | G130: 0 | H130: 0 | I130: 6300000 | J130: 5000000 | K130: 10000000
A131: Biological or Cultivated Assets | C131: =+C26+C61+C96 -> 0 | D131: 0 | E131: 0 | F131: 0 | G131: 0 | H131: 0 | I131: 0 | J131: 0 | K131: 0
A132: Servitudes | C132: =+C27+C62+C97 -> 0 | D132: 0 | E132: 0 | F132: 0 | G132: 0 | H132: 0 | I132: 0 | J132: 0 | K132: 0
A133: Licences and Rights | C133: =+C28+C63+C98 -> 0 | D133: 0 | E133: 0 | F133: 600000 | G133: 600000 | H133: 600000 | I133: 0 | J133: 0 | K133: 0
A134: Intangible Assets | C134: =SUM(C132:C133) -> 0 | D134: =SUM(D132:D133) -> 0 | E134: 0 | F134: 600000 | G134: 600000 | H134: 600000 | I134: 0 | J134: 0 | K134: 0
A135: Computer Equipment | C135: =+C30+C65+C100 -> 1381760.19 | D135: 108585 | E135: 209230.94 | F135: 700000 | G135: 730000 | H135: 730000 | I135: 100000 | J135: 2000000 | K135: 0
A136: Furniture and Office Equipment | C136: =+C31+C66+C101 -> 63581.68 | D136: 0 | E136: 0 | F136: 1088451 | G136: 788451 | H136: 788451 | I136: 550000 | J136: 4000000 | K136: 6723000
A137: Machinery and Equipment | C137: =+C32+C67+C102 -> 391952.64 | D137: 198000 | E137: 47098.11 | F137: 350000 | G137: 5350000 | H137: 5350000 | I137: 2900000 | J137: 500000 | K137: 522000
A138: Transport Assets | C138: =+C33+C68+C103 -> 5753378 | D138: 0 | E138: 0 | F138: 13704405 | G138: 770000 | H138: 770000 | I138: 14504404 | J138: 5000000 | K138: 0
A139: Land | C139: =+C34+C69+C104 -> 0 | D139: 0 | E139: 0 | F139: 0 | G139: 0 | H139: 0 | I139: 0 | J139: 0 | K139: 0
A140: Zoo's, Marine and Non-biological Animals | C140: =+C35+C70+C105 -> 0 | D140: 0 | E140: 0 | F140: 0 | G140: 0 | H140: 0 | I140: 0 | J140: 0 | K140: 0
A141: Mature | C141: =+C36+C71+C106 -> 0 | D141: =+D36+D71+D106 -> 0 | E141: 0 | F141: 0 | G141: 0 | H141: 0 | I141: 0 | J141: 0 | K141: 0
A142: Immature | C142: =+C37+C72+C107 -> 0 | D142: =+D37+D72+D107 -> 0 | E142: 0 | F142: 0 | G142: 0 | H142: 0 | I142: 0 | J142: 0 | K142: 0
A143: Living Resources | C143: =SUM(C141:C142) -> 0 | D143: 0 | E143: 0 | F143: 0 | G143: 0 | H143: 0 | I143: 0 | J143: 0 | K143: 0
A144: TOTAL CAPITAL EXPENDITURE - Asset class | C144: =+C5+C40+C75 -> 8073757.71 | D144: =+D5+D40+D75 -> 523676 | E144: 84578647.42 | F144: 74908531 | G144: 145509170 | H144: 145509170 | I144: 86964800 | J144: 92705000 | K144: 96877400
A146: ASSET REGISTER SUMMARY - PPE (WDV) | B146: 5 | C146: =C156+C159+C160+C163+C166+C167+C170+C171+C172+C173+C174+C175+C176+C179 -> 778068844.1 | D146: =D156+D159+D160+D163+D166+D167+D170+D171+D172+D173+D174+D175+D176+D179 -> 912847317.2 | E146: 957867714.8 | F146: 1111180398 | G146: 1053571993 | H146: 1053571993 | I146: 1344210167 | J146: 1393714273 | K146: 1428910532
A147: Roads Infrastructure | C147: 191169247.7 | D147: 197850143 | E147: 262289974.1 | F147: 255112379 | G147: 200416249 | H147: 200416249 | I147: 262289973 | J147: 274093022 | K147: 280945348
A148: Storm water Infrastructure | C148: 23961836.61 | D148: 83668729.61 | E148: 83668729.61 | F148: 24441073 | G148: 24441073 | H148: 24441073 | I148: 83668730 | J148: 87433823 | K148: 89619669
A149: Electrical Infrastructure | C149: 399436687.5 | D149: 392304681.1 | E149: 379748064.3 | F149: -346684456 | G149: -341392326 | H149: -341392326 | I149: -347014624 | J149: -364665282 | K149: -373761014
A150: Water Supply Infrastructure | C150: 77600 | D150: 77600 | E150: 77600 | F150: 0 | G150: 0 | H150: 0 | I150: 0 | J150: 0 | K150: 0
A151: Sanitation Infrastructure
A152: Solid Waste Infrastructure | C152: -903636.29 | D152: -903636.29 | E152: -903636.29 | F152: 0 | G152: 0 | H152: 0 | I152: -903637 | J152: -944300 | K152: -967908
A153: Rail Infrastructure
A154: Coastal Infrastructure
A155: Information and Communication Infrastructure
A156: Infrastructure | C156: =SUM(C147:C155) -> 613741735.5 | D156: =SUM(D147:D155) -> 672997517.4 | E156: 724880731.7 | F156: -67131004 | G156: -116535004 | H156: -116535004 | I156: -1959558 | J156: -4082737 | K156: -4163905
A159: Community Assets | C159: 117606915 | D159: 177351542.2 | E159: 173848363.6 | F159: 44981638 | G159: 44981638 | H159: 44981638 | I159: 180001803 | J159: 186518384 | K159: 196056344
A160: Heritage Assets | C160: 0 | D160: 0 | E160: 0 | F160: 0 | G160: 0 | H160: 0 | I160: 0 | J160: 0 | K160: 0
A163: Investment properties | C163: 8950501.09 | D163: 9433600.01 | E163: 9916000.01 | F163: 9516517 | G163: 9516517 | H163: 9516517 | I163: 9916001 | J163: 10362221 | K163: 10621276
A166: Other Assets | C166: 771176.03 | D166: 2075523.86 | E166: 2075523.86 | F166: 0 | G166: 0 | H166: 0 | I166: 0 | J166: 0 | K166: 0
A167: Biological or Cultivated Assets
A170: Intangible Assets | C170: 240698.21 | D170: 174803.45 | E170: 108884.85 | F170: 783368 | G170: 783368 | H170: 783368 | I170: 489961 | J170: 512009 | K170: 524811
A171: Computer Equipment | C171: 4148136.22 | D171: 3468827.45 | E171: 1308369.19 | F171: 919311 | G171: 949311 | H171: 949311 | I171: 1408368 | J171: 3367245 | K171: 1401425
A172: Furniture and Office Equipment | C172: 2607064.75 | D172: 2630803.98 | E172: 2235730.89 | F172: 1107869163 | G172: 1107569163 | H172: 1107569163 | I172: 1109259482 | J172: 1162601409 | K172: 1194289445
A173: Machinery and Equipment | C173: 5217582.5 | D173: 17498850.81 | E173: 17213523.08 | F173: 537000 | G173: 5537000 | H173: 5537000 | I173: 4309117 | J173: 1972528 | K173: 2031341
A174: Transport Assets | C174: 17028744.73 | D174: 19459558.04 | E174: 18254013.13 | F174: 13704405 | G174: 770000 | H174: 770000 | I174: 32758418 | J174: 24075443 | K174: 19552330
A175: Land | C175: 7756290 | D175: 7756290 | E175: 8026574.54 | F175: 0 | G175: 0 | H175: 0 | I175: 8026575 | J175: 8387771 | K175: 8597465
A176: Zoo's, Marine and Non-biological Animals
A179: Living Resources
A180: TOTAL ASSET REGISTER SUMMARY - PPE (WDV) | B180: 5 | C180: =C156+C159+C160+C163+C166+C167+C170+C171+C172+C173+C174+C175+C176+C179 -> 778068844.1 | D180: =D156+D159+D160+D163+D166+D167+D170+D171+D172+D173+D174+D175+D176+D179 -> 912847317.2 | E180: 957867714.8 | F180: =F156+F159+F160+F163+F166+F167+F170+F171+F172+F173+F174+F175+F176+F179 -> 1111180398 | G180: =G156+G159+G160+G163+G166+G167+G170+G171+G172+G173+G174+G175+G176+G179 -> 1053571993 | H180: 1053571993 | I180: 1344210167 | J180: 1393714273 | K180: 1428910532
A182: EXPENDITURE OTHER ITEMS | C182: =SUM(C183:C184) -> 47168528.19 | D182: =SUM(D183:D184) -> 40989114.1 | E182: 44101257.92 | F182: 39444651 | G182: 36827651 | H182: 36827651 | I182: 38503785 | J182: 40131951 | K182: 41135254
A183: Depreciation | B183: 7 | C183: =SA34d!C175 -> 30420608.43 | D183: =SA34d!D175 -> 35157656.59 | E183: =SA34d!E175 -> 33819527.29 | F183: =SA34d!F175 -> 33513635 | G183: =SA34d!G175 -> 33513635 | H183: =SA34d!H175 -> 33513635 | I183: =SA34d!I175 -> 34988257 | J183: =SA34d!J175 -> 36562722 | K183: =SA34d!K175 -> 37476791
A184: Repairs and Maintenance by Asset Class | B184: 3 | C184: =C194+C197+C198+C201+C204+C205+SUM(C208:C214)+C217 -> 16747919.76 | D184: =D194+D197+D198+D201+D204+D205+SUM(D208:D214)+D217 -> 5831457.51 | E184: 10281730.63 | F184: 5931016 | G184: 3314016 | H184: 3314016 | I184: 3515528 | J184: 3569229 | K184: 3658463
A185: Roads Infrastructure | C185: =SA34c!C7 -> 1541980.1 | D185: =SA34c!D7 -> 1593427.18 | E185: =SA34c!E7 -> 314763 | F185: =SA34c!F7 -> 300014 | G185: =SA34c!G7 -> 100014 | H185: =SA34c!H7 -> 100014 | I185: =SA34c!I7 -> 710000 | J185: =SA34c!J7 -> 741950 | K185: =SA34c!K7 -> 760501
A186: Storm water Infrastructure | C186: =SA34c!C12 -> 9452853.05 | D186: =SA34c!D12 -> 0 | E186: =SA34c!E12 -> 3477657.36 | F186: =SA34c!F12 -> 0 | G186: =SA34c!G12 -> 0 | H186: =SA34c!H12 -> 0 | I186: =SA34c!I12 -> 0 | J186: =SA34c!J12 -> 0 | K186: =SA34c!K12 -> 0
A187: Electrical Infrastructure | C187: =SA34c!C16 -> 2171308.31 | D187: =SA34c!D16 -> 1375938.77 | E187: =SA34c!E16 -> 2443950.85 | F187: =SA34c!F16 -> 2000000 | G187: =SA34c!G16 -> 426000 | H187: =SA34c!H16 -> 426000 | I187: =SA34c!I16 -> 300000 | J187: =SA34c!J16 -> 313500 | K187: =SA34c!K16 -> 321338
A188: Water Supply Infrastructure | C188: =SA34c!C26 -> 0 | D188: =SA34c!D26 -> 0 | E188: =SA34c!E26 -> 0 | F188: =SA34c!F26 -> 0 | G188: =SA34c!G26 -> 0 | H188: =SA34c!H26 -> 0 | I188: =SA34c!I26 -> 0 | J188: =SA34c!J26 -> 0 | K188: =SA34c!K26 -> 0
A189: Sanitation Infrastructure | C189: =SA34c!C37 -> 0 | D189: =SA34c!D37 -> 0 | E189: =SA34c!E37 -> 0 | F189: =SA34c!F37 -> 0 | G189: =SA34c!G37 -> 0 | H189: =SA34c!H37 -> 0 | I189: =SA34c!I37 -> 0 | J189: =SA34c!J37 -> 0 | K189: =SA34c!K37 -> 0
A190: Solid Waste Infrastructure | C190: =SA34c!C44 -> 0 | D190: =SA34c!D44 -> 0 | E190: =SA34c!E44 -> 0 | F190: =SA34c!F44 -> 0 | G190: =SA34c!G44 -> 0 | H190: =SA34c!H44 -> 0 | I190: =SA34c!I44 -> 0 | J190: =SA34c!J44 -> 0 | K190: =SA34c!K44 -> 0
A191: Rail Infrastructure | C191: =SA34c!C52 -> 0 | D191: =SA34c!D52 -> 0 | E191: =SA34c!E52 -> 0 | F191: =SA34c!F52 -> 0 | G191: =SA34c!G52 -> 0 | H191: =SA34c!H52 -> 0 | I191: =SA34c!I52 -> 0 | J191: =SA34c!J52 -> 0 | K191: =SA34c!K52 -> 0
A192: Coastal Infrastructure | C192: =SA34c!C62 -> 0 | D192: =SA34c!D62 -> 0 | E192: =SA34c!E62 -> 0 | F192: =SA34c!F62 -> 0 | G192: =SA34c!G62 -> 0 | H192: =SA34c!H62 -> 0 | I192: =SA34c!I62 -> 0 | J192: =SA34c!J62 -> 0 | K192: =SA34c!K62 -> 0
A193: Information and Communication Infrastructure | C193: =SA34c!C68 -> 0 | D193: =SA34c!D68 -> 0 | E193: =SA34c!E68 -> 0 | F193: =SA34c!F68 -> 100000 | G193: =SA34c!G68 -> 100000 | H193: =SA34c!H68 -> 100000 | I193: =SA34c!I68 -> 100000 | J193: =SA34c!J68 -> 104500 | K193: =SA34c!K68 -> 107113
A194: Infrastructure | C194: =SUM(C185:C193) -> 13166141.46 | D194: =SUM(D185:D193) -> 2969365.95 | E194: 6236371.21 | F194: 2400014 | G194: 626014 | H194: 626014 | I194: 1110000 | J194: 1159950 | K194: 1188952
A195: Community Facilities | C195: =SA34c!C75 -> 453487.79 | D195: =SA34c!D75 -> 84505.9 | E195: =SA34c!E75 -> 184865 | F195: =SA34c!F75 -> 200000 | G195: =SA34c!G75 -> 200000 | H195: =SA34c!H75 -> 200000 | I195: =SA34c!I75 -> 304400 | J195: =SA34c!J75 -> 213598 | K195: =SA34c!K75 -> 218939
A196: Sport and Recreation Facilities | C196: =SA34c!C98 -> 75300 | D196: =SA34c!D98 -> 0 | E196: =SA34c!E98 -> 159460 | F196: =SA34c!F98 -> 100000 | G196: =SA34c!G98 -> 50000 | H196: =SA34c!H98 -> 50000 | I196: =SA34c!I98 -> 100000 | J196: =SA34c!J98 -> 104500 | K196: =SA34c!K98 -> 107113
A197: Community Assets | C197: =SUM(C195:C196) -> 528787.79 | D197: 84505.9 | E197: 344325 | F197: 300000 | G197: 250000 | H197: 250000 | I197: 404400 | J197: 318098 | K197: 326052
A198: Heritage Assets | C198: =SA34c!C103 -> 0 | D198: =SA34c!D103 -> 0 | E198: =SA34c!E103 -> 0 | F198: =SA34c!F103 -> 0 | G198: =SA34c!G103 -> 0 | H198: =SA34c!H103 -> 0 | I198: =SA34c!I103 -> 0 | J198: =SA34c!J103 -> 0 | K198: =SA34c!K103 -> 0
A199: Revenue Generating | C199: =SA34c!C111 -> 0 | D199: =SA34c!D111 -> 0 | E199: =SA34c!E111 -> 0 | F199: =SA34c!F111 -> 0 | G199: =SA34c!G111 -> 0 | H199: =SA34c!H111 -> 0 | I199: =SA34c!I111 -> 0 | J199: =SA34c!J111 -> 0 | K199: =SA34c!K111 -> 0
A200: Non-revenue Generating | C200: =SA34c!C114 -> 0 | D200: =SA34c!D114 -> 0 | E200: =SA34c!E114 -> 0 | F200: =SA34c!F114 -> 0 | G200: =SA34c!G114 -> 0 | H200: =SA34c!H114 -> 0 | I200: =SA34c!I114 -> 0 | J200: =SA34c!J114 -> 0 | K200: =SA34c!K114 -> 0
A201: Investment properties | C201: =SUM(C199:C200) -> 0 | D201: 0 | E201: 0 | F201: 0 | G201: 0 | H201: 0 | I201: 0 | J201: 0 | K201: 0
A202: Operational Buildings | C202: =SA34c!C119 -> 473995.77 | D202: =SA34c!D119 -> 151226.98 | E202: =SA34c!E119 -> 427632.25 | F202: =SA34c!F119 -> 1477281 | G202: =SA34c!G119 -> 744281 | H202: =SA34c!H119 -> 744281 | I202: =SA34c!I119 -> 232882 | J202: =SA34c!J119 -> 243362 | K202: =SA34c!K119 -> 249446
A203: Housing | C203: =SA34c!C131 -> 0 | D203: =SA34c!D131 -> 0 | E203: =SA34c!E131 -> 0 | F203: =SA34c!F131 -> 0 | G203: =SA34c!G131 -> 0 | H203: =SA34c!H131 -> 0 | I203: =SA34c!I131 -> 0 | J203: =SA34c!J131 -> 0 | K203: =SA34c!K131 -> 0
A204: Other Assets | C204: =SUM(C202:C203) -> 473995.77 | D204: 151226.98 | E204: 427632.25 | F204: 1477281 | G204: 744281 | H204: 744281 | I204: 232882 | J204: 243362 | K204: 249446
A205: Biological or Cultivated Assets | C205: =SA34c!C136 -> 0 | D205: =SA34c!D136 -> 0 | E205: =SA34c!E136 -> 0 | F205: =SA34c!F136 -> 0 | G205: =SA34c!G136 -> 0 | H205: =SA34c!H136 -> 0 | I205: =SA34c!I136 -> 0 | J205: =SA34c!J136 -> 0 | K205: =SA34c!K136 -> 0
A206: Servitudes | C206: =SA34c!C140 -> 0 | D206: =SA34c!D140 -> 0 | E206: =SA34c!E140 -> 0 | F206: =SA34c!F140 -> 0 | G206: =SA34c!G140 -> 0 | H206: =SA34c!H140 -> 0 | I206: =SA34c!I140 -> 0 | J206: =SA34c!J140 -> 0 | K206: =SA34c!K140 -> 0
A207: Licences and Rights | C207: =SA34c!C141 -> 0 | D207: =SA34c!D141 -> 0 | E207: =SA34c!E141 -> 0 | F207: =SA34c!F141 -> 0 | G207: =SA34c!G141 -> 0 | H207: =SA34c!H141 -> 0 | I207: =SA34c!I141 -> 0 | J207: =SA34c!J141 -> 0 | K207: =SA34c!K141 -> 0
A208: Intangible Assets | C208: =SUM(C206:C207) -> 0 | D208: 0 | E208: 0 | F208: 0 | G208: 0 | H208: 0 | I208: 0 | J208: 0 | K208: 0
A209: Computer Equipment | C209: =SA34c!C149 -> 180549.6 | D209: =SA34c!D149 -> 322955 | E209: =SA34c!E149 -> 216000 | F209: =SA34c!F149 -> 367351 | G209: =SA34c!G149 -> 347351 | H209: =SA34c!H149 -> 347351 | I209: =SA34c!I149 -> 362635 | J209: =SA34c!J149 -> 378954 | K209: =SA34c!K149 -> 388427
A210: Furniture and Office Equipment | C210: =SA34c!C152 -> -52543.5 | D210: =SA34c!D152 -> 0 | E210: =SA34c!E152 -> 49760 | F210: =SA34c!F152 -> 124722 | G210: =SA34c!G152 -> 74722 | H210: =SA34c!H152 -> 74722 | I210: =SA34c!I152 -> 78010 | J210: =SA34c!J152 -> 81521 | K210: =SA34c!K152 -> 83559
A211: Machinery and Equipment | C211: =SA34c!C155 -> 20565 | D211: =SA34c!D155 -> 85594.63 | E211: =SA34c!E155 -> 0 | F211: =SA34c!F155 -> 50000 | G211: =SA34c!G155 -> 30000 | H211: =SA34c!H155 -> 30000 | I211: =SA34c!I155 -> 31320 | J211: =SA34c!J155 -> 32730 | K211: =SA34c!K155 -> 33548
A212: Transport Assets | C212: =SA34c!C158 -> 2430423.64 | D212: =SA34c!D158 -> 2217809.05 | E212: =SA34c!E158 -> 3007642.17 | F212: =SA34c!F158 -> 1211648 | G212: =SA34c!G158 -> 1241648 | H212: =SA34c!H158 -> 1241648 | I212: =SA34c!I158 -> 1296281 | J212: =SA34c!J158 -> 1354614 | K212: =SA34c!K158 -> 1388479
A213: Land | C213: =SA34c!C161 -> 0 | D213: =SA34c!D161 -> 0 | E213: =SA34c!E161 -> 0 | F213: =SA34c!F161 -> 0 | G213: =SA34c!G161 -> 0 | H213: =SA34c!H161 -> 0 | I213: =SA34c!I161 -> 0 | J213: =SA34c!J161 -> 0 | K213: =SA34c!K161 -> 0
A214: Zoo's, Marine and Non-biological Animals | C214: =SA34c!C164 -> 0 | D214: =SA34c!D164 -> 0 | E214: =SA34c!E164 -> 0 | F214: =SA34c!F164 -> 0 | G214: =SA34c!G164 -> 0 | H214: =SA34c!H164 -> 0 | I214: =SA34c!I164 -> 0 | J214: =SA34c!J164 -> 0 | K214: =SA34c!K164 -> 0
A215: Mature | C215: =SA34c!C168 -> 0 | D215: =SA34c!D168 -> 0 | E215: =SA34c!E168 -> 0 | F215: =SA34c!F168 -> 0 | G215: =SA34c!G168 -> 0 | H215: =SA34c!H168 -> 0 | I215: =SA34c!I168 -> 0 | J215: =SA34c!J168 -> 0 | K215: =SA34c!K168 -> 0
... 16 more rows

Sheet A10-SerDel
A1: =muni&" - "&Approve10 -> LIM351 Blouberg - Table A10 Basic service delivery measurement
A2: =desc -> Description | B2: =head27 -> Ref | C2: =head1b -> 2021/22 | D2: =head1A -> 2022/23 | E2: =Head1 -> 2023/24 | F2: =Head2 -> Current Year 2024/25 | I2: =Head3 -> 2025/26 Medium Term Revenue & Expenditure Framework
C3: =Head5A -> Outcome | D3: =Head5A -> Outcome | E3: =Head5A -> Outcome | F3: =Head6 -> Original Budget | G3: =Head7 -> Adjusted Budget | H3: =Head8 -> Full Year Forecast | I3: =Head9 -> Budget Year 2025/26 | J3: =Head10 -> Budget Year +1 2026/27 | K3: =Head11 -> Budget Year +2 2027/28
A4: Household service targets | B4: 1
A5: Water:
A6: Piped water inside dwelling | C6: ='SA9'!E67 -> 0 | D6: ='SA9'!F67 -> 0 | E6: ='SA9'!G67 -> 0 | F6: ='SA9'!H67 -> 0 | G6: ='SA9'!I67 -> 0 | H6: ='SA9'!J67 -> 0 | I6: ='SA9'!K67 -> 0 | J6: ='SA9'!L67 -> 0 | K6: ='SA9'!M67 -> 0
A7: Piped water inside yard (but not in dwelling) | C7: ='SA9'!E68 -> 0 | D7: ='SA9'!F68 -> 0 | E7: ='SA9'!G68 -> 0 | F7: ='SA9'!H68 -> 0 | G7: ='SA9'!I68 -> 0 | H7: ='SA9'!J68 -> 0 | I7: ='SA9'!K68 -> 0 | J7: ='SA9'!L68 -> 0 | K7: ='SA9'!M68 -> 0
A8: Using public tap (at least min.service level) | B8: 2 | C8: ='SA9'!E69 -> 0 | D8: ='SA9'!F69 -> 0 | E8: ='SA9'!G69 -> 0 | F8: ='SA9'!H69 -> 0 | G8: ='SA9'!I69 -> 0 | H8: ='SA9'!J69 -> 0 | I8: ='SA9'!K69 -> 0 | J8: ='SA9'!L69 -> 0 | K8: ='SA9'!M69 -> 0
A9: Other water supply (at least min.service level) | B9: 4 | C9: ='SA9'!E70 -> 0 | D9: ='SA9'!F70 -> 0 | E9: ='SA9'!G70 -> 0 | F9: ='SA9'!H70 -> 0 | G9: ='SA9'!I70 -> 0 | H9: ='SA9'!J70 -> 0 | I9: ='SA9'!K70 -> 0 | J9: ='SA9'!L70 -> 0 | K9: ='SA9'!M70 -> 0
A10: Minimum Service Level and Above sub-total | C10: =SUM(C6:C9) -> 0 | D10: =SUM(D6:D9) -> 0 | E10: 0 | F10: 0 | G10: 0 | H10: 0 | I10: 0 | J10: 0 | K10: 0
A11: Using public tap (< min.service level) | B11: 3 | C11: ='SA9'!E72 -> 0 | D11: ='SA9'!F72 -> 0 | E11: ='SA9'!G72 -> 0 | F11: ='SA9'!H72 -> 0 | G11: ='SA9'!I72 -> 0 | H11: ='SA9'!J72 -> 0 | I11: ='SA9'!K72 -> 0 | J11: ='SA9'!L72 -> 0 | K11: ='SA9'!M72 -> 0
A12: Other water supply (< min.service level) | B12: =B9 -> 4 | C12: ='SA9'!E73 -> 0 | D12: ='SA9'!F73 -> 0 | E12: ='SA9'!G73 -> 0 | F12: ='SA9'!H73 -> 0 | G12: ='SA9'!I73 -> 0 | H12: ='SA9'!J73 -> 0 | I12: ='SA9'!K73 -> 0 | J12: ='SA9'!L73 -> 0 | K12: ='SA9'!M73 -> 0
A13: No water supply | C13: ='SA9'!E74 -> 0 | D13: ='SA9'!F74 -> 0 | E13: ='SA9'!G74 -> 0 | F13: ='SA9'!H74 -> 0 | G13: ='SA9'!I74 -> 0 | H13: ='SA9'!J74 -> 0 | I13: ='SA9'!K74 -> 0 | J13: ='SA9'!L74 -> 0 | K13: ='SA9'!M74 -> 0
A14: Below Minimum Service Level sub-total | C14: =SUM(C11:C13) -> 0 | D14: =SUM(D11:D13) -> 0 | E14: 0 | F14: 0 | G14: 0 | H14: 0 | I14: 0 | J14: 0 | K14: 0
A15: Total number of households | B15: 5 | C15: =C10+C14 -> 0 | D15: =D10+D14 -> 0 | E15: 0 | F15: 0 | G15: 0 | H15: 0 | I15: 0 | J15: 0 | K15: 0
A16: Sanitation/sewerage:
A17: Flush toilet (connected to sewerage) | C17: ='SA9'!E78 -> 0 | D17: ='SA9'!F78 -> 0 | E17: ='SA9'!G78 -> 0 | F17: ='SA9'!H78 -> 0 | G17: ='SA9'!I78 -> 0 | H17: ='SA9'!J78 -> 0 | I17: ='SA9'!K78 -> 0 | J17: ='SA9'!L78 -> 0 | K17: ='SA9'!M78 -> 0
A18: Flush toilet (with septic tank) | C18: ='SA9'!E79 -> 0 | D18: ='SA9'!F79 -> 0 | E18: ='SA9'!G79 -> 0 | F18: ='SA9'!H79 -> 0 | G18: ='SA9'!I79 -> 0 | H18: ='SA9'!J79 -> 0 | I18: ='SA9'!K79 -> 0 | J18: ='SA9'!L79 -> 0 | K18: ='SA9'!M79 -> 0
A19: Chemical toilet | C19: ='SA9'!E80 -> 0 | D19: ='SA9'!F80 -> 0 | E19: ='SA9'!G80 -> 0 | F19: ='SA9'!H80 -> 0 | G19: ='SA9'!I80 -> 0 | H19: ='SA9'!J80 -> 0 | I19: ='SA9'!K80 -> 0 | J19: ='SA9'!L80 -> 0 | K19: ='SA9'!M80 -> 0
A20: Pit toilet (ventilated) | C20: ='SA9'!E81 -> 0 | D20: ='SA9'!F81 -> 0 | E20: ='SA9'!G81 -> 0 | F20: ='SA9'!H81 -> 0 | G20: ='SA9'!I81 -> 0 | H20: ='SA9'!J81 -> 0 | I20: ='SA9'!K81 -> 0 | J20: ='SA9'!L81 -> 0 | K20: ='SA9'!M81 -> 0
A21: Other toilet provisions (> min.service level) | C21: ='SA9'!E82 -> 0 | D21: ='SA9'!F82 -> 0 | E21: ='SA9'!G82 -> 0 | F21: ='SA9'!H82 -> 0 | G21: ='SA9'!I82 -> 0 | H21: ='SA9'!J82 -> 0 | I21: ='SA9'!K82 -> 0 | J21: ='SA9'!L82 -> 0 | K21: ='SA9'!M82 -> 0
A22: =$A$10 -> Minimum Service Level and Above sub-total | C22: =SUM(C17:C21) -> 0 | D22: =SUM(D17:D21) -> 0 | E22: 0 | F22: 0 | G22: 0 | H22: 0 | I22: 0 | J22: 0 | K22: 0
A23: Bucket toilet | C23: ='SA9'!E84 -> 0 | D23: ='SA9'!F84 -> 0 | E23: ='SA9'!G84 -> 0 | F23: ='SA9'!H84 -> 0 | G23: ='SA9'!I84 -> 0 | H23: ='SA9'!J84 -> 0 | I23: ='SA9'!K84 -> 0 | J23: ='SA9'!L84 -> 0 | K23: ='SA9'!M84 -> 0
A24: Other toilet provisions (< min.service level) | C24: ='SA9'!E85 -> 0 | D24: ='SA9'!F85 -> 0 | E24: ='SA9'!G85 -> 0 | F24: ='SA9'!H85 -> 0 | G24: ='SA9'!I85 -> 0 | H24: ='SA9'!J85 -> 0 | I24: ='SA9'!K85 -> 0 | J24: ='SA9'!L85 -> 0 | K24: ='SA9'!M85 -> 0
A25: No toilet provisions | C25: ='SA9'!E86 -> 0 | D25: ='SA9'!F86 -> 0 | E25: ='SA9'!G86 -> 0 | F25: ='SA9'!H86 -> 0 | G25: ='SA9'!I86 -> 0 | H25: ='SA9'!J86 -> 0 | I25: ='SA9'!K86 -> 0 | J25: ='SA9'!L86 -> 0 | K25: ='SA9'!M86 -> 0
A26: =$A$14 -> Below Minimum Service Level sub-total | C26: =SUM(C23:C25) -> 0 | D26: =SUM(D23:D25) -> 0 | E26: 0 | F26: 0 | G26: 0 | H26: 0 | I26: 0 | J26: 0 | K26: 0
A27: =$A$15 -> Total number of households | B27: =$B$15 -> 5 | C27: =C22+C26 -> 0 | D27: =D22+D26 -> 0 | E27: 0 | F27: 0 | G27: 0 | H27: 0 | I27: 0 | J27: 0 | K27: 0
A28: Energy:
A29: Electricity (at least min.service level) | C29: ='SA9'!E90 -> 0 | D29: ='SA9'!F90 -> 0 | E29: ='SA9'!G90 -> 0 | F29: ='SA9'!H90 -> 5340 | G29: ='SA9'!I90 -> 5340 | H29: ='SA9'!J90 -> 5340 | I29: ='SA9'!K90 -> 5210 | J29: ='SA9'!L90 -> 5410 | K29: ='SA9'!M90 -> 0
A30: Electricity - prepaid (min.service level) | C30: ='SA9'!E91 -> 0 | D30: ='SA9'!F91 -> 0 | E30: ='SA9'!G91 -> 0 | F30: ='SA9'!H91 -> 0 | G30: ='SA9'!I91 -> 0 | H30: ='SA9'!J91 -> 0 | I30: ='SA9'!K91 -> 0 | J30: ='SA9'!L91 -> 0 | K30: ='SA9'!M91 -> 0
A31: =$A$10 -> Minimum Service Level and Above sub-total | C31: =SUM(C29:C30) -> 0 | D31: =SUM(D29:D30) -> 0 | E31: 0 | F31: 5340 | G31: 5340 | H31: 5340 | I31: 5210 | J31: 5410 | K31: 0
A32: Electricity (< min.service level) | C32: ='SA9'!E93 -> 0 | D32: ='SA9'!F93 -> 0 | E32: ='SA9'!G93 -> 0 | F32: ='SA9'!H93 -> 0 | G32: ='SA9'!I93 -> 0 | H32: ='SA9'!J93 -> 0 | I32: ='SA9'!K93 -> 0 | J32: ='SA9'!L93 -> 0 | K32: ='SA9'!M93 -> 0
A33: Electricity - prepaid (< min. service level) | C33: ='SA9'!E94 -> 0 | D33: ='SA9'!F94 -> 0 | E33: ='SA9'!G94 -> 0 | F33: ='SA9'!H94 -> 0 | G33: ='SA9'!I94 -> 0 | H33: ='SA9'!J94 -> 0 | I33: ='SA9'!K94 -> 0 | J33: ='SA9'!L94 -> 0 | K33: ='SA9'!M94 -> 0
A34: Other energy sources | C34: ='SA9'!E95 -> 0 | D34: ='SA9'!F95 -> 0 | E34: ='SA9'!G95 -> 0 | F34: ='SA9'!H95 -> 0 | G34: ='SA9'!I95 -> 0 | H34: ='SA9'!J95 -> 0 | I34: ='SA9'!K95 -> 0 | J34: ='SA9'!L95 -> 0 | K34: ='SA9'!M95 -> 0
A35: =$A$14 -> Below Minimum Service Level sub-total | C35: =SUM(C32:C34) -> 0 | D35: =SUM(D32:D34) -> 0 | E35: 0 | F35: 0 | G35: 0 | H35: 0 | I35: 0 | J35: 0 | K35: 0
A36: =$A$15 -> Total number of households | B36: =$B$15 -> 5 | C36: =C31+C35 -> 0 | D36: =D31+D35 -> 0 | E36: 0 | F36: 5340 | G36: 5340 | H36: 5340 | I36: 5210 | J36: 5410 | K36: 0
A37: Refuse:
A38: Removed at least once a week | C38: ='SA9'!E99 -> 0 | D38: ='SA9'!F99 -> 0 | E38: ='SA9'!G99 -> 0 | F38: ='SA9'!H99 -> 0 | G38: ='SA9'!I99 -> 0 | H38: ='SA9'!J99 -> 0 | I38: ='SA9'!K99 -> 0 | J38: ='SA9'!L99 -> 0 | K38: ='SA9'!M99 -> 0
A39: =$A$10 -> Minimum Service Level and Above sub-total | C39: =SUM(C38) -> 0 | D39: =SUM(D38) -> 0 | E39: 0 | F39: 0 | G39: 0 | H39: 0 | I39: 0 | J39: 0 | K39: 0
A40: Removed less frequently than once a week | C40: ='SA9'!E101 -> 0 | D40: ='SA9'!F101 -> 0 | E40: ='SA9'!G101 -> 0 | F40: ='SA9'!H101 -> 0 | G40: ='SA9'!I101 -> 0 | H40: ='SA9'!J101 -> 0 | I40: ='SA9'!K101 -> 0 | J40: ='SA9'!L101 -> 0 | K40: ='SA9'!M101 -> 0
A41: Using communal refuse dump | C41: ='SA9'!E102 -> 0 | D41: ='SA9'!F102 -> 0 | E41: ='SA9'!G102 -> 0 | F41: ='SA9'!H102 -> 0 | G41: ='SA9'!I102 -> 0 | H41: ='SA9'!J102 -> 0 | I41: ='SA9'!K102 -> 0 | J41: ='SA9'!L102 -> 0 | K41: ='SA9'!M102 -> 0
A42: Using own refuse dump | C42: ='SA9'!E103 -> 0 | D42: ='SA9'!F103 -> 0 | E42: ='SA9'!G103 -> 0 | F42: ='SA9'!H103 -> 0 | G42: ='SA9'!I103 -> 0 | H42: ='SA9'!J103 -> 0 | I42: ='SA9'!K103 -> 0 | J42: ='SA9'!L103 -> 0 | K42: ='SA9'!M103 -> 0
A43: Other rubbish disposal | C43: ='SA9'!E104 -> 0 | D43: ='SA9'!F104 -> 0 | E43: ='SA9'!G104 -> 0 | F43: ='SA9'!H104 -> 0 | G43: ='SA9'!I104 -> 0 | H43: ='SA9'!J104 -> 0 | I43: ='SA9'!K104 -> 0 | J43: ='SA9'!L104 -> 0 | K43: ='SA9'!M104 -> 0
A44: No rubbish disposal | C44: ='SA9'!E105 -> 0 | D44: ='SA9'!F105 -> 0 | E44: ='SA9'!G105 -> 0 | F44: ='SA9'!H105 -> 0 | G44: ='SA9'!I105 -> 0 | H44: ='SA9'!J105 -> 0 | I44: ='SA9'!K105 -> 0 | J44: ='SA9'!L105 -> 0 | K44: ='SA9'!M105 -> 0
A45: =$A$14 -> Below Minimum Service Level sub-total | C45: =SUM(C40:C44) -> 0 | D45: =SUM(D40:D44) -> 0 | E45: 0 | F45: 0 | G45: 0 | H45: 0 | I45: 0 | J45: 0 | K45: 0
A46: =$A$15 -> Total number of households | B46: =$B$15 -> 5 | C46: =C39+C45 -> 0 | D46: =D39+D45 -> 0 | E46: 0 | F46: 0 | G46: 0 | H46: 0 | I46: 0 | J46: 0 | K46: 0
A48: Households receiving Free Basic Service | B48: 7
A49: Water (6 kilolitres per household per month) | C49: ='SA9'!E263 -> 0 | D49: ='SA9'!F263 -> 0 | E49: ='SA9'!G263 -> 0 | F49: ='SA9'!H263 -> 0 | G49: ='SA9'!I263 -> 0 | H49: ='SA9'!J263 -> 0 | I49: ='SA9'!K263 -> 0 | J49: ='SA9'!L263 -> 0 | K49: ='SA9'!M263 -> 0
A50: Sanitation (free minimum level service) | C50: ='SA9'!E275 -> 0 | D50: ='SA9'!F275 -> 0 | E50: ='SA9'!G275 -> 0 | F50: ='SA9'!H275 -> 0 | G50: ='SA9'!I275 -> 0 | H50: ='SA9'!J275 -> 0 | I50: ='SA9'!K275 -> 0 | J50: ='SA9'!L275 -> 0 | K50: ='SA9'!M275 -> 0
